Workbook

Sheet MENU
J1: PM
E2: =CHOOSE(MATCH(Objeto,{"PM","PO"}),"PLANILHA MÚLTIPLA ","PLANILHA ORÇAMENTÁRIA ")& Versao -> PLANILHA MÚLTIPLA v3.0.5 | J2: v3.0.5
O3: 1
O4: 1
J5: Proposto
E6: DADOS DO CONTRATO | G6: NOVIDADES DA VERSÃO | J6: Licitado
J7: PLE
B8: =IF($O$3<>2,"DOCUMENTAÇÃO DA PROPOSTA","PROPOSTA: Para visualizar/preencher esta seção, altere o TIPO DE ORÇAMENTO para 'Proposto'") -> DOCUMENTAÇÃO DA PROPOSTA | J8: BM | L8: LEGENDA:
L9: Cores das células:
C10: =IF(TIPOORCAMENTO<>"Proposto",""," BDI ") -> BDI | E10: =IF(TIPOORCAMENTO<>"Proposto",""," ORÇAMENTO ") -> ORÇAMENTO | G10: =IF(TIPOORCAMENTO<>"Proposto","","MEMÓRIA DE CÁLCULO / PLQ") -> MEMÓRIA DE CÁLCULO / PLQ | N10: Fundo amarelo: células para preencher
C12: =IF(TIPOORCAMENTO<>"Proposto",""," QCI ") -> QCI | E12: =IF(TIPOORCAMENTO<>"Proposto","","CRONOGRAMA FÍSICO-FINANCEIRO") -> CRONOGRAMA FÍSICO-FINANCEIRO | N12: Fundo azul: células para seleção de opções
C14: =IF(TIPOORCAMENTO<>"Proposto","","Obs: Composições e Cotações devem ser preenchidas diretamente no arquivo Referência "&IF(ISBLANK(Import.DataBase),"mm-aaaa",TEXT(Import.DataBase,"mm-aaaa"))&".xls.") -> Obs: Composições e Cotações devem ser preenchidas diretamente no arquivo Referência 12-2022.xls.
L15: Cores dos botões:
B16: =IF($O$3<>2,"PÓS-LICITADO: Para visualizar/preencher esta seção, altere o TIPO DE ORÇAMENTO para 'Licitado'","RESULTADO DO PROCESSO LICITATÓRIO") -> PÓS-LICITADO: Para visualizar/preencher esta seção, altere o TIPO DE ORÇAMENTO para 'Licitado' | N16: Fundo azul: navegação entre abas
C18: =IF(TIPOORCAMENTO<>"Licitado",""," ORÇAMENTO ") ->  | E18: =IF(TIPOORCAMENTO<>"Licitado",""," QCI ") ->  | G18: =IF(TIPOORCAMENTO<>"Licitado","","CRONOGRAMA FÍSICO-FINANCEIRO") ->  | N18: Fundo laranja: execução de macro
B20: =IF($O$3<>2,"ACOMPANHAMENTO: Para visualizar/preencher esta seção, altere o TIPO DE ORÇAMENTO para 'Licitado'","ACOMPANHAMENTO DO EMPREENDIMENTO") -> ACOMPANHAMENTO: Para visualizar/preencher esta seção, altere o TIPO DE ORÇAMENTO para 'Licitado'
C22: =IF(OR(TIPOORCAMENTO<>"Licitado",ACOMPANHAMENTO<>"PLE"),"","PLAN. DE LEVANT. DE EVENTOS - PLE") ->  | E22: =IF(TIPOORCAMENTO<>"Licitado",""," RRE ") ->  | G22: =IF(OR(TIPOORCAMENTO<>"Licitado",ACOMPANHAMENTO<>"BM"),""," BOLETIM DE MEDIÇÃO - BM ") -> 
E24: =IF(TIPOORCAMENTO<>"Licitado","","OF. DE SOLICITAÇÃO DE DESBLOQUEIO") -> 

Sheet DADOS
E1: A. DOCUMENTAÇÃO DA PROPOSTA | L1: Sub-Itens de Investimento
J2: Itens de Investimento | K2: Unidades habitacionais | L2: =COUNTA(K:K)-1 -> 3 | M2: Equipamentos comunitários | N2: =COUNTA(M:M)-1 -> 6 | O2: Pavimentação | P2: =COUNTA(O:O)-1 -> 6 | Q2: Drenagem | R2: =COUNTA(Q:Q)-1 -> 6 | S2: Abastecimento de água | T2: =COUNTA(S:S)-1 -> 11 | U2: Esgotamento sanitário | V2: =COUNTA(U:U)-1 -> 8 | W2: Energia elétrica e iluminação pública | X2: =COUNTA(W:W)-1 -> 4 | Y2: Coleta e tratamento de resíduos sólidos | Z2: =COUNTA(Y:Y)-1 -> 6 | AA2: Contenção e estabilização de encostas | AB2: =COUNTA(AA:AA)-1 -> 2 | AC2: Regularização fundiária | AD2: =COUNTA(AC:AC)-1 -> 2 | AE2: Aquisição de terreno | AF2: =COUNTA(AE:AE)-1 -> 2 | AG2: Aquisição de equipamentos e insumos | AH2: =COUNTA(AG:AG)-1 -> 1 | AI2: Elaboração de estudos e projetos | AJ2: =COUNTA(AI:AI)-1 -> 1 | AK2: Instrumentos e ações em planejamento e gestão pública | AL2: =COUNTA(AK:AK)-1 -> 1 | AM2: Ações complementares às obras | AN2: =COUNTA(AM:AM)-1 -> 3 | AO2: Gerenciamento | AP2: =COUNTA(AO:AO)-1 -> 1 | AQ2: Trabalho social | AR2: =COUNTA(AQ:AQ)-1 -> 4
E3: Dados do Contrato (Inicial) | J3: Unidades habitacionais | K3: Aquisição | L3: un | M3: Convivência comunitária, assistência social e/ou comunitária | N3: m² | O3: Capeamento de vias | P3: m² | Q3: Obras de microdrenagem | R3: m | S3: Captação subterrânea | T3: m³/s | U3: Ligações domiciliares e/ou intradomiciliares | V3: un | W3: Iluminação pública - luminárias | X3: un | Y3: Acondicionamento | Z3: un | AA3: Estabilização de taludes | AB3: m² | AC3: Desapropriacões/Indenizações | AD3: m² | AE3: Aquisição de terreno | AF3: m² | AG3: Aquisição de equipamentos e insumos | AH3: un | AI3: Elaboração de estudos e projetos | AJ3: un | AK3: Instrumentos e ações em planejamento e gestão pública | AL3: un | AM3: Avaliação pós intervenção | AN3: un | AO3: Gerenciamento | AP3: %CT | AQ3: Projeto de Trabalho Social Preliminar | AR3: nº fam
E4: Fonte de recursos: | J4: Equipamentos comunitários | K4: Construção | L4: un | M4: Educação e cultura | N4: m² | O4: Recapeamento de vias | P4: m² | Q4: Desassoreamento de cursos de água | R4: m | S4: Captação superficial | T4: m³/s | U4: Rede coletora e/ou condominial | V4: m | W4: Ligações domiciliares | X4: un | Y4: Aterro sanitário e/ou disposição final | Z4: m³ | AA4: Obras complementares a ações de redução de risco e/ou contenções | AB4: m² | AC4: Projeto de Regularização Fundiária | AD4: m² | AE4: Benfeitorias | AF4: m² | AM4: Demolições | AN4: un | AQ4: Projeto de Trabalho Social | AR4: nº fam
E5: Proponente/Tomador: | F5: Prefeitura Municipal de Balneário Camboriú | J5: Pavimentação | K5: Reforma e/ou melhoria | L5: un | M5: Esportes | N5: m² | O5: Obras de artes especiais | P5: m | Q5: Canalização de cursos de água | R5: m | S5: Estação de bombeamento de água bruta | T5: m³/s | U5: Coletor tronco e/ou interceptores | V5: m | W5: Linhas de distribuição - baixa tensão | X5: m | Y5: Erradicação de lixões | Z5: m³ | AM5: Plano de Reassentamento e medidas compensatórias | AN5: un | AQ5: Plano de Desenvolvimento Socioterritorial | AR5: nº fam
E6: Município/UF: | F6: Balneário Camboriú/SC | J6: Drenagem | M6: Lazer e turismo | N6: m² | O6: Pavimentação de calçadas | P6: m² | Q6: Recomposição de vegetação ciliar, renaturalização de cursos de água ou restauração de margens | R6: m² | S6: Adução | T6: m | U6: Emissário | V6: m | W6: Linhas de transmissão - alta tensão | X6: m | Y6: Sistema de coleta seletiva tradicional, transporte e/ou equipamentos | Z6: un | AQ6: Plano de Gestão Condominial | AR6: nº fam
E7: Nº da Operação (0000000-00): | J7: Abastecimento de água | M7: Saúde | N7: m² | O7: Pavimentação de vias | P7: m² | Q7: Reservatório de amortecimento de cheias | R7: m³ | S7: Estação de Tratamento de Água (ETA) | T7: m³/s | U7: Estação Elevatória | V7: m³/s | Y7: Tratamento local | Z7: un
E8: Nº do SICONV (000000): | J8: Esgotamento sanitário | M8: Segurança pública | N8: m² | O8: Sinalização | P8: m² | Q8: Estação de Bombeamento | R8: m³/s | S8: Estação de bombeamento de água tratada | T8: m³/s | U8: Estação de Tratamento de Esgoto (ETE) | V8: m³/s | Y8: Usinas de reciclagem | Z8: m²
E9: =IF(F4="FGTS","Valor de Financiamento Contratado (R$):","Valor do Repasse Contratado (R$):") -> Valor do Repasse Contratado (R$): | J9: Energia elétrica e iluminação pública | S9: Linha de recalque | T9: m | U9: Sistema simplificado de tratamento | V9: m³/s
E10: Valor de Contrapartida Contratada (R$): | J10: Coleta e tratamento de resíduos sólidos | S10: Reservação | T10: m³ | U10: Unidades sanitárias | V10: un
E11: % mínimo de Contrapartida: | J11: Contenção e estabilização de encostas | S11: Rede de distribuição | T11: m
E12: R$ mínimo de Contrapartida (se houver): | J12: Regularização fundiária | S12: Ligações domiciliares e/ou intradomiciliares | T12: un
E13: % máximo de Contrapartida: | J13: Aquisição de terreno | S13: Sistema simplificado de abastecimento | T13: m
J14: Aquisição de equipamentos e insumos
E15: Dados do Empreendimento e Orçamento | J15: Elaboração de estudos e projetos
E16: Nome/apelido: | F16: REFORMA RESERVATÓRIO HMRC | J16: Instrumentos e ações em planejamento e gestão pública
E17: Descrição do Objeto do Lote / CTEF: | F17: R. Angelina, s/n - Municípios, Balneário Camboriú | J17: Ações complementares às obras
E18: Regime previdenciário previsto para a obra: | F18: NÃO DESONERADO | J18: Gerenciamento
E19: Data base do Orçamento: | F19: 2022-12-01 | J19: Trabalho social
E21: Responsável pelo Orçamento
E22: Nome: | F22: Rafael Calistro de Borba
E23: CREA/CAU: | F23: 093.243-9
E24: ART/RRT:
E25: Data do preenchimento: | F25: =TODAY() -> 2023-03-09
E27: Responsável pelo Tomador (Prefeito, no caso de Municípios)
E28: Nome: | F28: Fabrício José Satiro de Oliveira
E29: Cargo: | F29: Prefeito Municipal
E32: B. RESULTADO DO PROCESSO LICITATÓRIO
E34: Licitação
E35: Data de emissão dos documentos de licitação:
E36: Nº do CTEF (contrato com empresa):
E37: Nome da empresa:
E38: CNPJ da empresa:
E39: Regime de execução do CTEF: | F39: (SELECIONAR)
E40: Data base do CTEF:
E43: C. ACOMPANHAMENTO DO EMPREENDIMENTO
E45: Dados da obra
E46: Data do Início da Obra:
E47: Data de fechamento do RRE: | F47: =TODAY() -> 2023-03-09
E49: Responsável pela Fiscalização
E50: Nome:
E51: Profissão:
E52: CREA/CAU (para obras/projetos):
E53: ART/RRT (para obras/projetos):
E56: D. ACOMPANHAMENTO CAIXA
E58: Responsável Gerencial
E59: Nome:
E60: Função:

Sheet NOVO
B3: Novidades da Versão
A6: V3.0.0
B7: GERAL
C8: =IF(D8<>"","▪","") -> ▪ | D8: Lançamento: Adequação à Portaria 424/2016. Acompanhamento por Eventos.
C9: =IF(D9<>"","▪","") -> 
A10: V3.0.1
B11: GERAL
C12: =IF(D12<>"","▪","") -> ▪ | D12: Ajustes de formatações.
B13: PO
C14: =IF(D14<>"","▪","") -> ▪ | D14: Correção da aplicação do BDI não desonerado.
C15: =IF(D15<>"","▪","") -> ▪ | D15: Inclusão de coluna exclusiva "Preço Unitário Edital", para o Modo 'Orçamento Licitado'.
A17: V3.0.2
B18: GERAL
C19: =IF(D19<>"","▪","") -> ▪ | D19: Ajustes de formatações.
C20: =IF(D20<>"","▪","") -> ▪ | D20: Correção do Problema de Guias ocultas no BROFFICE.
B21: ORÇAMENTO
C22: =IF(D22<>"","▪","") -> ▪ | D22: Ampliada obtenção de dados da Planilha Referência de 20.000 para 65.536 linhas.
B23: CRONOGRAMA
C24: =IF(D24<>"","▪","") -> ▪ | D24: Correção na formulação do total acumulado por Repasse, CP e Outros
B25: QCI
C26: =IF(D26<>"","▪","") -> ▪ | D26: Correção na formulação do arredondamento no rateio dos valores do QCI.
B27: RRE
C28: =IF(D28<>"","▪","") -> ▪ | D28: Correção na formulação do total por Repasse, CP e Outros.
A30: V3.0.3
B31: GERAL
C32: =IF(D32<>"","▪","") -> ▪ | D32: Correção do Problema de Guias ocultas no BROFFICE.
B33: CÁLCULO
C34: =IF(D34<>"","▪","") -> ▪ | D34: Corrigida lentidão e travamento ao incluir e excluir frentes.
A37: V3.0.4
B38: BDI
C39: =IF(D39<>"","▪","") -> ▪ | D39: Correção da CPRB que exibia 4,5% mesmo quando não desonerado.
B40: CRONOGRAMA
C41: =IF(D41<>"","▪","") -> ▪ | D41: Correção da distribuição de Repasse, CP e Outros para as metas manuais.
B42: QCI
C43: =IF(D43<>"","▪","") -> ▪ | D43: Adicionado botão para adotar a CP do QCI como CP do contrato (zera saldo a reprogramar de CP).
A45: V3.0.5
B46: GERAL
C47: =IF(D47<>"","▪","") -> ▪ | D47: Corrigido modo de Cálculo da Planilha para Automático.

Sheet BDI
E1: MIN | F1: MED | G1: MAX | O1: ="Quadro de Composição do BDI" -> Quadro de Composição do BDI | R1: Grau de Sigilo
A2: Construção e Reforma de Edifícios | B2: AC | C2: =CONCATENATE(A2,"-",B2) -> Construção e Reforma de Edifícios-AC | E2: 0.03 | F2: 0.04 | G2: 0.055 | R2: #PUBLICO
A3: =A2 -> Construção e Reforma de Edifícios | B3: SG | C3: Construção e Reforma de Edifícios-SG | E3: 0.008 | F3: 0.008 | G3: 0.01
A4: =A3 -> Construção e Reforma de Edifícios | B4: R | C4: Construção e Reforma de Edifícios-R | E4: 0.0097 | F4: 0.0127 | G4: 0.0127 | J4: Nº OPERAÇÃO | L4: Nº SICONV | N4: PROPONENTE / TOMADOR
A5: =A4 -> Construção e Reforma de Edifícios | B5: DF | C5: Construção e Reforma de Edifícios-DF | E5: 0.0059 | F5: 0.0123 | G5: 0.0139 | J5: =Import.CR -> 0 | L5: =Import.SICONV -> 0 | N5: =Import.Proponente -> Prefeitura Municipal de Balneário Camboriú
A6: =A5 -> Construção e Reforma de Edifícios | B6: L | C6: Construção e Reforma de Edifícios-L | E6: 0.0616 | F6: 0.074 | G6: 0.0896 | I6: FILTRO
A7: =A6 -> Construção e Reforma de Edifícios | B7: BDI PAD | C7: Construção e Reforma de Edifícios-BDI PAD | E7: 0.2034 | F7: 0.2212 | G7: 0.25 | J7: APELIDO DO EMPREENDIMENTO / DESCRIÇÃO DO LOTE
A8: Construção de Praças Urbanas, Rodovias, Ferrovias e recapeamento e pavimentação de vias urbanas | B8: AC | C8: Construção de Praças Urbanas, Rodovias, Ferrovias e recapeamento e pavimentação de vias urbanas-AC | E8: 0.038 | F8: 0.0401 | G8: 0.0467 | J8: =Import.Apelido&" / "&Import.DescLote -> REFORMA RESERVATÓRIO HMRC / R. Angelina, s/n - Municípios, Balneário Camboriú
A9: Construção de Praças Urbanas, Rodovias, Ferrovias e recapeamento e pavimentação de vias urbanas | B9: SG | C9: Construção de Praças Urbanas, Rodovias, Ferrovias e recapeamento e pavimentação de vias urbanas-SG | E9: 0.0032 | F9: 0.004 | G9: 0.0074
A10: Construção de Praças Urbanas, Rodovias, Ferrovias e recapeamento e pavimentação de vias urbanas | B10: R | C10: Construção de Praças Urbanas, Rodovias, Ferrovias e recapeamento e pavimentação de vias urbanas-R | E10: 0.005 | F10: 0.0056 | G10: 0.0097 | J10: Conforme legislação tributária municipal, definir estimativa de percentual da base de cálculo para o ISS: | R10: 1
A11: Construção de Praças Urbanas, Rodovias, Ferrovias e recapeamento e pavimentação de vias urbanas | B11: DF | C11: Construção de Praças Urbanas, Rodovias, Ferrovias e recapeamento e pavimentação de vias urbanas-DF | E11: 0.0102 | F11: 0.0111 | G11: 0.0121 | I11: ↓ | J11: Sobre a base de cálculo, definir a respectiva alíquota do ISS (entre 2% e 5%): | R11: 0.025
A12: Construção de Praças Urbanas, Rodovias, Ferrovias e recapeamento e pavimentação de vias urbanas | B12: L | C12: Construção de Praças Urbanas, Rodovias, Ferrovias e recapeamento e pavimentação de vias urbanas-L | E12: 0.0664 | F12: 0.073 | G12: 0.0869 | I12: F
A13: Construção de Praças Urbanas, Rodovias, Ferrovias e recapeamento e pavimentação de vias urbanas | B13: BDI PAD | C13: Construção de Praças Urbanas, Rodovias, Ferrovias e recapeamento e pavimentação de vias urbanas-BDI PAD | E13: 0.196 | F13: 0.2097 | G13: 0.2423 | I13: F
A14: Construção de Redes de Abastecimento de Água, Coleta de Esgoto | B14: AC | C14: Construção de Redes de Abastecimento de Água, Coleta de Esgoto-AC | E14: 0.0343 | F14: 0.0493 | G14: 0.0671 | I14: F | J14: BDI 1
A15: =A14 -> Construção de Redes de Abastecimento de Água, Coleta de Esgoto | B15: SG | C15: Construção de Redes de Abastecimento de Água, Coleta de Esgoto-SG | E15: 0.0028 | F15: 0.0049 | G15: 0.0075 | I15: F
A16: =A15 -> Construção de Redes de Abastecimento de Água, Coleta de Esgoto | B16: R | C16: Construção de Redes de Abastecimento de Água, Coleta de Esgoto-R | E16: 0.01 | F16: 0.0139 | G16: 0.0174 | I16: F | J16: TIPO DE OBRA
A17: =A16 -> Construção de Redes de Abastecimento de Água, Coleta de Esgoto | B17: DF | C17: Construção de Redes de Abastecimento de Água, Coleta de Esgoto-DF | E17: 0.0094 | F17: 0.0099 | G17: 0.0117 | I17: F | J17: Construção e Reforma de Edifícios
A18: =A17 -> Construção de Redes de Abastecimento de Água, Coleta de Esgoto | B18: L | C18: Construção de Redes de Abastecimento de Água, Coleta de Esgoto-L | E18: 0.0674 | F18: 0.0804 | G18: 0.094 | I18: F
A19: =A18 -> Construção de Redes de Abastecimento de Água, Coleta de Esgoto | B19: BDI PAD | C19: Construção de Redes de Abastecimento de Água, Coleta de Esgoto-BDI PAD | E19: 0.2076 | F19: 0.2418 | G19: 0.2644 | I19: F | J19: Itens | R19: Siglas | S19: % Adotado | U19: Situação | X19: 1º Quartil | Y19: Médio | Z19: 3º Quartil
A20: Construção e Manutenção de Estações e Redes de Distribuição de Energia Elétrica | B20: AC | C20: Construção e Manutenção de Estações e Redes de Distribuição de Energia Elétrica-AC | E20: 0.0529 | F20: 0.0592 | G20: 0.0793 | I20: F
A21: =A20 -> Construção e Manutenção de Estações e Redes de Distribuição de Energia Elétrica | B21: SG | C21: Construção e Manutenção de Estações e Redes de Distribuição de Energia Elétrica-SG | E21: 0.0025 | F21: 0.0051 | G21: 0.0056 | I21: F | J21: =IF($J$17=$A$146,"Encargos Sociais incidentes sobre a mão de obra","Administração Central") -> Administração Central | R21: =IF($J17=$A$146,"K1","AC") -> AC | S21: 0.04 | U21: - | X21: =VLOOKUP(CONCATENATE(J17,"-",R21),$C$2:$G$136,3,FALSE) -> 0.03 | Y21: =VLOOKUP(CONCATENATE(J17,"-",R21),$C$2:$G$136,4,FALSE) -> 0.04 | Z21: =VLOOKUP(CONCATENATE(J17,"-",R21),$C$2:$G$136,5,FALSE) -> 0.055
A22: =A21 -> Construção e Manutenção de Estações e Redes de Distribuição de Energia Elétrica | B22: R | C22: Construção e Manutenção de Estações e Redes de Distribuição de Energia Elétrica-R | E22: 0.01 | F22: 0.0148 | G22: 0.0197 | I22: F | J22: =IF($J$17=$A$146,"Administração Central da empresa ou consultoria - overhead","Seguro e Garantia") -> Seguro e Garantia | R22: =IF($J17=$A$146,"K2","SG") -> SG | S22: 0.008 | U22: - | X22: =VLOOKUP(CONCATENATE(J17,"-",R22),$C$2:$G$136,3,FALSE) -> 0.008 | Y22: =VLOOKUP(CONCATENATE(J17,"-",R22),$C$2:$G$136,4,FALSE) -> 0.008 | Z22: =VLOOKUP(CONCATENATE(J17,"-",R22),$C$2:$G$136,5,FALSE) -> 0.01
A23: =A22 -> Construção e Manutenção de Estações e Redes de Distribuição de Energia Elétrica | B23: DF | C23: Construção e Manutenção de Estações e Redes de Distribuição de Energia Elétrica-DF | E23: 0.0101 | F23: 0.0107 | G23: 0.0111 | I23: F | J23: =IF($J$17=$A$146,"","Risco") -> Risco | R23: =IF($J17=$A$146,"","R") -> R | S23: 0.0097 | U23: - | X23: =VLOOKUP(CONCATENATE(J17,"-",R23),$C$2:$G$136,3,FALSE) -> 0.0097 | Y23: =VLOOKUP(CONCATENATE(J17,"-",R23),$C$2:$G$136,4,FALSE) -> 0.0127 | Z23: =VLOOKUP(CONCATENATE(J17,"-",R23),$C$2:$G$136,5,FALSE) -> 0.0127
A24: =A23 -> Construção e Manutenção de Estações e Redes de Distribuição de Energia Elétrica | B24: L | C24: Construção e Manutenção de Estações e Redes de Distribuição de Energia Elétrica-L | E24: 0.08 | F24: 0.0831 | G24: 0.0951 | I24: F | J24: =IF($J$17=$A$146,"","Despesas Financeiras") -> Despesas Financeiras | R24: =IF($J17=$A$146,"","DF") -> DF | S24: 0.0059 | U24: - | X24: =VLOOKUP(CONCATENATE(J17,"-",R24),$C$2:$G$136,3,FALSE) -> 0.0059 | Y24: =VLOOKUP(CONCATENATE(J17,"-",R24),$C$2:$G$136,4,FALSE) -> 0.0123 | Z24: =VLOOKUP(CONCATENATE(J17,"-",R24),$C$2:$G$136,5,FALSE) -> 0.0139
A25: =A24 -> Construção e Manutenção de Estações e Redes de Distribuição de Energia Elétrica | B25: BDI PAD | C25: Construção e Manutenção de Estações e Redes de Distribuição de Energia Elétrica-BDI PAD | E25: 0.24 | F25: 0.2584 | G25: 0.2786 | I25: F | J25: =IF($J$17=$A$146,"Margem bruta da empresa de consultoria","Lucro") -> Lucro | R25: =IF($J17=$A$146,"K3","L") -> L | S25: 0.0616 | U25: - | X25: =VLOOKUP(CONCATENATE(J17,"-",R25),$C$2:$G$136,3,FALSE) -> 0.0616 | Y25: =VLOOKUP(CONCATENATE(J17,"-",R25),$C$2:$G$136,4,FALSE) -> 0.074 | Z25: =VLOOKUP(CONCATENATE(J17,"-",R25),$C$2:$G$136,5,FALSE) -> 0.0896
A26: Obras Portuárias, Marítimas e Fluviais | B26: AC | C26: Obras Portuárias, Marítimas e Fluviais-AC | E26: 0.04 | F26: 0.0552 | G26: 0.0785 | I26: F | J26: Tributos (impostos COFINS 3%, e PIS 0,65%) | R26: CP | S26: 0.0365 | U26: - | X26: 0.0365 | Y26: 0.0365 | Z26: 0.0365
A27: =A26 -> Obras Portuárias, Marítimas e Fluviais | B27: SG | C27: Obras Portuárias, Marítimas e Fluviais-SG | E27: 0.0081 | F27: 0.0122 | G27: 0.0199 | I27: F | J27: Tributos (ISS, variável de acordo com o município) | R27: ISS | S27: =IF(AND($J17<>$A$145,COUNTA(OFFSET(S20,1,0,6))>0),$R$11*$R$10,0) -> 0.025 | U27: - | X27: 0 | Y27: 0.025 | Z27: 0.05
A28: =A27 -> Obras Portuárias, Marítimas e Fluviais | B28: R | C28: Obras Portuárias, Marítimas e Fluviais-R | E28: 0.0146 | F28: 0.0232 | G28: 0.0316 | I28: F | J28: Tributos (Contribuição Previdenciária sobre a Receita Bruta - 0% ou 4,5% - Desoneração) | R28: CPRB | S28: =IF(BDI.Opcao<>"Desonerado",0,IF(AND($J17<>$A$145,COUNTA(OFFSET(S20,1,0,6))>0),4.5%,0%)) -> 0 | U28: - | X28: 0 | Y28: 0.045 | Z28: 0.045
A29: =A28 -> Obras Portuárias, Marítimas e Fluviais | B29: DF | C29: Obras Portuárias, Marítimas e Fluviais-DF | E29: 0.0094 | F29: 0.0102 | G29: 0.0133 | I29: F | J29: BDI SEM desoneração (Fórmula Acórdão TCU) | R29: BDI PAD | S29: =IF($J17=$A$145,0,ROUND((((1+S21+S22+S23)*(1+S24)*(1+S25)/(1-(S26+S27)))-1),4)) -> 0.2035 | U29: =IF(OR($J$17=$A$146,$J$17=$A$145,AND(S29>=X29,S29<=Z29)),"OK","FORA DO INTERVALO") -> OK | X29: =IF($J17=$A$145,0,VLOOKUP(CONCATENATE($J17,"-",$R29),$C$2:$G$136,3,FALSE)) -> 0.2034 | Y29: =IF($J17=$A$145,0,VLOOKUP(CONCATENATE($J17,"-",$R29),$C$2:$G$136,4,FALSE)) -> 0.2212 | Z29: =IF($J17=$A$145,0,VLOOKUP(CONCATENATE($J17,"-",$R29),$C$2:$G$136,5,FALSE)) -> 0.25
A30: =A29 -> Obras Portuárias, Marítimas e Fluviais | B30: L | C30: Obras Portuárias, Marítimas e Fluviais-L | E30: 0.0714 | F30: 0.084 | G30: 0.1043 | I30: F | J30: BDI COM desoneração | R30: BDI DES | S30: =IF($J17=$A$145,0,ROUND((((1+S21+S22+S23)*(1+S24)*(1+S25)/(1-(S26+S27+S28)))-1),4)) -> 0.2035
A31: =A30 -> Obras Portuárias, Marítimas e Fluviais | B31: BDI PAD | C31: Obras Portuárias, Marítimas e Fluviais-BDI PAD | E31: 0.228 | F31: 0.2748 | G31: 0.3095 | I31: F
A32: Fornecimento de Materiais e Equipamentos (aquisição indireta - em conjunto com licitação de obras) | B32: AC | C32: Fornecimento de Materiais e Equipamentos (aquisição indireta - em conjunto com licitação de obras)-AC | E32: 0.015 | F32: 0.0345 | G32: 0.0449 | I32: F | J32: =IF(U29<>"ok","X","") ->  | K32: =IF(U29<>"ok","Anexo: Relatório Técnico Circunstanciado justificando a adoção do percentual de cada parcela do BDI.","") -> 
A33: =A32 -> Fornecimento de Materiais e Equipamentos (aquisição indireta - em conjunto com licitação de obras) | B33: SG | C33: Fornecimento de Materiais e Equipamentos (aquisição indireta - em conjunto com licitação de obras)-SG | E33: 0.003 | F33: 0.0048 | G33: 0.0082 | I33: F
A34: =A33 -> Fornecimento de Materiais e Equipamentos (aquisição indireta - em conjunto com licitação de obras) | B34: R | C34: Fornecimento de Materiais e Equipamentos (aquisição indireta - em conjunto com licitação de obras)-R | E34: 0.0056 | F34: 0.0085 | G34: 0.0089 | I34: F | J34: Os valores de BDI foram calculados com o emprego da fórmula:
A35: =A34 -> Fornecimento de Materiais e Equipamentos (aquisição indireta - em conjunto com licitação de obras) | B35: DF | C35: Fornecimento de Materiais e Equipamentos (aquisição indireta - em conjunto com licitação de obras)-DF | E35: 0.0085 | F35: 0.0085 | G35: 0.0111 | I35: F | M35: BDI = | N35: =IF($J17=$A$146,"(1+K1+K2)*(1+K3)","(1+AC + S + R + G)*(1 + DF)*(1+L)") -> (1+AC + S + R + G)*(1 + DF)*(1+L) | Q35: - 1
A36: =A35 -> Fornecimento de Materiais e Equipamentos (aquisição indireta - em conjunto com licitação de obras) | B36: L | C36: Fornecimento de Materiais e Equipamentos (aquisição indireta - em conjunto com licitação de obras)-L | E36: 0.035 | F36: 0.0511 | G36: 0.0622 | I36: F | N36: (1-CP-ISS-CRPB)
A37: =A36 -> Fornecimento de Materiais e Equipamentos (aquisição indireta - em conjunto com licitação de obras) | B37: BDI PAD | C37: Fornecimento de Materiais e Equipamentos (aquisição indireta - em conjunto com licitação de obras)-BDI PAD | E37: 0.111 | F37: 0.1402 | G37: 0.168 | I37: F
A38: Fornecimento de Materiais e Equipamentos (aquisição direta) | B38: AC | C38: Fornecimento de Materiais e Equipamentos (aquisição direta)-AC | E38: - | F38: - | G38: - | I38: F | J38: =CONCATENATE("Declaro para os devidos fins que, conforme legislação tributária municipal, a base de cálculo deste tipo de obra corresponde à ",$R$10*100,"%, com a respectiva alíquota de ",$R$11*100,"%.") -> Declaro para os devidos fins que, conforme legislação tributária municipal, a base de cálculo deste tipo de obra corresponde à 100%, com a respectiva alíquota de 2,5%.
A39: Fornecimento de Materiais e Equipamentos (aquisição direta) | B39: SG | C39: Fornecimento de Materiais e Equipamentos (aquisição direta)-SG | E39: - | F39: - | G39: - | I39: F
A40: Fornecimento de Materiais e Equipamentos (aquisição direta) | B40: R | C40: Fornecimento de Materiais e Equipamentos (aquisição direta)-R | E40: - | F40: - | G40: - | I40: F | J40: =CONCATENATE("Declaro para os devidos fins que o regime de Contribuição Previdenciária sobre a Receita Bruta adotado para elaboração do orçamento foi ",IF(DESONERACAO="Sim","COM","SEM")," Desoneração, e que esta é a alternativa mais adequada para a Administração Pública.") -> Declaro para os devidos fins que o regime de Contribuição Previdenciária sobre a Receita Bruta adotado para elaboração do orçamento foi SEM Desoneração, e que esta é a alternativa mais adequada para a Administração Pública.
A41: Fornecimento de Materiais e Equipamentos (aquisição direta) | B41: DF | C41: Fornecimento de Materiais e Equipamentos (aquisição direta)-DF | E41: - | F41: - | G41: - | I41: F
A42: Fornecimento de Materiais e Equipamentos (aquisição direta) | B42: L | C42: Fornecimento de Materiais e Equipamentos (aquisição direta)-L | E42: - | F42: - | G42: - | I42: F | J42: Observações:
A43: Fornecimento de Materiais e Equipamentos (aquisição direta) | B43: BDI PAD | C43: Fornecimento de Materiais e Equipamentos (aquisição direta)-BDI PAD | E43: - | F43: - | G43: - | I43: F
A44: Estudos e Projetos, Planos e Gerenciamento e outros correlatos | B44: K1 | C44: Estudos e Projetos, Planos e Gerenciamento e outros correlatos-K1 | E44: - | F44: - | G44: - | I44: F
A45: =A44 -> Estudos e Projetos, Planos e Gerenciamento e outros correlatos | B45: K2 | C45: Estudos e Projetos, Planos e Gerenciamento e outros correlatos-K2 | E45: - | F45: 0.2 | G45: - | I45: F | J45: =Import.Município -> Balneário Camboriú/SC | P45: =DADOS!$F$25 -> 2023-03-09
A46: =A45 -> Estudos e Projetos, Planos e Gerenciamento e outros correlatos | C46: Estudos e Projetos, Planos e Gerenciamento e outros correlatos- | E46: - | F46: - | G46: - | I46: F | J46: Local | P46: Data
A47: =A46 -> Estudos e Projetos, Planos e Gerenciamento e outros correlatos | C47: Estudos e Projetos, Planos e Gerenciamento e outros correlatos- | E47: - | F47: - | G47: - | I47: F
A48: =A47 -> Estudos e Projetos, Planos e Gerenciamento e outros correlatos | B48: K3 | C48: Estudos e Projetos, Planos e Gerenciamento e outros correlatos-K3 | E48: - | F48: 0.12 | G48: - | I48: F
A49: =A48 -> Estudos e Projetos, Planos e Gerenciamento e outros correlatos | B49: BDI PAD | C49: Estudos e Projetos, Planos e Gerenciamento e outros correlatos-BDI PAD | E49: - | F49: - | G49: - | I49: F | J49: Responsável Técnico
I50: F | J50: Nome: | K50: =Import.RespOrçamento -> Rafael Calistro de Borba
I51: F | J51: CREA/CAU: | K51: 093.243-9
I52: F | J52: ART/RRT: | K52: 0
I53: F
I54: =IF($S$69=0,"","F") -> F | J54: BDI 2
I55: =IF($S$69=0,"","F") -> F
I56: F | J56: TIPO DE OBRA
I57: F | J57: Fornecimento de Materiais e Equipamentos (aquisição indireta - em conjunto com licitação de obras)
I58: F
I59: F | J59: Itens | R59: Siglas | S59: % Adotado | U59: Situação | X59: 1º Quartil | Y59: Médio | Z59: 3º Quartil
I60: F
I61: F | J61: =IF($J$17=$A$146,"Encargos Sociais incidentes sobre a mão de obra","Administração Central") -> Administração Central | R61: =IF($J57=$A$146,"K1","AC") -> AC | S61: 0.015 | U61: - | X61: =VLOOKUP(CONCATENATE(J57,"-",R61),$C$2:$G$136,3,FALSE) -> 0.015 | Y61: =VLOOKUP(CONCATENATE(J57,"-",R61),$C$2:$G$136,4,FALSE) -> 0.0345 | Z61: =VLOOKUP(CONCATENATE(J57,"-",R61),$C$2:$G$136,5,FALSE) -> 0.0449
I62: F | J62: =IF($J$17=$A$146,"Administração Central da empresa ou consultoria - overhead","Seguro e Garantia") -> Seguro e Garantia | R62: =IF($J57=$A$146,"K2","SG") -> SG | S62: 0.003 | U62: - | X62: =VLOOKUP(CONCATENATE(J57,"-",R62),$C$2:$G$136,3,FALSE) -> 0.003 | Y62: =VLOOKUP(CONCATENATE(J57,"-",R62),$C$2:$G$136,4,FALSE) -> 0.0048 | Z62: =VLOOKUP(CONCATENATE(J57,"-",R62),$C$2:$G$136,5,FALSE) -> 0.0082
I63: F | J63: =IF($J$17=$A$146,"","Risco") -> Risco | R63: =IF($J57=$A$146,"","R") -> R | S63: 0.0056 | U63: - | X63: =VLOOKUP(CONCATENATE(J57,"-",R63),$C$2:$G$136,3,FALSE) -> 0.0056 | Y63: =VLOOKUP(CONCATENATE(J57,"-",R63),$C$2:$G$136,4,FALSE) -> 0.0085 | Z63: =VLOOKUP(CONCATENATE(J57,"-",R63),$C$2:$G$136,5,FALSE) -> 0.0089
I64: F | J64: =IF($J$17=$A$146,"","Despesas Financeiras") -> Despesas Financeiras | R64: =IF($J57=$A$146,"","DF") -> DF | S64: 0.0085 | U64: - | X64: =VLOOKUP(CONCATENATE(J57,"-",R64),$C$2:$G$136,3,FALSE) -> 0.0085 | Y64: =VLOOKUP(CONCATENATE(J57,"-",R64),$C$2:$G$136,4,FALSE) -> 0.0085 | Z64: =VLOOKUP(CONCATENATE(J57,"-",R64),$C$2:$G$136,5,FALSE) -> 0.0111
I65: F | J65: =IF($J$17=$A$146,"Margem bruta da empresa de consultoria","Lucro") -> Lucro | R65: =IF($J57=$A$146,"K3","L") -> L | S65: 0.035 | U65: - | X65: =VLOOKUP(CONCATENATE(J57,"-",R65),$C$2:$G$136,3,FALSE) -> 0.035 | Y65: =VLOOKUP(CONCATENATE(J57,"-",R65),$C$2:$G$136,4,FALSE) -> 0.0511 | Z65: =VLOOKUP(CONCATENATE(J57,"-",R65),$C$2:$G$136,5,FALSE) -> 0.0622
I66: F | J66: Tributos (impostos COFINS 3%, e PIS 0,65%) | R66: CP | S66: 0.0365 | U66: - | X66: 0.0365 | Y66: 0.0365 | Z66: 0.0365
I67: F | J67: Tributos (ISS, variável de acordo com o município) | R67: ISS | S67: =IF(AND($J57<>$A$145,COUNTA(OFFSET(S60,1,0,6))>0),$R$11*$R$10,0) -> 0.025 | U67: - | X67: 0 | Y67: 0.025 | Z67: 0.05
I68: F | J68: Tributos (Contribuição Previdenciária sobre a Receita Bruta - 0% ou 4,5% - Desoneração) | R68: CPRB | S68: =IF(BDI.Opcao<>"Desonerado",0,IF(AND($J57<>$A$145,COUNTA(OFFSET(S60,1,0,6))>0),4.5%,0%)) -> 0 | U68: - | X68: 0 | Y68: 0.045 | Z68: 0.045
I69: F | J69: BDI SEM desoneração (Fórmula Acórdão TCU) | R69: BDI PAD | S69: =IF($J57=$A$145,0,ROUND((((1+S61+S62+S63)*(1+S64)*(1+S65)/(1-(S66+S67)))-1),4)) -> 0.1384 | U69: =IF(OR($J$17=$A$146,$J$17=$A$145,AND(S69>=X69,S69<=Z69)),"OK","FORA DO INTERVALO") -> OK | X69: =IF($J57=$A$145,0,VLOOKUP(CONCATENATE($J57,"-",$R69),$C$2:$G$136,3,FALSE)) -> 0.111 | Y69: =IF($J57=$A$145,0,VLOOKUP(CONCATENATE($J57,"-",$R69),$C$2:$G$136,4,FALSE)) -> 0.1402 | Z69: =IF($J57=$A$145,0,VLOOKUP(CONCATENATE($J57,"-",$R69),$C$2:$G$136,5,FALSE)) -> 0.168
I70: F | J70: BDI COM desoneração | R70: BDI DES | S70: =IF($J57=$A$145,0,ROUND((((1+S61+S62+S63)*(1+S64)*(1+S65)/(1-(S66+S67+S68)))-1),4)) -> 0.1384
I71: F
I72: F | J72: =IF(U69<>"ok","X","") ->  | K72: =IF(U69<>"ok","Anexo: Relatório Técnico Circunstanciado justificando a adoção do percentual de cada parcela do BDI.","") -> 
I73: F
I74: F | J74: Os valores de BDI foram calculados com o emprego da fórmula:
I75: F | M75: BDI = | N75: =IF($J57=$A$146,"(1+K1+K2)*(1+K3)","(1+AC + S + R + G)*(1 + DF)*(1+L)") -> (1+AC + S + R + G)*(1 + DF)*(1+L) | Q75: - 1
I76: F | N76: (1-CP-ISS-CRPB)
I77: F
I78: F | J78: =CONCATENATE("Declaro para os devidos fins que, conforme legislação tributária municipal, a base de cálculo deste tipo de obra corresponde à ",$R$10*100,"%, com a respectiva alíquota de ",$R$11*100,"%.") -> Declaro para os devidos fins que, conforme legislação tributária municipal, a base de cálculo deste tipo de obra corresponde à 100%, com a respectiva alíquota de 2,5%.
I79: F
I80: F | J80: =CONCATENATE("Declaro para os devidos fins que o regime de Contribuição Previdenciária sobre a Receita Bruta adotado para elaboração do orçamento foi ",IF(DESONERACAO="Sim","COM","SEM")," Desoneração, e que esta é a alternativa mais adequada para a Administração Pública.") -> Declaro para os devidos fins que o regime de Contribuição Previdenciária sobre a Receita Bruta adotado para elaboração do orçamento foi SEM Desoneração, e que esta é a alternativa mais adequada para a Administração Pública.
I81: F
I82: F | J82: Observações:
I83: F
I84: F
I85: F | J85: =Import.Município -> Balneário Camboriú/SC | P85: =DADOS!$F$25 -> 2023-03-09
I86: F | J86: Local | P86: Data
I87: F
I88: F
I89: F | J89: Responsável Técnico
I90: F | J90: Nome: | K90: =Import.RespOrçamento -> Rafael Calistro de Borba
I91: F | J91: CREA/CAU: | K91: 093.243-9
I92: F | J92: ART/RRT: | K92: 0
I93: F
I94: =IF($S$109=0,"","F") ->  | J94: BDI 3
I95: =IF($S$109=0,"","F") -> 
J96: TIPO DE OBRA
J97: (SELECIONAR)
J99: Itens | R99: Siglas | S99: % Adotado | U99: Situação | X99: 1º Quartil | Y99: Médio | Z99: 3º Quartil
J101: =IF($J$17=$A$146,"Encargos Sociais incidentes sobre a mão de obra","Administração Central") -> Administração Central | R101: =IF($J97=$A$146,"K1","AC") -> AC | U101: - | X101: =VLOOKUP(CONCATENATE(J97,"-",R101),$C$2:$G$136,3,FALSE) ->  | Y101: =VLOOKUP(CONCATENATE(J97,"-",R101),$C$2:$G$136,4,FALSE) ->  | Z101: =VLOOKUP(CONCATENATE(J97,"-",R101),$C$2:$G$136,5,FALSE) -> 
J102: =IF($J$17=$A$146,"Administração Central da empresa ou consultoria - overhead","Seguro e Garantia") -> Seguro e Garantia | R102: =IF($J97=$A$146,"K2","SG") -> SG | U102: - | X102: =VLOOKUP(CONCATENATE(J97,"-",R102),$C$2:$G$136,3,FALSE) ->  | Y102: =VLOOKUP(CONCATENATE(J97,"-",R102),$C$2:$G$136,4,FALSE) ->  | Z102: =VLOOKUP(CONCATENATE(J97,"-",R102),$C$2:$G$136,5,FALSE) -> 
J103: =IF($J$17=$A$146,"","Risco") -> Risco | R103: =IF($J97=$A$146,"","R") -> R | U103: - | X103: =VLOOKUP(CONCATENATE(J97,"-",R103),$C$2:$G$136,3,FALSE) ->  | Y103: =VLOOKUP(CONCATENATE(J97,"-",R103),$C$2:$G$136,4,FALSE) ->  | Z103: =VLOOKUP(CONCATENATE(J97,"-",R103),$C$2:$G$136,5,FALSE) -> 
J104: =IF($J$17=$A$146,"","Despesas Financeiras") -> Despesas Financeiras | R104: =IF($J97=$A$146,"","DF") -> DF | U104: - | X104: =VLOOKUP(CONCATENATE(J97,"-",R104),$C$2:$G$136,3,FALSE) ->  | Y104: =VLOOKUP(CONCATENATE(J97,"-",R104),$C$2:$G$136,4,FALSE) ->  | Z104: =VLOOKUP(CONCATENATE(J97,"-",R104),$C$2:$G$136,5,FALSE) -> 
J105: =IF($J$17=$A$146,"Margem bruta da empresa de consultoria","Lucro") -> Lucro | R105: =IF($J97=$A$146,"K3","L") -> L | U105: - | X105: =VLOOKUP(CONCATENATE(J97,"-",R105),$C$2:$G$136,3,FALSE) ->  | Y105: =VLOOKUP(CONCATENATE(J97,"-",R105),$C$2:$G$136,4,FALSE) ->  | Z105: =VLOOKUP(CONCATENATE(J97,"-",R105),$C$2:$G$136,5,FALSE) -> 
J106: Tributos (impostos COFINS 3%, e PIS 0,65%) | R106: CP | U106: - | X106: 0.0365 | Y106: 0.0365 | Z106: 0.0365
J107: Tributos (ISS, variável de acordo com o município) | R107: ISS | S107: =IF(AND($J97<>$A$145,COUNTA(OFFSET(S100,1,0,6))>0),$R$11*$R$10,0) -> 0 | U107: - | X107: 0 | Y107: 0.025 | Z107: 0.05
J108: Tributos (Contribuição Previdenciária sobre a Receita Bruta - 0% ou 4,5% - Desoneração) | R108: CPRB | S108: =IF(BDI.Opcao<>"Desonerado",0,IF(AND($J97<>$A$145,COUNTA(OFFSET(S100,1,0,6))>0),4.5%,0%)) -> 0 | U108: - | X108: 0 | Y108: 0.045 | Z108: 0.045
J109: BDI SEM desoneração (Fórmula Acórdão TCU) | R109: BDI PAD | S109: =IF($J97=$A$145,0,ROUND((((1+S101+S102+S103)*(1+S104)*(1+S105)/(1-(S106+S107)))-1),4)) -> 0 | U109: =IF(OR($J$17=$A$146,$J$17=$A$145,AND(S109>=X109,S109<=Z109)),"OK","FORA DO INTERVALO") ->  | X109: =IF($J97=$A$145,0,VLOOKUP(CONCATENATE($J97,"-",$R109),$C$2:$G$136,3,FALSE)) ->  | Y109: =IF($J97=$A$145,0,VLOOKUP(CONCATENATE($J97,"-",$R109),$C$2:$G$136,4,FALSE)) ->  | Z109: =IF($J97=$A$145,0,VLOOKUP(CONCATENATE($J97,"-",$R109),$C$2:$G$136,5,FALSE)) -> 
J110: BDI COM desoneração | R110: BDI DES | S110: =IF($J97=$A$145,0,ROUND((((1+S101+S102+S103)*(1+S104)*(1+S105)/(1-(S106+S107+S108)))-1),4)) -> 0
J112: =IF(U109<>"ok","X","") ->  | K112: =IF(U109<>"ok","Anexo: Relatório Técnico Circunstanciado justificando a adoção do percentual de cada parcela do BDI.","") -> 
J114: Os valores de BDI foram calculados com o emprego da fórmula:
M115: BDI = | N115: =IF($J97=$A$146,"(1+K1+K2)*(1+K3)","(1+AC + S + R + G)*(1 + DF)*(1+L)") -> (1+AC + S + R + G)*(1 + DF)*(1+L) | Q115: - 1
N116: (1-CP-ISS-CRPB)
J118: =CONCATENATE("Declaro para os devidos fins que, conforme legislação tributária municipal, a base de cálculo deste tipo de obra corresponde à ",$R$10*100,"%, com a respectiva alíquota de ",$R$11*100,"%.") -> Declaro para os devidos fins que, conforme legislação tributária municipal, a base de cálculo deste tipo de obra corresponde à 100%, com a respectiva alíquota de 2,5%.
J120: =CONCATENATE("Declaro para os devidos fins que o regime de Contribuição Previdenciária sobre a Receita Bruta adotado para elaboração do orçamento foi ",IF(DESONERACAO="Sim","COM","SEM")," Desoneração, e que esta é a alternativa mais adequada para a Administração Pública.") -> Declaro para os devidos fins que o regime de Contribuição Previdenciária sobre a Receita Bruta adotado para elaboração do orçamento foi SEM Desoneração, e que esta é a alternativa mais adequada para a Administração Pública.
J122: Observações:
J125: =Import.Município -> Balneário Camboriú/SC | P125: =DADOS!$F$25 -> 2023-03-09
J126: Local | P126: Data
J129: Responsável Técnico
J130: Nome: | K130: =Import.RespOrçamento -> Rafael Calistro de Borba
J131: CREA/CAU: | K131: 093.243-9
J132: ART/RRT: | K132: 0
A138: (SELECIONAR)
A139: Construção e Reforma de Edifícios
A140: Construção de Praças Urbanas, Rodovias, Ferrovias e recapeamento e pavimentação de vias urbanas
A141: Construção de Redes de Abastecimento de Água, Coleta de Esgoto
A142: Construção e Manutenção de Estações e Redes de Distribuição de Energia Elétrica
A143: Obras Portuárias, Marítimas e Fluviais
A144: Fornecimento de Materiais e Equipamentos (aquisição indireta - em conjunto com licitação de obras)
A145: Fornecimento de Materiais e Equipamentos (aquisição direta)
A146: Estudos e Projetos, Planos e Gerenciamento e outros correlatos

Sheet ORÇAMENTO
R1: PO - PLANILHA ORÇAMENTÁRIA | X1: Grau de Sigilo
D2: LOTE | E2: Meta | F2: Nível 2 | G2: Nível 3 | H2: Nível 4 | I2: Serviço | R2: =IF(TIPOORCAMENTO="licitado","Orçamento Licitado","Orçamento Base para Licitação")&" - "&import.recurso -> Orçamento Base para Licitação - | X2: #PUBLICO
A4: Nmax | F4: BDI 1 | G4: BDI 2 | H4: BDI 3 | I4: 0 | O4: Nº OPERAÇÃO | Q4: Nº SICONV | R4: PROPONENTE / TOMADOR | S4: APELIDO DO EMPREENDIMENTO
A5: =MAX($C$15:$C$181) -> 3 | F5: =IF(BDI.Opcao="DESONERADO",BDI!$S$30,BDI!$S$29) -> 0.2035 | G5: =IF(BDI.Opcao="DESONERADO",BDI!$S$70,BDI!$S$69) -> 0.1384 | H5: =IF(BDI.Opcao="DESONERADO",BDI!$S$110,BDI!$S$109) -> 0 | O5: =Import.CR -> 0 | Q5: =Import.SICONV -> 0 | R5: =Import.Proponente -> Prefeitura Municipal de Balneário Camboriú | S5: =Import.Apelido -> REFORMA RESERVATÓRIO HMRC | AE5: Arredondamento
O7: LOCALIDADE SINAPI | Q7: DATA BASE | R7: =IF(TIPOORCAMENTO="Licitado","NOME DA EMPRESA","DESCRIÇÃO DO LOTE") -> DESCRIÇÃO DO LOTE | S7: =IF(TIPOORCAMENTO="Licitado","REGIME DE EXECUÇÃO","MUNICÍPIO / UF") -> MUNICÍPIO / UF | V7: =IF(TIPOORCAMENTO="Licitado","","BDI 1") -> BDI 1 | W7: =IF(TIPOORCAMENTO="Licitado","","BDI 2") -> BDI 2 | X7: =IF(TIPOORCAMENTO="Licitado","Nº CTEF","BDI 3") -> BDI 3 | AE7: Quantidade | AF7: TRUE | AJ7: QUANTIDADES: ACOMP. POR BM | AL7: PREÇO UNITÁRIO LICITADO
F8: =IF(LEN(INFO("release"))>5,"'Referência "&Excel_BuiltIn_Database&".xls'#Banco.$a5:$a$65536","'[Referência "&Excel_BuiltIn_Database&".xls]Banco'!$a5:$a$65536") -> '[Referência 12-2022.xls]Banco'!$a5:$a$65536 | L8: FILTRO | O8: =IF(ISERROR(INDIRECT($F$9)),"(N/D: 'Referência "&Excel_BuiltIn_Database&".xls)",INDIRECT($F$9)) -> (N/D: 'Referência 12-2022.xls) | Q8: =TEXT(Import.DataBase,"mm-aa")&IF(DESONERACAO="Sim"," (DES.)"," (N DES.)") -> 12-22 (N DES.) | R8: =IF(TIPOORCAMENTO="Licitado",Import.empresa,Import.DescLote) -> R. Angelina, s/n - Municípios, Balneário Camboriú | S8: =IF(TIPOORCAMENTO="Licitado",Import.RegimeExecução,Import.Município) -> Balneário Camboriú/SC | V8: =IF(TIPOORCAMENTO="Licitado","",TEXT(F5,"0,00%")) -> 20,35% | W8: =IF(TIPOORCAMENTO="Licitado","",TEXT(G5,"0,00%")) -> 13,84% | X8: =IF(TIPOORCAMENTO="Licitado",Import.CTEF,TEXT(H5,"0,00%")) -> 0,00% | Y8: RECURSO | Z8: SGL RECURSO | AE8: Custo Unitáro | AF8: TRUE
F9: =IF(LEN(INFO("release"))>5,"'Referência "&Excel_BuiltIn_Database&".xls'#Banco.$d$3","'[Referência "&Excel_BuiltIn_Database&".xls]Banco'!$d$3") -> '[Referência 12-2022.xls]Banco'!$d$3 | AE9: BDI | AF9: TRUE
AC10: ERRO GERAL | AE10: Preço Unitário | AF10: TRUE
AC11: =IF(COUNTIF($AC$15:OFFSET($AC$181,-1,0),"DESCRIÇÃO")+COUNTIF($AC$15:OFFSET($AC$181,-1,0),"UNIDADE")+COUNTIF($AC$15:OFFSET($AC$181,-1,0),"SEM VALOR")>0,"NÃO OK","OK") -> OK | AE11: Preço Total | AF11: TRUE
AA12: Valores não Arredondados | AJ12: ↓ | AL12: ↓
A13: Nível E | B13: Save Nivel | C13: Nível C | D13: Altura | E13: n1 | F13: n2 | G13: n3 | H13: n4 | I13: n5 | J13: Czero | K13: Cnível | L13: ↓ | M13: Nível | N13: Nível Corrigido | O13: Item | P13: Fonte | Q13: Código | R13: Descrição | S13: Unidade | T13: Quantidade | U13: =IF(TIPOORCAMENTO="Licitado","","Custo Unitário (sem BDI) (R$)") -> Custo Unitário (sem BDI) (R$) | V13: =IF(TIPOORCAMENTO="Licitado","","BDI (%)") -> BDI (%) | W13: Preço Unitário (com BDI) (R$) | X13: Preço Total (R$) | Y13: ↓ | Z13: ↓ | AA13: Contrapartida (R$) | AB13: Outros (R$) | AC13: Erro de Dados | AD13: Lista Crono | AE13: Concatenação Fonte-Código | AF13: BancoDesloc | AG13: Custo Unitário Referência (R$) | AH13: =IF(TIPOORCAMENTO="LICITADO","Valor BDI Edital","Valor BDI") -> Valor BDI | AJ13: Quantidade | AL13: Preço Unitário (com BDI) (R$) | AM13: Preço Total Licit. (R$) | AN13: Preço Unitário Edital (R$)
A14: =CHOOSE(1+LOG(1+2*(ORÇAMENTO.Nivel="Meta")+4*(ORÇAMENTO.Nivel="Nível 2")+8*(ORÇAMENTO.Nivel="Nível 3")+16*(ORÇAMENTO.Nivel="Nível 4")+32*(ORÇAMENTO.Nivel="Serviço"),2),0,1,2,3,4,"S") -> S | B14: =IF(OR(C14="s",C14=0),OFFSET(B14,-1,0),C14) -> Save Nivel | C14: =IF(OFFSET(C14,-1,0)="L",1,IF(OFFSET(C14,-1,0)=1,2,IF(OR(A14="s",A14=0),"S",IF(AND(OFFSET(C14,-1,0)=2,A14=4),3,IF(AND(OR(OFFSET(C14,-1,0)="s",OFFSET(C14,-1,0)=0),A14<>"s",A14>OFFSET(B14,-1,0)),OFFSET(B14,-1,0),A14))))) -> S | D14: =IF(OR(C14="S",C14=0),0,IF(ISERROR(K14),J14,SMALL(J14:K14,1))) -> 0 | E14: =IF($C14=1,OFFSET(E14,-1,0)+MAX(1,COUNTIF(QCI!$A$13:$A$24,OFFSET(ORÇAMENTO!E14,-1,0))),OFFSET(E14,-1,0)) -> n1 | F14: =IF($C14=1,0,IF($C14=2,OFFSET(F14,-1,0)+1,OFFSET(F14,-1,0))) -> n2 | G14: =IF(AND($C14<=2,$C14<>0),0,IF($C14=3,OFFSET(G14,-1,0)+1,OFFSET(G14,-1,0))) -> n3 | H14: =IF(AND($C14<=3,$C14<>0),0,IF($C14=4,OFFSET(H14,-1,0)+1,OFFSET(H14,-1,0))) -> n4 | I14: =IF(AND($C14<=4,$C14<>0),0,IF(AND($C14="S",$X14>0),OFFSET(I14,-1,0)+1,OFFSET(I14,-1,0))) -> n5 | J14: =IF(OR($C14="S",$C14=0),0,MATCH(0,OFFSET($D14,1,$C14,ROW($C$181)-ROW($C14)),0)) -> 0 | K14: =IF(OR($C14="S",$C14=0),0,MATCH(OFFSET($D14,0,$C14)+IF($C14<>1,1,COUNTIF(QCI!$A$13:$A$24,ORÇAMENTO!E14)),OFFSET($D14,1,$C14,ROW($C$181)-ROW($C14)),0)) -> 0 | L14: =IF(OR($X14>0,$C14=1,$C14=2,$C14=3,$C14=4),"F","") ->  | M14: Serviço | N14: =CHOOSE(1+LOG(1+2*(C14=1)+4*(C14=2)+8*(C14=3)+16*(C14=4)+32*(C14="S"),2),"","Meta","Nível 2","Nível 3","Nível 4","Serviço") -> Serviço | O14: =IF(OR($C14=0,$L14=""),"-",CONCATENATE(E14&".",IF(AND($A$5>=2,$C14>=2),F14&".",""),IF(AND($A$5>=3,$C14>=3),G14&".",""),IF(AND($A$5>=4,$C14>=4),H14&".",""),IF($C14="S",I14&".",""))) -> - | P14: SINAPI | R14: =IF($C14="S",REFERENCIA.Descricao,"(digite a descrição aqui)") -> (abra o arquivo 'Referência 12-2022.xls) | S14: =REFERENCIA.Unidade -> - | T14: =OFFSET(CÁLCULO!H$15,ROW($T14)-ROW(T$15),0) -> 0 | V14: BDI 1 | W14: =IF($C14="S",ROUND(IF(TIPOORCAMENTO="Proposto",ORÇAMENTO.CustoUnitario*(1+$AH14),ORÇAMENTO.PrecoUnitarioLicitado),15-13*$AF$10),0) -> 0 | X14: =IF($C14="S",VTOTAL1,IF($C14=0,0,ROUND(SomaAgrup,15-13*$AF$11))) -> 0 | Y14: RA | Z14: =IF(AND($C14="S",$X14>0),IF(ISBLANK($Y14),"RA",LEFT($Y14,2)),"") ->  | AA14: =IF($C14="S",IF($Z14="CP",$X14,IF($Z14="RA",(($X14)*QCI!$AA$3),0)),SomaAgrup) -> 0 | AB14: =IF($C14="S",IF($Z14="OU",ROUND($X14,2),0),SomaAgrup) -> 0 | AC14: =IF($N14="","",IF(ORÇAMENTO.Descricao="","DESCRIÇÃO",IF(AND($C14="S",ORÇAMENTO.Unidade=""),"UNIDADE",IF($X14<0,"VALOR NEGATIVO",IF(OR(AND(TIPOORCAMENTO="Proposto",$AG14<>"",$AG14>0,ORÇAMENTO.CustoUnitario>$AG14),AND(TIPOORCAMENTO="LICITADO",ORÇAMENTO.PrecoUnitarioLicitado>$AN14)),"ACIMA REF.",""))))) ->  | AD14: =IF(C14<=CRONO.NivelExibicao,MAX($AD$15:OFFSET(AD14,-1,0))+IF($C14<>1,1,MAX(1,COUNTIF(QCI!$A$13:$A$24,OFFSET($E14,-1,0)))),"") ->  | AE14: =IF(AND($C14="S",ORÇAMENTO.CodBarra<>""),IF(ORÇAMENTO.Fonte="",ORÇAMENTO.CodBarra,CONCATENATE(ORÇAMENTO.Fonte," ",ORÇAMENTO.CodBarra))) -> FALSE | AF14: =IF(ISERROR(INDIRECT(ORÇAMENTO.BancoRef)),"(abra o arquivo 'Referência "&Excel_BuiltIn_Database&".xls)",IF(OR($C14<>"S",ORÇAMENTO.CodBarra=""),"(Sem Código)",IF(ISERROR(MATCH($AE14,INDIRECT(ORÇAMENTO.BancoRef),0)),"(Código não identificado nas referências)",MATCH($AE14,INDIRECT(ORÇAMENTO.BancoRef),0)))) -> (abra o arquivo 'Referência 12-2022.xls) | AG14: =ROUND(IF(DESONERACAO="sim",REFERENCIA.Desonerado,REFERENCIA.NaoDesonerado),2) -> 0 | AH14: =ROUND(IF(ISNUMBER(ORÇAMENTO.OpcaoBDI),ORÇAMENTO.OpcaoBDI,IF(LEFT(ORÇAMENTO.OpcaoBDI,3)="BDI",HLOOKUP(ORÇAMENTO.OpcaoBDI,$F$4:$H$5,2,FALSE),0)),15-11*$AF$9) -> 0.2035 | AM14: =$X14 -> 0 | AN14: =ROUND(ORÇAMENTO.CustoUnitario*(1+$AH14),2) -> 0
A15: 0 | C15: L | D15: =COUNTA(OFFSET(D15,1,0):D$181) -> 165 | E15: 0 | L15: F | M15: =IF(TIPOORCAMENTO="LICITADO","CTEF","LOTE") -> LOTE | N15: =IF(TIPOORCAMENTO="LICITADO","CTEF","LOTE") -> LOTE | O15: =Import.DescLote -> R. Angelina, s/n - Municípios, Balneário Camboriú | X15: =SUMIF(OFFSET($C15,1,0,ROW(X181)-ROW(X15)-1),"S",OFFSET(X15,1,0,ROW(X181)-ROW(X15)-1)) -> 0 | Z15: =IF(AND($C15="S",$X15>0),LEFT($Y15,2),"") ->  | AA15: =SUMIF(OFFSET($C15,1,0,ROW(AA181)-ROW(AA15)-1),"S",OFFSET(AA15,1,0,ROW(AA181)-ROW(AA15)-1)) -> 0 | AB15: =SUMIF(OFFSET($C15,1,0,ROW(AB181)-ROW(AB15)-1),"S",OFFSET(AB15,1,0,ROW(AB181)-ROW(AB15)-1)) -> 0 | AM15: 0
A16: =CHOOSE(1+LOG(1+2*(ORÇAMENTO.Nivel="Meta")+4*(ORÇAMENTO.Nivel="Nível 2")+8*(ORÇAMENTO.Nivel="Nível 3")+16*(ORÇAMENTO.Nivel="Nível 4")+32*(ORÇAMENTO.Nivel="Serviço"),2),0,1,2,3,4,"S") -> 1 | B16: =IF(OR(C16="s",C16=0),OFFSET(B16,-1,0),C16) -> 1 | C16: =IF(OFFSET(C16,-1,0)="L",1,IF(OFFSET(C16,-1,0)=1,2,IF(OR(A16="s",A16=0),"S",IF(AND(OFFSET(C16,-1,0)=2,A16=4),3,IF(AND(OR(OFFSET(C16,-1,0)="s",OFFSET(C16,-1,0)=0),A16<>"s",A16>OFFSET(B16,-1,0)),OFFSET(B16,-1,0),A16))))) -> 1 | D16: =IF(OR(C16="S",C16=0),0,IF(ISERROR(K16),J16,SMALL(J16:K16,1))) -> 165 | E16: =IF($C16=1,OFFSET(E16,-1,0)+MAX(1,COUNTIF(QCI!$A$13:$A$24,OFFSET(ORÇAMENTO!E16,-1,0))),OFFSET(E16,-1,0)) -> 1 | F16: =IF($C16=1,0,IF($C16=2,OFFSET(F16,-1,0)+1,OFFSET(F16,-1,0))) -> 0 | G16: =IF(AND($C16<=2,$C16<>0),0,IF($C16=3,OFFSET(G16,-1,0)+1,OFFSET(G16,-1,0))) -> 0 | H16: =IF(AND($C16<=3,$C16<>0),0,IF($C16=4,OFFSET(H16,-1,0)+1,OFFSET(H16,-1,0))) -> 0 | I16: =IF(AND($C16<=4,$C16<>0),0,IF(AND($C16="S",$X16>0),OFFSET(I16,-1,0)+1,OFFSET(I16,-1,0))) -> 0 | J16: =IF(OR($C16="S",$C16=0),0,MATCH(0,OFFSET($D16,1,$C16,ROW($C$181)-ROW($C16)),0)) -> 165 | K16: =IF(OR($C16="S",$C16=0),0,MATCH(OFFSET($D16,0,$C16)+IF($C16<>1,1,COUNTIF(QCI!$A$13:$A$24,ORÇAMENTO!E16)),OFFSET($D16,1,$C16,ROW($C$181)-ROW($C16)),0)) ->  | L16: =IF(OR($X16>0,$C16=1,$C16=2,$C16=3,$C16=4),"F","") -> F | M16: Meta | N16: =CHOOSE(1+LOG(1+2*(C16=1)+4*(C16=2)+8*(C16=3)+16*(C16=4)+32*(C16="S"),2),"","Meta","Nível 2","Nível 3","Nível 4","Serviço") -> Meta | O16: =IF(OR($C16=0,$L16=""),"-",CONCATENATE(E16&".",IF(AND($A$5>=2,$C16>=2),F16&".",""),IF(AND($A$5>=3,$C16>=3),G16&".",""),IF(AND($A$5>=4,$C16>=4),H16&".",""),IF($C16="S",I16&".",""))) -> 1. | P16: SINAPI | R16: REFORMA DE EDIFICAÇÃO | S16: =REFERENCIA.Unidade -> - | T16: =OFFSET(CÁLCULO!H$15,ROW($T16)-ROW(T$15),0) -> 0 | V16: BDI 1 | W16: =IF($C16="S",ROUND(IF(TIPOORCAMENTO="Proposto",ORÇAMENTO.CustoUnitario*(1+$AH16),ORÇAMENTO.PrecoUnitarioLicitado),15-13*$AF$10),0) -> 0 | X16: =IF($C16="S",VTOTAL1,IF($C16=0,0,ROUND(SomaAgrup,15-13*$AF$11))) -> 0 | Y16: RA | Z16: =IF(AND($C16="S",$X16>0),IF(ISBLANK($Y16),"RA",LEFT($Y16,2)),"") ->  | AA16: =IF($C16="S",IF($Z16="CP",$X16,IF($Z16="RA",(($X16)*QCI!$AA$3),0)),SomaAgrup) -> 0 | AB16: =IF($C16="S",IF($Z16="OU",ROUND($X16,2),0),SomaAgrup) -> 0 | AC16: =IF($N16="","",IF(ORÇAMENTO.Descricao="","DESCRIÇÃO",IF(AND($C16="S",ORÇAMENTO.Unidade=""),"UNIDADE",IF($X16<0,"VALOR NEGATIVO",IF(OR(AND(TIPOORCAMENTO="Proposto",$AG16<>"",$AG16>0,ORÇAMENTO.CustoUnitario>$AG16),AND(TIPOORCAMENTO="LICITADO",ORÇAMENTO.PrecoUnitarioLicitado>$AN16)),"ACIMA REF.",""))))) ->  | AD16: =IF(C16<=CRONO.NivelExibicao,MAX($AD$15:OFFSET(AD16,-1,0))+IF($C16<>1,1,MAX(1,COUNTIF(QCI!$A$13:$A$24,OFFSET($E16,-1,0)))),"") -> 1 | AE16: =IF(AND($C16="S",ORÇAMENTO.CodBarra<>""),IF(ORÇAMENTO.Fonte="",ORÇAMENTO.CodBarra,CONCATENATE(ORÇAMENTO.Fonte," ",ORÇAMENTO.CodBarra))) -> FALSE | AF16: =IF(ISERROR(INDIRECT(ORÇAMENTO.BancoRef)),"(abra o arquivo 'Referência "&Excel_BuiltIn_Database&".xls)",IF(OR($C16<>"S",ORÇAMENTO.CodBarra=""),"(Sem Código)",IF(ISERROR(MATCH($AE16,INDIRECT(ORÇAMENTO.BancoRef),0)),"(Código não identificado nas referências)",MATCH($AE16,INDIRECT(ORÇAMENTO.BancoRef),0)))) -> (abra o arquivo 'Referência 12-2022.xls) | AG16: =ROUND(IF(DESONERACAO="sim",REFERENCIA.Desonerado,REFERENCIA.NaoDesonerado),2) -> 0 | AH16: =ROUND(IF(ISNUMBER(ORÇAMENTO.OpcaoBDI),ORÇAMENTO.OpcaoBDI,IF(LEFT(ORÇAMENTO.OpcaoBDI,3)="BDI",HLOOKUP(ORÇAMENTO.OpcaoBDI,$F$4:$H$5,2,FALSE),0)),15-11*$AF$9) -> 0.2035 | AM16: 0 | AN16: =ROUND(ORÇAMENTO.CustoUnitario*(1+$AH16),2) -> 0
A17: 2 | B17: 2 | C17: 2 | D17: 4 | E17: =IF($C17=1,OFFSET(E17,-1,0)+MAX(1,COUNTIF(QCI!$A$13:$A$24,OFFSET(ORÇAMENTO!E17,-1,0))),OFFSET(E17,-1,0)) -> 1 | F17: 1 | G17: 0 | H17: 0 | I17: 0 | J17: 164 | K17: =IF(OR($C17="S",$C17=0),0,MATCH(OFFSET($D17,0,$C17)+IF($C17<>1,1,COUNTIF(QCI!$A$13:$A$24,ORÇAMENTO!E17)),OFFSET($D17,1,$C17,ROW($C$181)-ROW($C17)),0)) -> 4 | L17: F | M17: Nível 2 | N17: Nível 2 | O17: 1.1. | P17: SINAPI | R17: SERVIÇOS INICIAIS | S17: - | T17: =OFFSET(CÁLCULO!H$15,ROW($T17)-ROW(T$15),0) -> 0 | V17: BDI 1 | W17: 0 | X17: 0 | Y17: RA | AA17: =IF($C17="S",IF($Z17="CP",$X17,IF($Z17="RA",(($X17)*QCI!$AA$3),0)),SomaAgrup) -> 0 | AB17: 0 | AD17: =IF(C17<=CRONO.NivelExibicao,MAX($AD$15:OFFSET(AD17,-1,0))+IF($C17<>1,1,MAX(1,COUNTIF(QCI!$A$13:$A$24,OFFSET($E17,-1,0)))),"") -> 2 | AE17: FALSE | AF17: (abra o arquivo 'Referência 12-2022.xls) | AG17: 0 | AH17: 0.2035 | AM17: 0 | AN17: 0
A18: S | B18: 2 | C18: S | D18: 0 | E18: =IF($C18=1,OFFSET(E18,-1,0)+MAX(1,COUNTIF(QCI!$A$13:$A$24,OFFSET(ORÇAMENTO!E18,-1,0))),OFFSET(E18,-1,0)) -> 1 | F18: 1 | G18: 0 | H18: 0 | I18: 0 | J18: 0 | K18: =IF(OR($C18="S",$C18=0),0,MATCH(OFFSET($D18,0,$C18)+IF($C18<>1,1,COUNTIF(QCI!$A$13:$A$24,ORÇAMENTO!E18)),OFFSET($D18,1,$C18,ROW($C$181)-ROW($C18)),0)) -> 0 | M18: Serviço | N18: Serviço | O18: - | P18: Composição | Q18: 01 | R18: =IF($C18="S",REFERENCIA.Descricao,"(digite a descrição aqui)") -> (abra o arquivo 'Referência 12-2022.xls) | S18: - | T18: =OFFSET(CÁLCULO!H$15,ROW($T18)-ROW(T$15),0) -> 3 | U18: =AG18 -> 0 | V18: BDI 1 | W18: 0 | X18: 0 | Y18: RA | AA18: =IF($C18="S",IF($Z18="CP",$X18,IF($Z18="RA",(($X18)*QCI!$AA$3),0)),SomaAgrup) -> 0 | AB18: 0 | AD18: =IF(C18<=CRONO.NivelExibicao,MAX($AD$15:OFFSET(AD18,-1,0))+IF($C18<>1,1,MAX(1,COUNTIF(QCI!$A$13:$A$24,OFFSET($E18,-1,0)))),"") ->  | AE18: Composição 01 | AF18: (abra o arquivo 'Referência 12-2022.xls) | AG18: 0 | AH18: 0.2035 | AM18: 0 | AN18: 0
A19: S | B19: 2 | C19: S | D19: 0 | E19: =IF($C19=1,OFFSET(E19,-1,0)+MAX(1,COUNTIF(QCI!$A$13:$A$24,OFFSET(ORÇAMENTO!E19,-1,0))),OFFSET(E19,-1,0)) -> 1 | F19: 1 | G19: 0 | H19: 0 | I19: 0 | J19: 0 | K19: =IF(OR($C19="S",$C19=0),0,MATCH(OFFSET($D19,0,$C19)+IF($C19<>1,1,COUNTIF(QCI!$A$13:$A$24,ORÇAMENTO!E19)),OFFSET($D19,1,$C19,ROW($C$181)-ROW($C19)),0)) -> 0 | M19: Serviço | N19: Serviço | O19: - | P19: Composição | Q19: 19 | R19: =IF($C19="S",REFERENCIA.Descricao,"(digite a descrição aqui)") -> (abra o arquivo 'Referência 12-2022.xls) | S19: - | T19: =OFFSET(CÁLCULO!H$15,ROW($T19)-ROW(T$15),0) -> 79.8 | U19: =AG19 -> 0 | V19: BDI 1 | W19: 0 | X19: 0 | Y19: RA | AA19: =IF($C19="S",IF($Z19="CP",$X19,IF($Z19="RA",(($X19)*QCI!$AA$3),0)),SomaAgrup) -> 0 | AB19: 0 | AD19: =IF(C19<=CRONO.NivelExibicao,MAX($AD$15:OFFSET(AD19,-1,0))+IF($C19<>1,1,MAX(1,COUNTIF(QCI!$A$13:$A$24,OFFSET($E19,-1,0)))),"") ->  | AE19: Composição 19 | AF19: (abra o arquivo 'Referência 12-2022.xls) | AG19: 0 | AH19: 0.2035 | AM19: 0 | AN19: 0
A20: S | B20: 2 | C20: S | D20: 0 | E20: =IF($C20=1,OFFSET(E20,-1,0)+MAX(1,COUNTIF(QCI!$A$13:$A$24,OFFSET(ORÇAMENTO!E20,-1,0))),OFFSET(E20,-1,0)) -> 1 | F20: 1 | G20: 0 | H20: 0 | I20: 0 | J20: 0 | K20: =IF(OR($C20="S",$C20=0),0,MATCH(OFFSET($D20,0,$C20)+IF($C20<>1,1,COUNTIF(QCI!$A$13:$A$24,ORÇAMENTO!E20)),OFFSET($D20,1,$C20,ROW($C$181)-ROW($C20)),0)) -> 0 | M20: Serviço | N20: Serviço | O20: - | P20: SINAPI-I | Q20: 10775 | R20: =IF($C20="S",REFERENCIA.Descricao,"(digite a descrição aqui)") -> (abra o arquivo 'Referência 12-2022.xls) | S20: - | T20: =OFFSET(CÁLCULO!H$15,ROW($T20)-ROW(T$15),0) -> 5 | U20: 0 | V20: BDI 1 | W20: 0 | X20: 0 | Y20: RA | AA20: =IF($C20="S",IF($Z20="CP",$X20,IF($Z20="RA",(($X20)*QCI!$AA$3),0)),SomaAgrup) -> 0 | AB20: 0 | AD20: =IF(C20<=CRONO.NivelExibicao,MAX($AD$15:OFFSET(AD20,-1,0))+IF($C20<>1,1,MAX(1,COUNTIF(QCI!$A$13:$A$24,OFFSET($E20,-1,0)))),"") ->  | AE20: SINAPI-I 10775 | AF20: (abra o arquivo 'Referência 12-2022.xls) | AG20: 0 | AH20: 0.2035 | AM20: 0 | AN20: 0
A21: 2 | B21: 2 | C21: 2 | D21: 4 | E21: =IF($C21=1,OFFSET(E21,-1,0)+MAX(1,COUNTIF(QCI!$A$13:$A$24,OFFSET(ORÇAMENTO!E21,-1,0))),OFFSET(E21,-1,0)) -> 1 | F21: 2 | G21: 0 | H21: 0 | I21: 0 | J21: 160 | K21: =IF(OR($C21="S",$C21=0),0,MATCH(OFFSET($D21,0,$C21)+IF($C21<>1,1,COUNTIF(QCI!$A$13:$A$24,ORÇAMENTO!E21)),OFFSET($D21,1,$C21,ROW($C$181)-ROW($C21)),0)) -> 4 | L21: F | M21: Nível 2 | N21: Nível 2 | O21: 1.2. | P21: SINAPI | R21: DEMOLIÇÕES E RETIRADAS - CASA DE BOMBAS | S21: - | T21: =OFFSET(CÁLCULO!H$15,ROW($T21)-ROW(T$15),0) -> 0 | U21: 0 | V21: BDI 1 | W21: 0 | X21: 0 | Y21: RA | AA21: =IF($C21="S",IF($Z21="CP",$X21,IF($Z21="RA",(($X21)*QCI!$AA$3),0)),SomaAgrup) -> 0 | AB21: 0 | AD21: =IF(C21<=CRONO.NivelExibicao,MAX($AD$15:OFFSET(AD21,-1,0))+IF($C21<>1,1,MAX(1,COUNTIF(QCI!$A$13:$A$24,OFFSET($E21,-1,0)))),"") -> 3 | AE21: FALSE | AF21: (abra o arquivo 'Referência 12-2022.xls) | AG21: 0 | AH21: 0.2035 | AM21: 0 | AN21: 0
A22: S | B22: 2 | C22: S | D22: 0 | E22: =IF($C22=1,OFFSET(E22,-1,0)+MAX(1,COUNTIF(QCI!$A$13:$A$24,OFFSET(ORÇAMENTO!E22,-1,0))),OFFSET(E22,-1,0)) -> 1 | F22: 2 | G22: 0 | H22: 0 | I22: 0 | J22: 0 | K22: =IF(OR($C22="S",$C22=0),0,MATCH(OFFSET($D22,0,$C22)+IF($C22<>1,1,COUNTIF(QCI!$A$13:$A$24,ORÇAMENTO!E22)),OFFSET($D22,1,$C22,ROW($C$181)-ROW($C22)),0)) -> 0 | M22: Serviço | N22: Serviço | O22: - | P22: Composição | Q22: 02 | R22: =IF($C22="S",REFERENCIA.Descricao,"(digite a descrição aqui)") -> (abra o arquivo 'Referência 12-2022.xls) | S22: - | T22: =OFFSET(CÁLCULO!H$15,ROW($T22)-ROW(T$15),0) -> 1 | U22: 0 | V22: BDI 1 | W22: 0 | X22: 0 | Y22: RA | AA22: =IF($C22="S",IF($Z22="CP",$X22,IF($Z22="RA",(($X22)*QCI!$AA$3),0)),SomaAgrup) -> 0 | AB22: 0 | AD22: =IF(C22<=CRONO.NivelExibicao,MAX($AD$15:OFFSET(AD22,-1,0))+IF($C22<>1,1,MAX(1,COUNTIF(QCI!$A$13:$A$24,OFFSET($E22,-1,0)))),"") ->  | AE22: Composição 02 | AF22: (abra o arquivo 'Referência 12-2022.xls) | AG22: 0 | AH22: 0.2035 | AM22: 0 | AN22: 0
A23: S | B23: 2 | C23: S | D23: 0 | E23: =IF($C23=1,OFFSET(E23,-1,0)+MAX(1,COUNTIF(QCI!$A$13:$A$24,OFFSET(ORÇAMENTO!E23,-1,0))),OFFSET(E23,-1,0)) -> 1 | F23: 2 | G23: 0 | H23: 0 | I23: 0 | J23: 0 | K23: =IF(OR($C23="S",$C23=0),0,MATCH(OFFSET($D23,0,$C23)+IF($C23<>1,1,COUNTIF(QCI!$A$13:$A$24,ORÇAMENTO!E23)),OFFSET($D23,1,$C23,ROW($C$181)-ROW($C23)),0)) -> 0 | M23: Serviço | N23: Serviço | O23: - | P23: Composição | Q23: 03 | R23: =IF($C23="S",REFERENCIA.Descricao,"(digite a descrição aqui)") -> (abra o arquivo 'Referência 12-2022.xls) | S23: - | T23: =OFFSET(CÁLCULO!H$15,ROW($T23)-ROW(T$15),0) -> 2.4 | U23: 0 | V23: BDI 1 | W23: 0 | X23: 0 | Y23: RA | AA23: =IF($C23="S",IF($Z23="CP",$X23,IF($Z23="RA",(($X23)*QCI!$AA$3),0)),SomaAgrup) -> 0 | AB23: 0 | AD23: =IF(C23<=CRONO.NivelExibicao,MAX($AD$15:OFFSET(AD23,-1,0))+IF($C23<>1,1,MAX(1,COUNTIF(QCI!$A$13:$A$24,OFFSET($E23,-1,0)))),"") ->  | AE23: Composição 03 | AF23: (abra o arquivo 'Referência 12-2022.xls) | AG23: 0 | AH23: 0.2035 | AM23: 0 | AN23: 0
A24: =CHOOSE(1+LOG(1+2*(ORÇAMENTO.Nivel="Meta")+4*(ORÇAMENTO.Nivel="Nível 2")+8*(ORÇAMENTO.Nivel="Nível 3")+16*(ORÇAMENTO.Nivel="Nível 4")+32*(ORÇAMENTO.Nivel="Serviço"),2),0,1,2,3,4,"S") -> S | B24: =IF(OR(C24="s",C24=0),OFFSET(B24,-1,0),C24) -> 2 | C24: =IF(OFFSET(C24,-1,0)="L",1,IF(OFFSET(C24,-1,0)=1,2,IF(OR(A24="s",A24=0),"S",IF(AND(OFFSET(C24,-1,0)=2,A24=4),3,IF(AND(OR(OFFSET(C24,-1,0)="s",OFFSET(C24,-1,0)=0),A24<>"s",A24>OFFSET(B24,-1,0)),OFFSET(B24,-1,0),A24))))) -> S | D24: =IF(OR(C24="S",C24=0),0,IF(ISERROR(K24),J24,SMALL(J24:K24,1))) -> 0 | E24: =IF($C24=1,OFFSET(E24,-1,0)+MAX(1,COUNTIF(QCI!$A$13:$A$24,OFFSET(ORÇAMENTO!E24,-1,0))),OFFSET(E24,-1,0)) -> 1 | F24: =IF($C24=1,0,IF($C24=2,OFFSET(F24,-1,0)+1,OFFSET(F24,-1,0))) -> 2 | G24: =IF(AND($C24<=2,$C24<>0),0,IF($C24=3,OFFSET(G24,-1,0)+1,OFFSET(G24,-1,0))) -> 0 | H24: =IF(AND($C24<=3,$C24<>0),0,IF($C24=4,OFFSET(H24,-1,0)+1,OFFSET(H24,-1,0))) -> 0 | I24: =IF(AND($C24<=4,$C24<>0),0,IF(AND($C24="S",$X24>0),OFFSET(I24,-1,0)+1,OFFSET(I24,-1,0))) -> 0 | J24: 0 | K24: =IF(OR($C24="S",$C24=0),0,MATCH(OFFSET($D24,0,$C24)+IF($C24<>1,1,COUNTIF(QCI!$A$13:$A$24,ORÇAMENTO!E24)),OFFSET($D24,1,$C24,ROW($C$181)-ROW($C24)),0)) -> 0 | L24: =IF(OR($X24>0,$C24=1,$C24=2,$C24=3,$C24=4),"F","") ->  | M24: Serviço | N24: =CHOOSE(1+LOG(1+2*(C24=1)+4*(C24=2)+8*(C24=3)+16*(C24=4)+32*(C24="S"),2),"","Meta","Nível 2","Nível 3","Nível 4","Serviço") -> Serviço | O24: =IF(OR($C24=0,$L24=""),"-",CONCATENATE(E24&".",IF(AND($A$5>=2,$C24>=2),F24&".",""),IF(AND($A$5>=3,$C24>=3),G24&".",""),IF(AND($A$5>=4,$C24>=4),H24&".",""),IF($C24="S",I24&".",""))) -> - | P24: SINAPI | Q24: 97637 | R24: =IF($C24="S",REFERENCIA.Descricao,"(digite a descrição aqui)") -> (abra o arquivo 'Referência 12-2022.xls) | S24: =REFERENCIA.Unidade -> - | T24: =OFFSET(CÁLCULO!H$15,ROW($T24)-ROW(T$15),0) -> 84 | U24: 0 | V24: BDI 1 | W24: =IF($C24="S",ROUND(IF(TIPOORCAMENTO="Proposto",ORÇAMENTO.CustoUnitario*(1+$AH24),ORÇAMENTO.PrecoUnitarioLicitado),15-13*$AF$10),0) -> 0 | X24: =IF($C24="S",VTOTAL1,IF($C24=0,0,ROUND(SomaAgrup,15-13*$AF$11))) -> 0 | Y24: RA | Z24: =IF(AND($C24="S",$X24>0),IF(ISBLANK($Y24),"RA",LEFT($Y24,2)),"") ->  | AA24: =IF($C24="S",IF($Z24="CP",$X24,IF($Z24="RA",(($X24)*QCI!$AA$3),0)),SomaAgrup) -> 0 | AB24: =IF($C24="S",IF($Z24="OU",ROUND($X24,2),0),SomaAgrup) -> 0 | AC24: =IF($N24="","",IF(ORÇAMENTO.Descricao="","DESCRIÇÃO",IF(AND($C24="S",ORÇAMENTO.Unidade=""),"UNIDADE",IF($X24<0,"VALOR NEGATIVO",IF(OR(AND(TIPOORCAMENTO="Proposto",$AG24<>"",$AG24>0,ORÇAMENTO.CustoUnitario>$AG24),AND(TIPOORCAMENTO="LICITADO",ORÇAMENTO.PrecoUnitarioLicitado>$AN24)),"ACIMA REF.",""))))) ->  | AD24: =IF(C24<=CRONO.NivelExibicao,MAX($AD$15:OFFSET(AD24,-1,0))+IF($C24<>1,1,MAX(1,COUNTIF(QCI!$A$13:$A$24,OFFSET($E24,-1,0)))),"") ->  | AE24: =IF(AND($C24="S",ORÇAMENTO.CodBarra<>""),IF(ORÇAMENTO.Fonte="",ORÇAMENTO.CodBarra,CONCATENATE(ORÇAMENTO.Fonte," ",ORÇAMENTO.CodBarra))) -> SINAPI 97637 | AF24: =IF(ISERROR(INDIRECT(ORÇAMENTO.BancoRef)),"(abra o arquivo 'Referência "&Excel_BuiltIn_Database&".xls)",IF(OR($C24<>"S",ORÇAMENTO.CodBarra=""),"(Sem Código)",IF(ISERROR(MATCH($AE24,INDIRECT(ORÇAMENTO.BancoRef),0)),"(Código não identificado nas referências)",MATCH($AE24,INDIRECT(ORÇAMENTO.BancoRef),0)))) -> (abra o arquivo 'Referência 12-2022.xls) | AG24: =ROUND(IF(DESONERACAO="sim",REFERENCIA.Desonerado,REFERENCIA.NaoDesonerado),2) -> 0 | AH24: =ROUND(IF(ISNUMBER(ORÇAMENTO.OpcaoBDI),ORÇAMENTO.OpcaoBDI,IF(LEFT(ORÇAMENTO.OpcaoBDI,3)="BDI",HLOOKUP(ORÇAMENTO.OpcaoBDI,$F$4:$H$5,2,FALSE),0)),15-11*$AF$9) -> 0.2035 | AM24: 0 | AN24: =ROUND(ORÇAMENTO.CustoUnitario*(1+$AH24),2) -> 0
A25: 2 | B25: 2 | C25: 2 | D25: 61 | E25: =IF($C25=1,OFFSET(E25,-1,0)+MAX(1,COUNTIF(QCI!$A$13:$A$24,OFFSET(ORÇAMENTO!E25,-1,0))),OFFSET(E25,-1,0)) -> 1 | F25: 3 | G25: 0 | H25: 0 | I25: 0 | J25: 156 | K25: =IF(OR($C25="S",$C25=0),0,MATCH(OFFSET($D25,0,$C25)+IF($C25<>1,1,COUNTIF(QCI!$A$13:$A$24,ORÇAMENTO!E25)),OFFSET($D25,1,$C25,ROW($C$181)-ROW($C25)),0)) -> 61 | L25: F | M25: Nível 2 | N25: Nível 2 | O25: 1.3. | P25: SINAPI | R25: SUPERESTRUTURA - TORRE DO RESERVATÓRIO | S25: - | T25: =OFFSET(CÁLCULO!H$15,ROW($T25)-ROW(T$15),0) -> 0 | U25: 0 | V25: BDI 1 | W25: 0 | X25: 0 | Y25: RA | AA25: =IF($C25="S",IF($Z25="CP",$X25,IF($Z25="RA",(($X25)*QCI!$AA$3),0)),SomaAgrup) -> 0 | AB25: 0 | AD25: =IF(C25<=CRONO.NivelExibicao,MAX($AD$15:OFFSET(AD25,-1,0))+IF($C25<>1,1,MAX(1,COUNTIF(QCI!$A$13:$A$24,OFFSET($E25,-1,0)))),"") -> 4 | AE25: FALSE | AF25: (abra o arquivo 'Referência 12-2022.xls) | AG25: 0 | AH25: 0.2035 | AM25: 0 | AN25: 0
A26: 3 | B26: 3 | C26: 3 | D26: 6 | E26: =IF($C26=1,OFFSET(E26,-1,0)+MAX(1,COUNTIF(QCI!$A$13:$A$24,OFFSET(ORÇAMENTO!E26,-1,0))),OFFSET(E26,-1,0)) -> 1 | F26: 3 | G26: 1 | H26: 0 | I26: 0 | J26: 60 | K26: =IF(OR($C26="S",$C26=0),0,MATCH(OFFSET($D26,0,$C26)+IF($C26<>1,1,COUNTIF(QCI!$A$13:$A$24,ORÇAMENTO!E26)),OFFSET($D26,1,$C26,ROW($C$181)-ROW($C26)),0)) -> 6 | L26: F | M26: Nível 3 | N26: Nível 3 | O26: 1.3.1. | P26: SINAPI | R26: PILARES - NÍVEL 6,60 M AO 16,20 M | S26: - | T26: =OFFSET(CÁLCULO!H$15,ROW($T26)-ROW(T$15),0) -> 0 | U26: 0 | V26: BDI 1 | W26: 0 | X26: 0 | Y26: RA | AA26: =IF($C26="S",IF($Z26="CP",$X26,IF($Z26="RA",(($X26)*QCI!$AA$3),0)),SomaAgrup) -> 0 | AB26: 0 | AD26: =IF(C26<=CRONO.NivelExibicao,MAX($AD$15:OFFSET(AD26,-1,0))+IF($C26<>1,1,MAX(1,COUNTIF(QCI!$A$13:$A$24,OFFSET($E26,-1,0)))),"") ->  | AE26: FALSE | AF26: (abra o arquivo 'Referência 12-2022.xls) | AG26: 0 | AH26: 0.2035 | AM26: 0 | AN26: 0
A27: S | B27: 3 | C27: S | D27: 0 | E27: =IF($C27=1,OFFSET(E27,-1,0)+MAX(1,COUNTIF(QCI!$A$13:$A$24,OFFSET(ORÇAMENTO!E27,-1,0))),OFFSET(E27,-1,0)) -> 1 | F27: 3 | G27: 1 | H27: 0 | I27: 0 | J27: 0 | K27: =IF(OR($C27="S",$C27=0),0,MATCH(OFFSET($D27,0,$C27)+IF($C27<>1,1,COUNTIF(QCI!$A$13:$A$24,ORÇAMENTO!E27)),OFFSET($D27,1,$C27,ROW($C$181)-ROW($C27)),0)) -> 0 | M27: Serviço | N27: Serviço | O27: - | P27: Composição | Q27: 04 | R27: =IF($C27="S",REFERENCIA.Descricao,"(digite a descrição aqui)") -> (abra o arquivo 'Referência 12-2022.xls) | S27: - | T27: =OFFSET(CÁLCULO!H$15,ROW($T27)-ROW(T$15),0) -> 138.24 | U27: 0 | V27: BDI 1 | W27: 0 | X27: 0 | Y27: RA | AA27: =IF($C27="S",IF($Z27="CP",$X27,IF($Z27="RA",(($X27)*QCI!$AA$3),0)),SomaAgrup) -> 0 | AB27: 0 | AD27: =IF(C27<=CRONO.NivelExibicao,MAX($AD$15:OFFSET(AD27,-1,0))+IF($C27<>1,1,MAX(1,COUNTIF(QCI!$A$13:$A$24,OFFSET($E27,-1,0)))),"") ->  | AE27: Composição 04 | AF27: (abra o arquivo 'Referência 12-2022.xls) | AG27: 0 | AH27: 0.2035 | AM27: 0 | AN27: 0
A28: S | B28: 3 | C28: S | D28: 0 | E28: =IF($C28=1,OFFSET(E28,-1,0)+MAX(1,COUNTIF(QCI!$A$13:$A$24,OFFSET(ORÇAMENTO!E28,-1,0))),OFFSET(E28,-1,0)) -> 1 | F28: 3 | G28: 1 | H28: 0 | I28: 0 | J28: 0 | K28: =IF(OR($C28="S",$C28=0),0,MATCH(OFFSET($D28,0,$C28)+IF($C28<>1,1,COUNTIF(QCI!$A$13:$A$24,ORÇAMENTO!E28)),OFFSET($D28,1,$C28,ROW($C$181)-ROW($C28)),0)) -> 0 | M28: Serviço | N28: Serviço | O28: - | P28: SINAPI | Q28: 92759 | R28: =IF($C28="S",REFERENCIA.Descricao,"(digite a descrição aqui)") -> (abra o arquivo 'Referência 12-2022.xls) | S28: - | T28: =OFFSET(CÁLCULO!H$15,ROW($T28)-ROW(T$15),0) -> 548.2 | U28: 0 | V28: BDI 1 | W28: 0 | X28: 0 | Y28: RA | AA28: =IF($C28="S",IF($Z28="CP",$X28,IF($Z28="RA",(($X28)*QCI!$AA$3),0)),SomaAgrup) -> 0 | AB28: 0 | AD28: =IF(C28<=CRONO.NivelExibicao,MAX($AD$15:OFFSET(AD28,-1,0))+IF($C28<>1,1,MAX(1,COUNTIF(QCI!$A$13:$A$24,OFFSET($E28,-1,0)))),"") ->  | AE28: SINAPI 92759 | AF28: (abra o arquivo 'Referência 12-2022.xls) | AG28: 0 | AH28: 0.2035 | AM28: 0 | AN28: 0
A29: S | B29: 3 | C29: S | D29: 0 | E29: =IF($C29=1,OFFSET(E29,-1,0)+MAX(1,COUNTIF(QCI!$A$13:$A$24,OFFSET(ORÇAMENTO!E29,-1,0))),OFFSET(E29,-1,0)) -> 1 | F29: 3 | G29: 1 | H29: 0 | I29: 0 | J29: 0 | K29: =IF(OR($C29="S",$C29=0),0,MATCH(OFFSET($D29,0,$C29)+IF($C29<>1,1,COUNTIF(QCI!$A$13:$A$24,ORÇAMENTO!E29)),OFFSET($D29,1,$C29,ROW($C$181)-ROW($C29)),0)) -> 0 | M29: Serviço | N29: Serviço | O29: - | P29: SINAPI | Q29: 92764 | R29: =IF($C29="S",REFERENCIA.Descricao,"(digite a descrição aqui)") -> (abra o arquivo 'Referência 12-2022.xls) | S29: - | T29: =OFFSET(CÁLCULO!H$15,ROW($T29)-ROW(T$15),0) -> 627.5 | U29: 0 | V29: BDI 1 | W29: 0 | X29: 0 | Y29: RA | AA29: =IF($C29="S",IF($Z29="CP",$X29,IF($Z29="RA",(($X29)*QCI!$AA$3),0)),SomaAgrup) -> 0 | AB29: 0 | AD29: =IF(C29<=CRONO.NivelExibicao,MAX($AD$15:OFFSET(AD29,-1,0))+IF($C29<>1,1,MAX(1,COUNTIF(QCI!$A$13:$A$24,OFFSET($E29,-1,0)))),"") ->  | AE29: SINAPI 92764 | AF29: (abra o arquivo 'Referência 12-2022.xls) | AG29: 0 | AH29: 0.2035 | AM29: 0 | AN29: 0
A30: =CHOOSE(1+LOG(1+2*(ORÇAMENTO.Nivel="Meta")+4*(ORÇAMENTO.Nivel="Nível 2")+8*(ORÇAMENTO.Nivel="Nível 3")+16*(ORÇAMENTO.Nivel="Nível 4")+32*(ORÇAMENTO.Nivel="Serviço"),2),0,1,2,3,4,"S") -> S | B30: =IF(OR(C30="s",C30=0),OFFSET(B30,-1,0),C30) -> 3 | C30: =IF(OFFSET(C30,-1,0)="L",1,IF(OFFSET(C30,-1,0)=1,2,IF(OR(A30="s",A30=0),"S",IF(AND(OFFSET(C30,-1,0)=2,A30=4),3,IF(AND(OR(OFFSET(C30,-1,0)="s",OFFSET(C30,-1,0)=0),A30<>"s",A30>OFFSET(B30,-1,0)),OFFSET(B30,-1,0),A30))))) -> S | D30: =IF(OR(C30="S",C30=0),0,IF(ISERROR(K30),J30,SMALL(J30:K30,1))) -> 0 | E30: =IF($C30=1,OFFSET(E30,-1,0)+MAX(1,COUNTIF(QCI!$A$13:$A$24,OFFSET(ORÇAMENTO!E30,-1,0))),OFFSET(E30,-1,0)) -> 1 | F30: =IF($C30=1,0,IF($C30=2,OFFSET(F30,-1,0)+1,OFFSET(F30,-1,0))) -> 3 | G30: =IF(AND($C30<=2,$C30<>0),0,IF($C30=3,OFFSET(G30,-1,0)+1,OFFSET(G30,-1,0))) -> 1 | H30: =IF(AND($C30<=3,$C30<>0),0,IF($C30=4,OFFSET(H30,-1,0)+1,OFFSET(H30,-1,0))) -> 0 | I30: =IF(AND($C30<=4,$C30<>0),0,IF(AND($C30="S",$X30>0),OFFSET(I30,-1,0)+1,OFFSET(I30,-1,0))) -> 0 | J30: 0 | K30: =IF(OR($C30="S",$C30=0),0,MATCH(OFFSET($D30,0,$C30)+IF($C30<>1,1,COUNTIF(QCI!$A$13:$A$24,ORÇAMENTO!E30)),OFFSET($D30,1,$C30,ROW($C$181)-ROW($C30)),0)) -> 0 | L30: =IF(OR($X30>0,$C30=1,$C30=2,$C30=3,$C30=4),"F","") ->  | M30: Serviço | N30: =CHOOSE(1+LOG(1+2*(C30=1)+4*(C30=2)+8*(C30=3)+16*(C30=4)+32*(C30="S"),2),"","Meta","Nível 2","Nível 3","Nível 4","Serviço") -> Serviço | O30: =IF(OR($C30=0,$L30=""),"-",CONCATENATE(E30&".",IF(AND($A$5>=2,$C30>=2),F30&".",""),IF(AND($A$5>=3,$C30>=3),G30&".",""),IF(AND($A$5>=4,$C30>=4),H30&".",""),IF($C30="S",I30&".",""))) -> - | P30: SINAPI | Q30: 92765 | R30: =IF($C30="S",REFERENCIA.Descricao,"(digite a descrição aqui)") -> (abra o arquivo 'Referência 12-2022.xls) | S30: =REFERENCIA.Unidade -> - | T30: =OFFSET(CÁLCULO!H$15,ROW($T30)-ROW(T$15),0) -> 393.4 | U30: 0 | V30: BDI 1 | W30: =IF($C30="S",ROUND(IF(TIPOORCAMENTO="Proposto",ORÇAMENTO.CustoUnitario*(1+$AH30),ORÇAMENTO.PrecoUnitarioLicitado),15-13*$AF$10),0) -> 0 | X30: =IF($C30="S",VTOTAL1,IF($C30=0,0,ROUND(SomaAgrup,15-13*$AF$11))) -> 0 | Y30: RA | Z30: =IF(AND($C30="S",$X30>0),IF(ISBLANK($Y30),"RA",LEFT($Y30,2)),"") ->  | AA30: =IF($C30="S",IF($Z30="CP",$X30,IF($Z30="RA",(($X30)*QCI!$AA$3),0)),SomaAgrup) -> 0 | AB30: =IF($C30="S",IF($Z30="OU",ROUND($X30,2),0),SomaAgrup) -> 0 | AC30: =IF($N30="","",IF(ORÇAMENTO.Descricao="","DESCRIÇÃO",IF(AND($C30="S",ORÇAMENTO.Unidade=""),"UNIDADE",IF($X30<0,"VALOR NEGATIVO",IF(OR(AND(TIPOORCAMENTO="Proposto",$AG30<>"",$AG30>0,ORÇAMENTO.CustoUnitario>$AG30),AND(TIPOORCAMENTO="LICITADO",ORÇAMENTO.PrecoUnitarioLicitado>$AN30)),"ACIMA REF.",""))))) ->  | AD30: =IF(C30<=CRONO.NivelExibicao,MAX($AD$15:OFFSET(AD30,-1,0))+IF($C30<>1,1,MAX(1,COUNTIF(QCI!$A$13:$A$24,OFFSET($E30,-1,0)))),"") ->  | AE30: =IF(AND($C30="S",ORÇAMENTO.CodBarra<>""),IF(ORÇAMENTO.Fonte="",ORÇAMENTO.CodBarra,CONCATENATE(ORÇAMENTO.Fonte," ",ORÇAMENTO.CodBarra))) -> SINAPI 92765 | AF30: =IF(ISERROR(INDIRECT(ORÇAMENTO.BancoRef)),"(abra o arquivo 'Referência "&Excel_BuiltIn_Database&".xls)",IF(OR($C30<>"S",ORÇAMENTO.CodBarra=""),"(Sem Código)",IF(ISERROR(MATCH($AE30,INDIRECT(ORÇAMENTO.BancoRef),0)),"(Código não identificado nas referências)",MATCH($AE30,INDIRECT(ORÇAMENTO.BancoRef),0)))) -> (abra o arquivo 'Referência 12-2022.xls) | AG30: =ROUND(IF(DESONERACAO="sim",REFERENCIA.Desonerado,REFERENCIA.NaoDesonerado),2) -> 0 | AH30: =ROUND(IF(ISNUMBER(ORÇAMENTO.OpcaoBDI),ORÇAMENTO.OpcaoBDI,IF(LEFT(ORÇAMENTO.OpcaoBDI,3)="BDI",HLOOKUP(ORÇAMENTO.OpcaoBDI,$F$4:$H$5,2,FALSE),0)),15-11*$AF$9) -> 0.2035 | AM30: 0 | AN30: =ROUND(ORÇAMENTO.CustoUnitario*(1+$AH30),2) -> 0
A31: S | B31: 3 | C31: S | D31: 0 | E31: =IF($C31=1,OFFSET(E31,-1,0)+MAX(1,COUNTIF(QCI!$A$13:$A$24,OFFSET(ORÇAMENTO!E31,-1,0))),OFFSET(E31,-1,0)) -> 1 | F31: 3 | G31: 1 | H31: 0 | I31: 0 | J31: 0 | K31: =IF(OR($C31="S",$C31=0),0,MATCH(OFFSET($D31,0,$C31)+IF($C31<>1,1,COUNTIF(QCI!$A$13:$A$24,ORÇAMENTO!E31)),OFFSET($D31,1,$C31,ROW($C$181)-ROW($C31)),0)) -> 0 | M31: Serviço | N31: Serviço | O31: - | P31: Composição | Q31: 05 | R31: =IF($C31="S",REFERENCIA.Descricao,"(digite a descrição aqui)") -> (abra o arquivo 'Referência 12-2022.xls) | S31: - | T31: =OFFSET(CÁLCULO!H$15,ROW($T31)-ROW(T$15),0) -> 18.44 | U31: 0 | V31: BDI 1 | W31: 0 | X31: 0 | Y31: RA | AA31: =IF($C31="S",IF($Z31="CP",$X31,IF($Z31="RA",(($X31)*QCI!$AA$3),0)),SomaAgrup) -> 0 | AB31: 0 | AD31: =IF(C31<=CRONO.NivelExibicao,MAX($AD$15:OFFSET(AD31,-1,0))+IF($C31<>1,1,MAX(1,COUNTIF(QCI!$A$13:$A$24,OFFSET($E31,-1,0)))),"") ->  | AE31: Composição 05 | AF31: (abra o arquivo 'Referência 12-2022.xls) | AG31: 0 | AH31: 0.2035 | AM31: 0 | AN31: 0
A32: 3 | B32: 3 | C32: 3 | D32: 5 | E32: =IF($C32=1,OFFSET(E32,-1,0)+MAX(1,COUNTIF(QCI!$A$13:$A$24,OFFSET(ORÇAMENTO!E32,-1,0))),OFFSET(E32,-1,0)) -> 1 | F32: 3 | G32: 2 | H32: 0 | I32: 0 | J32: 54 | K32: =IF(OR($C32="S",$C32=0),0,MATCH(OFFSET($D32,0,$C32)+IF($C32<>1,1,COUNTIF(QCI!$A$13:$A$24,ORÇAMENTO!E32)),OFFSET($D32,1,$C32,ROW($C$181)-ROW($C32)),0)) -> 5 | L32: F | M32: Nível 3 | N32: Nível 3 | O32: 1.3.2. | P32: SINAPI | R32: PILARES - NÍVEL 16,20 M AO 27,60 M | S32: - | T32: =OFFSET(CÁLCULO!H$15,ROW($T32)-ROW(T$15),0) -> 0 | U32: 0 | V32: BDI 1 | W32: 0 | X32: 0 | Y32: RA | AA32: =IF($C32="S",IF($Z32="CP",$X32,IF($Z32="RA",(($X32)*QCI!$AA$3),0)),SomaAgrup) -> 0 | AB32: 0 | AD32: =IF(C32<=CRONO.NivelExibicao,MAX($AD$15:OFFSET(AD32,-1,0))+IF($C32<>1,1,MAX(1,COUNTIF(QCI!$A$13:$A$24,OFFSET($E32,-1,0)))),"") ->  | AE32: FALSE | AF32: (abra o arquivo 'Referência 12-2022.xls) | AG32: 0 | AH32: 0.2035 | AM32: 0 | AN32: 0
A33: S | B33: 3 | C33: S | D33: 0 | E33: =IF($C33=1,OFFSET(E33,-1,0)+MAX(1,COUNTIF(QCI!$A$13:$A$24,OFFSET(ORÇAMENTO!E33,-1,0))),OFFSET(E33,-1,0)) -> 1 | F33: 3 | G33: 2 | H33: 0 | I33: 0 | J33: 0 | K33: =IF(OR($C33="S",$C33=0),0,MATCH(OFFSET($D33,0,$C33)+IF($C33<>1,1,COUNTIF(QCI!$A$13:$A$24,ORÇAMENTO!E33)),OFFSET($D33,1,$C33,ROW($C$181)-ROW($C33)),0)) -> 0 | M33: Serviço | N33: Serviço | O33: - | P33: Composição | Q33: 04 | R33: =IF($C33="S",REFERENCIA.Descricao,"(digite a descrição aqui)") -> (abra o arquivo 'Referência 12-2022.xls) | S33: - | T33: =OFFSET(CÁLCULO!H$15,ROW($T33)-ROW(T$15),0) -> 164.16 | U33: 0 | V33: BDI 1 | W33: 0 | X33: 0 | Y33: RA | AA33: =IF($C33="S",IF($Z33="CP",$X33,IF($Z33="RA",(($X33)*QCI!$AA$3),0)),SomaAgrup) -> 0 | AB33: 0 | AD33: =IF(C33<=CRONO.NivelExibicao,MAX($AD$15:OFFSET(AD33,-1,0))+IF($C33<>1,1,MAX(1,COUNTIF(QCI!$A$13:$A$24,OFFSET($E33,-1,0)))),"") ->  | AE33: Composição 04 | AF33: (abra o arquivo 'Referência 12-2022.xls) | AG33: 0 | AH33: 0.2035 | AM33: 0 | AN33: 0
A34: S | B34: 3 | C34: S | D34: 0 | E34: =IF($C34=1,OFFSET(E34,-1,0)+MAX(1,COUNTIF(QCI!$A$13:$A$24,OFFSET(ORÇAMENTO!E34,-1,0))),OFFSET(E34,-1,0)) -> 1 | F34: 3 | G34: 2 | H34: 0 | I34: 0 | J34: 0 | K34: =IF(OR($C34="S",$C34=0),0,MATCH(OFFSET($D34,0,$C34)+IF($C34<>1,1,COUNTIF(QCI!$A$13:$A$24,ORÇAMENTO!E34)),OFFSET($D34,1,$C34,ROW($C$181)-ROW($C34)),0)) -> 0 | M34: Serviço | N34: Serviço | O34: - | P34: SINAPI | Q34: 92759 | R34: =IF($C34="S",REFERENCIA.Descricao,"(digite a descrição aqui)") -> (abra o arquivo 'Referência 12-2022.xls) | S34: - | T34: =OFFSET(CÁLCULO!H$15,ROW($T34)-ROW(T$15),0) -> 621 | U34: 0 | V34: BDI 1 | W34: 0 | X34: 0 | Y34: RA | AA34: =IF($C34="S",IF($Z34="CP",$X34,IF($Z34="RA",(($X34)*QCI!$AA$3),0)),SomaAgrup) -> 0 | AB34: 0 | AD34: =IF(C34<=CRONO.NivelExibicao,MAX($AD$15:OFFSET(AD34,-1,0))+IF($C34<>1,1,MAX(1,COUNTIF(QCI!$A$13:$A$24,OFFSET($E34,-1,0)))),"") ->  | AE34: SINAPI 92759 | AF34: (abra o arquivo 'Referência 12-2022.xls) | AG34: 0 | AH34: 0.2035 | AM34: 0 | AN34: 0
A35: S | B35: 3 | C35: S | D35: 0 | E35: =IF($C35=1,OFFSET(E35,-1,0)+MAX(1,COUNTIF(QCI!$A$13:$A$24,OFFSET(ORÇAMENTO!E35,-1,0))),OFFSET(E35,-1,0)) -> 1 | F35: 3 | G35: 2 | H35: 0 | I35: 0 | J35: 0 | K35: =IF(OR($C35="S",$C35=0),0,MATCH(OFFSET($D35,0,$C35)+IF($C35<>1,1,COUNTIF(QCI!$A$13:$A$24,ORÇAMENTO!E35)),OFFSET($D35,1,$C35,ROW($C$181)-ROW($C35)),0)) -> 0 | M35: Serviço | N35: Serviço | O35: - | P35: SINAPI | Q35: 92764 | R35: =IF($C35="S",REFERENCIA.Descricao,"(digite a descrição aqui)") -> (abra o arquivo 'Referência 12-2022.xls) | S35: - | T35: =OFFSET(CÁLCULO!H$15,ROW($T35)-ROW(T$15),0) -> 982.6 | U35: 0 | V35: BDI 1 | W35: 0 | X35: 0 | Y35: RA | AA35: =IF($C35="S",IF($Z35="CP",$X35,IF($Z35="RA",(($X35)*QCI!$AA$3),0)),SomaAgrup) -> 0 | AB35: 0 | AD35: =IF(C35<=CRONO.NivelExibicao,MAX($AD$15:OFFSET(AD35,-1,0))+IF($C35<>1,1,MAX(1,COUNTIF(QCI!$A$13:$A$24,OFFSET($E35,-1,0)))),"") ->  | AE35: SINAPI 92764 | AF35: (abra o arquivo 'Referência 12-2022.xls) | AG35: 0 | AH35: 0.2035 | AM35: 0 | AN35: 0
A36: S | B36: 3 | C36: S | D36: 0 | E36: =IF($C36=1,OFFSET(E36,-1,0)+MAX(1,COUNTIF(QCI!$A$13:$A$24,OFFSET(ORÇAMENTO!E36,-1,0))),OFFSET(E36,-1,0)) -> 1 | F36: 3 | G36: 2 | H36: 0 | I36: 0 | J36: 0 | K36: =IF(OR($C36="S",$C36=0),0,MATCH(OFFSET($D36,0,$C36)+IF($C36<>1,1,COUNTIF(QCI!$A$13:$A$24,ORÇAMENTO!E36)),OFFSET($D36,1,$C36,ROW($C$181)-ROW($C36)),0)) -> 0 | M36: Serviço | N36: Serviço | O36: - | P36: Composição | Q36: 05 | R36: =IF($C36="S",REFERENCIA.Descricao,"(digite a descrição aqui)") -> (abra o arquivo 'Referência 12-2022.xls) | S36: - | T36: =OFFSET(CÁLCULO!H$15,ROW($T36)-ROW(T$15),0) -> 21.88 | U36: 0 | V36: BDI 1 | W36: 0 | X36: 0 | Y36: RA | AA36: =IF($C36="S",IF($Z36="CP",$X36,IF($Z36="RA",(($X36)*QCI!$AA$3),0)),SomaAgrup) -> 0 | AB36: 0 | AD36: =IF(C36<=CRONO.NivelExibicao,MAX($AD$15:OFFSET(AD36,-1,0))+IF($C36<>1,1,MAX(1,COUNTIF(QCI!$A$13:$A$24,OFFSET($E36,-1,0)))),"") ->  | AE36: Composição 05 | AF36: (abra o arquivo 'Referência 12-2022.xls) | AG36: 0 | AH36: 0.2035 | AM36: 0 | AN36: 0
A37: 3 | B37: 3 | C37: 3 | D37: 9 | E37: =IF($C37=1,OFFSET(E37,-1,0)+MAX(1,COUNTIF(QCI!$A$13:$A$24,OFFSET(ORÇAMENTO!E37,-1,0))),OFFSET(E37,-1,0)) -> 1 | F37: 3 | G37: 3 | H37: 0 | I37: 0 | J37: 49 | K37: =IF(OR($C37="S",$C37=0),0,MATCH(OFFSET($D37,0,$C37)+IF($C37<>1,1,COUNTIF(QCI!$A$13:$A$24,ORÇAMENTO!E37)),OFFSET($D37,1,$C37,ROW($C$181)-ROW($C37)),0)) -> 9 | L37: F | M37: Nível 3 | N37: Nível 3 | O37: 1.3.3. | P37: SINAPI | R37: VIGAS E LAJE MACIÇA - NÍVEL 11,4 M | S37: - | T37: =OFFSET(CÁLCULO!H$15,ROW($T37)-ROW(T$15),0) -> 0 | U37: 0 | V37: BDI 1 | W37: 0 | X37: 0 | Y37: RA | AA37: =IF($C37="S",IF($Z37="CP",$X37,IF($Z37="RA",(($X37)*QCI!$AA$3),0)),SomaAgrup) -> 0 | AB37: 0 | AD37: =IF(C37<=CRONO.NivelExibicao,MAX($AD$15:OFFSET(AD37,-1,0))+IF($C37<>1,1,MAX(1,COUNTIF(QCI!$A$13:$A$24,OFFSET($E37,-1,0)))),"") ->  | AE37: FALSE | AF37: (abra o arquivo 'Referência 12-2022.xls) | AG37: 0 | AH37: 0.2035 | AM37: 0 | AN37: 0
A38: =CHOOSE(1+LOG(1+2*(ORÇAMENTO.Nivel="Meta")+4*(ORÇAMENTO.Nivel="Nível 2")+8*(ORÇAMENTO.Nivel="Nível 3")+16*(ORÇAMENTO.Nivel="Nível 4")+32*(ORÇAMENTO.Nivel="Serviço"),2),0,1,2,3,4,"S") -> S | B38: =IF(OR(C38="s",C38=0),OFFSET(B38,-1,0),C38) -> 3 | C38: =IF(OFFSET(C38,-1,0)="L",1,IF(OFFSET(C38,-1,0)=1,2,IF(OR(A38="s",A38=0),"S",IF(AND(OFFSET(C38,-1,0)=2,A38=4),3,IF(AND(OR(OFFSET(C38,-1,0)="s",OFFSET(C38,-1,0)=0),A38<>"s",A38>OFFSET(B38,-1,0)),OFFSET(B38,-1,0),A38))))) -> S | D38: =IF(OR(C38="S",C38=0),0,IF(ISERROR(K38),J38,SMALL(J38:K38,1))) -> 0 | E38: =IF($C38=1,OFFSET(E38,-1,0)+MAX(1,COUNTIF(QCI!$A$13:$A$24,OFFSET(ORÇAMENTO!E38,-1,0))),OFFSET(E38,-1,0)) -> 1 | F38: =IF($C38=1,0,IF($C38=2,OFFSET(F38,-1,0)+1,OFFSET(F38,-1,0))) -> 3 | G38: =IF(AND($C38<=2,$C38<>0),0,IF($C38=3,OFFSET(G38,-1,0)+1,OFFSET(G38,-1,0))) -> 3 | H38: =IF(AND($C38<=3,$C38<>0),0,IF($C38=4,OFFSET(H38,-1,0)+1,OFFSET(H38,-1,0))) -> 0 | I38: =IF(AND($C38<=4,$C38<>0),0,IF(AND($C38="S",$X38>0),OFFSET(I38,-1,0)+1,OFFSET(I38,-1,0))) -> 0 | J38: 0 | K38: =IF(OR($C38="S",$C38=0),0,MATCH(OFFSET($D38,0,$C38)+IF($C38<>1,1,COUNTIF(QCI!$A$13:$A$24,ORÇAMENTO!E38)),OFFSET($D38,1,$C38,ROW($C$181)-ROW($C38)),0)) -> 0 | L38: =IF(OR($X38>0,$C38=1,$C38=2,$C38=3,$C38=4),"F","") ->  | M38: Serviço | N38: =CHOOSE(1+LOG(1+2*(C38=1)+4*(C38=2)+8*(C38=3)+16*(C38=4)+32*(C38="S"),2),"","Meta","Nível 2","Nível 3","Nível 4","Serviço") -> Serviço | O38: =IF(OR($C38=0,$L38=""),"-",CONCATENATE(E38&".",IF(AND($A$5>=2,$C38>=2),F38&".",""),IF(AND($A$5>=3,$C38>=3),G38&".",""),IF(AND($A$5>=4,$C38>=4),H38&".",""),IF($C38="S",I38&".",""))) -> - | P38: Composição | Q38: 06 | R38: =IF($C38="S",REFERENCIA.Descricao,"(digite a descrição aqui)") -> (abra o arquivo 'Referência 12-2022.xls) | S38: =REFERENCIA.Unidade -> - | T38: =OFFSET(CÁLCULO!H$15,ROW($T38)-ROW(T$15),0) -> 71.62 | U38: 0 | V38: BDI 1 | W38: =IF($C38="S",ROUND(IF(TIPOORCAMENTO="Proposto",ORÇAMENTO.CustoUnitario*(1+$AH38),ORÇAMENTO.PrecoUnitarioLicitado),15-13*$AF$10),0) -> 0 | X38: =IF($C38="S",VTOTAL1,IF($C38=0,0,ROUND(SomaAgrup,15-13*$AF$11))) -> 0 | Y38: RA | Z38: =IF(AND($C38="S",$X38>0),IF(ISBLANK($Y38),"RA",LEFT($Y38,2)),"") ->  | AA38: =IF($C38="S",IF($Z38="CP",$X38,IF($Z38="RA",(($X38)*QCI!$AA$3),0)),SomaAgrup) -> 0 | AB38: =IF($C38="S",IF($Z38="OU",ROUND($X38,2),0),SomaAgrup) -> 0 | AC38: =IF($N38="","",IF(ORÇAMENTO.Descricao="","DESCRIÇÃO",IF(AND($C38="S",ORÇAMENTO.Unidade=""),"UNIDADE",IF($X38<0,"VALOR NEGATIVO",IF(OR(AND(TIPOORCAMENTO="Proposto",$AG38<>"",$AG38>0,ORÇAMENTO.CustoUnitario>$AG38),AND(TIPOORCAMENTO="LICITADO",ORÇAMENTO.PrecoUnitarioLicitado>$AN38)),"ACIMA REF.",""))))) ->  | AD38: =IF(C38<=CRONO.NivelExibicao,MAX($AD$15:OFFSET(AD38,-1,0))+IF($C38<>1,1,MAX(1,COUNTIF(QCI!$A$13:$A$24,OFFSET($E38,-1,0)))),"") ->  | AE38: =IF(AND($C38="S",ORÇAMENTO.CodBarra<>""),IF(ORÇAMENTO.Fonte="",ORÇAMENTO.CodBarra,CONCATENATE(ORÇAMENTO.Fonte," ",ORÇAMENTO.CodBarra))) -> Composição 06 | AF38: =IF(ISERROR(INDIRECT(ORÇAMENTO.BancoRef)),"(abra o arquivo 'Referência "&Excel_BuiltIn_Database&".xls)",IF(OR($C38<>"S",ORÇAMENTO.CodBarra=""),"(Sem Código)",IF(ISERROR(MATCH($AE38,INDIRECT(ORÇAMENTO.BancoRef),0)),"(Código não identificado nas referências)",MATCH($AE38,INDIRECT(ORÇAMENTO.BancoRef),0)))) -> (abra o arquivo 'Referência 12-2022.xls) | AG38: =ROUND(IF(DESONERACAO="sim",REFERENCIA.Desonerado,REFERENCIA.NaoDesonerado),2) -> 0 | AH38: =ROUND(IF(ISNUMBER(ORÇAMENTO.OpcaoBDI),ORÇAMENTO.OpcaoBDI,IF(LEFT(ORÇAMENTO.OpcaoBDI,3)="BDI",HLOOKUP(ORÇAMENTO.OpcaoBDI,$F$4:$H$5,2,FALSE),0)),15-11*$AF$9) -> 0.2035 | AM38: 0 | AN38: =ROUND(ORÇAMENTO.CustoUnitario*(1+$AH38),2) -> 0
A39: S | B39: 3 | C39: S | D39: 0 | E39: =IF($C39=1,OFFSET(E39,-1,0)+MAX(1,COUNTIF(QCI!$A$13:$A$24,OFFSET(ORÇAMENTO!E39,-1,0))),OFFSET(E39,-1,0)) -> 1 | F39: 3 | G39: 3 | H39: 0 | I39: 0 | J39: 0 | K39: =IF(OR($C39="S",$C39=0),0,MATCH(OFFSET($D39,0,$C39)+IF($C39<>1,1,COUNTIF(QCI!$A$13:$A$24,ORÇAMENTO!E39)),OFFSET($D39,1,$C39,ROW($C$181)-ROW($C39)),0)) -> 0 | M39: Serviço | N39: Serviço | O39: - | P39: SINAPI | Q39: 92759 | R39: =IF($C39="S",REFERENCIA.Descricao,"(digite a descrição aqui)") -> (abra o arquivo 'Referência 12-2022.xls) | S39: - | T39: =OFFSET(CÁLCULO!H$15,ROW($T39)-ROW(T$15),0) -> 41.3 | U39: 0 | V39: BDI 1 | W39: 0 | X39: 0 | Y39: RA | AA39: =IF($C39="S",IF($Z39="CP",$X39,IF($Z39="RA",(($X39)*QCI!$AA$3),0)),SomaAgrup) -> 0 | AB39: 0 | AD39: =IF(C39<=CRONO.NivelExibicao,MAX($AD$15:OFFSET(AD39,-1,0))+IF($C39<>1,1,MAX(1,COUNTIF(QCI!$A$13:$A$24,OFFSET($E39,-1,0)))),"") ->  | AE39: SINAPI 92759 | AF39: (abra o arquivo 'Referência 12-2022.xls) | AG39: 0 | AH39: 0.2035 | AM39: 0 | AN39: 0
A40: S | B40: 3 | C40: S | D40: 0 | E40: =IF($C40=1,OFFSET(E40,-1,0)+MAX(1,COUNTIF(QCI!$A$13:$A$24,OFFSET(ORÇAMENTO!E40,-1,0))),OFFSET(E40,-1,0)) -> 1 | F40: 3 | G40: 3 | H40: 0 | I40: 0 | J40: 0 | K40: =IF(OR($C40="S",$C40=0),0,MATCH(OFFSET($D40,0,$C40)+IF($C40<>1,1,COUNTIF(QCI!$A$13:$A$24,ORÇAMENTO!E40)),OFFSET($D40,1,$C40,ROW($C$181)-ROW($C40)),0)) -> 0 | M40: Serviço | N40: Serviço | O40: - | P40: SINAPI | Q40: 92760 | R40: =IF($C40="S",REFERENCIA.Descricao,"(digite a descrição aqui)") -> (abra o arquivo 'Referência 12-2022.xls) | S40: - | T40: =OFFSET(CÁLCULO!H$15,ROW($T40)-ROW(T$15),0) -> 30.2 | U40: 0 | V40: BDI 1 | W40: 0 | X40: 0 | Y40: RA | AA40: =IF($C40="S",IF($Z40="CP",$X40,IF($Z40="RA",(($X40)*QCI!$AA$3),0)),SomaAgrup) -> 0 | AB40: 0 | AD40: =IF(C40<=CRONO.NivelExibicao,MAX($AD$15:OFFSET(AD40,-1,0))+IF($C40<>1,1,MAX(1,COUNTIF(QCI!$A$13:$A$24,OFFSET($E40,-1,0)))),"") ->  | AE40: SINAPI 92760 | AF40: (abra o arquivo 'Referência 12-2022.xls) | AG40: 0 | AH40: 0.2035 | AM40: 0 | AN40: 0
A41: S | B41: 3 | C41: S | D41: 0 | E41: =IF($C41=1,OFFSET(E41,-1,0)+MAX(1,COUNTIF(QCI!$A$13:$A$24,OFFSET(ORÇAMENTO!E41,-1,0))),OFFSET(E41,-1,0)) -> 1 | F41: 3 | G41: 3 | H41: 0 | I41: 0 | J41: 0 | K41: =IF(OR($C41="S",$C41=0),0,MATCH(OFFSET($D41,0,$C41)+IF($C41<>1,1,COUNTIF(QCI!$A$13:$A$24,ORÇAMENTO!E41)),OFFSET($D41,1,$C41,ROW($C$181)-ROW($C41)),0)) -> 0 | M41: Serviço | N41: Serviço | O41: - | P41: SINAPI | Q41: 92761 | R41: =IF($C41="S",REFERENCIA.Descricao,"(digite a descrição aqui)") -> (abra o arquivo 'Referência 12-2022.xls) | S41: - | T41: =OFFSET(CÁLCULO!H$15,ROW($T41)-ROW(T$15),0) -> 34.8 | U41: 0 | V41: BDI 1 | W41: 0 | X41: 0 | Y41: RA | AA41: =IF($C41="S",IF($Z41="CP",$X41,IF($Z41="RA",(($X41)*QCI!$AA$3),0)),SomaAgrup) -> 0 | AB41: 0 | AD41: =IF(C41<=CRONO.NivelExibicao,MAX($AD$15:OFFSET(AD41,-1,0))+IF($C41<>1,1,MAX(1,COUNTIF(QCI!$A$13:$A$24,OFFSET($E41,-1,0)))),"") ->  | AE41: SINAPI 92761 | AF41: (abra o arquivo 'Referência 12-2022.xls) | AG41: 0 | AH41: 0.2035 | AM41: 0 | AN41: 0
A42: S | B42: 3 | C42: S | D42: 0 | E42: =IF($C42=1,OFFSET(E42,-1,0)+MAX(1,COUNTIF(QCI!$A$13:$A$24,OFFSET(ORÇAMENTO!E42,-1,0))),OFFSET(E42,-1,0)) -> 1 | F42: 3 | G42: 3 | H42: 0 | I42: 0 | J42: 0 | K42: =IF(OR($C42="S",$C42=0),0,MATCH(OFFSET($D42,0,$C42)+IF($C42<>1,1,COUNTIF(QCI!$A$13:$A$24,ORÇAMENTO!E42)),OFFSET($D42,1,$C42,ROW($C$181)-ROW($C42)),0)) -> 0 | M42: Serviço | N42: Serviço | O42: - | P42: SINAPI | Q42: 92762 | R42: =IF($C42="S",REFERENCIA.Descricao,"(digite a descrição aqui)") -> (abra o arquivo 'Referência 12-2022.xls) | S42: - | T42: =OFFSET(CÁLCULO!H$15,ROW($T42)-ROW(T$15),0) -> 150.8 | U42: 0 | V42: BDI 1 | W42: 0 | X42: 0 | Y42: RA | AA42: =IF($C42="S",IF($Z42="CP",$X42,IF($Z42="RA",(($X42)*QCI!$AA$3),0)),SomaAgrup) -> 0 | AB42: 0 | AD42: =IF(C42<=CRONO.NivelExibicao,MAX($AD$15:OFFSET(AD42,-1,0))+IF($C42<>1,1,MAX(1,COUNTIF(QCI!$A$13:$A$24,OFFSET($E42,-1,0)))),"") ->  | AE42: SINAPI 92762 | AF42: (abra o arquivo 'Referência 12-2022.xls) | AG42: 0 | AH42: 0.2035 | AM42: 0 | AN42: 0
A43: S | B43: 3 | C43: S | D43: 0 | E43: =IF($C43=1,OFFSET(E43,-1,0)+MAX(1,COUNTIF(QCI!$A$13:$A$24,OFFSET(ORÇAMENTO!E43,-1,0))),OFFSET(E43,-1,0)) -> 1 | F43: 3 | G43: 3 | H43: 0 | I43: 0 | J43: 0 | K43: =IF(OR($C43="S",$C43=0),0,MATCH(OFFSET($D43,0,$C43)+IF($C43<>1,1,COUNTIF(QCI!$A$13:$A$24,ORÇAMENTO!E43)),OFFSET($D43,1,$C43,ROW($C$181)-ROW($C43)),0)) -> 0 | M43: Serviço | N43: Serviço | O43: - | P43: SINAPI | Q43: 92764 | R43: =IF($C43="S",REFERENCIA.Descricao,"(digite a descrição aqui)") -> (abra o arquivo 'Referência 12-2022.xls) | S43: - | T43: =OFFSET(CÁLCULO!H$15,ROW($T43)-ROW(T$15),0) -> 217.4 | U43: 0 | V43: BDI 1 | W43: 0 | X43: 0 | Y43: RA | AA43: =IF($C43="S",IF($Z43="CP",$X43,IF($Z43="RA",(($X43)*QCI!$AA$3),0)),SomaAgrup) -> 0 | AB43: 0 | AD43: =IF(C43<=CRONO.NivelExibicao,MAX($AD$15:OFFSET(AD43,-1,0))+IF($C43<>1,1,MAX(1,COUNTIF(QCI!$A$13:$A$24,OFFSET($E43,-1,0)))),"") ->  | AE43: SINAPI 92764 | AF43: (abra o arquivo 'Referência 12-2022.xls) | AG43: 0 | AH43: 0.2035 | AM43: 0 | AN43: 0
A44: S | B44: 3 | C44: S | D44: 0 | E44: =IF($C44=1,OFFSET(E44,-1,0)+MAX(1,COUNTIF(QCI!$A$13:$A$24,OFFSET(ORÇAMENTO!E44,-1,0))),OFFSET(E44,-1,0)) -> 1 | F44: 3 | G44: 3 | H44: 0 | I44: 0 | J44: 0 | K44: =IF(OR($C44="S",$C44=0),0,MATCH(OFFSET($D44,0,$C44)+IF($C44<>1,1,COUNTIF(QCI!$A$13:$A$24,ORÇAMENTO!E44)),OFFSET($D44,1,$C44,ROW($C$181)-ROW($C44)),0)) -> 0 | M44: Serviço | N44: Serviço | O44: - | P44: SINAPI | Q44: 92765 | R44: =IF($C44="S",REFERENCIA.Descricao,"(digite a descrição aqui)") -> (abra o arquivo 'Referência 12-2022.xls) | S44: - | T44: =OFFSET(CÁLCULO!H$15,ROW($T44)-ROW(T$15),0) -> 396.5 | U44: 0 | V44: BDI 1 | W44: 0 | X44: 0 | Y44: RA | AA44: =IF($C44="S",IF($Z44="CP",$X44,IF($Z44="RA",(($X44)*QCI!$AA$3),0)),SomaAgrup) -> 0 | AB44: 0 | AD44: =IF(C44<=CRONO.NivelExibicao,MAX($AD$15:OFFSET(AD44,-1,0))+IF($C44<>1,1,MAX(1,COUNTIF(QCI!$A$13:$A$24,OFFSET($E44,-1,0)))),"") ->  | AE44: SINAPI 92765 | AF44: (abra o arquivo 'Referência 12-2022.xls) | AG44: 0 | AH44: 0.2035 | AM44: 0 | AN44: 0
A45: S | B45: 3 | C45: S | D45: 0 | E45: =IF($C45=1,OFFSET(E45,-1,0)+MAX(1,COUNTIF(QCI!$A$13:$A$24,OFFSET(ORÇAMENTO!E45,-1,0))),OFFSET(E45,-1,0)) -> 1 | F45: 3 | G45: 3 | H45: 0 | I45: 0 | J45: 0 | K45: =IF(OR($C45="S",$C45=0),0,MATCH(OFFSET($D45,0,$C45)+IF($C45<>1,1,COUNTIF(QCI!$A$13:$A$24,ORÇAMENTO!E45)),OFFSET($D45,1,$C45,ROW($C$181)-ROW($C45)),0)) -> 0 | M45: Serviço | N45: Serviço | O45: - | P45: Composição | Q45: 08 | R45: =IF($C45="S",REFERENCIA.Descricao,"(digite a descrição aqui)") -> (abra o arquivo 'Referência 12-2022.xls) | S45: - | T45: =OFFSET(CÁLCULO!H$15,ROW($T45)-ROW(T$15),0) -> 6.38 | U45: 0 | V45: BDI 1 | W45: 0 | X45: 0 | Y45: RA | AA45: =IF($C45="S",IF($Z45="CP",$X45,IF($Z45="RA",(($X45)*QCI!$AA$3),0)),SomaAgrup) -> 0 | AB45: 0 | AD45: =IF(C45<=CRONO.NivelExibicao,MAX($AD$15:OFFSET(AD45,-1,0))+IF($C45<>1,1,MAX(1,COUNTIF(QCI!$A$13:$A$24,OFFSET($E45,-1,0)))),"") ->  | AE45: Composição 08 | AF45: (abra o arquivo 'Referência 12-2022.xls) | AG45: 0 | AH45: 0.2035 | AM45: 0 | AN45: 0
A46: 3 | B46: 3 | C46: 3 | D46: 10 | E46: =IF($C46=1,OFFSET(E46,-1,0)+MAX(1,COUNTIF(QCI!$A$13:$A$24,OFFSET(ORÇAMENTO!E46,-1,0))),OFFSET(E46,-1,0)) -> 1 | F46: 3 | G46: 4 | H46: 0 | I46: 0 | J46: 40 | K46: =IF(OR($C46="S",$C46=0),0,MATCH(OFFSET($D46,0,$C46)+IF($C46<>1,1,COUNTIF(QCI!$A$13:$A$24,ORÇAMENTO!E46)),OFFSET($D46,1,$C46,ROW($C$181)-ROW($C46)),0)) -> 10 | L46: F | M46: Nível 3 | N46: Nível 3 | O46: 1.3.4. | P46: SINAPI | R46: VIGAS E LAJE MACIÇA - NÍVEL 16,20 M | S46: - | T46: =OFFSET(CÁLCULO!H$15,ROW($T46)-ROW(T$15),0) -> 0 | U46: 0 | V46: BDI 1 | W46: 0 | X46: 0 | Y46: RA | AA46: =IF($C46="S",IF($Z46="CP",$X46,IF($Z46="RA",(($X46)*QCI!$AA$3),0)),SomaAgrup) -> 0 | AB46: 0 | AD46: =IF(C46<=CRONO.NivelExibicao,MAX($AD$15:OFFSET(AD46,-1,0))+IF($C46<>1,1,MAX(1,COUNTIF(QCI!$A$13:$A$24,OFFSET($E46,-1,0)))),"") ->  | AE46: FALSE | AF46: (abra o arquivo 'Referência 12-2022.xls) | AG46: 0 | AH46: 0.2035 | AM46: 0 | AN46: 0
A47: S | B47: 3 | C47: S | D47: 0 | E47: =IF($C47=1,OFFSET(E47,-1,0)+MAX(1,COUNTIF(QCI!$A$13:$A$24,OFFSET(ORÇAMENTO!E47,-1,0))),OFFSET(E47,-1,0)) -> 1 | F47: 3 | G47: 4 | H47: 0 | I47: 0 | J47: 0 | K47: =IF(OR($C47="S",$C47=0),0,MATCH(OFFSET($D47,0,$C47)+IF($C47<>1,1,COUNTIF(QCI!$A$13:$A$24,ORÇAMENTO!E47)),OFFSET($D47,1,$C47,ROW($C$181)-ROW($C47)),0)) -> 0 | M47: Serviço | N47: Serviço | O47: - | P47: Composição | Q47: 06 | R47: =IF($C47="S",REFERENCIA.Descricao,"(digite a descrição aqui)") -> (abra o arquivo 'Referência 12-2022.xls) | S47: - | T47: =OFFSET(CÁLCULO!H$15,ROW($T47)-ROW(T$15),0) -> 71.62 | U47: 0 | V47: BDI 1 | W47: 0 | X47: 0 | Y47: RA | AA47: =IF($C47="S",IF($Z47="CP",$X47,IF($Z47="RA",(($X47)*QCI!$AA$3),0)),SomaAgrup) -> 0 | AB47: 0 | AD47: =IF(C47<=CRONO.NivelExibicao,MAX($AD$15:OFFSET(AD47,-1,0))+IF($C47<>1,1,MAX(1,COUNTIF(QCI!$A$13:$A$24,OFFSET($E47,-1,0)))),"") ->  | AE47: Composição 06 | AF47: (abra o arquivo 'Referência 12-2022.xls) | AG47: 0 | AH47: 0.2035 | AM47: 0 | AN47: 0
A48: S | B48: 3 | C48: S | D48: 0 | E48: =IF($C48=1,OFFSET(E48,-1,0)+MAX(1,COUNTIF(QCI!$A$13:$A$24,OFFSET(ORÇAMENTO!E48,-1,0))),OFFSET(E48,-1,0)) -> 1 | F48: 3 | G48: 4 | H48: 0 | I48: 0 | J48: =IF(OR($C48="S",$C48=0),0,MATCH(0,OFFSET($D48,1,$C48,ROW($C$181)-ROW($C48)),0)) -> 0 | K48: =IF(OR($C48="S",$C48=0),0,MATCH(OFFSET($D48,0,$C48)+IF($C48<>1,1,COUNTIF(QCI!$A$13:$A$24,ORÇAMENTO!E48)),OFFSET($D48,1,$C48,ROW($C$181)-ROW($C48)),0)) -> 0 | M48: Serviço | N48: Serviço | O48: - | P48: SINAPI | Q48: 92759 | R48: =IF($C48="S",REFERENCIA.Descricao,"(digite a descrição aqui)") -> (abra o arquivo 'Referência 12-2022.xls) | S48: - | T48: =OFFSET(CÁLCULO!H$15,ROW($T48)-ROW(T$15),0) -> 50.6 | U48: 0 | V48: BDI 1 | W48: 0 | X48: 0 | Y48: RA | AA48: =IF($C48="S",IF($Z48="CP",$X48,IF($Z48="RA",(($X48)*QCI!$AA$3),0)),SomaAgrup) -> 0 | AB48: 0 | AD48: =IF(C48<=CRONO.NivelExibicao,MAX($AD$15:OFFSET(AD48,-1,0))+IF($C48<>1,1,MAX(1,COUNTIF(QCI!$A$13:$A$24,OFFSET($E48,-1,0)))),"") ->  | AE48: SINAPI 92759 | AF48: (abra o arquivo 'Referência 12-2022.xls) | AG48: 0 | AH48: 0.2035 | AM48: 0 | AN48: 0
A49: S | B49: 3 | C49: S | D49: 0 | E49: =IF($C49=1,OFFSET(E49,-1,0)+MAX(1,COUNTIF(QCI!$A$13:$A$24,OFFSET(ORÇAMENTO!E49,-1,0))),OFFSET(E49,-1,0)) -> 1 | F49: 3 | G49: 4 | H49: 0 | I49: 0 | J49: 0 | K49: =IF(OR($C49="S",$C49=0),0,MATCH(OFFSET($D49,0,$C49)+IF($C49<>1,1,COUNTIF(QCI!$A$13:$A$24,ORÇAMENTO!E49)),OFFSET($D49,1,$C49,ROW($C$181)-ROW($C49)),0)) -> 0 | M49: Serviço | N49: Serviço | O49: - | P49: SINAPI | Q49: 92760 | R49: =IF($C49="S",REFERENCIA.Descricao,"(digite a descrição aqui)") -> (abra o arquivo 'Referência 12-2022.xls) | S49: - | T49: =OFFSET(CÁLCULO!H$15,ROW($T49)-ROW(T$15),0) -> 21.8 | U49: 0 | V49: BDI 1 | W49: 0 | X49: 0 | Y49: RA | AA49: =IF($C49="S",IF($Z49="CP",$X49,IF($Z49="RA",(($X49)*QCI!$AA$3),0)),SomaAgrup) -> 0 | AB49: 0 | AD49: =IF(C49<=CRONO.NivelExibicao,MAX($AD$15:OFFSET(AD49,-1,0))+IF($C49<>1,1,MAX(1,COUNTIF(QCI!$A$13:$A$24,OFFSET($E49,-1,0)))),"") ->  | AE49: SINAPI 92760 | AF49: (abra o arquivo 'Referência 12-2022.xls) | AG49: 0 | AH49: 0.2035 | AM49: 0 | AN49: 0
A50: =CHOOSE(1+LOG(1+2*(ORÇAMENTO.Nivel="Meta")+4*(ORÇAMENTO.Nivel="Nível 2")+8*(ORÇAMENTO.Nivel="Nível 3")+16*(ORÇAMENTO.Nivel="Nível 4")+32*(ORÇAMENTO.Nivel="Serviço"),2),0,1,2,3,4,"S") -> S | B50: =IF(OR(C50="s",C50=0),OFFSET(B50,-1,0),C50) -> 3 | C50: =IF(OFFSET(C50,-1,0)="L",1,IF(OFFSET(C50,-1,0)=1,2,IF(OR(A50="s",A50=0),"S",IF(AND(OFFSET(C50,-1,0)=2,A50=4),3,IF(AND(OR(OFFSET(C50,-1,0)="s",OFFSET(C50,-1,0)=0),A50<>"s",A50>OFFSET(B50,-1,0)),OFFSET(B50,-1,0),A50))))) -> S | D50: =IF(OR(C50="S",C50=0),0,IF(ISERROR(K50),J50,SMALL(J50:K50,1))) -> 0 | E50: =IF($C50=1,OFFSET(E50,-1,0)+MAX(1,COUNTIF(QCI!$A$13:$A$24,OFFSET(ORÇAMENTO!E50,-1,0))),OFFSET(E50,-1,0)) -> 1 | F50: =IF($C50=1,0,IF($C50=2,OFFSET(F50,-1,0)+1,OFFSET(F50,-1,0))) -> 3 | G50: =IF(AND($C50<=2,$C50<>0),0,IF($C50=3,OFFSET(G50,-1,0)+1,OFFSET(G50,-1,0))) -> 4 | H50: =IF(AND($C50<=3,$C50<>0),0,IF($C50=4,OFFSET(H50,-1,0)+1,OFFSET(H50,-1,0))) -> 0 | I50: =IF(AND($C50<=4,$C50<>0),0,IF(AND($C50="S",$X50>0),OFFSET(I50,-1,0)+1,OFFSET(I50,-1,0))) -> 0 | J50: 0 | K50: =IF(OR($C50="S",$C50=0),0,MATCH(OFFSET($D50,0,$C50)+IF($C50<>1,1,COUNTIF(QCI!$A$13:$A$24,ORÇAMENTO!E50)),OFFSET($D50,1,$C50,ROW($C$181)-ROW($C50)),0)) -> 0 | L50: =IF(OR($X50>0,$C50=1,$C50=2,$C50=3,$C50=4),"F","") ->  | M50: Serviço | N50: =CHOOSE(1+LOG(1+2*(C50=1)+4*(C50=2)+8*(C50=3)+16*(C50=4)+32*(C50="S"),2),"","Meta","Nível 2","Nível 3","Nível 4","Serviço") -> Serviço | O50: =IF(OR($C50=0,$L50=""),"-",CONCATENATE(E50&".",IF(AND($A$5>=2,$C50>=2),F50&".",""),IF(AND($A$5>=3,$C50>=3),G50&".",""),IF(AND($A$5>=4,$C50>=4),H50&".",""),IF($C50="S",I50&".",""))) -> - | P50: SINAPI | Q50: 92761 | R50: =IF($C50="S",REFERENCIA.Descricao,"(digite a descrição aqui)") -> (abra o arquivo 'Referência 12-2022.xls) | S50: =REFERENCIA.Unidade -> - | T50: =OFFSET(CÁLCULO!H$15,ROW($T50)-ROW(T$15),0) -> 34.8 | U50: 0 | V50: BDI 1 | W50: =IF($C50="S",ROUND(IF(TIPOORCAMENTO="Proposto",ORÇAMENTO.CustoUnitario*(1+$AH50),ORÇAMENTO.PrecoUnitarioLicitado),15-13*$AF$10),0) -> 0 | X50: =IF($C50="S",VTOTAL1,IF($C50=0,0,ROUND(SomaAgrup,15-13*$AF$11))) -> 0 | Y50: RA | Z50: =IF(AND($C50="S",$X50>0),IF(ISBLANK($Y50),"RA",LEFT($Y50,2)),"") ->  | AA50: =IF($C50="S",IF($Z50="CP",$X50,IF($Z50="RA",(($X50)*QCI!$AA$3),0)),SomaAgrup) -> 0 | AB50: =IF($C50="S",IF($Z50="OU",ROUND($X50,2),0),SomaAgrup) -> 0 | AC50: =IF($N50="","",IF(ORÇAMENTO.Descricao="","DESCRIÇÃO",IF(AND($C50="S",ORÇAMENTO.Unidade=""),"UNIDADE",IF($X50<0,"VALOR NEGATIVO",IF(OR(AND(TIPOORCAMENTO="Proposto",$AG50<>"",$AG50>0,ORÇAMENTO.CustoUnitario>$AG50),AND(TIPOORCAMENTO="LICITADO",ORÇAMENTO.PrecoUnitarioLicitado>$AN50)),"ACIMA REF.",""))))) ->  | AD50: =IF(C50<=CRONO.NivelExibicao,MAX($AD$15:OFFSET(AD50,-1,0))+IF($C50<>1,1,MAX(1,COUNTIF(QCI!$A$13:$A$24,OFFSET($E50,-1,0)))),"") ->  | AE50: =IF(AND($C50="S",ORÇAMENTO.CodBarra<>""),IF(ORÇAMENTO.Fonte="",ORÇAMENTO.CodBarra,CONCATENATE(ORÇAMENTO.Fonte," ",ORÇAMENTO.CodBarra))) -> SINAPI 92761 | AF50: =IF(ISERROR(INDIRECT(ORÇAMENTO.BancoRef)),"(abra o arquivo 'Referência "&Excel_BuiltIn_Database&".xls)",IF(OR($C50<>"S",ORÇAMENTO.CodBarra=""),"(Sem Código)",IF(ISERROR(MATCH($AE50,INDIRECT(ORÇAMENTO.BancoRef),0)),"(Código não identificado nas referências)",MATCH($AE50,INDIRECT(ORÇAMENTO.BancoRef),0)))) -> (abra o arquivo 'Referência 12-2022.xls) | AG50: =ROUND(IF(DESONERACAO="sim",REFERENCIA.Desonerado,REFERENCIA.NaoDesonerado),2) -> 0 | AH50: =ROUND(IF(ISNUMBER(ORÇAMENTO.OpcaoBDI),ORÇAMENTO.OpcaoBDI,IF(LEFT(ORÇAMENTO.OpcaoBDI,3)="BDI",HLOOKUP(ORÇAMENTO.OpcaoBDI,$F$4:$H$5,2,FALSE),0)),15-11*$AF$9) -> 0.2035 | AM50: 0 | AN50: =ROUND(ORÇAMENTO.CustoUnitario*(1+$AH50),2) -> 0
A51: S | B51: 3 | C51: S | D51: 0 | E51: =IF($C51=1,OFFSET(E51,-1,0)+MAX(1,COUNTIF(QCI!$A$13:$A$24,OFFSET(ORÇAMENTO!E51,-1,0))),OFFSET(E51,-1,0)) -> 1 | F51: 3 | G51: 4 | H51: 0 | I51: 0 | J51: 0 | K51: =IF(OR($C51="S",$C51=0),0,MATCH(OFFSET($D51,0,$C51)+IF($C51<>1,1,COUNTIF(QCI!$A$13:$A$24,ORÇAMENTO!E51)),OFFSET($D51,1,$C51,ROW($C$181)-ROW($C51)),0)) -> 0 | M51: Serviço | N51: Serviço | O51: - | P51: SINAPI | Q51: 92762 | R51: =IF($C51="S",REFERENCIA.Descricao,"(digite a descrição aqui)") -> (abra o arquivo 'Referência 12-2022.xls) | S51: - | T51: =OFFSET(CÁLCULO!H$15,ROW($T51)-ROW(T$15),0) -> 150.8 | U51: 0 | V51: BDI 1 | W51: 0 | X51: 0 | Y51: RA | AA51: =IF($C51="S",IF($Z51="CP",$X51,IF($Z51="RA",(($X51)*QCI!$AA$3),0)),SomaAgrup) -> 0 | AB51: 0 | AD51: =IF(C51<=CRONO.NivelExibicao,MAX($AD$15:OFFSET(AD51,-1,0))+IF($C51<>1,1,MAX(1,COUNTIF(QCI!$A$13:$A$24,OFFSET($E51,-1,0)))),"") ->  | AE51: SINAPI 92762 | AF51: (abra o arquivo 'Referência 12-2022.xls) | AG51: 0 | AH51: 0.2035 | AM51: 0 | AN51: 0
A52: =CHOOSE(1+LOG(1+2*(ORÇAMENTO.Nivel="Meta")+4*(ORÇAMENTO.Nivel="Nível 2")+8*(ORÇAMENTO.Nivel="Nível 3")+16*(ORÇAMENTO.Nivel="Nível 4")+32*(ORÇAMENTO.Nivel="Serviço"),2),0,1,2,3,4,"S") -> S | B52: =IF(OR(C52="s",C52=0),OFFSET(B52,-1,0),C52) -> 3 | C52: =IF(OFFSET(C52,-1,0)="L",1,IF(OFFSET(C52,-1,0)=1,2,IF(OR(A52="s",A52=0),"S",IF(AND(OFFSET(C52,-1,0)=2,A52=4),3,IF(AND(OR(OFFSET(C52,-1,0)="s",OFFSET(C52,-1,0)=0),A52<>"s",A52>OFFSET(B52,-1,0)),OFFSET(B52,-1,0),A52))))) -> S | D52: =IF(OR(C52="S",C52=0),0,IF(ISERROR(K52),J52,SMALL(J52:K52,1))) -> 0 | E52: =IF($C52=1,OFFSET(E52,-1,0)+MAX(1,COUNTIF(QCI!$A$13:$A$24,OFFSET(ORÇAMENTO!E52,-1,0))),OFFSET(E52,-1,0)) -> 1 | F52: =IF($C52=1,0,IF($C52=2,OFFSET(F52,-1,0)+1,OFFSET(F52,-1,0))) -> 3 | G52: =IF(AND($C52<=2,$C52<>0),0,IF($C52=3,OFFSET(G52,-1,0)+1,OFFSET(G52,-1,0))) -> 4 | H52: =IF(AND($C52<=3,$C52<>0),0,IF($C52=4,OFFSET(H52,-1,0)+1,OFFSET(H52,-1,0))) -> 0 | I52: =IF(AND($C52<=4,$C52<>0),0,IF(AND($C52="S",$X52>0),OFFSET(I52,-1,0)+1,OFFSET(I52,-1,0))) -> 0 | J52: 0 | K52: =IF(OR($C52="S",$C52=0),0,MATCH(OFFSET($D52,0,$C52)+IF($C52<>1,1,COUNTIF(QCI!$A$13:$A$24,ORÇAMENTO!E52)),OFFSET($D52,1,$C52,ROW($C$181)-ROW($C52)),0)) -> 0 | L52: =IF(OR($X52>0,$C52=1,$C52=2,$C52=3,$C52=4),"F","") ->  | M52: Serviço | N52: =CHOOSE(1+LOG(1+2*(C52=1)+4*(C52=2)+8*(C52=3)+16*(C52=4)+32*(C52="S"),2),"","Meta","Nível 2","Nível 3","Nível 4","Serviço") -> Serviço | O52: =IF(OR($C52=0,$L52=""),"-",CONCATENATE(E52&".",IF(AND($A$5>=2,$C52>=2),F52&".",""),IF(AND($A$5>=3,$C52>=3),G52&".",""),IF(AND($A$5>=4,$C52>=4),H52&".",""),IF($C52="S",I52&".",""))) -> - | P52: SINAPI | Q52: 92763 | R52: =IF($C52="S",REFERENCIA.Descricao,"(digite a descrição aqui)") -> (abra o arquivo 'Referência 12-2022.xls) | S52: =REFERENCIA.Unidade -> - | T52: =OFFSET(CÁLCULO!H$15,ROW($T52)-ROW(T$15),0) -> 76 | U52: 0 | V52: BDI 1 | W52: =IF($C52="S",ROUND(IF(TIPOORCAMENTO="Proposto",ORÇAMENTO.CustoUnitario*(1+$AH52),ORÇAMENTO.PrecoUnitarioLicitado),15-13*$AF$10),0) -> 0 | X52: =IF($C52="S",VTOTAL1,IF($C52=0,0,ROUND(SomaAgrup,15-13*$AF$11))) -> 0 | Y52: RA | Z52: =IF(AND($C52="S",$X52>0),IF(ISBLANK($Y52),"RA",LEFT($Y52,2)),"") ->  | AA52: =IF($C52="S",IF($Z52="CP",$X52,IF($Z52="RA",(($X52)*QCI!$AA$3),0)),SomaAgrup) -> 0 | AB52: =IF($C52="S",IF($Z52="OU",ROUND($X52,2),0),SomaAgrup) -> 0 | AC52: =IF($N52="","",IF(ORÇAMENTO.Descricao="","DESCRIÇÃO",IF(AND($C52="S",ORÇAMENTO.Unidade=""),"UNIDADE",IF($X52<0,"VALOR NEGATIVO",IF(OR(AND(TIPOORCAMENTO="Proposto",$AG52<>"",$AG52>0,ORÇAMENTO.CustoUnitario>$AG52),AND(TIPOORCAMENTO="LICITADO",ORÇAMENTO.PrecoUnitarioLicitado>$AN52)),"ACIMA REF.",""))))) ->  | AD52: =IF(C52<=CRONO.NivelExibicao,MAX($AD$15:OFFSET(AD52,-1,0))+IF($C52<>1,1,MAX(1,COUNTIF(QCI!$A$13:$A$24,OFFSET($E52,-1,0)))),"") ->  | AE52: =IF(AND($C52="S",ORÇAMENTO.CodBarra<>""),IF(ORÇAMENTO.Fonte="",ORÇAMENTO.CodBarra,CONCATENATE(ORÇAMENTO.Fonte," ",ORÇAMENTO.CodBarra))) -> SINAPI 92763 | AF52: =IF(ISERROR(INDIRECT(ORÇAMENTO.BancoRef)),"(abra o arquivo 'Referência "&Excel_BuiltIn_Database&".xls)",IF(OR($C52<>"S",ORÇAMENTO.CodBarra=""),"(Sem Código)",IF(ISERROR(MATCH($AE52,INDIRECT(ORÇAMENTO.BancoRef),0)),"(Código não identificado nas referências)",MATCH($AE52,INDIRECT(ORÇAMENTO.BancoRef),0)))) -> (abra o arquivo 'Referência 12-2022.xls) | AG52: =ROUND(IF(DESONERACAO="sim",REFERENCIA.Desonerado,REFERENCIA.NaoDesonerado),2) -> 0 | AH52: =ROUND(IF(ISNUMBER(ORÇAMENTO.OpcaoBDI),ORÇAMENTO.OpcaoBDI,IF(LEFT(ORÇAMENTO.OpcaoBDI,3)="BDI",HLOOKUP(ORÇAMENTO.OpcaoBDI,$F$4:$H$5,2,FALSE),0)),15-11*$AF$9) -> 0.2035 | AM52: 0 | AN52: =ROUND(ORÇAMENTO.CustoUnitario*(1+$AH52),2) -> 0
A53: =CHOOSE(1+LOG(1+2*(ORÇAMENTO.Nivel="Meta")+4*(ORÇAMENTO.Nivel="Nível 2")+8*(ORÇAMENTO.Nivel="Nível 3")+16*(ORÇAMENTO.Nivel="Nível 4")+32*(ORÇAMENTO.Nivel="Serviço"),2),0,1,2,3,4,"S") -> S | B53: =IF(OR(C53="s",C53=0),OFFSET(B53,-1,0),C53) -> 3 | C53: =IF(OFFSET(C53,-1,0)="L",1,IF(OFFSET(C53,-1,0)=1,2,IF(OR(A53="s",A53=0),"S",IF(AND(OFFSET(C53,-1,0)=2,A53=4),3,IF(AND(OR(OFFSET(C53,-1,0)="s",OFFSET(C53,-1,0)=0),A53<>"s",A53>OFFSET(B53,-1,0)),OFFSET(B53,-1,0),A53))))) -> S | D53: =IF(OR(C53="S",C53=0),0,IF(ISERROR(K53),J53,SMALL(J53:K53,1))) -> 0 | E53: =IF($C53=1,OFFSET(E53,-1,0)+MAX(1,COUNTIF(QCI!$A$13:$A$24,OFFSET(ORÇAMENTO!E53,-1,0))),OFFSET(E53,-1,0)) -> 1 | F53: =IF($C53=1,0,IF($C53=2,OFFSET(F53,-1,0)+1,OFFSET(F53,-1,0))) -> 3 | G53: =IF(AND($C53<=2,$C53<>0),0,IF($C53=3,OFFSET(G53,-1,0)+1,OFFSET(G53,-1,0))) -> 4 | H53: =IF(AND($C53<=3,$C53<>0),0,IF($C53=4,OFFSET(H53,-1,0)+1,OFFSET(H53,-1,0))) -> 0 | I53: =IF(AND($C53<=4,$C53<>0),0,IF(AND($C53="S",$X53>0),OFFSET(I53,-1,0)+1,OFFSET(I53,-1,0))) -> 0 | J53: 0 | K53: =IF(OR($C53="S",$C53=0),0,MATCH(OFFSET($D53,0,$C53)+IF($C53<>1,1,COUNTIF(QCI!$A$13:$A$24,ORÇAMENTO!E53)),OFFSET($D53,1,$C53,ROW($C$181)-ROW($C53)),0)) -> 0 | L53: =IF(OR($X53>0,$C53=1,$C53=2,$C53=3,$C53=4),"F","") ->  | M53: Serviço | N53: =CHOOSE(1+LOG(1+2*(C53=1)+4*(C53=2)+8*(C53=3)+16*(C53=4)+32*(C53="S"),2),"","Meta","Nível 2","Nível 3","Nível 4","Serviço") -> Serviço | O53: =IF(OR($C53=0,$L53=""),"-",CONCATENATE(E53&".",IF(AND($A$5>=2,$C53>=2),F53&".",""),IF(AND($A$5>=3,$C53>=3),G53&".",""),IF(AND($A$5>=4,$C53>=4),H53&".",""),IF($C53="S",I53&".",""))) -> - | P53: SINAPI | Q53: 92764 | R53: =IF($C53="S",REFERENCIA.Descricao,"(digite a descrição aqui)") -> (abra o arquivo 'Referência 12-2022.xls) | S53: =REFERENCIA.Unidade -> - | T53: =OFFSET(CÁLCULO!H$15,ROW($T53)-ROW(T$15),0) -> 285.4 | U53: 0 | V53: BDI 1 | W53: =IF($C53="S",ROUND(IF(TIPOORCAMENTO="Proposto",ORÇAMENTO.CustoUnitario*(1+$AH53),ORÇAMENTO.PrecoUnitarioLicitado),15-13*$AF$10),0) -> 0 | X53: =IF($C53="S",VTOTAL1,IF($C53=0,0,ROUND(SomaAgrup,15-13*$AF$11))) -> 0 | Y53: RA | Z53: =IF(AND($C53="S",$X53>0),IF(ISBLANK($Y53),"RA",LEFT($Y53,2)),"") ->  | AA53: =IF($C53="S",IF($Z53="CP",$X53,IF($Z53="RA",(($X53)*QCI!$AA$3),0)),SomaAgrup) -> 0 | AB53: =IF($C53="S",IF($Z53="OU",ROUND($X53,2),0),SomaAgrup) -> 0 | AC53: =IF($N53="","",IF(ORÇAMENTO.Descricao="","DESCRIÇÃO",IF(AND($C53="S",ORÇAMENTO.Unidade=""),"UNIDADE",IF($X53<0,"VALOR NEGATIVO",IF(OR(AND(TIPOORCAMENTO="Proposto",$AG53<>"",$AG53>0,ORÇAMENTO.CustoUnitario>$AG53),AND(TIPOORCAMENTO="LICITADO",ORÇAMENTO.PrecoUnitarioLicitado>$AN53)),"ACIMA REF.",""))))) ->  | AD53: =IF(C53<=CRONO.NivelExibicao,MAX($AD$15:OFFSET(AD53,-1,0))+IF($C53<>1,1,MAX(1,COUNTIF(QCI!$A$13:$A$24,OFFSET($E53,-1,0)))),"") ->  | AE53: =IF(AND($C53="S",ORÇAMENTO.CodBarra<>""),IF(ORÇAMENTO.Fonte="",ORÇAMENTO.CodBarra,CONCATENATE(ORÇAMENTO.Fonte," ",ORÇAMENTO.CodBarra))) -> SINAPI 92764 | AF53: =IF(ISERROR(INDIRECT(ORÇAMENTO.BancoRef)),"(abra o arquivo 'Referência "&Excel_BuiltIn_Database&".xls)",IF(OR($C53<>"S",ORÇAMENTO.CodBarra=""),"(Sem Código)",IF(ISERROR(MATCH($AE53,INDIRECT(ORÇAMENTO.BancoRef),0)),"(Código não identificado nas referências)",MATCH($AE53,INDIRECT(ORÇAMENTO.BancoRef),0)))) -> (abra o arquivo 'Referência 12-2022.xls) | AG53: =ROUND(IF(DESONERACAO="sim",REFERENCIA.Desonerado,REFERENCIA.NaoDesonerado),2) -> 0 | AH53: =ROUND(IF(ISNUMBER(ORÇAMENTO.OpcaoBDI),ORÇAMENTO.OpcaoBDI,IF(LEFT(ORÇAMENTO.OpcaoBDI,3)="BDI",HLOOKUP(ORÇAMENTO.OpcaoBDI,$F$4:$H$5,2,FALSE),0)),15-11*$AF$9) -> 0.2035 | AM53: 0 | AN53: =ROUND(ORÇAMENTO.CustoUnitario*(1+$AH53),2) -> 0
A54: S | B54: 3 | C54: S | D54: 0 | E54: =IF($C54=1,OFFSET(E54,-1,0)+MAX(1,COUNTIF(QCI!$A$13:$A$24,OFFSET(ORÇAMENTO!E54,-1,0))),OFFSET(E54,-1,0)) -> 1 | F54: 3 | G54: 4 | H54: 0 | I54: 0 | J54: 0 | K54: =IF(OR($C54="S",$C54=0),0,MATCH(OFFSET($D54,0,$C54)+IF($C54<>1,1,COUNTIF(QCI!$A$13:$A$24,ORÇAMENTO!E54)),OFFSET($D54,1,$C54,ROW($C$181)-ROW($C54)),0)) -> 0 | M54: Serviço | N54: Serviço | O54: - | P54: SINAPI | Q54: 92765 | R54: =IF($C54="S",REFERENCIA.Descricao,"(digite a descrição aqui)") -> (abra o arquivo 'Referência 12-2022.xls) | S54: - | T54: =OFFSET(CÁLCULO!H$15,ROW($T54)-ROW(T$15),0) -> 108.3 | U54: 0 | V54: BDI 1 | W54: 0 | X54: 0 | Y54: RA | AA54: =IF($C54="S",IF($Z54="CP",$X54,IF($Z54="RA",(($X54)*QCI!$AA$3),0)),SomaAgrup) -> 0 | AB54: 0 | AD54: =IF(C54<=CRONO.NivelExibicao,MAX($AD$15:OFFSET(AD54,-1,0))+IF($C54<>1,1,MAX(1,COUNTIF(QCI!$A$13:$A$24,OFFSET($E54,-1,0)))),"") ->  | AE54: SINAPI 92765 | AF54: (abra o arquivo 'Referência 12-2022.xls) | AG54: 0 | AH54: 0.2035 | AM54: 0 | AN54: 0
A55: S | B55: 3 | C55: S | D55: 0 | E55: =IF($C55=1,OFFSET(E55,-1,0)+MAX(1,COUNTIF(QCI!$A$13:$A$24,OFFSET(ORÇAMENTO!E55,-1,0))),OFFSET(E55,-1,0)) -> 1 | F55: 3 | G55: 4 | H55: 0 | I55: 0 | J55: 0 | K55: =IF(OR($C55="S",$C55=0),0,MATCH(OFFSET($D55,0,$C55)+IF($C55<>1,1,COUNTIF(QCI!$A$13:$A$24,ORÇAMENTO!E55)),OFFSET($D55,1,$C55,ROW($C$181)-ROW($C55)),0)) -> 0 | M55: Serviço | N55: Serviço | O55: - | P55: Composição | Q55: 08 | R55: =IF($C55="S",REFERENCIA.Descricao,"(digite a descrição aqui)") -> (abra o arquivo 'Referência 12-2022.xls) | S55: - | T55: =OFFSET(CÁLCULO!H$15,ROW($T55)-ROW(T$15),0) -> 6.38 | U55: 0 | V55: BDI 1 | W55: 0 | X55: 0 | Y55: RA | AA55: =IF($C55="S",IF($Z55="CP",$X55,IF($Z55="RA",(($X55)*QCI!$AA$3),0)),SomaAgrup) -> 0 | AB55: 0 | AD55: =IF(C55<=CRONO.NivelExibicao,MAX($AD$15:OFFSET(AD55,-1,0))+IF($C55<>1,1,MAX(1,COUNTIF(QCI!$A$13:$A$24,OFFSET($E55,-1,0)))),"") ->  | AE55: Composição 08 | AF55: (abra o arquivo 'Referência 12-2022.xls) | AG55: 0 | AH55: 0.2035 | AM55: 0 | AN55: 0
A56: 3 | B56: 3 | C56: 3 | D56: 9 | E56: =IF($C56=1,OFFSET(E56,-1,0)+MAX(1,COUNTIF(QCI!$A$13:$A$24,OFFSET(ORÇAMENTO!E56,-1,0))),OFFSET(E56,-1,0)) -> 1 | F56: 3 | G56: 5 | H56: 0 | I56: 0 | J56: 30 | K56: =IF(OR($C56="S",$C56=0),0,MATCH(OFFSET($D56,0,$C56)+IF($C56<>1,1,COUNTIF(QCI!$A$13:$A$24,ORÇAMENTO!E56)),OFFSET($D56,1,$C56,ROW($C$181)-ROW($C56)),0)) -> 9 | L56: F | M56: Nível 3 | N56: Nível 3 | O56: 1.3.5. | P56: SINAPI | R56: VIGAS - NÍVEL 21,00 M | S56: - | T56: =OFFSET(CÁLCULO!H$15,ROW($T56)-ROW(T$15),0) -> 0 | U56: 0 | V56: BDI 1 | W56: 0 | X56: 0 | Y56: RA | AA56: =IF($C56="S",IF($Z56="CP",$X56,IF($Z56="RA",(($X56)*QCI!$AA$3),0)),SomaAgrup) -> 0 | AB56: 0 | AD56: =IF(C56<=CRONO.NivelExibicao,MAX($AD$15:OFFSET(AD56,-1,0))+IF($C56<>1,1,MAX(1,COUNTIF(QCI!$A$13:$A$24,OFFSET($E56,-1,0)))),"") ->  | AE56: FALSE | AF56: (abra o arquivo 'Referência 12-2022.xls) | AG56: 0 | AH56: 0.2035 | AM56: 0 | AN56: 0
A57: S | B57: 3 | C57: S | D57: 0 | E57: =IF($C57=1,OFFSET(E57,-1,0)+MAX(1,COUNTIF(QCI!$A$13:$A$24,OFFSET(ORÇAMENTO!E57,-1,0))),OFFSET(E57,-1,0)) -> 1 | F57: 3 | G57: 5 | H57: 0 | I57: 0 | J57: 0 | K57: =IF(OR($C57="S",$C57=0),0,MATCH(OFFSET($D57,0,$C57)+IF($C57<>1,1,COUNTIF(QCI!$A$13:$A$24,ORÇAMENTO!E57)),OFFSET($D57,1,$C57,ROW($C$181)-ROW($C57)),0)) -> 0 | M57: Serviço | N57: Serviço | O57: - | P57: Composição | Q57: 06 | R57: =IF($C57="S",REFERENCIA.Descricao,"(digite a descrição aqui)") -> (abra o arquivo 'Referência 12-2022.xls) | S57: - | T57: =OFFSET(CÁLCULO!H$15,ROW($T57)-ROW(T$15),0) -> 98.09 | U57: 0 | V57: BDI 1 | W57: 0 | X57: 0 | Y57: RA | AA57: =IF($C57="S",IF($Z57="CP",$X57,IF($Z57="RA",(($X57)*QCI!$AA$3),0)),SomaAgrup) -> 0 | AB57: 0 | AD57: =IF(C57<=CRONO.NivelExibicao,MAX($AD$15:OFFSET(AD57,-1,0))+IF($C57<>1,1,MAX(1,COUNTIF(QCI!$A$13:$A$24,OFFSET($E57,-1,0)))),"") ->  | AE57: Composição 06 | AF57: (abra o arquivo 'Referência 12-2022.xls) | AG57: 0 | AH57: 0.2035 | AM57: 0 | AN57: 0
A58: S | B58: 3 | C58: S | D58: 0 | E58: =IF($C58=1,OFFSET(E58,-1,0)+MAX(1,COUNTIF(QCI!$A$13:$A$24,OFFSET(ORÇAMENTO!E58,-1,0))),OFFSET(E58,-1,0)) -> 1 | F58: 3 | G58: 5 | H58: 0 | I58: 0 | J58: 0 | K58: =IF(OR($C58="S",$C58=0),0,MATCH(OFFSET($D58,0,$C58)+IF($C58<>1,1,COUNTIF(QCI!$A$13:$A$24,ORÇAMENTO!E58)),OFFSET($D58,1,$C58,ROW($C$181)-ROW($C58)),0)) -> 0 | M58: Serviço | N58: Serviço | O58: - | P58: SINAPI | Q58: 92759 | R58: =IF($C58="S",REFERENCIA.Descricao,"(digite a descrição aqui)") -> (abra o arquivo 'Referência 12-2022.xls) | S58: - | T58: =OFFSET(CÁLCULO!H$15,ROW($T58)-ROW(T$15),0) -> 132.3 | U58: 0 | V58: BDI 1 | W58: 0 | X58: 0 | Y58: RA | AA58: =IF($C58="S",IF($Z58="CP",$X58,IF($Z58="RA",(($X58)*QCI!$AA$3),0)),SomaAgrup) -> 0 | AB58: 0 | AD58: =IF(C58<=CRONO.NivelExibicao,MAX($AD$15:OFFSET(AD58,-1,0))+IF($C58<>1,1,MAX(1,COUNTIF(QCI!$A$13:$A$24,OFFSET($E58,-1,0)))),"") ->  | AE58: SINAPI 92759 | AF58: (abra o arquivo 'Referência 12-2022.xls) | AG58: 0 | AH58: 0.2035 | AM58: 0 | AN58: 0
A59: S | B59: 3 | C59: S | D59: 0 | E59: =IF($C59=1,OFFSET(E59,-1,0)+MAX(1,COUNTIF(QCI!$A$13:$A$24,OFFSET(ORÇAMENTO!E59,-1,0))),OFFSET(E59,-1,0)) -> 1 | F59: 3 | G59: 5 | H59: 0 | I59: 0 | J59: 0 | K59: =IF(OR($C59="S",$C59=0),0,MATCH(OFFSET($D59,0,$C59)+IF($C59<>1,1,COUNTIF(QCI!$A$13:$A$24,ORÇAMENTO!E59)),OFFSET($D59,1,$C59,ROW($C$181)-ROW($C59)),0)) -> 0 | M59: Serviço | N59: Serviço | O59: - | P59: SINAPI | Q59: 92760 | R59: =IF($C59="S",REFERENCIA.Descricao,"(digite a descrição aqui)") -> (abra o arquivo 'Referência 12-2022.xls) | S59: - | T59: =OFFSET(CÁLCULO!H$15,ROW($T59)-ROW(T$15),0) -> 113.8 | U59: 0 | V59: BDI 1 | W59: 0 | X59: 0 | Y59: RA | AA59: =IF($C59="S",IF($Z59="CP",$X59,IF($Z59="RA",(($X59)*QCI!$AA$3),0)),SomaAgrup) -> 0 | AB59: 0 | AD59: =IF(C59<=CRONO.NivelExibicao,MAX($AD$15:OFFSET(AD59,-1,0))+IF($C59<>1,1,MAX(1,COUNTIF(QCI!$A$13:$A$24,OFFSET($E59,-1,0)))),"") ->  | AE59: SINAPI 92760 | AF59: (abra o arquivo 'Referência 12-2022.xls) | AG59: 0 | AH59: 0.2035 | AM59: 0 | AN59: 0
A60: S | B60: 3 | C60: S | D60: 0 | E60: =IF($C60=1,OFFSET(E60,-1,0)+MAX(1,COUNTIF(QCI!$A$13:$A$24,OFFSET(ORÇAMENTO!E60,-1,0))),OFFSET(E60,-1,0)) -> 1 | F60: 3 | G60: 5 | H60: 0 | I60: 0 | J60: 0 | K60: =IF(OR($C60="S",$C60=0),0,MATCH(OFFSET($D60,0,$C60)+IF($C60<>1,1,COUNTIF(QCI!$A$13:$A$24,ORÇAMENTO!E60)),OFFSET($D60,1,$C60,ROW($C$181)-ROW($C60)),0)) -> 0 | M60: Serviço | N60: Serviço | O60: - | P60: SINAPI | Q60: 92761 | R60: =IF($C60="S",REFERENCIA.Descricao,"(digite a descrição aqui)") -> (abra o arquivo 'Referência 12-2022.xls) | S60: - | T60: =OFFSET(CÁLCULO!H$15,ROW($T60)-ROW(T$15),0) -> 290.2 | U60: 0 | V60: BDI 1 | W60: 0 | X60: 0 | Y60: RA | AA60: =IF($C60="S",IF($Z60="CP",$X60,IF($Z60="RA",(($X60)*QCI!$AA$3),0)),SomaAgrup) -> 0 | AB60: 0 | AD60: =IF(C60<=CRONO.NivelExibicao,MAX($AD$15:OFFSET(AD60,-1,0))+IF($C60<>1,1,MAX(1,COUNTIF(QCI!$A$13:$A$24,OFFSET($E60,-1,0)))),"") ->  | AE60: SINAPI 92761 | AF60: (abra o arquivo 'Referência 12-2022.xls) | AG60: 0 | AH60: 0.2035 | AM60: 0 | AN60: 0
A61: S | B61: 3 | C61: S | D61: 0 | E61: =IF($C61=1,OFFSET(E61,-1,0)+MAX(1,COUNTIF(QCI!$A$13:$A$24,OFFSET(ORÇAMENTO!E61,-1,0))),OFFSET(E61,-1,0)) -> 1 | F61: 3 | G61: 5 | H61: 0 | I61: 0 | J61: 0 | K61: =IF(OR($C61="S",$C61=0),0,MATCH(OFFSET($D61,0,$C61)+IF($C61<>1,1,COUNTIF(QCI!$A$13:$A$24,ORÇAMENTO!E61)),OFFSET($D61,1,$C61,ROW($C$181)-ROW($C61)),0)) -> 0 | M61: Serviço | N61: Serviço | O61: - | P61: SINAPI | Q61: 92763 | R61: =IF($C61="S",REFERENCIA.Descricao,"(digite a descrição aqui)") -> (abra o arquivo 'Referência 12-2022.xls) | S61: - | T61: =OFFSET(CÁLCULO!H$15,ROW($T61)-ROW(T$15),0) -> 197.9 | U61: 0 | V61: BDI 1 | W61: 0 | X61: 0 | Y61: RA | AA61: =IF($C61="S",IF($Z61="CP",$X61,IF($Z61="RA",(($X61)*QCI!$AA$3),0)),SomaAgrup) -> 0 | AB61: 0 | AD61: =IF(C61<=CRONO.NivelExibicao,MAX($AD$15:OFFSET(AD61,-1,0))+IF($C61<>1,1,MAX(1,COUNTIF(QCI!$A$13:$A$24,OFFSET($E61,-1,0)))),"") ->  | AE61: SINAPI 92763 | AF61: (abra o arquivo 'Referência 12-2022.xls) | AG61: 0 | AH61: 0.2035 | AM61: 0 | AN61: 0
A62: S | B62: 3 | C62: S | D62: 0 | E62: =IF($C62=1,OFFSET(E62,-1,0)+MAX(1,COUNTIF(QCI!$A$13:$A$24,OFFSET(ORÇAMENTO!E62,-1,0))),OFFSET(E62,-1,0)) -> 1 | F62: 3 | G62: 5 | H62: 0 | I62: 0 | J62: 0 | K62: =IF(OR($C62="S",$C62=0),0,MATCH(OFFSET($D62,0,$C62)+IF($C62<>1,1,COUNTIF(QCI!$A$13:$A$24,ORÇAMENTO!E62)),OFFSET($D62,1,$C62,ROW($C$181)-ROW($C62)),0)) -> 0 | M62: Serviço | N62: Serviço | O62: - | P62: SINAPI | Q62: 92764 | R62: =IF($C62="S",REFERENCIA.Descricao,"(digite a descrição aqui)") -> (abra o arquivo 'Referência 12-2022.xls) | S62: - | T62: =OFFSET(CÁLCULO!H$15,ROW($T62)-ROW(T$15),0) -> 134.9 | U62: 0 | V62: BDI 1 | W62: 0 | X62: 0 | Y62: RA | AA62: =IF($C62="S",IF($Z62="CP",$X62,IF($Z62="RA",(($X62)*QCI!$AA$3),0)),SomaAgrup) -> 0 | AB62: 0 | AD62: =IF(C62<=CRONO.NivelExibicao,MAX($AD$15:OFFSET(AD62,-1,0))+IF($C62<>1,1,MAX(1,COUNTIF(QCI!$A$13:$A$24,OFFSET($E62,-1,0)))),"") ->  | AE62: SINAPI 92764 | AF62: (abra o arquivo 'Referência 12-2022.xls) | AG62: 0 | AH62: 0.2035 | AM62: 0 | AN62: 0
A63: S | B63: 3 | C63: S | D63: 0 | E63: =IF($C63=1,OFFSET(E63,-1,0)+MAX(1,COUNTIF(QCI!$A$13:$A$24,OFFSET(ORÇAMENTO!E63,-1,0))),OFFSET(E63,-1,0)) -> 1 | F63: 3 | G63: 5 | H63: 0 | I63: 0 | J63: 0 | K63: =IF(OR($C63="S",$C63=0),0,MATCH(OFFSET($D63,0,$C63)+IF($C63<>1,1,COUNTIF(QCI!$A$13:$A$24,ORÇAMENTO!E63)),OFFSET($D63,1,$C63,ROW($C$181)-ROW($C63)),0)) -> 0 | M63: Serviço | N63: Serviço | O63: - | P63: SINAPI | Q63: 92765 | R63: =IF($C63="S",REFERENCIA.Descricao,"(digite a descrição aqui)") -> (abra o arquivo 'Referência 12-2022.xls) | S63: - | T63: =OFFSET(CÁLCULO!H$15,ROW($T63)-ROW(T$15),0) -> 482 | U63: 0 | V63: BDI 1 | W63: 0 | X63: 0 | Y63: RA | AA63: =IF($C63="S",IF($Z63="CP",$X63,IF($Z63="RA",(($X63)*QCI!$AA$3),0)),SomaAgrup) -> 0 | AB63: 0 | AD63: =IF(C63<=CRONO.NivelExibicao,MAX($AD$15:OFFSET(AD63,-1,0))+IF($C63<>1,1,MAX(1,COUNTIF(QCI!$A$13:$A$24,OFFSET($E63,-1,0)))),"") ->  | AE63: SINAPI 92765 | AF63: (abra o arquivo 'Referência 12-2022.xls) | AG63: 0 | AH63: 0.2035 | AM63: 0 | AN63: 0
A64: S | B64: 3 | C64: S | D64: 0 | E64: =IF($C64=1,OFFSET(E64,-1,0)+MAX(1,COUNTIF(QCI!$A$13:$A$24,OFFSET(ORÇAMENTO!E64,-1,0))),OFFSET(E64,-1,0)) -> 1 | F64: 3 | G64: 5 | H64: 0 | I64: 0 | J64: 0 | K64: =IF(OR($C64="S",$C64=0),0,MATCH(OFFSET($D64,0,$C64)+IF($C64<>1,1,COUNTIF(QCI!$A$13:$A$24,ORÇAMENTO!E64)),OFFSET($D64,1,$C64,ROW($C$181)-ROW($C64)),0)) -> 0 | M64: Serviço | N64: Serviço | O64: - | P64: Composição | Q64: 08 | R64: =IF($C64="S",REFERENCIA.Descricao,"(digite a descrição aqui)") -> (abra o arquivo 'Referência 12-2022.xls) | S64: - | T64: =OFFSET(CÁLCULO!H$15,ROW($T64)-ROW(T$15),0) -> 12.17 | U64: 0 | V64: BDI 1 | W64: 0 | X64: 0 | Y64: RA | AA64: =IF($C64="S",IF($Z64="CP",$X64,IF($Z64="RA",(($X64)*QCI!$AA$3),0)),SomaAgrup) -> 0 | AB64: 0 | AD64: =IF(C64<=CRONO.NivelExibicao,MAX($AD$15:OFFSET(AD64,-1,0))+IF($C64<>1,1,MAX(1,COUNTIF(QCI!$A$13:$A$24,OFFSET($E64,-1,0)))),"") ->  | AE64: Composição 08 | AF64: (abra o arquivo 'Referência 12-2022.xls) | AG64: 0 | AH64: 0.2035 | AM64: 0 | AN64: 0
A65: 3 | B65: 3 | C65: 3 | D65: 7 | E65: =IF($C65=1,OFFSET(E65,-1,0)+MAX(1,COUNTIF(QCI!$A$13:$A$24,OFFSET(ORÇAMENTO!E65,-1,0))),OFFSET(E65,-1,0)) -> 1 | F65: 3 | G65: 6 | H65: 0 | I65: 0 | J65: 21 | K65: =IF(OR($C65="S",$C65=0),0,MATCH(OFFSET($D65,0,$C65)+IF($C65<>1,1,COUNTIF(QCI!$A$13:$A$24,ORÇAMENTO!E65)),OFFSET($D65,1,$C65,ROW($C$181)-ROW($C65)),0)) -> 7 | L65: F | M65: Nível 3 | N65: Nível 3 | O65: 1.3.6. | P65: SINAPI | R65: VIGAS - NÍVEL 27,40 M | S65: - | T65: =OFFSET(CÁLCULO!H$15,ROW($T65)-ROW(T$15),0) -> 0 | U65: 0 | V65: BDI 1 | W65: 0 | X65: 0 | Y65: RA | AA65: =IF($C65="S",IF($Z65="CP",$X65,IF($Z65="RA",(($X65)*QCI!$AA$3),0)),SomaAgrup) -> 0 | AB65: 0 | AD65: =IF(C65<=CRONO.NivelExibicao,MAX($AD$15:OFFSET(AD65,-1,0))+IF($C65<>1,1,MAX(1,COUNTIF(QCI!$A$13:$A$24,OFFSET($E65,-1,0)))),"") ->  | AE65: FALSE | AF65: (abra o arquivo 'Referência 12-2022.xls) | AG65: 0 | AH65: 0.2035 | AM65: 0 | AN65: 0
A66: S | B66: 3 | C66: S | D66: 0 | E66: =IF($C66=1,OFFSET(E66,-1,0)+MAX(1,COUNTIF(QCI!$A$13:$A$24,OFFSET(ORÇAMENTO!E66,-1,0))),OFFSET(E66,-1,0)) -> 1 | F66: 3 | G66: 6 | H66: 0 | I66: 0 | J66: 0 | K66: =IF(OR($C66="S",$C66=0),0,MATCH(OFFSET($D66,0,$C66)+IF($C66<>1,1,COUNTIF(QCI!$A$13:$A$24,ORÇAMENTO!E66)),OFFSET($D66,1,$C66,ROW($C$181)-ROW($C66)),0)) -> 0 | M66: Serviço | N66: Serviço | O66: - | P66: Composição | Q66: 06 | R66: =IF($C66="S",REFERENCIA.Descricao,"(digite a descrição aqui)") -> (abra o arquivo 'Referência 12-2022.xls) | S66: - | T66: =OFFSET(CÁLCULO!H$15,ROW($T66)-ROW(T$15),0) -> 68.74 | U66: 0 | V66: BDI 1 | W66: 0 | X66: 0 | Y66: RA | AA66: =IF($C66="S",IF($Z66="CP",$X66,IF($Z66="RA",(($X66)*QCI!$AA$3),0)),SomaAgrup) -> 0 | AB66: 0 | AD66: =IF(C66<=CRONO.NivelExibicao,MAX($AD$15:OFFSET(AD66,-1,0))+IF($C66<>1,1,MAX(1,COUNTIF(QCI!$A$13:$A$24,OFFSET($E66,-1,0)))),"") ->  | AE66: Composição 06 | AF66: (abra o arquivo 'Referência 12-2022.xls) | AG66: 0 | AH66: 0.2035 | AM66: 0 | AN66: 0
A67: S | B67: 3 | C67: S | D67: 0 | E67: =IF($C67=1,OFFSET(E67,-1,0)+MAX(1,COUNTIF(QCI!$A$13:$A$24,OFFSET(ORÇAMENTO!E67,-1,0))),OFFSET(E67,-1,0)) -> 1 | F67: 3 | G67: 6 | H67: 0 | I67: 0 | J67: 0 | K67: =IF(OR($C67="S",$C67=0),0,MATCH(OFFSET($D67,0,$C67)+IF($C67<>1,1,COUNTIF(QCI!$A$13:$A$24,ORÇAMENTO!E67)),OFFSET($D67,1,$C67,ROW($C$181)-ROW($C67)),0)) -> 0 | M67: Serviço | N67: Serviço | O67: - | P67: SINAPI | Q67: 92759 | R67: =IF($C67="S",REFERENCIA.Descricao,"(digite a descrição aqui)") -> (abra o arquivo 'Referência 12-2022.xls) | S67: - | T67: =OFFSET(CÁLCULO!H$15,ROW($T67)-ROW(T$15),0) -> 67.2 | U67: 0 | V67: BDI 1 | W67: 0 | X67: 0 | Y67: RA | AA67: =IF($C67="S",IF($Z67="CP",$X67,IF($Z67="RA",(($X67)*QCI!$AA$3),0)),SomaAgrup) -> 0 | AB67: 0 | AD67: =IF(C67<=CRONO.NivelExibicao,MAX($AD$15:OFFSET(AD67,-1,0))+IF($C67<>1,1,MAX(1,COUNTIF(QCI!$A$13:$A$24,OFFSET($E67,-1,0)))),"") ->  | AE67: SINAPI 92759 | AF67: (abra o arquivo 'Referência 12-2022.xls) | AG67: 0 | AH67: 0.2035 | AM67: 0 | AN67: 0
A68: S | B68: 3 | C68: S | D68: 0 | E68: =IF($C68=1,OFFSET(E68,-1,0)+MAX(1,COUNTIF(QCI!$A$13:$A$24,OFFSET(ORÇAMENTO!E68,-1,0))),OFFSET(E68,-1,0)) -> 1 | F68: 3 | G68: 6 | H68: 0 | I68: 0 | J68: 0 | K68: =IF(OR($C68="S",$C68=0),0,MATCH(OFFSET($D68,0,$C68)+IF($C68<>1,1,COUNTIF(QCI!$A$13:$A$24,ORÇAMENTO!E68)),OFFSET($D68,1,$C68,ROW($C$181)-ROW($C68)),0)) -> 0 | M68: Serviço | N68: Serviço | O68: - | P68: SINAPI | Q68: 92762 | R68: =IF($C68="S",REFERENCIA.Descricao,"(digite a descrição aqui)") -> (abra o arquivo 'Referência 12-2022.xls) | S68: - | T68: =OFFSET(CÁLCULO!H$15,ROW($T68)-ROW(T$15),0) -> 133.8 | U68: 0 | V68: BDI 1 | W68: 0 | X68: 0 | Y68: RA | AA68: =IF($C68="S",IF($Z68="CP",$X68,IF($Z68="RA",(($X68)*QCI!$AA$3),0)),SomaAgrup) -> 0 | AB68: 0 | AD68: =IF(C68<=CRONO.NivelExibicao,MAX($AD$15:OFFSET(AD68,-1,0))+IF($C68<>1,1,MAX(1,COUNTIF(QCI!$A$13:$A$24,OFFSET($E68,-1,0)))),"") ->  | AE68: SINAPI 92762 | AF68: (abra o arquivo 'Referência 12-2022.xls) | AG68: 0 | AH68: 0.2035 | AM68: 0 | AN68: 0
A69: S | B69: 3 | C69: S | D69: 0 | E69: =IF($C69=1,OFFSET(E69,-1,0)+MAX(1,COUNTIF(QCI!$A$13:$A$24,OFFSET(ORÇAMENTO!E69,-1,0))),OFFSET(E69,-1,0)) -> 1 | F69: 3 | G69: 6 | H69: 0 | I69: 0 | J69: 0 | K69: =IF(OR($C69="S",$C69=0),0,MATCH(OFFSET($D69,0,$C69)+IF($C69<>1,1,COUNTIF(QCI!$A$13:$A$24,ORÇAMENTO!E69)),OFFSET($D69,1,$C69,ROW($C$181)-ROW($C69)),0)) -> 0 | M69: Serviço | N69: Serviço | O69: - | P69: SINAPI | Q69: 92763 | R69: =IF($C69="S",REFERENCIA.Descricao,"(digite a descrição aqui)") -> (abra o arquivo 'Referência 12-2022.xls) | S69: - | T69: =OFFSET(CÁLCULO!H$15,ROW($T69)-ROW(T$15),0) -> 181 | U69: 0 | V69: BDI 1 | W69: 0 | X69: 0 | Y69: RA | AA69: =IF($C69="S",IF($Z69="CP",$X69,IF($Z69="RA",(($X69)*QCI!$AA$3),0)),SomaAgrup) -> 0 | AB69: 0 | AD69: =IF(C69<=CRONO.NivelExibicao,MAX($AD$15:OFFSET(AD69,-1,0))+IF($C69<>1,1,MAX(1,COUNTIF(QCI!$A$13:$A$24,OFFSET($E69,-1,0)))),"") ->  | AE69: SINAPI 92763 | AF69: (abra o arquivo 'Referência 12-2022.xls) | AG69: 0 | AH69: 0.2035 | AM69: 0 | AN69: 0
A70: S | B70: 3 | C70: S | D70: 0 | E70: =IF($C70=1,OFFSET(E70,-1,0)+MAX(1,COUNTIF(QCI!$A$13:$A$24,OFFSET(ORÇAMENTO!E70,-1,0))),OFFSET(E70,-1,0)) -> 1 | F70: 3 | G70: 6 | H70: 0 | I70: 0 | J70: 0 | K70: =IF(OR($C70="S",$C70=0),0,MATCH(OFFSET($D70,0,$C70)+IF($C70<>1,1,COUNTIF(QCI!$A$13:$A$24,ORÇAMENTO!E70)),OFFSET($D70,1,$C70,ROW($C$181)-ROW($C70)),0)) -> 0 | M70: Serviço | N70: Serviço | O70: - | P70: SINAPI | Q70: 92764 | R70: =IF($C70="S",REFERENCIA.Descricao,"(digite a descrição aqui)") -> (abra o arquivo 'Referência 12-2022.xls) | S70: - | T70: =OFFSET(CÁLCULO!H$15,ROW($T70)-ROW(T$15),0) -> 41 | U70: 0 | V70: BDI 1 | W70: 0 | X70: 0 | Y70: RA | AA70: =IF($C70="S",IF($Z70="CP",$X70,IF($Z70="RA",(($X70)*QCI!$AA$3),0)),SomaAgrup) -> 0 | AB70: 0 | AD70: =IF(C70<=CRONO.NivelExibicao,MAX($AD$15:OFFSET(AD70,-1,0))+IF($C70<>1,1,MAX(1,COUNTIF(QCI!$A$13:$A$24,OFFSET($E70,-1,0)))),"") ->  | AE70: SINAPI 92764 | AF70: (abra o arquivo 'Referência 12-2022.xls) | AG70: 0 | AH70: 0.2035 | AM70: 0 | AN70: 0
A71: S | B71: 3 | C71: S | D71: 0 | E71: =IF($C71=1,OFFSET(E71,-1,0)+MAX(1,COUNTIF(QCI!$A$13:$A$24,OFFSET(ORÇAMENTO!E71,-1,0))),OFFSET(E71,-1,0)) -> 1 | F71: 3 | G71: 6 | H71: 0 | I71: 0 | J71: 0 | K71: =IF(OR($C71="S",$C71=0),0,MATCH(OFFSET($D71,0,$C71)+IF($C71<>1,1,COUNTIF(QCI!$A$13:$A$24,ORÇAMENTO!E71)),OFFSET($D71,1,$C71,ROW($C$181)-ROW($C71)),0)) -> 0 | M71: Serviço | N71: Serviço | O71: - | P71: Composição | Q71: 08 | R71: =IF($C71="S",REFERENCIA.Descricao,"(digite a descrição aqui)") -> (abra o arquivo 'Referência 12-2022.xls) | S71: - | T71: =OFFSET(CÁLCULO!H$15,ROW($T71)-ROW(T$15),0) -> 6.08 | U71: 0 | V71: BDI 1 | W71: 0 | X71: 0 | Y71: RA | AA71: =IF($C71="S",IF($Z71="CP",$X71,IF($Z71="RA",(($X71)*QCI!$AA$3),0)),SomaAgrup) -> 0 | AB71: 0 | AD71: =IF(C71<=CRONO.NivelExibicao,MAX($AD$15:OFFSET(AD71,-1,0))+IF($C71<>1,1,MAX(1,COUNTIF(QCI!$A$13:$A$24,OFFSET($E71,-1,0)))),"") ->  | AE71: Composição 08 | AF71: (abra o arquivo 'Referência 12-2022.xls) | AG71: 0 | AH71: 0.2035 | AM71: 0 | AN71: 0
A72: 3 | B72: 3 | C72: 3 | D72: 6 | E72: =IF($C72=1,OFFSET(E72,-1,0)+MAX(1,COUNTIF(QCI!$A$13:$A$24,OFFSET(ORÇAMENTO!E72,-1,0))),OFFSET(E72,-1,0)) -> 1 | F72: 3 | G72: 7 | H72: 0 | I72: 0 | J72: 14 | K72: =IF(OR($C72="S",$C72=0),0,MATCH(OFFSET($D72,0,$C72)+IF($C72<>1,1,COUNTIF(QCI!$A$13:$A$24,ORÇAMENTO!E72)),OFFSET($D72,1,$C72,ROW($C$181)-ROW($C72)),0)) -> 6 | L72: F | M72: Nível 3 | N72: Nível 3 | O72: 1.3.7. | P72: SINAPI | R72: LAJE - NÍVEL 21,00 M | S72: - | T72: =OFFSET(CÁLCULO!H$15,ROW($T72)-ROW(T$15),0) -> 0 | U72: 0 | V72: BDI 1 | W72: 0 | X72: 0 | Y72: RA | AA72: =IF($C72="S",IF($Z72="CP",$X72,IF($Z72="RA",(($X72)*QCI!$AA$3),0)),SomaAgrup) -> 0 | AB72: 0 | AD72: =IF(C72<=CRONO.NivelExibicao,MAX($AD$15:OFFSET(AD72,-1,0))+IF($C72<>1,1,MAX(1,COUNTIF(QCI!$A$13:$A$24,OFFSET($E72,-1,0)))),"") ->  | AE72: FALSE | AF72: (abra o arquivo 'Referência 12-2022.xls) | AG72: 0 | AH72: 0.2035 | AM72: 0 | AN72: 0
A73: S | B73: 3 | C73: S | D73: 0 | E73: =IF($C73=1,OFFSET(E73,-1,0)+MAX(1,COUNTIF(QCI!$A$13:$A$24,OFFSET(ORÇAMENTO!E73,-1,0))),OFFSET(E73,-1,0)) -> 1 | F73: 3 | G73: 7 | H73: 0 | I73: 0 | J73: 0 | K73: =IF(OR($C73="S",$C73=0),0,MATCH(OFFSET($D73,0,$C73)+IF($C73<>1,1,COUNTIF(QCI!$A$13:$A$24,ORÇAMENTO!E73)),OFFSET($D73,1,$C73,ROW($C$181)-ROW($C73)),0)) -> 0 | M73: Serviço | N73: Serviço | O73: - | P73: Composição | Q73: 09 | R73: =IF($C73="S",REFERENCIA.Descricao,"(digite a descrição aqui)") -> (abra o arquivo 'Referência 12-2022.xls) | S73: - | T73: =OFFSET(CÁLCULO!H$15,ROW($T73)-ROW(T$15),0) -> 51.12 | U73: 0 | V73: BDI 1 | W73: 0 | X73: 0 | Y73: RA | AA73: =IF($C73="S",IF($Z73="CP",$X73,IF($Z73="RA",(($X73)*QCI!$AA$3),0)),SomaAgrup) -> 0 | AB73: 0 | AD73: =IF(C73<=CRONO.NivelExibicao,MAX($AD$15:OFFSET(AD73,-1,0))+IF($C73<>1,1,MAX(1,COUNTIF(QCI!$A$13:$A$24,OFFSET($E73,-1,0)))),"") ->  | AE73: Composição 09 | AF73: (abra o arquivo 'Referência 12-2022.xls) | AG73: 0 | AH73: 0.2035 | AM73: 0 | AN73: 0
A74: S | B74: 3 | C74: S | D74: 0 | E74: =IF($C74=1,OFFSET(E74,-1,0)+MAX(1,COUNTIF(QCI!$A$13:$A$24,OFFSET(ORÇAMENTO!E74,-1,0))),OFFSET(E74,-1,0)) -> 1 | F74: 3 | G74: 7 | H74: 0 | I74: 0 | J74: 0 | K74: =IF(OR($C74="S",$C74=0),0,MATCH(OFFSET($D74,0,$C74)+IF($C74<>1,1,COUNTIF(QCI!$A$13:$A$24,ORÇAMENTO!E74)),OFFSET($D74,1,$C74,ROW($C$181)-ROW($C74)),0)) -> 0 | M74: Serviço | N74: Serviço | O74: - | P74: SINAPI | Q74: 92770 | R74: =IF($C74="S",REFERENCIA.Descricao,"(digite a descrição aqui)") -> (abra o arquivo 'Referência 12-2022.xls) | S74: - | T74: =OFFSET(CÁLCULO!H$15,ROW($T74)-ROW(T$15),0) -> 0.9 | U74: 0 | V74: BDI 1 | W74: 0 | X74: 0 | Y74: RA | AA74: =IF($C74="S",IF($Z74="CP",$X74,IF($Z74="RA",(($X74)*QCI!$AA$3),0)),SomaAgrup) -> 0 | AB74: 0 | AD74: =IF(C74<=CRONO.NivelExibicao,MAX($AD$15:OFFSET(AD74,-1,0))+IF($C74<>1,1,MAX(1,COUNTIF(QCI!$A$13:$A$24,OFFSET($E74,-1,0)))),"") ->  | AE74: SINAPI 92770 | AF74: (abra o arquivo 'Referência 12-2022.xls) | AG74: 0 | AH74: 0.2035 | AM74: 0 | AN74: 0
A75: S | B75: 3 | C75: S | D75: 0 | E75: =IF($C75=1,OFFSET(E75,-1,0)+MAX(1,COUNTIF(QCI!$A$13:$A$24,OFFSET(ORÇAMENTO!E75,-1,0))),OFFSET(E75,-1,0)) -> 1 | F75: 3 | G75: 7 | H75: 0 | I75: 0 | J75: 0 | K75: =IF(OR($C75="S",$C75=0),0,MATCH(OFFSET($D75,0,$C75)+IF($C75<>1,1,COUNTIF(QCI!$A$13:$A$24,ORÇAMENTO!E75)),OFFSET($D75,1,$C75,ROW($C$181)-ROW($C75)),0)) -> 0 | M75: Serviço | N75: Serviço | O75: - | P75: SINAPI | Q75: 92771 | R75: =IF($C75="S",REFERENCIA.Descricao,"(digite a descrição aqui)") -> (abra o arquivo 'Referência 12-2022.xls) | S75: - | T75: =OFFSET(CÁLCULO!H$15,ROW($T75)-ROW(T$15),0) -> 253.6 | U75: 0 | V75: BDI 1 | W75: 0 | X75: 0 | Y75: RA | AA75: =IF($C75="S",IF($Z75="CP",$X75,IF($Z75="RA",(($X75)*QCI!$AA$3),0)),SomaAgrup) -> 0 | AB75: 0 | AD75: =IF(C75<=CRONO.NivelExibicao,MAX($AD$15:OFFSET(AD75,-1,0))+IF($C75<>1,1,MAX(1,COUNTIF(QCI!$A$13:$A$24,OFFSET($E75,-1,0)))),"") ->  | AE75: SINAPI 92771 | AF75: (abra o arquivo 'Referência 12-2022.xls) | AG75: 0 | AH75: 0.2035 | AM75: 0 | AN75: 0
A76: S | B76: 3 | C76: S | D76: 0 | E76: =IF($C76=1,OFFSET(E76,-1,0)+MAX(1,COUNTIF(QCI!$A$13:$A$24,OFFSET(ORÇAMENTO!E76,-1,0))),OFFSET(E76,-1,0)) -> 1 | F76: 3 | G76: 7 | H76: 0 | I76: 0 | J76: 0 | K76: =IF(OR($C76="S",$C76=0),0,MATCH(OFFSET($D76,0,$C76)+IF($C76<>1,1,COUNTIF(QCI!$A$13:$A$24,ORÇAMENTO!E76)),OFFSET($D76,1,$C76,ROW($C$181)-ROW($C76)),0)) -> 0 | M76: Serviço | N76: Serviço | O76: - | P76: SINAPI | Q76: 92772 | R76: =IF($C76="S",REFERENCIA.Descricao,"(digite a descrição aqui)") -> (abra o arquivo 'Referência 12-2022.xls) | S76: - | T76: =OFFSET(CÁLCULO!H$15,ROW($T76)-ROW(T$15),0) -> 238.2 | U76: 0 | V76: BDI 1 | W76: 0 | X76: 0 | Y76: RA | AA76: =IF($C76="S",IF($Z76="CP",$X76,IF($Z76="RA",(($X76)*QCI!$AA$3),0)),SomaAgrup) -> 0 | AB76: 0 | AD76: =IF(C76<=CRONO.NivelExibicao,MAX($AD$15:OFFSET(AD76,-1,0))+IF($C76<>1,1,MAX(1,COUNTIF(QCI!$A$13:$A$24,OFFSET($E76,-1,0)))),"") ->  | AE76: SINAPI 92772 | AF76: (abra o arquivo 'Referência 12-2022.xls) | AG76: 0 | AH76: 0.2035 | AM76: 0 | AN76: 0
A77: S | B77: 3 | C77: S | D77: 0 | E77: =IF($C77=1,OFFSET(E77,-1,0)+MAX(1,COUNTIF(QCI!$A$13:$A$24,OFFSET(ORÇAMENTO!E77,-1,0))),OFFSET(E77,-1,0)) -> 1 | F77: 3 | G77: 7 | H77: 0 | I77: 0 | J77: 0 | K77: =IF(OR($C77="S",$C77=0),0,MATCH(OFFSET($D77,0,$C77)+IF($C77<>1,1,COUNTIF(QCI!$A$13:$A$24,ORÇAMENTO!E77)),OFFSET($D77,1,$C77,ROW($C$181)-ROW($C77)),0)) -> 0 | M77: Serviço | N77: Serviço | O77: - | P77: COMPOSIÇÃO | Q77: 08 | R77: =IF($C77="S",REFERENCIA.Descricao,"(digite a descrição aqui)") -> (abra o arquivo 'Referência 12-2022.xls) | S77: - | T77: =OFFSET(CÁLCULO!H$15,ROW($T77)-ROW(T$15),0) -> 10.1 | U77: 0 | V77: BDI 1 | W77: 0 | X77: 0 | Y77: RA | AA77: =IF($C77="S",IF($Z77="CP",$X77,IF($Z77="RA",(($X77)*QCI!$AA$3),0)),SomaAgrup) -> 0 | AB77: 0 | AD77: =IF(C77<=CRONO.NivelExibicao,MAX($AD$15:OFFSET(AD77,-1,0))+IF($C77<>1,1,MAX(1,COUNTIF(QCI!$A$13:$A$24,OFFSET($E77,-1,0)))),"") ->  | AE77: COMPOSIÇÃO 08 | AF77: (abra o arquivo 'Referência 12-2022.xls) | AG77: 0 | AH77: 0.2035 | AM77: 0 | AN77: 0
A78: 3 | B78: 3 | C78: 3 | D78: 8 | E78: =IF($C78=1,OFFSET(E78,-1,0)+MAX(1,COUNTIF(QCI!$A$13:$A$24,OFFSET(ORÇAMENTO!E78,-1,0))),OFFSET(E78,-1,0)) -> 1 | F78: 3 | G78: 8 | H78: 0 | I78: 0 | J78: 8 | K78: =IF(OR($C78="S",$C78=0),0,MATCH(OFFSET($D78,0,$C78)+IF($C78<>1,1,COUNTIF(QCI!$A$13:$A$24,ORÇAMENTO!E78)),OFFSET($D78,1,$C78,ROW($C$181)-ROW($C78)),0)) ->  | L78: F | M78: Nível 3 | N78: Nível 3 | O78: 1.3.8. | P78: SINAPI | R78: LAJE - NÍVEL 27,60 M | S78: - | T78: =OFFSET(CÁLCULO!H$15,ROW($T78)-ROW(T$15),0) -> 0 | U78: 0 | V78: BDI 1 | W78: 0 | X78: 0 | Y78: RA | AA78: =IF($C78="S",IF($Z78="CP",$X78,IF($Z78="RA",(($X78)*QCI!$AA$3),0)),SomaAgrup) -> 0 | AB78: 0 | AD78: =IF(C78<=CRONO.NivelExibicao,MAX($AD$15:OFFSET(AD78,-1,0))+IF($C78<>1,1,MAX(1,COUNTIF(QCI!$A$13:$A$24,OFFSET($E78,-1,0)))),"") ->  | AE78: FALSE | AF78: (abra o arquivo 'Referência 12-2022.xls) | AG78: 0 | AH78: 0.2035 | AM78: 0 | AN78: 0
A79: S | B79: 3 | C79: S | D79: 0 | E79: =IF($C79=1,OFFSET(E79,-1,0)+MAX(1,COUNTIF(QCI!$A$13:$A$24,OFFSET(ORÇAMENTO!E79,-1,0))),OFFSET(E79,-1,0)) -> 1 | F79: 3 | G79: 8 | H79: 0 | I79: 0 | J79: 0 | K79: =IF(OR($C79="S",$C79=0),0,MATCH(OFFSET($D79,0,$C79)+IF($C79<>1,1,COUNTIF(QCI!$A$13:$A$24,ORÇAMENTO!E79)),OFFSET($D79,1,$C79,ROW($C$181)-ROW($C79)),0)) -> 0 | M79: Serviço | N79: Serviço | O79: - | P79: Composição | Q79: 09 | R79: =IF($C79="S",REFERENCIA.Descricao,"(digite a descrição aqui)") -> (abra o arquivo 'Referência 12-2022.xls) | S79: - | T79: =OFFSET(CÁLCULO!H$15,ROW($T79)-ROW(T$15),0) -> 59.36 | U79: 0 | V79: BDI 1 | W79: 0 | X79: 0 | Y79: RA | AA79: =IF($C79="S",IF($Z79="CP",$X79,IF($Z79="RA",(($X79)*QCI!$AA$3),0)),SomaAgrup) -> 0 | AB79: 0 | AD79: =IF(C79<=CRONO.NivelExibicao,MAX($AD$15:OFFSET(AD79,-1,0))+IF($C79<>1,1,MAX(1,COUNTIF(QCI!$A$13:$A$24,OFFSET($E79,-1,0)))),"") ->  | AE79: Composição 09 | AF79: (abra o arquivo 'Referência 12-2022.xls) | AG79: 0 | AH79: 0.2035 | AM79: 0 | AN79: 0
A80: =CHOOSE(1+LOG(1+2*(ORÇAMENTO.Nivel="Meta")+4*(ORÇAMENTO.Nivel="Nível 2")+8*(ORÇAMENTO.Nivel="Nível 3")+16*(ORÇAMENTO.Nivel="Nível 4")+32*(ORÇAMENTO.Nivel="Serviço"),2),0,1,2,3,4,"S") -> S | B80: =IF(OR(C80="s",C80=0),OFFSET(B80,-1,0),C80) -> 3 | C80: =IF(OFFSET(C80,-1,0)="L",1,IF(OFFSET(C80,-1,0)=1,2,IF(OR(A80="s",A80=0),"S",IF(AND(OFFSET(C80,-1,0)=2,A80=4),3,IF(AND(OR(OFFSET(C80,-1,0)="s",OFFSET(C80,-1,0)=0),A80<>"s",A80>OFFSET(B80,-1,0)),OFFSET(B80,-1,0),A80))))) -> S | D80: =IF(OR(C80="S",C80=0),0,IF(ISERROR(K80),J80,SMALL(J80:K80,1))) -> 0 | E80: =IF($C80=1,OFFSET(E80,-1,0)+MAX(1,COUNTIF(QCI!$A$13:$A$24,OFFSET(ORÇAMENTO!E80,-1,0))),OFFSET(E80,-1,0)) -> 1 | F80: =IF($C80=1,0,IF($C80=2,OFFSET(F80,-1,0)+1,OFFSET(F80,-1,0))) -> 3 | G80: =IF(AND($C80<=2,$C80<>0),0,IF($C80=3,OFFSET(G80,-1,0)+1,OFFSET(G80,-1,0))) -> 8 | H80: =IF(AND($C80<=3,$C80<>0),0,IF($C80=4,OFFSET(H80,-1,0)+1,OFFSET(H80,-1,0))) -> 0 | I80: =IF(AND($C80<=4,$C80<>0),0,IF(AND($C80="S",$X80>0),OFFSET(I80,-1,0)+1,OFFSET(I80,-1,0))) -> 0 | J80: =IF(OR($C80="S",$C80=0),0,MATCH(0,OFFSET($D80,1,$C80,ROW($C$181)-ROW($C80)),0)) -> 0 | K80: =IF(OR($C80="S",$C80=0),0,MATCH(OFFSET($D80,0,$C80)+IF($C80<>1,1,COUNTIF(QCI!$A$13:$A$24,ORÇAMENTO!E80)),OFFSET($D80,1,$C80,ROW($C$181)-ROW($C80)),0)) -> 0 | L80: =IF(OR($X80>0,$C80=1,$C80=2,$C80=3,$C80=4),"F","") ->  | M80: Serviço | N80: =CHOOSE(1+LOG(1+2*(C80=1)+4*(C80=2)+8*(C80=3)+16*(C80=4)+32*(C80="S"),2),"","Meta","Nível 2","Nível 3","Nível 4","Serviço") -> Serviço | O80: =IF(OR($C80=0,$L80=""),"-",CONCATENATE(E80&".",IF(AND($A$5>=2,$C80>=2),F80&".",""),IF(AND($A$5>=3,$C80>=3),G80&".",""),IF(AND($A$5>=4,$C80>=4),H80&".",""),IF($C80="S",I80&".",""))) -> - | P80: SINAPI | Q80: 92768 | R80: =IF($C80="S",REFERENCIA.Descricao,"(digite a descrição aqui)") -> (abra o arquivo 'Referência 12-2022.xls) | S80: =REFERENCIA.Unidade -> - | T80: =OFFSET(CÁLCULO!H$15,ROW($T80)-ROW(T$15),0) -> 20 | U80: 0 | V80: BDI 1 | W80: =IF($C80="S",ROUND(IF(TIPOORCAMENTO="Proposto",ORÇAMENTO.CustoUnitario*(1+$AH80),ORÇAMENTO.PrecoUnitarioLicitado),15-13*$AF$10),0) -> 0 | X80: =IF($C80="S",VTOTAL1,IF($C80=0,0,ROUND(SomaAgrup,15-13*$AF$11))) -> 0 | Y80: RA | Z80: =IF(AND($C80="S",$X80>0),IF(ISBLANK($Y80),"RA",LEFT($Y80,2)),"") ->  | AA80: =IF($C80="S",IF($Z80="CP",$X80,IF($Z80="RA",(($X80)*QCI!$AA$3),0)),SomaAgrup) -> 0 | AB80: =IF($C80="S",IF($Z80="OU",ROUND($X80,2),0),SomaAgrup) -> 0 | AC80: =IF($N80="","",IF(ORÇAMENTO.Descricao="","DESCRIÇÃO",IF(AND($C80="S",ORÇAMENTO.Unidade=""),"UNIDADE",IF($X80<0,"VALOR NEGATIVO",IF(OR(AND(TIPOORCAMENTO="Proposto",$AG80<>"",$AG80>0,ORÇAMENTO.CustoUnitario>$AG80),AND(TIPOORCAMENTO="LICITADO",ORÇAMENTO.PrecoUnitarioLicitado>$AN80)),"ACIMA REF.",""))))) ->  | AD80: =IF(C80<=CRONO.NivelExibicao,MAX($AD$15:OFFSET(AD80,-1,0))+IF($C80<>1,1,MAX(1,COUNTIF(QCI!$A$13:$A$24,OFFSET($E80,-1,0)))),"") ->  | AE80: =IF(AND($C80="S",ORÇAMENTO.CodBarra<>""),IF(ORÇAMENTO.Fonte="",ORÇAMENTO.CodBarra,CONCATENATE(ORÇAMENTO.Fonte," ",ORÇAMENTO.CodBarra))) -> SINAPI 92768 | AF80: =IF(ISERROR(INDIRECT(ORÇAMENTO.BancoRef)),"(abra o arquivo 'Referência "&Excel_BuiltIn_Database&".xls)",IF(OR($C80<>"S",ORÇAMENTO.CodBarra=""),"(Sem Código)",IF(ISERROR(MATCH($AE80,INDIRECT(ORÇAMENTO.BancoRef),0)),"(Código não identificado nas referências)",MATCH($AE80,INDIRECT(ORÇAMENTO.BancoRef),0)))) -> (abra o arquivo 'Referência 12-2022.xls) | AG80: =ROUND(IF(DESONERACAO="sim",REFERENCIA.Desonerado,REFERENCIA.NaoDesonerado),2) -> 0 | AH80: =ROUND(IF(ISNUMBER(ORÇAMENTO.OpcaoBDI),ORÇAMENTO.OpcaoBDI,IF(LEFT(ORÇAMENTO.OpcaoBDI,3)="BDI",HLOOKUP(ORÇAMENTO.OpcaoBDI,$F$4:$H$5,2,FALSE),0)),15-11*$AF$9) -> 0.2035 | AM80: 0 | AN80: =ROUND(ORÇAMENTO.CustoUnitario*(1+$AH80),2) -> 0
A81: =CHOOSE(1+LOG(1+2*(ORÇAMENTO.Nivel="Meta")+4*(ORÇAMENTO.Nivel="Nível 2")+8*(ORÇAMENTO.Nivel="Nível 3")+16*(ORÇAMENTO.Nivel="Nível 4")+32*(ORÇAMENTO.Nivel="Serviço"),2),0,1,2,3,4,"S") -> S | B81: =IF(OR(C81="s",C81=0),OFFSET(B81,-1,0),C81) -> 3 | C81: =IF(OFFSET(C81,-1,0)="L",1,IF(OFFSET(C81,-1,0)=1,2,IF(OR(A81="s",A81=0),"S",IF(AND(OFFSET(C81,-1,0)=2,A81=4),3,IF(AND(OR(OFFSET(C81,-1,0)="s",OFFSET(C81,-1,0)=0),A81<>"s",A81>OFFSET(B81,-1,0)),OFFSET(B81,-1,0),A81))))) -> S | D81: =IF(OR(C81="S",C81=0),0,IF(ISERROR(K81),J81,SMALL(J81:K81,1))) -> 0 | E81: =IF($C81=1,OFFSET(E81,-1,0)+MAX(1,COUNTIF(QCI!$A$13:$A$24,OFFSET(ORÇAMENTO!E81,-1,0))),OFFSET(E81,-1,0)) -> 1 | F81: =IF($C81=1,0,IF($C81=2,OFFSET(F81,-1,0)+1,OFFSET(F81,-1,0))) -> 3 | G81: =IF(AND($C81<=2,$C81<>0),0,IF($C81=3,OFFSET(G81,-1,0)+1,OFFSET(G81,-1,0))) -> 8 | H81: =IF(AND($C81<=3,$C81<>0),0,IF($C81=4,OFFSET(H81,-1,0)+1,OFFSET(H81,-1,0))) -> 0 | I81: =IF(AND($C81<=4,$C81<>0),0,IF(AND($C81="S",$X81>0),OFFSET(I81,-1,0)+1,OFFSET(I81,-1,0))) -> 0 | J81: 0 | K81: =IF(OR($C81="S",$C81=0),0,MATCH(OFFSET($D81,0,$C81)+IF($C81<>1,1,COUNTIF(QCI!$A$13:$A$24,ORÇAMENTO!E81)),OFFSET($D81,1,$C81,ROW($C$181)-ROW($C81)),0)) -> 0 | L81: =IF(OR($X81>0,$C81=1,$C81=2,$C81=3,$C81=4),"F","") ->  | M81: Serviço | N81: =CHOOSE(1+LOG(1+2*(C81=1)+4*(C81=2)+8*(C81=3)+16*(C81=4)+32*(C81="S"),2),"","Meta","Nível 2","Nível 3","Nível 4","Serviço") -> Serviço | O81: =IF(OR($C81=0,$L81=""),"-",CONCATENATE(E81&".",IF(AND($A$5>=2,$C81>=2),F81&".",""),IF(AND($A$5>=3,$C81>=3),G81&".",""),IF(AND($A$5>=4,$C81>=4),H81&".",""),IF($C81="S",I81&".",""))) -> - | P81: SINAPI | Q81: 92769 | R81: =IF($C81="S",REFERENCIA.Descricao,"(digite a descrição aqui)") -> (abra o arquivo 'Referência 12-2022.xls) | S81: =REFERENCIA.Unidade -> - | T81: =OFFSET(CÁLCULO!H$15,ROW($T81)-ROW(T$15),0) -> 4.7 | U81: 0 | V81: BDI 1 | W81: =IF($C81="S",ROUND(IF(TIPOORCAMENTO="Proposto",ORÇAMENTO.CustoUnitario*(1+$AH81),ORÇAMENTO.PrecoUnitarioLicitado),15-13*$AF$10),0) -> 0 | X81: =IF($C81="S",VTOTAL1,IF($C81=0,0,ROUND(SomaAgrup,15-13*$AF$11))) -> 0 | Y81: RA | Z81: =IF(AND($C81="S",$X81>0),IF(ISBLANK($Y81),"RA",LEFT($Y81,2)),"") ->  | AA81: =IF($C81="S",IF($Z81="CP",$X81,IF($Z81="RA",(($X81)*QCI!$AA$3),0)),SomaAgrup) -> 0 | AB81: =IF($C81="S",IF($Z81="OU",ROUND($X81,2),0),SomaAgrup) -> 0 | AC81: =IF($N81="","",IF(ORÇAMENTO.Descricao="","DESCRIÇÃO",IF(AND($C81="S",ORÇAMENTO.Unidade=""),"UNIDADE",IF($X81<0,"VALOR NEGATIVO",IF(OR(AND(TIPOORCAMENTO="Proposto",$AG81<>"",$AG81>0,ORÇAMENTO.CustoUnitario>$AG81),AND(TIPOORCAMENTO="LICITADO",ORÇAMENTO.PrecoUnitarioLicitado>$AN81)),"ACIMA REF.",""))))) ->  | AD81: =IF(C81<=CRONO.NivelExibicao,MAX($AD$15:OFFSET(AD81,-1,0))+IF($C81<>1,1,MAX(1,COUNTIF(QCI!$A$13:$A$24,OFFSET($E81,-1,0)))),"") ->  | AE81: =IF(AND($C81="S",ORÇAMENTO.CodBarra<>""),IF(ORÇAMENTO.Fonte="",ORÇAMENTO.CodBarra,CONCATENATE(ORÇAMENTO.Fonte," ",ORÇAMENTO.CodBarra))) -> SINAPI 92769 | AF81: =IF(ISERROR(INDIRECT(ORÇAMENTO.BancoRef)),"(abra o arquivo 'Referência "&Excel_BuiltIn_Database&".xls)",IF(OR($C81<>"S",ORÇAMENTO.CodBarra=""),"(Sem Código)",IF(ISERROR(MATCH($AE81,INDIRECT(ORÇAMENTO.BancoRef),0)),"(Código não identificado nas referências)",MATCH($AE81,INDIRECT(ORÇAMENTO.BancoRef),0)))) -> (abra o arquivo 'Referência 12-2022.xls) | AG81: =ROUND(IF(DESONERACAO="sim",REFERENCIA.Desonerado,REFERENCIA.NaoDesonerado),2) -> 0 | AH81: =ROUND(IF(ISNUMBER(ORÇAMENTO.OpcaoBDI),ORÇAMENTO.OpcaoBDI,IF(LEFT(ORÇAMENTO.OpcaoBDI,3)="BDI",HLOOKUP(ORÇAMENTO.OpcaoBDI,$F$4:$H$5,2,FALSE),0)),15-11*$AF$9) -> 0.2035 | AM81: 0 | AN81: =ROUND(ORÇAMENTO.CustoUnitario*(1+$AH81),2) -> 0
A82: S | B82: 3 | C82: S | D82: 0 | E82: =IF($C82=1,OFFSET(E82,-1,0)+MAX(1,COUNTIF(QCI!$A$13:$A$24,OFFSET(ORÇAMENTO!E82,-1,0))),OFFSET(E82,-1,0)) -> 1 | F82: 3 | G82: 8 | H82: 0 | I82: 0 | J82: 0 | K82: =IF(OR($C82="S",$C82=0),0,MATCH(OFFSET($D82,0,$C82)+IF($C82<>1,1,COUNTIF(QCI!$A$13:$A$24,ORÇAMENTO!E82)),OFFSET($D82,1,$C82,ROW($C$181)-ROW($C82)),0)) -> 0 | M82: Serviço | N82: Serviço | O82: - | P82: SINAPI | Q82: 92770 | R82: =IF($C82="S",REFERENCIA.Descricao,"(digite a descrição aqui)") -> (abra o arquivo 'Referência 12-2022.xls) | S82: - | T82: =OFFSET(CÁLCULO!H$15,ROW($T82)-ROW(T$15),0) -> 138.8 | U82: 0 | V82: BDI 1 | W82: 0 | X82: 0 | Y82: RA | AA82: =IF($C82="S",IF($Z82="CP",$X82,IF($Z82="RA",(($X82)*QCI!$AA$3),0)),SomaAgrup) -> 0 | AB82: 0 | AD82: =IF(C82<=CRONO.NivelExibicao,MAX($AD$15:OFFSET(AD82,-1,0))+IF($C82<>1,1,MAX(1,COUNTIF(QCI!$A$13:$A$24,OFFSET($E82,-1,0)))),"") ->  | AE82: SINAPI 92770 | AF82: (abra o arquivo 'Referência 12-2022.xls) | AG82: 0 | AH82: 0.2035 | AM82: 0 | AN82: 0
A83: S | B83: 3 | C83: S | D83: 0 | E83: =IF($C83=1,OFFSET(E83,-1,0)+MAX(1,COUNTIF(QCI!$A$13:$A$24,OFFSET(ORÇAMENTO!E83,-1,0))),OFFSET(E83,-1,0)) -> 1 | F83: 3 | G83: 8 | H83: 0 | I83: 0 | J83: 0 | K83: =IF(OR($C83="S",$C83=0),0,MATCH(OFFSET($D83,0,$C83)+IF($C83<>1,1,COUNTIF(QCI!$A$13:$A$24,ORÇAMENTO!E83)),OFFSET($D83,1,$C83,ROW($C$181)-ROW($C83)),0)) -> 0 | M83: Serviço | N83: Serviço | O83: - | P83: SINAPI | Q83: 92771 | R83: =IF($C83="S",REFERENCIA.Descricao,"(digite a descrição aqui)") -> (abra o arquivo 'Referência 12-2022.xls) | S83: - | T83: =OFFSET(CÁLCULO!H$15,ROW($T83)-ROW(T$15),0) -> 214.9 | U83: =AG83 -> 0 | V83: BDI 1 | W83: 0 | X83: 0 | Y83: RA | AA83: =IF($C83="S",IF($Z83="CP",$X83,IF($Z83="RA",(($X83)*QCI!$AA$3),0)),SomaAgrup) -> 0 | AB83: 0 | AD83: =IF(C83<=CRONO.NivelExibicao,MAX($AD$15:OFFSET(AD83,-1,0))+IF($C83<>1,1,MAX(1,COUNTIF(QCI!$A$13:$A$24,OFFSET($E83,-1,0)))),"") ->  | AE83: SINAPI 92771 | AF83: (abra o arquivo 'Referência 12-2022.xls) | AG83: 0 | AH83: 0.2035 | AM83: 0 | AN83: 0
A84: S | B84: 3 | C84: S | D84: 0 | E84: =IF($C84=1,OFFSET(E84,-1,0)+MAX(1,COUNTIF(QCI!$A$13:$A$24,OFFSET(ORÇAMENTO!E84,-1,0))),OFFSET(E84,-1,0)) -> 1 | F84: 3 | G84: 8 | H84: 0 | I84: 0 | J84: 0 | K84: =IF(OR($C84="S",$C84=0),0,MATCH(OFFSET($D84,0,$C84)+IF($C84<>1,1,COUNTIF(QCI!$A$13:$A$24,ORÇAMENTO!E84)),OFFSET($D84,1,$C84,ROW($C$181)-ROW($C84)),0)) -> 0 | M84: Serviço | N84: Serviço | O84: - | P84: SINAPI | Q84: 92772 | R84: =IF($C84="S",REFERENCIA.Descricao,"(digite a descrição aqui)") -> (abra o arquivo 'Referência 12-2022.xls) | S84: - | T84: =OFFSET(CÁLCULO!H$15,ROW($T84)-ROW(T$15),0) -> 94.6 | U84: 0 | V84: BDI 1 | W84: 0 | X84: 0 | Y84: RA | AA84: =IF($C84="S",IF($Z84="CP",$X84,IF($Z84="RA",(($X84)*QCI!$AA$3),0)),SomaAgrup) -> 0 | AB84: 0 | AD84: =IF(C84<=CRONO.NivelExibicao,MAX($AD$15:OFFSET(AD84,-1,0))+IF($C84<>1,1,MAX(1,COUNTIF(QCI!$A$13:$A$24,OFFSET($E84,-1,0)))),"") ->  | AE84: SINAPI 92772 | AF84: (abra o arquivo 'Referência 12-2022.xls) | AG84: 0 | AH84: 0.2035 | AM84: 0 | AN84: 0
A85: S | B85: 3 | C85: S | D85: 0 | E85: =IF($C85=1,OFFSET(E85,-1,0)+MAX(1,COUNTIF(QCI!$A$13:$A$24,OFFSET(ORÇAMENTO!E85,-1,0))),OFFSET(E85,-1,0)) -> 1 | F85: 3 | G85: 8 | H85: 0 | I85: 0 | J85: 0 | K85: =IF(OR($C85="S",$C85=0),0,MATCH(OFFSET($D85,0,$C85)+IF($C85<>1,1,COUNTIF(QCI!$A$13:$A$24,ORÇAMENTO!E85)),OFFSET($D85,1,$C85,ROW($C$181)-ROW($C85)),0)) -> 0 | M85: Serviço | N85: Serviço | O85: - | P85: COMPOSIÇÃO | Q85: 08 | R85: =IF($C85="S",REFERENCIA.Descricao,"(digite a descrição aqui)") -> (abra o arquivo 'Referência 12-2022.xls) | S85: - | T85: =OFFSET(CÁLCULO!H$15,ROW($T85)-ROW(T$15),0) -> 7.12 | U85: 0 | V85: BDI 1 | W85: 0 | X85: 0 | Y85: RA | AA85: =IF($C85="S",IF($Z85="CP",$X85,IF($Z85="RA",(($X85)*QCI!$AA$3),0)),SomaAgrup) -> 0 | AB85: 0 | AD85: =IF(C85<=CRONO.NivelExibicao,MAX($AD$15:OFFSET(AD85,-1,0))+IF($C85<>1,1,MAX(1,COUNTIF(QCI!$A$13:$A$24,OFFSET($E85,-1,0)))),"") ->  | AE85: COMPOSIÇÃO 08 | AF85: (abra o arquivo 'Referência 12-2022.xls) | AG85: 0 | AH85: 0.2035 | AM85: 0 | AN85: 0
A86: 2 | B86: 2 | C86: 2 | D86: 3 | E86: =IF($C86=1,OFFSET(E86,-1,0)+MAX(1,COUNTIF(QCI!$A$13:$A$24,OFFSET(ORÇAMENTO!E86,-1,0))),OFFSET(E86,-1,0)) -> 1 | F86: 4 | G86: 0 | H86: 0 | I86: 0 | J86: 95 | K86: =IF(OR($C86="S",$C86=0),0,MATCH(OFFSET($D86,0,$C86)+IF($C86<>1,1,COUNTIF(QCI!$A$13:$A$24,ORÇAMENTO!E86)),OFFSET($D86,1,$C86,ROW($C$181)-ROW($C86)),0)) -> 3 | L86: F | M86: Nível 2 | N86: Nível 2 | O86: 1.4. | P86: SINAPI | R86: PAREDES | S86: - | T86: =OFFSET(CÁLCULO!H$15,ROW($T86)-ROW(T$15),0) -> 0 | U86: 0 | V86: BDI 1 | W86: 0 | X86: 0 | Y86: RA | AA86: =IF($C86="S",IF($Z86="CP",$X86,IF($Z86="RA",(($X86)*QCI!$AA$3),0)),SomaAgrup) -> 0 | AB86: 0 | AD86: =IF(C86<=CRONO.NivelExibicao,MAX($AD$15:OFFSET(AD86,-1,0))+IF($C86<>1,1,MAX(1,COUNTIF(QCI!$A$13:$A$24,OFFSET($E86,-1,0)))),"") -> 5 | AE86: FALSE | AF86: (abra o arquivo 'Referência 12-2022.xls) | AG86: 0 | AH86: 0.2035 | AM86: 0 | AN86: 0
A87: S | B87: 2 | C87: S | D87: 0 | E87: =IF($C87=1,OFFSET(E87,-1,0)+MAX(1,COUNTIF(QCI!$A$13:$A$24,OFFSET(ORÇAMENTO!E87,-1,0))),OFFSET(E87,-1,0)) -> 1 | F87: 4 | G87: 0 | H87: 0 | I87: 0 | J87: 0 | K87: =IF(OR($C87="S",$C87=0),0,MATCH(OFFSET($D87,0,$C87)+IF($C87<>1,1,COUNTIF(QCI!$A$13:$A$24,ORÇAMENTO!E87)),OFFSET($D87,1,$C87,ROW($C$181)-ROW($C87)),0)) -> 0 | M87: Serviço | N87: Serviço | O87: - | P87: SINAPI | Q87: 101155 | R87: =IF($C87="S",REFERENCIA.Descricao,"(digite a descrição aqui)") -> (abra o arquivo 'Referência 12-2022.xls) | S87: - | T87: =OFFSET(CÁLCULO!H$15,ROW($T87)-ROW(T$15),0) -> 207.14 | U87: =AG87 -> 0 | V87: BDI 1 | W87: 0 | X87: 0 | Y87: RA | AA87: =IF($C87="S",IF($Z87="CP",$X87,IF($Z87="RA",(($X87)*QCI!$AA$3),0)),SomaAgrup) -> 0 | AB87: 0 | AD87: =IF(C87<=CRONO.NivelExibicao,MAX($AD$15:OFFSET(AD87,-1,0))+IF($C87<>1,1,MAX(1,COUNTIF(QCI!$A$13:$A$24,OFFSET($E87,-1,0)))),"") ->  | AE87: SINAPI 101155 | AF87: (abra o arquivo 'Referência 12-2022.xls) | AG87: 0 | AH87: 0.2035 | AM87: 0 | AN87: 0
A88: S | B88: 2 | C88: S | D88: 0 | E88: =IF($C88=1,OFFSET(E88,-1,0)+MAX(1,COUNTIF(QCI!$A$13:$A$24,OFFSET(ORÇAMENTO!E88,-1,0))),OFFSET(E88,-1,0)) -> 1 | F88: 4 | G88: 0 | H88: 0 | I88: 0 | J88: 0 | K88: =IF(OR($C88="S",$C88=0),0,MATCH(OFFSET($D88,0,$C88)+IF($C88<>1,1,COUNTIF(QCI!$A$13:$A$24,ORÇAMENTO!E88)),OFFSET($D88,1,$C88,ROW($C$181)-ROW($C88)),0)) -> 0 | M88: Serviço | N88: Serviço | O88: - | P88: SINAPI | Q88: 93185 | R88: =IF($C88="S",REFERENCIA.Descricao,"(digite a descrição aqui)") -> (abra o arquivo 'Referência 12-2022.xls) | S88: - | T88: =OFFSET(CÁLCULO!H$15,ROW($T88)-ROW(T$15),0) -> 3.3 | U88: 0 | V88: BDI 1 | W88: 0 | X88: 0 | Y88: RA | AA88: =IF($C88="S",IF($Z88="CP",$X88,IF($Z88="RA",(($X88)*QCI!$AA$3),0)),SomaAgrup) -> 0 | AB88: 0 | AD88: =IF(C88<=CRONO.NivelExibicao,MAX($AD$15:OFFSET(AD88,-1,0))+IF($C88<>1,1,MAX(1,COUNTIF(QCI!$A$13:$A$24,OFFSET($E88,-1,0)))),"") ->  | AE88: SINAPI 93185 | AF88: (abra o arquivo 'Referência 12-2022.xls) | AG88: 0 | AH88: 0.2035 | AM88: 0 | AN88: 0
A89: 2 | B89: 2 | C89: 2 | D89: 6 | E89: =IF($C89=1,OFFSET(E89,-1,0)+MAX(1,COUNTIF(QCI!$A$13:$A$24,OFFSET(ORÇAMENTO!E89,-1,0))),OFFSET(E89,-1,0)) -> 1 | F89: 5 | G89: 0 | H89: 0 | I89: 0 | J89: 92 | K89: =IF(OR($C89="S",$C89=0),0,MATCH(OFFSET($D89,0,$C89)+IF($C89<>1,1,COUNTIF(QCI!$A$13:$A$24,ORÇAMENTO!E89)),OFFSET($D89,1,$C89,ROW($C$181)-ROW($C89)),0)) -> 6 | L89: F | M89: Nível 2 | N89: Nível 2 | O89: 1.5. | P89: SINAPI | R89: REVESTIMENTOS | S89: - | T89: =OFFSET(CÁLCULO!H$15,ROW($T89)-ROW(T$15),0) -> 0 | U89: 0 | V89: BDI 1 | W89: 0 | X89: 0 | Y89: RA | AA89: =IF($C89="S",IF($Z89="CP",$X89,IF($Z89="RA",(($X89)*QCI!$AA$3),0)),SomaAgrup) -> 0 | AB89: 0 | AD89: =IF(C89<=CRONO.NivelExibicao,MAX($AD$15:OFFSET(AD89,-1,0))+IF($C89<>1,1,MAX(1,COUNTIF(QCI!$A$13:$A$24,OFFSET($E89,-1,0)))),"") -> 6 | AE89: FALSE | AF89: (abra o arquivo 'Referência 12-2022.xls) | AG89: 0 | AH89: 0.2035 | AM89: 0 | AN89: 0
A90: S | B90: 2 | C90: S | D90: 0 | E90: =IF($C90=1,OFFSET(E90,-1,0)+MAX(1,COUNTIF(QCI!$A$13:$A$24,OFFSET(ORÇAMENTO!E90,-1,0))),OFFSET(E90,-1,0)) -> 1 | F90: 5 | G90: 0 | H90: 0 | I90: 0 | J90: 0 | K90: =IF(OR($C90="S",$C90=0),0,MATCH(OFFSET($D90,0,$C90)+IF($C90<>1,1,COUNTIF(QCI!$A$13:$A$24,ORÇAMENTO!E90)),OFFSET($D90,1,$C90,ROW($C$181)-ROW($C90)),0)) -> 0 | M90: Serviço | N90: Serviço | O90: - | P90: SINAPI | Q90: 87879 | R90: =IF($C90="S",REFERENCIA.Descricao,"(digite a descrição aqui)") -> (abra o arquivo 'Referência 12-2022.xls) | S90: - | T90: =OFFSET(CÁLCULO!H$15,ROW($T90)-ROW(T$15),0) -> 712.93 | U90: 0 | V90: BDI 1 | W90: 0 | X90: 0 | Y90: RA | AA90: =IF($C90="S",IF($Z90="CP",$X90,IF($Z90="RA",(($X90)*QCI!$AA$3),0)),SomaAgrup) -> 0 | AB90: 0 | AD90: =IF(C90<=CRONO.NivelExibicao,MAX($AD$15:OFFSET(AD90,-1,0))+IF($C90<>1,1,MAX(1,COUNTIF(QCI!$A$13:$A$24,OFFSET($E90,-1,0)))),"") ->  | AE90: SINAPI 87879 | AF90: (abra o arquivo 'Referência 12-2022.xls) | AG90: 0 | AH90: 0.2035 | AM90: 0 | AN90: 0
A91: =CHOOSE(1+LOG(1+2*(ORÇAMENTO.Nivel="Meta")+4*(ORÇAMENTO.Nivel="Nível 2")+8*(ORÇAMENTO.Nivel="Nível 3")+16*(ORÇAMENTO.Nivel="Nível 4")+32*(ORÇAMENTO.Nivel="Serviço"),2),0,1,2,3,4,"S") -> S | B91: =IF(OR(C91="s",C91=0),OFFSET(B91,-1,0),C91) -> 2 | C91: =IF(OFFSET(C91,-1,0)="L",1,IF(OFFSET(C91,-1,0)=1,2,IF(OR(A91="s",A91=0),"S",IF(AND(OFFSET(C91,-1,0)=2,A91=4),3,IF(AND(OR(OFFSET(C91,-1,0)="s",OFFSET(C91,-1,0)=0),A91<>"s",A91>OFFSET(B91,-1,0)),OFFSET(B91,-1,0),A91))))) -> S | D91: =IF(OR(C91="S",C91=0),0,IF(ISERROR(K91),J91,SMALL(J91:K91,1))) -> 0 | E91: =IF($C91=1,OFFSET(E91,-1,0)+MAX(1,COUNTIF(QCI!$A$13:$A$24,OFFSET(ORÇAMENTO!E91,-1,0))),OFFSET(E91,-1,0)) -> 1 | F91: =IF($C91=1,0,IF($C91=2,OFFSET(F91,-1,0)+1,OFFSET(F91,-1,0))) -> 5 | G91: =IF(AND($C91<=2,$C91<>0),0,IF($C91=3,OFFSET(G91,-1,0)+1,OFFSET(G91,-1,0))) -> 0 | H91: =IF(AND($C91<=3,$C91<>0),0,IF($C91=4,OFFSET(H91,-1,0)+1,OFFSET(H91,-1,0))) -> 0 | I91: =IF(AND($C91<=4,$C91<>0),0,IF(AND($C91="S",$X91>0),OFFSET(I91,-1,0)+1,OFFSET(I91,-1,0))) -> 0 | J91: 0 | K91: =IF(OR($C91="S",$C91=0),0,MATCH(OFFSET($D91,0,$C91)+IF($C91<>1,1,COUNTIF(QCI!$A$13:$A$24,ORÇAMENTO!E91)),OFFSET($D91,1,$C91,ROW($C$181)-ROW($C91)),0)) -> 0 | L91: =IF(OR($X91>0,$C91=1,$C91=2,$C91=3,$C91=4),"F","") ->  | M91: Serviço | N91: =CHOOSE(1+LOG(1+2*(C91=1)+4*(C91=2)+8*(C91=3)+16*(C91=4)+32*(C91="S"),2),"","Meta","Nível 2","Nível 3","Nível 4","Serviço") -> Serviço | O91: =IF(OR($C91=0,$L91=""),"-",CONCATENATE(E91&".",IF(AND($A$5>=2,$C91>=2),F91&".",""),IF(AND($A$5>=3,$C91>=3),G91&".",""),IF(AND($A$5>=4,$C91>=4),H91&".",""),IF($C91="S",I91&".",""))) -> - | P91: SINAPI | Q91: 87882 | R91: =IF($C91="S",REFERENCIA.Descricao,"(digite a descrição aqui)") -> (abra o arquivo 'Referência 12-2022.xls) | S91: =REFERENCIA.Unidade -> - | T91: =OFFSET(CÁLCULO!H$15,ROW($T91)-ROW(T$15),0) -> 120.55 | U91: 0 | V91: BDI 1 | W91: =IF($C91="S",ROUND(IF(TIPOORCAMENTO="Proposto",ORÇAMENTO.CustoUnitario*(1+$AH91),ORÇAMENTO.PrecoUnitarioLicitado),15-13*$AF$10),0) -> 0 | X91: =IF($C91="S",VTOTAL1,IF($C91=0,0,ROUND(SomaAgrup,15-13*$AF$11))) -> 0 | Y91: RA | Z91: =IF(AND($C91="S",$X91>0),IF(ISBLANK($Y91),"RA",LEFT($Y91,2)),"") ->  | AA91: =IF($C91="S",IF($Z91="CP",$X91,IF($Z91="RA",(($X91)*QCI!$AA$3),0)),SomaAgrup) -> 0 | AB91: =IF($C91="S",IF($Z91="OU",ROUND($X91,2),0),SomaAgrup) -> 0 | AC91: =IF($N91="","",IF(ORÇAMENTO.Descricao="","DESCRIÇÃO",IF(AND($C91="S",ORÇAMENTO.Unidade=""),"UNIDADE",IF($X91<0,"VALOR NEGATIVO",IF(OR(AND(TIPOORCAMENTO="Proposto",$AG91<>"",$AG91>0,ORÇAMENTO.CustoUnitario>$AG91),AND(TIPOORCAMENTO="LICITADO",ORÇAMENTO.PrecoUnitarioLicitado>$AN91)),"ACIMA REF.",""))))) ->  | AD91: =IF(C91<=CRONO.NivelExibicao,MAX($AD$15:OFFSET(AD91,-1,0))+IF($C91<>1,1,MAX(1,COUNTIF(QCI!$A$13:$A$24,OFFSET($E91,-1,0)))),"") ->  | AE91: =IF(AND($C91="S",ORÇAMENTO.CodBarra<>""),IF(ORÇAMENTO.Fonte="",ORÇAMENTO.CodBarra,CONCATENATE(ORÇAMENTO.Fonte," ",ORÇAMENTO.CodBarra))) -> SINAPI 87882 | AF91: =IF(ISERROR(INDIRECT(ORÇAMENTO.BancoRef)),"(abra o arquivo 'Referência "&Excel_BuiltIn_Database&".xls)",IF(OR($C91<>"S",ORÇAMENTO.CodBarra=""),"(Sem Código)",IF(ISERROR(MATCH($AE91,INDIRECT(ORÇAMENTO.BancoRef),0)),"(Código não identificado nas referências)",MATCH($AE91,INDIRECT(ORÇAMENTO.BancoRef),0)))) -> (abra o arquivo 'Referência 12-2022.xls) | AG91: =ROUND(IF(DESONERACAO="sim",REFERENCIA.Desonerado,REFERENCIA.NaoDesonerado),2) -> 0 | AH91: =ROUND(IF(ISNUMBER(ORÇAMENTO.OpcaoBDI),ORÇAMENTO.OpcaoBDI,IF(LEFT(ORÇAMENTO.OpcaoBDI,3)="BDI",HLOOKUP(ORÇAMENTO.OpcaoBDI,$F$4:$H$5,2,FALSE),0)),15-11*$AF$9) -> 0.2035 | AM91: 0 | AN91: =ROUND(ORÇAMENTO.CustoUnitario*(1+$AH91),2) -> 0
A92: S | B92: 2 | C92: S | D92: 0 | E92: =IF($C92=1,OFFSET(E92,-1,0)+MAX(1,COUNTIF(QCI!$A$13:$A$24,OFFSET(ORÇAMENTO!E92,-1,0))),OFFSET(E92,-1,0)) -> 1 | F92: 5 | G92: 0 | H92: 0 | I92: 0 | J92: 0 | K92: =IF(OR($C92="S",$C92=0),0,MATCH(OFFSET($D92,0,$C92)+IF($C92<>1,1,COUNTIF(QCI!$A$13:$A$24,ORÇAMENTO!E92)),OFFSET($D92,1,$C92,ROW($C$181)-ROW($C92)),0)) -> 0 | M92: Serviço | N92: Serviço | O92: - | P92: SINAPI | Q92: 89173 | R92: =IF($C92="S",REFERENCIA.Descricao,"(digite a descrição aqui)") -> (abra o arquivo 'Referência 12-2022.xls) | S92: - | T92: =OFFSET(CÁLCULO!H$15,ROW($T92)-ROW(T$15),0) -> 868.23 | U92: 0 | V92: BDI 1 | W92: 0 | X92: 0 | Y92: RA | AA92: =IF($C92="S",IF($Z92="CP",$X92,IF($Z92="RA",(($X92)*QCI!$AA$3),0)),SomaAgrup) -> 0 | AB92: 0 | AD92: =IF(C92<=CRONO.NivelExibicao,MAX($AD$15:OFFSET(AD92,-1,0))+IF($C92<>1,1,MAX(1,COUNTIF(QCI!$A$13:$A$24,OFFSET($E92,-1,0)))),"") ->  | AE92: SINAPI 89173 | AF92: (abra o arquivo 'Referência 12-2022.xls) | AG92: 0 | AH92: 0.2035 | AM92: 0 | AN92: 0
A93: =CHOOSE(1+LOG(1+2*(ORÇAMENTO.Nivel="Meta")+4*(ORÇAMENTO.Nivel="Nível 2")+8*(ORÇAMENTO.Nivel="Nível 3")+16*(ORÇAMENTO.Nivel="Nível 4")+32*(ORÇAMENTO.Nivel="Serviço"),2),0,1,2,3,4,"S") -> S | B93: =IF(OR(C93="s",C93=0),OFFSET(B93,-1,0),C93) -> 2 | C93: =IF(OFFSET(C93,-1,0)="L",1,IF(OFFSET(C93,-1,0)=1,2,IF(OR(A93="s",A93=0),"S",IF(AND(OFFSET(C93,-1,0)=2,A93=4),3,IF(AND(OR(OFFSET(C93,-1,0)="s",OFFSET(C93,-1,0)=0),A93<>"s",A93>OFFSET(B93,-1,0)),OFFSET(B93,-1,0),A93))))) -> S | D93: =IF(OR(C93="S",C93=0),0,IF(ISERROR(K93),J93,SMALL(J93:K93,1))) -> 0 | E93: =IF($C93=1,OFFSET(E93,-1,0)+MAX(1,COUNTIF(QCI!$A$13:$A$24,OFFSET(ORÇAMENTO!E93,-1,0))),OFFSET(E93,-1,0)) -> 1 | F93: =IF($C93=1,0,IF($C93=2,OFFSET(F93,-1,0)+1,OFFSET(F93,-1,0))) -> 5 | G93: =IF(AND($C93<=2,$C93<>0),0,IF($C93=3,OFFSET(G93,-1,0)+1,OFFSET(G93,-1,0))) -> 0 | H93: =IF(AND($C93<=3,$C93<>0),0,IF($C93=4,OFFSET(H93,-1,0)+1,OFFSET(H93,-1,0))) -> 0 | I93: =IF(AND($C93<=4,$C93<>0),0,IF(AND($C93="S",$X93>0),OFFSET(I93,-1,0)+1,OFFSET(I93,-1,0))) -> 0 | J93: 0 | K93: =IF(OR($C93="S",$C93=0),0,MATCH(OFFSET($D93,0,$C93)+IF($C93<>1,1,COUNTIF(QCI!$A$13:$A$24,ORÇAMENTO!E93)),OFFSET($D93,1,$C93,ROW($C$181)-ROW($C93)),0)) -> 0 | L93: =IF(OR($X93>0,$C93=1,$C93=2,$C93=3,$C93=4),"F","") ->  | M93: Serviço | N93: =CHOOSE(1+LOG(1+2*(C93=1)+4*(C93=2)+8*(C93=3)+16*(C93=4)+32*(C93="S"),2),"","Meta","Nível 2","Nível 3","Nível 4","Serviço") -> Serviço | O93: =IF(OR($C93=0,$L93=""),"-",CONCATENATE(E93&".",IF(AND($A$5>=2,$C93>=2),F93&".",""),IF(AND($A$5>=3,$C93>=3),G93&".",""),IF(AND($A$5>=4,$C93>=4),H93&".",""),IF($C93="S",I93&".",""))) -> - | P93: SINAPI | Q93: 90408 | R93: =IF($C93="S",REFERENCIA.Descricao,"(digite a descrição aqui)") -> (abra o arquivo 'Referência 12-2022.xls) | S93: =REFERENCIA.Unidade -> - | T93: =OFFSET(CÁLCULO!H$15,ROW($T93)-ROW(T$15),0) -> 120.55 | U93: 0 | V93: BDI 1 | W93: =IF($C93="S",ROUND(IF(TIPOORCAMENTO="Proposto",ORÇAMENTO.CustoUnitario*(1+$AH93),ORÇAMENTO.PrecoUnitarioLicitado),15-13*$AF$10),0) -> 0 | X93: =IF($C93="S",VTOTAL1,IF($C93=0,0,ROUND(SomaAgrup,15-13*$AF$11))) -> 0 | Y93: RA | Z93: =IF(AND($C93="S",$X93>0),IF(ISBLANK($Y93),"RA",LEFT($Y93,2)),"") ->  | AA93: =IF($C93="S",IF($Z93="CP",$X93,IF($Z93="RA",(($X93)*QCI!$AA$3),0)),SomaAgrup) -> 0 | AB93: =IF($C93="S",IF($Z93="OU",ROUND($X93,2),0),SomaAgrup) -> 0 | AC93: =IF($N93="","",IF(ORÇAMENTO.Descricao="","DESCRIÇÃO",IF(AND($C93="S",ORÇAMENTO.Unidade=""),"UNIDADE",IF($X93<0,"VALOR NEGATIVO",IF(OR(AND(TIPOORCAMENTO="Proposto",$AG93<>"",$AG93>0,ORÇAMENTO.CustoUnitario>$AG93),AND(TIPOORCAMENTO="LICITADO",ORÇAMENTO.PrecoUnitarioLicitado>$AN93)),"ACIMA REF.",""))))) ->  | AD93: =IF(C93<=CRONO.NivelExibicao,MAX($AD$15:OFFSET(AD93,-1,0))+IF($C93<>1,1,MAX(1,COUNTIF(QCI!$A$13:$A$24,OFFSET($E93,-1,0)))),"") ->  | AE93: =IF(AND($C93="S",ORÇAMENTO.CodBarra<>""),IF(ORÇAMENTO.Fonte="",ORÇAMENTO.CodBarra,CONCATENATE(ORÇAMENTO.Fonte," ",ORÇAMENTO.CodBarra))) -> SINAPI 90408 | AF93: =IF(ISERROR(INDIRECT(ORÇAMENTO.BancoRef)),"(abra o arquivo 'Referência "&Excel_BuiltIn_Database&".xls)",IF(OR($C93<>"S",ORÇAMENTO.CodBarra=""),"(Sem Código)",IF(ISERROR(MATCH($AE93,INDIRECT(ORÇAMENTO.BancoRef),0)),"(Código não identificado nas referências)",MATCH($AE93,INDIRECT(ORÇAMENTO.BancoRef),0)))) -> (abra o arquivo 'Referência 12-2022.xls) | AG93: =ROUND(IF(DESONERACAO="sim",REFERENCIA.Desonerado,REFERENCIA.NaoDesonerado),2) -> 0 | AH93: =ROUND(IF(ISNUMBER(ORÇAMENTO.OpcaoBDI),ORÇAMENTO.OpcaoBDI,IF(LEFT(ORÇAMENTO.OpcaoBDI,3)="BDI",HLOOKUP(ORÇAMENTO.OpcaoBDI,$F$4:$H$5,2,FALSE),0)),15-11*$AF$9) -> 0.2035 | AM93: 0 | AN93: =ROUND(ORÇAMENTO.CustoUnitario*(1+$AH93),2) -> 0
A94: =CHOOSE(1+LOG(1+2*(ORÇAMENTO.Nivel="Meta")+4*(ORÇAMENTO.Nivel="Nível 2")+8*(ORÇAMENTO.Nivel="Nível 3")+16*(ORÇAMENTO.Nivel="Nível 4")+32*(ORÇAMENTO.Nivel="Serviço"),2),0,1,2,3,4,"S") -> S | B94: =IF(OR(C94="s",C94=0),OFFSET(B94,-1,0),C94) -> 2 | C94: =IF(OFFSET(C94,-1,0)="L",1,IF(OFFSET(C94,-1,0)=1,2,IF(OR(A94="s",A94=0),"S",IF(AND(OFFSET(C94,-1,0)=2,A94=4),3,IF(AND(OR(OFFSET(C94,-1,0)="s",OFFSET(C94,-1,0)=0),A94<>"s",A94>OFFSET(B94,-1,0)),OFFSET(B94,-1,0),A94))))) -> S | D94: =IF(OR(C94="S",C94=0),0,IF(ISERROR(K94),J94,SMALL(J94:K94,1))) -> 0 | E94: =IF($C94=1,OFFSET(E94,-1,0)+MAX(1,COUNTIF(QCI!$A$13:$A$24,OFFSET(ORÇAMENTO!E94,-1,0))),OFFSET(E94,-1,0)) -> 1 | F94: =IF($C94=1,0,IF($C94=2,OFFSET(F94,-1,0)+1,OFFSET(F94,-1,0))) -> 5 | G94: =IF(AND($C94<=2,$C94<>0),0,IF($C94=3,OFFSET(G94,-1,0)+1,OFFSET(G94,-1,0))) -> 0 | H94: =IF(AND($C94<=3,$C94<>0),0,IF($C94=4,OFFSET(H94,-1,0)+1,OFFSET(H94,-1,0))) -> 0 | I94: =IF(AND($C94<=4,$C94<>0),0,IF(AND($C94="S",$X94>0),OFFSET(I94,-1,0)+1,OFFSET(I94,-1,0))) -> 0 | J94: 0 | K94: =IF(OR($C94="S",$C94=0),0,MATCH(OFFSET($D94,0,$C94)+IF($C94<>1,1,COUNTIF(QCI!$A$13:$A$24,ORÇAMENTO!E94)),OFFSET($D94,1,$C94,ROW($C$181)-ROW($C94)),0)) -> 0 | L94: =IF(OR($X94>0,$C94=1,$C94=2,$C94=3,$C94=4),"F","") ->  | M94: Serviço | N94: =CHOOSE(1+LOG(1+2*(C94=1)+4*(C94=2)+8*(C94=3)+16*(C94=4)+32*(C94="S"),2),"","Meta","Nível 2","Nível 3","Nível 4","Serviço") -> Serviço | O94: =IF(OR($C94=0,$L94=""),"-",CONCATENATE(E94&".",IF(AND($A$5>=2,$C94>=2),F94&".",""),IF(AND($A$5>=3,$C94>=3),G94&".",""),IF(AND($A$5>=4,$C94>=4),H94&".",""),IF($C94="S",I94&".",""))) -> - | P94: SINAPI | Q94: 101965 | R94: =IF($C94="S",REFERENCIA.Descricao,"(digite a descrição aqui)") -> (abra o arquivo 'Referência 12-2022.xls) | S94: =REFERENCIA.Unidade -> - | T94: =OFFSET(CÁLCULO!H$15,ROW($T94)-ROW(T$15),0) -> 4 | U94: 0 | V94: BDI 1 | W94: =IF($C94="S",ROUND(IF(TIPOORCAMENTO="Proposto",ORÇAMENTO.CustoUnitario*(1+$AH94),ORÇAMENTO.PrecoUnitarioLicitado),15-13*$AF$10),0) -> 0 | X94: =IF($C94="S",VTOTAL1,IF($C94=0,0,ROUND(SomaAgrup,15-13*$AF$11))) -> 0 | Y94: RA | Z94: =IF(AND($C94="S",$X94>0),IF(ISBLANK($Y94),"RA",LEFT($Y94,2)),"") ->  | AA94: =IF($C94="S",IF($Z94="CP",$X94,IF($Z94="RA",(($X94)*QCI!$AA$3),0)),SomaAgrup) -> 0 | AB94: =IF($C94="S",IF($Z94="OU",ROUND($X94,2),0),SomaAgrup) -> 0 | AC94: =IF($N94="","",IF(ORÇAMENTO.Descricao="","DESCRIÇÃO",IF(AND($C94="S",ORÇAMENTO.Unidade=""),"UNIDADE",IF($X94<0,"VALOR NEGATIVO",IF(OR(AND(TIPOORCAMENTO="Proposto",$AG94<>"",$AG94>0,ORÇAMENTO.CustoUnitario>$AG94),AND(TIPOORCAMENTO="LICITADO",ORÇAMENTO.PrecoUnitarioLicitado>$AN94)),"ACIMA REF.",""))))) ->  | AD94: =IF(C94<=CRONO.NivelExibicao,MAX($AD$15:OFFSET(AD94,-1,0))+IF($C94<>1,1,MAX(1,COUNTIF(QCI!$A$13:$A$24,OFFSET($E94,-1,0)))),"") ->  | AE94: =IF(AND($C94="S",ORÇAMENTO.CodBarra<>""),IF(ORÇAMENTO.Fonte="",ORÇAMENTO.CodBarra,CONCATENATE(ORÇAMENTO.Fonte," ",ORÇAMENTO.CodBarra))) -> SINAPI 101965 | AF94: =IF(ISERROR(INDIRECT(ORÇAMENTO.BancoRef)),"(abra o arquivo 'Referência "&Excel_BuiltIn_Database&".xls)",IF(OR($C94<>"S",ORÇAMENTO.CodBarra=""),"(Sem Código)",IF(ISERROR(MATCH($AE94,INDIRECT(ORÇAMENTO.BancoRef),0)),"(Código não identificado nas referências)",MATCH($AE94,INDIRECT(ORÇAMENTO.BancoRef),0)))) -> (abra o arquivo 'Referência 12-2022.xls) | AG94: =ROUND(IF(DESONERACAO="sim",REFERENCIA.Desonerado,REFERENCIA.NaoDesonerado),2) -> 0 | AH94: =ROUND(IF(ISNUMBER(ORÇAMENTO.OpcaoBDI),ORÇAMENTO.OpcaoBDI,IF(LEFT(ORÇAMENTO.OpcaoBDI,3)="BDI",HLOOKUP(ORÇAMENTO.OpcaoBDI,$F$4:$H$5,2,FALSE),0)),15-11*$AF$9) -> 0.2035 | AM94: 0 | AN94: =ROUND(ORÇAMENTO.CustoUnitario*(1+$AH94),2) -> 0
A95: 2 | B95: 2 | C95: 2 | D95: 5 | E95: =IF($C95=1,OFFSET(E95,-1,0)+MAX(1,COUNTIF(QCI!$A$13:$A$24,OFFSET(ORÇAMENTO!E95,-1,0))),OFFSET(E95,-1,0)) -> 1 | F95: 6 | G95: 0 | H95: 0 | I95: 0 | J95: 86 | K95: =IF(OR($C95="S",$C95=0),0,MATCH(OFFSET($D95,0,$C95)+IF($C95<>1,1,COUNTIF(QCI!$A$13:$A$24,ORÇAMENTO!E95)),OFFSET($D95,1,$C95,ROW($C$181)-ROW($C95)),0)) -> 5 | L95: F | M95: Nível 2 | N95: Nível 2 | O95: 1.6. | P95: SINAPI | R95: PAVIMENTAÇÃO INTERNA | S95: - | T95: =OFFSET(CÁLCULO!H$15,ROW($T95)-ROW(T$15),0) -> 0 | U95: 0 | V95: BDI 1 | W95: 0 | X95: 0 | Y95: RA | AA95: =IF($C95="S",IF($Z95="CP",$X95,IF($Z95="RA",(($X95)*QCI!$AA$3),0)),SomaAgrup) -> 0 | AB95: 0 | AD95: =IF(C95<=CRONO.NivelExibicao,MAX($AD$15:OFFSET(AD95,-1,0))+IF($C95<>1,1,MAX(1,COUNTIF(QCI!$A$13:$A$24,OFFSET($E95,-1,0)))),"") -> 7 | AE95: FALSE | AF95: (abra o arquivo 'Referência 12-2022.xls) | AG95: 0 | AH95: 0.2035 | AM95: 0 | AN95: 0
A96: S | B96: 2 | C96: S | D96: 0 | E96: =IF($C96=1,OFFSET(E96,-1,0)+MAX(1,COUNTIF(QCI!$A$13:$A$24,OFFSET(ORÇAMENTO!E96,-1,0))),OFFSET(E96,-1,0)) -> 1 | F96: 6 | G96: 0 | H96: 0 | I96: 0 | J96: 0 | K96: =IF(OR($C96="S",$C96=0),0,MATCH(OFFSET($D96,0,$C96)+IF($C96<>1,1,COUNTIF(QCI!$A$13:$A$24,ORÇAMENTO!E96)),OFFSET($D96,1,$C96,ROW($C$181)-ROW($C96)),0)) -> 0 | M96: Serviço | N96: Serviço | O96: - | P96: SINAPI | Q96: 98546 | R96: =IF($C96="S",REFERENCIA.Descricao,"(digite a descrição aqui)") -> (abra o arquivo 'Referência 12-2022.xls) | S96: - | T96: =OFFSET(CÁLCULO!H$15,ROW($T96)-ROW(T$15),0) -> 5.76 | U96: 0 | V96: BDI 1 | W96: 0 | X96: 0 | Y96: RA | AA96: =IF($C96="S",IF($Z96="CP",$X96,IF($Z96="RA",(($X96)*QCI!$AA$3),0)),SomaAgrup) -> 0 | AB96: 0 | AD96: =IF(C96<=CRONO.NivelExibicao,MAX($AD$15:OFFSET(AD96,-1,0))+IF($C96<>1,1,MAX(1,COUNTIF(QCI!$A$13:$A$24,OFFSET($E96,-1,0)))),"") ->  | AE96: SINAPI 98546 | AF96: (abra o arquivo 'Referência 12-2022.xls) | AG96: 0 | AH96: 0.2035 | AM96: 0 | AN96: 0
A97: =CHOOSE(1+LOG(1+2*(ORÇAMENTO.Nivel="Meta")+4*(ORÇAMENTO.Nivel="Nível 2")+8*(ORÇAMENTO.Nivel="Nível 3")+16*(ORÇAMENTO.Nivel="Nível 4")+32*(ORÇAMENTO.Nivel="Serviço"),2),0,1,2,3,4,"S") -> S | B97: =IF(OR(C97="s",C97=0),OFFSET(B97,-1,0),C97) -> 2 | C97: =IF(OFFSET(C97,-1,0)="L",1,IF(OFFSET(C97,-1,0)=1,2,IF(OR(A97="s",A97=0),"S",IF(AND(OFFSET(C97,-1,0)=2,A97=4),3,IF(AND(OR(OFFSET(C97,-1,0)="s",OFFSET(C97,-1,0)=0),A97<>"s",A97>OFFSET(B97,-1,0)),OFFSET(B97,-1,0),A97))))) -> S | D97: =IF(OR(C97="S",C97=0),0,IF(ISERROR(K97),J97,SMALL(J97:K97,1))) -> 0 | E97: =IF($C97=1,OFFSET(E97,-1,0)+MAX(1,COUNTIF(QCI!$A$13:$A$24,OFFSET(ORÇAMENTO!E97,-1,0))),OFFSET(E97,-1,0)) -> 1 | F97: =IF($C97=1,0,IF($C97=2,OFFSET(F97,-1,0)+1,OFFSET(F97,-1,0))) -> 6 | G97: =IF(AND($C97<=2,$C97<>0),0,IF($C97=3,OFFSET(G97,-1,0)+1,OFFSET(G97,-1,0))) -> 0 | H97: =IF(AND($C97<=3,$C97<>0),0,IF($C97=4,OFFSET(H97,-1,0)+1,OFFSET(H97,-1,0))) -> 0 | I97: =IF(AND($C97<=4,$C97<>0),0,IF(AND($C97="S",$X97>0),OFFSET(I97,-1,0)+1,OFFSET(I97,-1,0))) -> 0 | J97: 0 | K97: =IF(OR($C97="S",$C97=0),0,MATCH(OFFSET($D97,0,$C97)+IF($C97<>1,1,COUNTIF(QCI!$A$13:$A$24,ORÇAMENTO!E97)),OFFSET($D97,1,$C97,ROW($C$181)-ROW($C97)),0)) -> 0 | L97: =IF(OR($X97>0,$C97=1,$C97=2,$C97=3,$C97=4),"F","") ->  | M97: Serviço | N97: =CHOOSE(1+LOG(1+2*(C97=1)+4*(C97=2)+8*(C97=3)+16*(C97=4)+32*(C97="S"),2),"","Meta","Nível 2","Nível 3","Nível 4","Serviço") -> Serviço | O97: =IF(OR($C97=0,$L97=""),"-",CONCATENATE(E97&".",IF(AND($A$5>=2,$C97>=2),F97&".",""),IF(AND($A$5>=3,$C97>=3),G97&".",""),IF(AND($A$5>=4,$C97>=4),H97&".",""),IF($C97="S",I97&".",""))) -> - | P97: SINAPI | Q97: 87755 | R97: =IF($C97="S",REFERENCIA.Descricao,"(digite a descrição aqui)") -> (abra o arquivo 'Referência 12-2022.xls) | S97: =REFERENCIA.Unidade -> - | T97: =OFFSET(CÁLCULO!H$15,ROW($T97)-ROW(T$15),0) -> 5.76 | U97: 0 | V97: BDI 1 | W97: =IF($C97="S",ROUND(IF(TIPOORCAMENTO="Proposto",ORÇAMENTO.CustoUnitario*(1+$AH97),ORÇAMENTO.PrecoUnitarioLicitado),15-13*$AF$10),0) -> 0 | X97: =IF($C97="S",VTOTAL1,IF($C97=0,0,ROUND(SomaAgrup,15-13*$AF$11))) -> 0 | Y97: RA | Z97: =IF(AND($C97="S",$X97>0),IF(ISBLANK($Y97),"RA",LEFT($Y97,2)),"") ->  | AA97: =IF($C97="S",IF($Z97="CP",$X97,IF($Z97="RA",(($X97)*QCI!$AA$3),0)),SomaAgrup) -> 0 | AB97: =IF($C97="S",IF($Z97="OU",ROUND($X97,2),0),SomaAgrup) -> 0 | AC97: =IF($N97="","",IF(ORÇAMENTO.Descricao="","DESCRIÇÃO",IF(AND($C97="S",ORÇAMENTO.Unidade=""),"UNIDADE",IF($X97<0,"VALOR NEGATIVO",IF(OR(AND(TIPOORCAMENTO="Proposto",$AG97<>"",$AG97>0,ORÇAMENTO.CustoUnitario>$AG97),AND(TIPOORCAMENTO="LICITADO",ORÇAMENTO.PrecoUnitarioLicitado>$AN97)),"ACIMA REF.",""))))) ->  | AD97: =IF(C97<=CRONO.NivelExibicao,MAX($AD$15:OFFSET(AD97,-1,0))+IF($C97<>1,1,MAX(1,COUNTIF(QCI!$A$13:$A$24,OFFSET($E97,-1,0)))),"") ->  | AE97: =IF(AND($C97="S",ORÇAMENTO.CodBarra<>""),IF(ORÇAMENTO.Fonte="",ORÇAMENTO.CodBarra,CONCATENATE(ORÇAMENTO.Fonte," ",ORÇAMENTO.CodBarra))) -> SINAPI 87755 | AF97: =IF(ISERROR(INDIRECT(ORÇAMENTO.BancoRef)),"(abra o arquivo 'Referência "&Excel_BuiltIn_Database&".xls)",IF(OR($C97<>"S",ORÇAMENTO.CodBarra=""),"(Sem Código)",IF(ISERROR(MATCH($AE97,INDIRECT(ORÇAMENTO.BancoRef),0)),"(Código não identificado nas referências)",MATCH($AE97,INDIRECT(ORÇAMENTO.BancoRef),0)))) -> (abra o arquivo 'Referência 12-2022.xls) | AG97: =ROUND(IF(DESONERACAO="sim",REFERENCIA.Desonerado,REFERENCIA.NaoDesonerado),2) -> 0 | AH97: =ROUND(IF(ISNUMBER(ORÇAMENTO.OpcaoBDI),ORÇAMENTO.OpcaoBDI,IF(LEFT(ORÇAMENTO.OpcaoBDI,3)="BDI",HLOOKUP(ORÇAMENTO.OpcaoBDI,$F$4:$H$5,2,FALSE),0)),15-11*$AF$9) -> 0.2035 | AM97: 0 | AN97: =ROUND(ORÇAMENTO.CustoUnitario*(1+$AH97),2) -> 0
A98: S | B98: 2 | C98: S | D98: 0 | E98: =IF($C98=1,OFFSET(E98,-1,0)+MAX(1,COUNTIF(QCI!$A$13:$A$24,OFFSET(ORÇAMENTO!E98,-1,0))),OFFSET(E98,-1,0)) -> 1 | F98: 6 | G98: 0 | H98: 0 | I98: 0 | J98: 0 | K98: =IF(OR($C98="S",$C98=0),0,MATCH(OFFSET($D98,0,$C98)+IF($C98<>1,1,COUNTIF(QCI!$A$13:$A$24,ORÇAMENTO!E98)),OFFSET($D98,1,$C98,ROW($C$181)-ROW($C98)),0)) -> 0 | M98: Serviço | N98: Serviço | O98: - | P98: SINAPI | Q98: 87630 | R98: =IF($C98="S",REFERENCIA.Descricao,"(digite a descrição aqui)") -> (abra o arquivo 'Referência 12-2022.xls) | S98: - | T98: =OFFSET(CÁLCULO!H$15,ROW($T98)-ROW(T$15),0) -> 152.15 | U98: 0 | V98: BDI 1 | W98: 0 | X98: 0 | Y98: RA | AA98: =IF($C98="S",IF($Z98="CP",$X98,IF($Z98="RA",(($X98)*QCI!$AA$3),0)),SomaAgrup) -> 0 | AB98: 0 | AD98: =IF(C98<=CRONO.NivelExibicao,MAX($AD$15:OFFSET(AD98,-1,0))+IF($C98<>1,1,MAX(1,COUNTIF(QCI!$A$13:$A$24,OFFSET($E98,-1,0)))),"") ->  | AE98: SINAPI 87630 | AF98: (abra o arquivo 'Referência 12-2022.xls) | AG98: 0 | AH98: 0.2035 | AM98: 0 | AN98: 0
A99: =CHOOSE(1+LOG(1+2*(ORÇAMENTO.Nivel="Meta")+4*(ORÇAMENTO.Nivel="Nível 2")+8*(ORÇAMENTO.Nivel="Nível 3")+16*(ORÇAMENTO.Nivel="Nível 4")+32*(ORÇAMENTO.Nivel="Serviço"),2),0,1,2,3,4,"S") -> S | B99: =IF(OR(C99="s",C99=0),OFFSET(B99,-1,0),C99) -> 2 | C99: =IF(OFFSET(C99,-1,0)="L",1,IF(OFFSET(C99,-1,0)=1,2,IF(OR(A99="s",A99=0),"S",IF(AND(OFFSET(C99,-1,0)=2,A99=4),3,IF(AND(OR(OFFSET(C99,-1,0)="s",OFFSET(C99,-1,0)=0),A99<>"s",A99>OFFSET(B99,-1,0)),OFFSET(B99,-1,0),A99))))) -> S | D99: =IF(OR(C99="S",C99=0),0,IF(ISERROR(K99),J99,SMALL(J99:K99,1))) -> 0 | E99: =IF($C99=1,OFFSET(E99,-1,0)+MAX(1,COUNTIF(QCI!$A$13:$A$24,OFFSET(ORÇAMENTO!E99,-1,0))),OFFSET(E99,-1,0)) -> 1 | F99: =IF($C99=1,0,IF($C99=2,OFFSET(F99,-1,0)+1,OFFSET(F99,-1,0))) -> 6 | G99: =IF(AND($C99<=2,$C99<>0),0,IF($C99=3,OFFSET(G99,-1,0)+1,OFFSET(G99,-1,0))) -> 0 | H99: =IF(AND($C99<=3,$C99<>0),0,IF($C99=4,OFFSET(H99,-1,0)+1,OFFSET(H99,-1,0))) -> 0 | I99: =IF(AND($C99<=4,$C99<>0),0,IF(AND($C99="S",$X99>0),OFFSET(I99,-1,0)+1,OFFSET(I99,-1,0))) -> 0 | J99: 0 | K99: =IF(OR($C99="S",$C99=0),0,MATCH(OFFSET($D99,0,$C99)+IF($C99<>1,1,COUNTIF(QCI!$A$13:$A$24,ORÇAMENTO!E99)),OFFSET($D99,1,$C99,ROW($C$181)-ROW($C99)),0)) -> 0 | L99: =IF(OR($X99>0,$C99=1,$C99=2,$C99=3,$C99=4),"F","") ->  | M99: Serviço | N99: =CHOOSE(1+LOG(1+2*(C99=1)+4*(C99=2)+8*(C99=3)+16*(C99=4)+32*(C99="S"),2),"","Meta","Nível 2","Nível 3","Nível 4","Serviço") -> Serviço | O99: =IF(OR($C99=0,$L99=""),"-",CONCATENATE(E99&".",IF(AND($A$5>=2,$C99>=2),F99&".",""),IF(AND($A$5>=3,$C99>=3),G99&".",""),IF(AND($A$5>=4,$C99>=4),H99&".",""),IF($C99="S",I99&".",""))) -> - | P99: SINAPI | Q99: 98689 | R99: =IF($C99="S",REFERENCIA.Descricao,"(digite a descrição aqui)") -> (abra o arquivo 'Referência 12-2022.xls) | S99: =REFERENCIA.Unidade -> - | T99: =OFFSET(CÁLCULO!H$15,ROW($T99)-ROW(T$15),0) -> 2.5 | U99: 0 | V99: BDI 1 | W99: =IF($C99="S",ROUND(IF(TIPOORCAMENTO="Proposto",ORÇAMENTO.CustoUnitario*(1+$AH99),ORÇAMENTO.PrecoUnitarioLicitado),15-13*$AF$10),0) -> 0 | X99: =IF($C99="S",VTOTAL1,IF($C99=0,0,ROUND(SomaAgrup,15-13*$AF$11))) -> 0 | Y99: RA | Z99: =IF(AND($C99="S",$X99>0),IF(ISBLANK($Y99),"RA",LEFT($Y99,2)),"") ->  | AA99: =IF($C99="S",IF($Z99="CP",$X99,IF($Z99="RA",(($X99)*QCI!$AA$3),0)),SomaAgrup) -> 0 | AB99: =IF($C99="S",IF($Z99="OU",ROUND($X99,2),0),SomaAgrup) -> 0 | AC99: =IF($N99="","",IF(ORÇAMENTO.Descricao="","DESCRIÇÃO",IF(AND($C99="S",ORÇAMENTO.Unidade=""),"UNIDADE",IF($X99<0,"VALOR NEGATIVO",IF(OR(AND(TIPOORCAMENTO="Proposto",$AG99<>"",$AG99>0,ORÇAMENTO.CustoUnitario>$AG99),AND(TIPOORCAMENTO="LICITADO",ORÇAMENTO.PrecoUnitarioLicitado>$AN99)),"ACIMA REF.",""))))) ->  | AD99: =IF(C99<=CRONO.NivelExibicao,MAX($AD$15:OFFSET(AD99,-1,0))+IF($C99<>1,1,MAX(1,COUNTIF(QCI!$A$13:$A$24,OFFSET($E99,-1,0)))),"") ->  | AE99: =IF(AND($C99="S",ORÇAMENTO.CodBarra<>""),IF(ORÇAMENTO.Fonte="",ORÇAMENTO.CodBarra,CONCATENATE(ORÇAMENTO.Fonte," ",ORÇAMENTO.CodBarra))) -> SINAPI 98689 | AF99: =IF(ISERROR(INDIRECT(ORÇAMENTO.BancoRef)),"(abra o arquivo 'Referência "&Excel_BuiltIn_Database&".xls)",IF(OR($C99<>"S",ORÇAMENTO.CodBarra=""),"(Sem Código)",IF(ISERROR(MATCH($AE99,INDIRECT(ORÇAMENTO.BancoRef),0)),"(Código não identificado nas referências)",MATCH($AE99,INDIRECT(ORÇAMENTO.BancoRef),0)))) -> (abra o arquivo 'Referência 12-2022.xls) | AG99: =ROUND(IF(DESONERACAO="sim",REFERENCIA.Desonerado,REFERENCIA.NaoDesonerado),2) -> 0 | AH99: =ROUND(IF(ISNUMBER(ORÇAMENTO.OpcaoBDI),ORÇAMENTO.OpcaoBDI,IF(LEFT(ORÇAMENTO.OpcaoBDI,3)="BDI",HLOOKUP(ORÇAMENTO.OpcaoBDI,$F$4:$H$5,2,FALSE),0)),15-11*$AF$9) -> 0.2035 | AM99: 0 | AN99: =ROUND(ORÇAMENTO.CustoUnitario*(1+$AH99),2) -> 0
A100: 2 | B100: 2 | C100: 2 | D100: 6 | E100: =IF($C100=1,OFFSET(E100,-1,0)+MAX(1,COUNTIF(QCI!$A$13:$A$24,OFFSET(ORÇAMENTO!E100,-1,0))),OFFSET(E100,-1,0)) -> 1 | F100: 7 | G100: 0 | H100: 0 | I100: 0 | J100: 81 | K100: =IF(OR($C100="S",$C100=0),0,MATCH(OFFSET($D100,0,$C100)+IF($C100<>1,1,COUNTIF(QCI!$A$13:$A$24,ORÇAMENTO!E100)),OFFSET($D100,1,$C100,ROW($C$181)-ROW($C100)),0)) -> 6 | L100: F | M100: Nível 2 | N100: Nível 2 | O100: 1.7. | P100: SINAPI | R100: ESQUADRIAS / FERAGENS | S100: - | T100: =OFFSET(CÁLCULO!H$15,ROW($T100)-ROW(T$15),0) -> 0 | U100: 0 | V100: BDI 1 | W100: 0 | X100: 0 | Y100: RA | AA100: =IF($C100="S",IF($Z100="CP",$X100,IF($Z100="RA",(($X100)*QCI!$AA$3),0)),SomaAgrup) -> 0 | AB100: 0 | AD100: =IF(C100<=CRONO.NivelExibicao,MAX($AD$15:OFFSET(AD100,-1,0))+IF($C100<>1,1,MAX(1,COUNTIF(QCI!$A$13:$A$24,OFFSET($E100,-1,0)))),"") -> 8 | AE100: FALSE | AF100: (abra o arquivo 'Referência 12-2022.xls) | AG100: 0 | AH100: 0.2035 | AM100: 0 | AN100: 0
A101: S | B101: 2 | C101: S | D101: 0 | E101: =IF($C101=1,OFFSET(E101,-1,0)+MAX(1,COUNTIF(QCI!$A$13:$A$24,OFFSET(ORÇAMENTO!E101,-1,0))),OFFSET(E101,-1,0)) -> 1 | F101: 7 | G101: 0 | H101: 0 | I101: 0 | J101: 0 | K101: =IF(OR($C101="S",$C101=0),0,MATCH(OFFSET($D101,0,$C101)+IF($C101<>1,1,COUNTIF(QCI!$A$13:$A$24,ORÇAMENTO!E101)),OFFSET($D101,1,$C101,ROW($C$181)-ROW($C101)),0)) -> 0 | M101: Serviço | N101: Serviço | O101: - | P101: SINAPI | Q101: 91341 | R101: =IF($C101="S",REFERENCIA.Descricao,"(digite a descrição aqui)") -> (abra o arquivo 'Referência 12-2022.xls) | S101: - | T101: =OFFSET(CÁLCULO!H$15,ROW($T101)-ROW(T$15),0) -> 6.25 | U101: 0 | V101: BDI 1 | W101: 0 | X101: 0 | Y101: RA | AA101: =IF($C101="S",IF($Z101="CP",$X101,IF($Z101="RA",(($X101)*QCI!$AA$3),0)),SomaAgrup) -> 0 | AB101: 0 | AD101: =IF(C101<=CRONO.NivelExibicao,MAX($AD$15:OFFSET(AD101,-1,0))+IF($C101<>1,1,MAX(1,COUNTIF(QCI!$A$13:$A$24,OFFSET($E101,-1,0)))),"") ->  | AE101: SINAPI 91341 | AF101: (abra o arquivo 'Referência 12-2022.xls) | AG101: 0 | AH101: 0.2035 | AM101: 0 | AN101: 0
A102: S | B102: 2 | C102: S | D102: 0 | E102: =IF($C102=1,OFFSET(E102,-1,0)+MAX(1,COUNTIF(QCI!$A$13:$A$24,OFFSET(ORÇAMENTO!E102,-1,0))),OFFSET(E102,-1,0)) -> 1 | F102: 7 | G102: 0 | H102: 0 | I102: 0 | J102: 0 | K102: =IF(OR($C102="S",$C102=0),0,MATCH(OFFSET($D102,0,$C102)+IF($C102<>1,1,COUNTIF(QCI!$A$13:$A$24,ORÇAMENTO!E102)),OFFSET($D102,1,$C102,ROW($C$181)-ROW($C102)),0)) -> 0 | M102: Serviço | N102: Serviço | O102: - | P102: SINAPI | Q102: 94570 | R102: =IF($C102="S",REFERENCIA.Descricao,"(digite a descrição aqui)") -> (abra o arquivo 'Referência 12-2022.xls) | S102: - | T102: =OFFSET(CÁLCULO!H$15,ROW($T102)-ROW(T$15),0) -> 2.4 | U102: 0 | V102: BDI 1 | W102: 0 | X102: 0 | Y102: RA | AA102: =IF($C102="S",IF($Z102="CP",$X102,IF($Z102="RA",(($X102)*QCI!$AA$3),0)),SomaAgrup) -> 0 | AB102: 0 | AD102: =IF(C102<=CRONO.NivelExibicao,MAX($AD$15:OFFSET(AD102,-1,0))+IF($C102<>1,1,MAX(1,COUNTIF(QCI!$A$13:$A$24,OFFSET($E102,-1,0)))),"") ->  | AE102: SINAPI 94570 | AF102: (abra o arquivo 'Referência 12-2022.xls) | AG102: 0 | AH102: 0.2035 | AM102: 0 | AN102: 0
A103: =CHOOSE(1+LOG(1+2*(ORÇAMENTO.Nivel="Meta")+4*(ORÇAMENTO.Nivel="Nível 2")+8*(ORÇAMENTO.Nivel="Nível 3")+16*(ORÇAMENTO.Nivel="Nível 4")+32*(ORÇAMENTO.Nivel="Serviço"),2),0,1,2,3,4,"S") -> S | B103: =IF(OR(C103="s",C103=0),OFFSET(B103,-1,0),C103) -> 2 | C103: =IF(OFFSET(C103,-1,0)="L",1,IF(OFFSET(C103,-1,0)=1,2,IF(OR(A103="s",A103=0),"S",IF(AND(OFFSET(C103,-1,0)=2,A103=4),3,IF(AND(OR(OFFSET(C103,-1,0)="s",OFFSET(C103,-1,0)=0),A103<>"s",A103>OFFSET(B103,-1,0)),OFFSET(B103,-1,0),A103))))) -> S | D103: =IF(OR(C103="S",C103=0),0,IF(ISERROR(K103),J103,SMALL(J103:K103,1))) -> 0 | E103: =IF($C103=1,OFFSET(E103,-1,0)+MAX(1,COUNTIF(QCI!$A$13:$A$24,OFFSET(ORÇAMENTO!E103,-1,0))),OFFSET(E103,-1,0)) -> 1 | F103: =IF($C103=1,0,IF($C103=2,OFFSET(F103,-1,0)+1,OFFSET(F103,-1,0))) -> 7 | G103: =IF(AND($C103<=2,$C103<>0),0,IF($C103=3,OFFSET(G103,-1,0)+1,OFFSET(G103,-1,0))) -> 0 | H103: =IF(AND($C103<=3,$C103<>0),0,IF($C103=4,OFFSET(H103,-1,0)+1,OFFSET(H103,-1,0))) -> 0 | I103: =IF(AND($C103<=4,$C103<>0),0,IF(AND($C103="S",$X103>0),OFFSET(I103,-1,0)+1,OFFSET(I103,-1,0))) -> 0 | J103: 0 | K103: =IF(OR($C103="S",$C103=0),0,MATCH(OFFSET($D103,0,$C103)+IF($C103<>1,1,COUNTIF(QCI!$A$13:$A$24,ORÇAMENTO!E103)),OFFSET($D103,1,$C103,ROW($C$181)-ROW($C103)),0)) -> 0 | L103: =IF(OR($X103>0,$C103=1,$C103=2,$C103=3,$C103=4),"F","") ->  | M103: Serviço | N103: =CHOOSE(1+LOG(1+2*(C103=1)+4*(C103=2)+8*(C103=3)+16*(C103=4)+32*(C103="S"),2),"","Meta","Nível 2","Nível 3","Nível 4","Serviço") -> Serviço | O103: =IF(OR($C103=0,$L103=""),"-",CONCATENATE(E103&".",IF(AND($A$5>=2,$C103>=2),F103&".",""),IF(AND($A$5>=3,$C103>=3),G103&".",""),IF(AND($A$5>=4,$C103>=4),H103&".",""),IF($C103="S",I103&".",""))) -> - | P103: Composição | Q103: 11 | R103: =IF($C103="S",REFERENCIA.Descricao,"(digite a descrição aqui)") -> (abra o arquivo 'Referência 12-2022.xls) | S103: =REFERENCIA.Unidade -> - | T103: =OFFSET(CÁLCULO!H$15,ROW($T103)-ROW(T$15),0) -> 1.9 | U103: 0 | V103: BDI 1 | W103: =IF($C103="S",ROUND(IF(TIPOORCAMENTO="Proposto",ORÇAMENTO.CustoUnitario*(1+$AH103),ORÇAMENTO.PrecoUnitarioLicitado),15-13*$AF$10),0) -> 0 | X103: =IF($C103="S",VTOTAL1,IF($C103=0,0,ROUND(SomaAgrup,15-13*$AF$11))) -> 0 | Y103: RA | Z103: =IF(AND($C103="S",$X103>0),IF(ISBLANK($Y103),"RA",LEFT($Y103,2)),"") ->  | AA103: =IF($C103="S",IF($Z103="CP",$X103,IF($Z103="RA",(($X103)*QCI!$AA$3),0)),SomaAgrup) -> 0 | AB103: =IF($C103="S",IF($Z103="OU",ROUND($X103,2),0),SomaAgrup) -> 0 | AC103: =IF($N103="","",IF(ORÇAMENTO.Descricao="","DESCRIÇÃO",IF(AND($C103="S",ORÇAMENTO.Unidade=""),"UNIDADE",IF($X103<0,"VALOR NEGATIVO",IF(OR(AND(TIPOORCAMENTO="Proposto",$AG103<>"",$AG103>0,ORÇAMENTO.CustoUnitario>$AG103),AND(TIPOORCAMENTO="LICITADO",ORÇAMENTO.PrecoUnitarioLicitado>$AN103)),"ACIMA REF.",""))))) ->  | AD103: =IF(C103<=CRONO.NivelExibicao,MAX($AD$15:OFFSET(AD103,-1,0))+IF($C103<>1,1,MAX(1,COUNTIF(QCI!$A$13:$A$24,OFFSET($E103,-1,0)))),"") ->  | AE103: =IF(AND($C103="S",ORÇAMENTO.CodBarra<>""),IF(ORÇAMENTO.Fonte="",ORÇAMENTO.CodBarra,CONCATENATE(ORÇAMENTO.Fonte," ",ORÇAMENTO.CodBarra))) -> Composição 11 | AF103: =IF(ISERROR(INDIRECT(ORÇAMENTO.BancoRef)),"(abra o arquivo 'Referência "&Excel_BuiltIn_Database&".xls)",IF(OR($C103<>"S",ORÇAMENTO.CodBarra=""),"(Sem Código)",IF(ISERROR(MATCH($AE103,INDIRECT(ORÇAMENTO.BancoRef),0)),"(Código não identificado nas referências)",MATCH($AE103,INDIRECT(ORÇAMENTO.BancoRef),0)))) -> (abra o arquivo 'Referência 12-2022.xls) | AG103: =ROUND(IF(DESONERACAO="sim",REFERENCIA.Desonerado,REFERENCIA.NaoDesonerado),2) -> 0 | AH103: =ROUND(IF(ISNUMBER(ORÇAMENTO.OpcaoBDI),ORÇAMENTO.OpcaoBDI,IF(LEFT(ORÇAMENTO.OpcaoBDI,3)="BDI",HLOOKUP(ORÇAMENTO.OpcaoBDI,$F$4:$H$5,2,FALSE),0)),15-11*$AF$9) -> 0.2035 | AM103: 0 | AN103: =ROUND(ORÇAMENTO.CustoUnitario*(1+$AH103),2) -> 0
A104: S | B104: 2 | C104: S | D104: 0 | E104: =IF($C104=1,OFFSET(E104,-1,0)+MAX(1,COUNTIF(QCI!$A$13:$A$24,OFFSET(ORÇAMENTO!E104,-1,0))),OFFSET(E104,-1,0)) -> 1 | F104: 7 | G104: 0 | H104: 0 | I104: 0 | J104: 0 | K104: =IF(OR($C104="S",$C104=0),0,MATCH(OFFSET($D104,0,$C104)+IF($C104<>1,1,COUNTIF(QCI!$A$13:$A$24,ORÇAMENTO!E104)),OFFSET($D104,1,$C104,ROW($C$181)-ROW($C104)),0)) -> 0 | M104: Serviço | N104: Serviço | O104: - | P104: DEINFRA | Q104: 42862 | R104: =IF($C104="S",REFERENCIA.Descricao,"(digite a descrição aqui)") -> (abra o arquivo 'Referência 12-2022.xls) | S104: - | T104: =OFFSET(CÁLCULO!H$15,ROW($T104)-ROW(T$15),0) -> 22.45 | U104: 0 | V104: BDI 1 | W104: 0 | X104: 0 | Y104: RA | AA104: =IF($C104="S",IF($Z104="CP",$X104,IF($Z104="RA",(($X104)*QCI!$AA$3),0)),SomaAgrup) -> 0 | AB104: 0 | AD104: =IF(C104<=CRONO.NivelExibicao,MAX($AD$15:OFFSET(AD104,-1,0))+IF($C104<>1,1,MAX(1,COUNTIF(QCI!$A$13:$A$24,OFFSET($E104,-1,0)))),"") ->  | AE104: DEINFRA 42862 | AF104: (abra o arquivo 'Referência 12-2022.xls) | AG104: 0 | AH104: 0.2035 | AM104: 0 | AN104: 0
A105: S | B105: 2 | C105: S | D105: 0 | E105: =IF($C105=1,OFFSET(E105,-1,0)+MAX(1,COUNTIF(QCI!$A$13:$A$24,OFFSET(ORÇAMENTO!E105,-1,0))),OFFSET(E105,-1,0)) -> 1 | F105: 7 | G105: 0 | H105: 0 | I105: 0 | J105: 0 | K105: =IF(OR($C105="S",$C105=0),0,MATCH(OFFSET($D105,0,$C105)+IF($C105<>1,1,COUNTIF(QCI!$A$13:$A$24,ORÇAMENTO!E105)),OFFSET($D105,1,$C105,ROW($C$181)-ROW($C105)),0)) -> 0 | M105: Serviço | N105: Serviço | O105: - | P105: SINAPI | Q105: 99837 | R105: =IF($C105="S",REFERENCIA.Descricao,"(digite a descrição aqui)") -> (abra o arquivo 'Referência 12-2022.xls) | S105: - | T105: =OFFSET(CÁLCULO!H$15,ROW($T105)-ROW(T$15),0) -> 11.75 | U105: 0 | V105: BDI 1 | W105: 0 | X105: 0 | Y105: RA | AA105: =IF($C105="S",IF($Z105="CP",$X105,IF($Z105="RA",(($X105)*QCI!$AA$3),0)),SomaAgrup) -> 0 | AB105: 0 | AD105: =IF(C105<=CRONO.NivelExibicao,MAX($AD$15:OFFSET(AD105,-1,0))+IF($C105<>1,1,MAX(1,COUNTIF(QCI!$A$13:$A$24,OFFSET($E105,-1,0)))),"") ->  | AE105: SINAPI 99837 | AF105: (abra o arquivo 'Referência 12-2022.xls) | AG105: 0 | AH105: 0.2035 | AM105: 0 | AN105: 0
A106: 2 | B106: 2 | C106: 2 | D106: 3 | E106: =IF($C106=1,OFFSET(E106,-1,0)+MAX(1,COUNTIF(QCI!$A$13:$A$24,OFFSET(ORÇAMENTO!E106,-1,0))),OFFSET(E106,-1,0)) -> 1 | F106: 8 | G106: 0 | H106: 0 | I106: 0 | J106: 75 | K106: =IF(OR($C106="S",$C106=0),0,MATCH(OFFSET($D106,0,$C106)+IF($C106<>1,1,COUNTIF(QCI!$A$13:$A$24,ORÇAMENTO!E106)),OFFSET($D106,1,$C106,ROW($C$181)-ROW($C106)),0)) -> 3 | L106: F | M106: Nível 2 | N106: Nível 2 | O106: 1.8. | P106: SINAPI | R106: COBERTURA | S106: - | T106: =OFFSET(CÁLCULO!H$15,ROW($T106)-ROW(T$15),0) -> 0 | U106: 0 | V106: BDI 1 | W106: 0 | X106: 0 | Y106: RA | AA106: =IF($C106="S",IF($Z106="CP",$X106,IF($Z106="RA",(($X106)*QCI!$AA$3),0)),SomaAgrup) -> 0 | AB106: 0 | AD106: =IF(C106<=CRONO.NivelExibicao,MAX($AD$15:OFFSET(AD106,-1,0))+IF($C106<>1,1,MAX(1,COUNTIF(QCI!$A$13:$A$24,OFFSET($E106,-1,0)))),"") -> 9 | AE106: FALSE | AF106: (abra o arquivo 'Referência 12-2022.xls) | AG106: 0 | AH106: 0.2035 | AM106: 0 | AN106: 0
A107: S | B107: 2 | C107: S | D107: 0 | E107: =IF($C107=1,OFFSET(E107,-1,0)+MAX(1,COUNTIF(QCI!$A$13:$A$24,OFFSET(ORÇAMENTO!E107,-1,0))),OFFSET(E107,-1,0)) -> 1 | F107: 8 | G107: 0 | H107: 0 | I107: 0 | J107: 0 | K107: =IF(OR($C107="S",$C107=0),0,MATCH(OFFSET($D107,0,$C107)+IF($C107<>1,1,COUNTIF(QCI!$A$13:$A$24,ORÇAMENTO!E107)),OFFSET($D107,1,$C107,ROW($C$181)-ROW($C107)),0)) -> 0 | M107: Serviço | N107: Serviço | O107: - | P107: SINAPI | Q107: 98546 | R107: =IF($C107="S",REFERENCIA.Descricao,"(digite a descrição aqui)") -> (abra o arquivo 'Referência 12-2022.xls) | S107: - | T107: =OFFSET(CÁLCULO!H$15,ROW($T107)-ROW(T$15),0) -> 165.99 | U107: 0 | V107: BDI 1 | W107: 0 | X107: 0 | Y107: RA | AA107: =IF($C107="S",IF($Z107="CP",$X107,IF($Z107="RA",(($X107)*QCI!$AA$3),0)),SomaAgrup) -> 0 | AB107: 0 | AD107: =IF(C107<=CRONO.NivelExibicao,MAX($AD$15:OFFSET(AD107,-1,0))+IF($C107<>1,1,MAX(1,COUNTIF(QCI!$A$13:$A$24,OFFSET($E107,-1,0)))),"") ->  | AE107: SINAPI 98546 | AF107: (abra o arquivo 'Referência 12-2022.xls) | AG107: 0 | AH107: 0.2035 | AM107: 0 | AN107: 0
A108: =CHOOSE(1+LOG(1+2*(ORÇAMENTO.Nivel="Meta")+4*(ORÇAMENTO.Nivel="Nível 2")+8*(ORÇAMENTO.Nivel="Nível 3")+16*(ORÇAMENTO.Nivel="Nível 4")+32*(ORÇAMENTO.Nivel="Serviço"),2),0,1,2,3,4,"S") -> S | B108: =IF(OR(C108="s",C108=0),OFFSET(B108,-1,0),C108) -> 2 | C108: =IF(OFFSET(C108,-1,0)="L",1,IF(OFFSET(C108,-1,0)=1,2,IF(OR(A108="s",A108=0),"S",IF(AND(OFFSET(C108,-1,0)=2,A108=4),3,IF(AND(OR(OFFSET(C108,-1,0)="s",OFFSET(C108,-1,0)=0),A108<>"s",A108>OFFSET(B108,-1,0)),OFFSET(B108,-1,0),A108))))) -> S | D108: =IF(OR(C108="S",C108=0),0,IF(ISERROR(K108),J108,SMALL(J108:K108,1))) -> 0 | E108: =IF($C108=1,OFFSET(E108,-1,0)+MAX(1,COUNTIF(QCI!$A$13:$A$24,OFFSET(ORÇAMENTO!E108,-1,0))),OFFSET(E108,-1,0)) -> 1 | F108: =IF($C108=1,0,IF($C108=2,OFFSET(F108,-1,0)+1,OFFSET(F108,-1,0))) -> 8 | G108: =IF(AND($C108<=2,$C108<>0),0,IF($C108=3,OFFSET(G108,-1,0)+1,OFFSET(G108,-1,0))) -> 0 | H108: =IF(AND($C108<=3,$C108<>0),0,IF($C108=4,OFFSET(H108,-1,0)+1,OFFSET(H108,-1,0))) -> 0 | I108: =IF(AND($C108<=4,$C108<>0),0,IF(AND($C108="S",$X108>0),OFFSET(I108,-1,0)+1,OFFSET(I108,-1,0))) -> 0 | J108: 0 | K108: =IF(OR($C108="S",$C108=0),0,MATCH(OFFSET($D108,0,$C108)+IF($C108<>1,1,COUNTIF(QCI!$A$13:$A$24,ORÇAMENTO!E108)),OFFSET($D108,1,$C108,ROW($C$181)-ROW($C108)),0)) -> 0 | L108: =IF(OR($X108>0,$C108=1,$C108=2,$C108=3,$C108=4),"F","") ->  | M108: Serviço | N108: =CHOOSE(1+LOG(1+2*(C108=1)+4*(C108=2)+8*(C108=3)+16*(C108=4)+32*(C108="S"),2),"","Meta","Nível 2","Nível 3","Nível 4","Serviço") -> Serviço | O108: =IF(OR($C108=0,$L108=""),"-",CONCATENATE(E108&".",IF(AND($A$5>=2,$C108>=2),F108&".",""),IF(AND($A$5>=3,$C108>=3),G108&".",""),IF(AND($A$5>=4,$C108>=4),H108&".",""),IF($C108="S",I108&".",""))) -> - | P108: SINAPI | Q108: 94779 | R108: =IF($C108="S",REFERENCIA.Descricao,"(digite a descrição aqui)") -> (abra o arquivo 'Referência 12-2022.xls) | S108: =REFERENCIA.Unidade -> - | T108: =OFFSET(CÁLCULO!H$15,ROW($T108)-ROW(T$15),0) -> 165.99 | U108: 0 | V108: BDI 1 | W108: =IF($C108="S",ROUND(IF(TIPOORCAMENTO="Proposto",ORÇAMENTO.CustoUnitario*(1+$AH108),ORÇAMENTO.PrecoUnitarioLicitado),15-13*$AF$10),0) -> 0 | X108: =IF($C108="S",VTOTAL1,IF($C108=0,0,ROUND(SomaAgrup,15-13*$AF$11))) -> 0 | Y108: RA | Z108: =IF(AND($C108="S",$X108>0),IF(ISBLANK($Y108),"RA",LEFT($Y108,2)),"") ->  | AA108: =IF($C108="S",IF($Z108="CP",$X108,IF($Z108="RA",(($X108)*QCI!$AA$3),0)),SomaAgrup) -> 0 | AB108: =IF($C108="S",IF($Z108="OU",ROUND($X108,2),0),SomaAgrup) -> 0 | AC108: =IF($N108="","",IF(ORÇAMENTO.Descricao="","DESCRIÇÃO",IF(AND($C108="S",ORÇAMENTO.Unidade=""),"UNIDADE",IF($X108<0,"VALOR NEGATIVO",IF(OR(AND(TIPOORCAMENTO="Proposto",$AG108<>"",$AG108>0,ORÇAMENTO.CustoUnitario>$AG108),AND(TIPOORCAMENTO="LICITADO",ORÇAMENTO.PrecoUnitarioLicitado>$AN108)),"ACIMA REF.",""))))) ->  | AD108: =IF(C108<=CRONO.NivelExibicao,MAX($AD$15:OFFSET(AD108,-1,0))+IF($C108<>1,1,MAX(1,COUNTIF(QCI!$A$13:$A$24,OFFSET($E108,-1,0)))),"") ->  | AE108: =IF(AND($C108="S",ORÇAMENTO.CodBarra<>""),IF(ORÇAMENTO.Fonte="",ORÇAMENTO.CodBarra,CONCATENATE(ORÇAMENTO.Fonte," ",ORÇAMENTO.CodBarra))) -> SINAPI 94779 | AF108: =IF(ISERROR(INDIRECT(ORÇAMENTO.BancoRef)),"(abra o arquivo 'Referência "&Excel_BuiltIn_Database&".xls)",IF(OR($C108<>"S",ORÇAMENTO.CodBarra=""),"(Sem Código)",IF(ISERROR(MATCH($AE108,INDIRECT(ORÇAMENTO.BancoRef),0)),"(Código não identificado nas referências)",MATCH($AE108,INDIRECT(ORÇAMENTO.BancoRef),0)))) -> (abra o arquivo 'Referência 12-2022.xls) | AG108: =ROUND(IF(DESONERACAO="sim",REFERENCIA.Desonerado,REFERENCIA.NaoDesonerado),2) -> 0 | AH108: =ROUND(IF(ISNUMBER(ORÇAMENTO.OpcaoBDI),ORÇAMENTO.OpcaoBDI,IF(LEFT(ORÇAMENTO.OpcaoBDI,3)="BDI",HLOOKUP(ORÇAMENTO.OpcaoBDI,$F$4:$H$5,2,FALSE),0)),15-11*$AF$9) -> 0.2035 | AM108: 0 | AN108: =ROUND(ORÇAMENTO.CustoUnitario*(1+$AH108),2) -> 0
A109: 2 | B109: 2 | C109: 2 | D109: 23 | E109: =IF($C109=1,OFFSET(E109,-1,0)+MAX(1,COUNTIF(QCI!$A$13:$A$24,OFFSET(ORÇAMENTO!E109,-1,0))),OFFSET(E109,-1,0)) -> 1 | F109: 9 | G109: 0 | H109: 0 | I109: 0 | J109: 72 | K109: =IF(OR($C109="S",$C109=0),0,MATCH(OFFSET($D109,0,$C109)+IF($C109<>1,1,COUNTIF(QCI!$A$13:$A$24,ORÇAMENTO!E109)),OFFSET($D109,1,$C109,ROW($C$181)-ROW($C109)),0)) -> 23 | L109: F | M109: Nível 2 | N109: Nível 2 | O109: 1.9. | P109: SINAPI | R109: INSTALAÇÕES ELÉTRICAS | S109: - | T109: =OFFSET(CÁLCULO!H$15,ROW($T109)-ROW(T$15),0) -> 0 | U109: 0 | V109: BDI 1 | W109: 0 | X109: 0 | Y109: RA | AA109: =IF($C109="S",IF($Z109="CP",$X109,IF($Z109="RA",(($X109)*QCI!$AA$3),0)),SomaAgrup) -> 0 | AB109: 0 | AD109: =IF(C109<=CRONO.NivelExibicao,MAX($AD$15:OFFSET(AD109,-1,0))+IF($C109<>1,1,MAX(1,COUNTIF(QCI!$A$13:$A$24,OFFSET($E109,-1,0)))),"") -> 10 | AE109: FALSE | AF109: (abra o arquivo 'Referência 12-2022.xls) | AG109: 0 | AH109: 0.2035 | AM109: 0 | AN109: 0
A110: S | B110: 2 | C110: S | D110: 0 | E110: =IF($C110=1,OFFSET(E110,-1,0)+MAX(1,COUNTIF(QCI!$A$13:$A$24,OFFSET(ORÇAMENTO!E110,-1,0))),OFFSET(E110,-1,0)) -> 1 | F110: 9 | G110: 0 | H110: 0 | I110: 0 | J110: 0 | K110: =IF(OR($C110="S",$C110=0),0,MATCH(OFFSET($D110,0,$C110)+IF($C110<>1,1,COUNTIF(QCI!$A$13:$A$24,ORÇAMENTO!E110)),OFFSET($D110,1,$C110,ROW($C$181)-ROW($C110)),0)) -> 0 | M110: Serviço | N110: Serviço | O110: - | P110: SINAPI | Q110: 95779 | R110: =IF($C110="S",REFERENCIA.Descricao,"(digite a descrição aqui)") -> (abra o arquivo 'Referência 12-2022.xls) | S110: - | T110: =OFFSET(CÁLCULO!H$15,ROW($T110)-ROW(T$15),0) -> 3 | U110: 0 | V110: BDI 1 | W110: 0 | X110: 0 | Y110: RA | AA110: =IF($C110="S",IF($Z110="CP",$X110,IF($Z110="RA",(($X110)*QCI!$AA$3),0)),SomaAgrup) -> 0 | AB110: 0 | AD110: =IF(C110<=CRONO.NivelExibicao,MAX($AD$15:OFFSET(AD110,-1,0))+IF($C110<>1,1,MAX(1,COUNTIF(QCI!$A$13:$A$24,OFFSET($E110,-1,0)))),"") ->  | AE110: SINAPI 95779 | AF110: (abra o arquivo 'Referência 12-2022.xls) | AG110: 0 | AH110: 0.2035 | AM110: 0 | AN110: 0
A111: S | B111: 2 | C111: S | D111: 0 | E111: =IF($C111=1,OFFSET(E111,-1,0)+MAX(1,COUNTIF(QCI!$A$13:$A$24,OFFSET(ORÇAMENTO!E111,-1,0))),OFFSET(E111,-1,0)) -> 1 | F111: 9 | G111: 0 | H111: 0 | I111: 0 | J111: 0 | K111: =IF(OR($C111="S",$C111=0),0,MATCH(OFFSET($D111,0,$C111)+IF($C111<>1,1,COUNTIF(QCI!$A$13:$A$24,ORÇAMENTO!E111)),OFFSET($D111,1,$C111,ROW($C$181)-ROW($C111)),0)) -> 0 | M111: Serviço | N111: Serviço | O111: - | P111: SINAPI | Q111: 95778 | R111: =IF($C111="S",REFERENCIA.Descricao,"(digite a descrição aqui)") -> (abra o arquivo 'Referência 12-2022.xls) | S111: - | T111: =OFFSET(CÁLCULO!H$15,ROW($T111)-ROW(T$15),0) -> 3 | U111: 0 | V111: BDI 1 | W111: 0 | X111: 0 | Y111: RA | AA111: =IF($C111="S",IF($Z111="CP",$X111,IF($Z111="RA",(($X111)*QCI!$AA$3),0)),SomaAgrup) -> 0 | AB111: 0 | AD111: =IF(C111<=CRONO.NivelExibicao,MAX($AD$15:OFFSET(AD111,-1,0))+IF($C111<>1,1,MAX(1,COUNTIF(QCI!$A$13:$A$24,OFFSET($E111,-1,0)))),"") ->  | AE111: SINAPI 95778 | AF111: (abra o arquivo 'Referência 12-2022.xls) | AG111: 0 | AH111: 0.2035 | AM111: 0 | AN111: 0
A112: S | B112: 2 | C112: S | D112: 0 | E112: =IF($C112=1,OFFSET(E112,-1,0)+MAX(1,COUNTIF(QCI!$A$13:$A$24,OFFSET(ORÇAMENTO!E112,-1,0))),OFFSET(E112,-1,0)) -> 1 | F112: 9 | G112: 0 | H112: 0 | I112: 0 | J112: =IF(OR($C112="S",$C112=0),0,MATCH(0,OFFSET($D112,1,$C112,ROW($C$181)-ROW($C112)),0)) -> 0 | K112: =IF(OR($C112="S",$C112=0),0,MATCH(OFFSET($D112,0,$C112)+IF($C112<>1,1,COUNTIF(QCI!$A$13:$A$24,ORÇAMENTO!E112)),OFFSET($D112,1,$C112,ROW($C$181)-ROW($C112)),0)) -> 0 | M112: Serviço | N112: Serviço | O112: - | P112: SINAPI | Q112: 95787 | R112: =IF($C112="S",REFERENCIA.Descricao,"(digite a descrição aqui)") -> (abra o arquivo 'Referência 12-2022.xls) | S112: - | T112: =OFFSET(CÁLCULO!H$15,ROW($T112)-ROW(T$15),0) -> 9 | U112: 0 | V112: BDI 1 | W112: 0 | X112: 0 | Y112: RA | AA112: =IF($C112="S",IF($Z112="CP",$X112,IF($Z112="RA",(($X112)*QCI!$AA$3),0)),SomaAgrup) -> 0 | AB112: 0 | AD112: =IF(C112<=CRONO.NivelExibicao,MAX($AD$15:OFFSET(AD112,-1,0))+IF($C112<>1,1,MAX(1,COUNTIF(QCI!$A$13:$A$24,OFFSET($E112,-1,0)))),"") ->  | AE112: SINAPI 95787 | AF112: (abra o arquivo 'Referência 12-2022.xls) | AG112: 0 | AH112: 0.2035 | AM112: 0 | AN112: 0
A113: S | B113: 2 | C113: S | D113: 0 | E113: =IF($C113=1,OFFSET(E113,-1,0)+MAX(1,COUNTIF(QCI!$A$13:$A$24,OFFSET(ORÇAMENTO!E113,-1,0))),OFFSET(E113,-1,0)) -> 1 | F113: 9 | G113: 0 | H113: 0 | I113: 0 | J113: 0 | K113: =IF(OR($C113="S",$C113=0),0,MATCH(OFFSET($D113,0,$C113)+IF($C113<>1,1,COUNTIF(QCI!$A$13:$A$24,ORÇAMENTO!E113)),OFFSET($D113,1,$C113,ROW($C$181)-ROW($C113)),0)) -> 0 | M113: Serviço | N113: Serviço | O113: - | P113: SINAPI | Q113: 95808 | R113: CONDULETE DE ALUMÍNIO, TIPO LL, PARA ELETRODUTO DE AÇO GALVANIZADO DN 25 MM (3/4''), APARENTE - FORNECIMENTO E INSTALAÇÃO. AF_11/2016 | S113: - | T113: =OFFSET(CÁLCULO!H$15,ROW($T113)-ROW(T$15),0) -> 8 | U113: 0 | V113: BDI 1 | W113: 0 | X113: 0 | Y113: RA | AA113: =IF($C113="S",IF($Z113="CP",$X113,IF($Z113="RA",(($X113)*QCI!$AA$3),0)),SomaAgrup) -> 0 | AB113: 0 | AD113: =IF(C113<=CRONO.NivelExibicao,MAX($AD$15:OFFSET(AD113,-1,0))+IF($C113<>1,1,MAX(1,COUNTIF(QCI!$A$13:$A$24,OFFSET($E113,-1,0)))),"") ->  | AE113: SINAPI 95808 | AF113: (abra o arquivo 'Referência 12-2022.xls) | AG113: 0 | AH113: 0.2035 | AM113: 0 | AN113: 0
A114: S | B114: 2 | C114: S | D114: 0 | E114: =IF($C114=1,OFFSET(E114,-1,0)+MAX(1,COUNTIF(QCI!$A$13:$A$24,OFFSET(ORÇAMENTO!E114,-1,0))),OFFSET(E114,-1,0)) -> 1 | F114: 9 | G114: 0 | H114: 0 | I114: 0 | J114: 0 | K114: =IF(OR($C114="S",$C114=0),0,MATCH(OFFSET($D114,0,$C114)+IF($C114<>1,1,COUNTIF(QCI!$A$13:$A$24,ORÇAMENTO!E114)),OFFSET($D114,1,$C114,ROW($C$181)-ROW($C114)),0)) -> 0 | M114: Serviço | N114: Serviço | O114: - | P114: SINAPI | Q114: 95795 | R114: =IF($C114="S",REFERENCIA.Descricao,"(digite a descrição aqui)") -> (abra o arquivo 'Referência 12-2022.xls) | S114: - | T114: =OFFSET(CÁLCULO!H$15,ROW($T114)-ROW(T$15),0) -> 2 | U114: 0 | V114: BDI 1 | W114: 0 | X114: 0 | Y114: RA | AA114: =IF($C114="S",IF($Z114="CP",$X114,IF($Z114="RA",(($X114)*QCI!$AA$3),0)),SomaAgrup) -> 0 | AB114: 0 | AD114: =IF(C114<=CRONO.NivelExibicao,MAX($AD$15:OFFSET(AD114,-1,0))+IF($C114<>1,1,MAX(1,COUNTIF(QCI!$A$13:$A$24,OFFSET($E114,-1,0)))),"") ->  | AE114: SINAPI 95795 | AF114: (abra o arquivo 'Referência 12-2022.xls) | AG114: 0 | AH114: 0.2035 | AM114: 0 | AN114: 0
A115: S | B115: 2 | C115: S | D115: 0 | E115: =IF($C115=1,OFFSET(E115,-1,0)+MAX(1,COUNTIF(QCI!$A$13:$A$24,OFFSET(ORÇAMENTO!E115,-1,0))),OFFSET(E115,-1,0)) -> 1 | F115: 9 | G115: 0 | H115: 0 | I115: 0 | J115: 0 | K115: =IF(OR($C115="S",$C115=0),0,MATCH(OFFSET($D115,0,$C115)+IF($C115<>1,1,COUNTIF(QCI!$A$13:$A$24,ORÇAMENTO!E115)),OFFSET($D115,1,$C115,ROW($C$181)-ROW($C115)),0)) -> 0 | M115: Serviço | N115: Serviço | O115: - | P115: SINAPI | Q115: 95791 | R115: =IF($C115="S",REFERENCIA.Descricao,"(digite a descrição aqui)") -> (abra o arquivo 'Referência 12-2022.xls) | S115: - | T115: =OFFSET(CÁLCULO!H$15,ROW($T115)-ROW(T$15),0) -> 12 | U115: 0 | V115: BDI 1 | W115: 0 | X115: 0 | Y115: RA | AA115: =IF($C115="S",IF($Z115="CP",$X115,IF($Z115="RA",(($X115)*QCI!$AA$3),0)),SomaAgrup) -> 0 | AB115: 0 | AD115: =IF(C115<=CRONO.NivelExibicao,MAX($AD$15:OFFSET(AD115,-1,0))+IF($C115<>1,1,MAX(1,COUNTIF(QCI!$A$13:$A$24,OFFSET($E115,-1,0)))),"") ->  | AE115: SINAPI 95791 | AF115: (abra o arquivo 'Referência 12-2022.xls) | AG115: 0 | AH115: 0.2035 | AM115: 0 | AN115: 0
A116: S | B116: 2 | C116: S | D116: 0 | E116: =IF($C116=1,OFFSET(E116,-1,0)+MAX(1,COUNTIF(QCI!$A$13:$A$24,OFFSET(ORÇAMENTO!E116,-1,0))),OFFSET(E116,-1,0)) -> 1 | F116: 9 | G116: 0 | H116: 0 | I116: 0 | J116: 0 | K116: =IF(OR($C116="S",$C116=0),0,MATCH(OFFSET($D116,0,$C116)+IF($C116<>1,1,COUNTIF(QCI!$A$13:$A$24,ORÇAMENTO!E116)),OFFSET($D116,1,$C116,ROW($C$181)-ROW($C116)),0)) -> 0 | M116: Serviço | N116: Serviço | O116: - | P116: DEINFRA | Q116: 43296 | R116: CONDULETE DE ALUMÍNIO, TIPO LL, PARA ELETRODUTO DE AÇO GALVANIZADO, DN 32 MM (1 1/4''), APARENTE - FORNECIMENTO E INSTALAÇÃO. AF_11/2016 | S116: - | T116: =OFFSET(CÁLCULO!H$15,ROW($T116)-ROW(T$15),0) -> 6 | U116: 0 | V116: BDI 1 | W116: 0 | X116: 0 | Y116: RA | AA116: =IF($C116="S",IF($Z116="CP",$X116,IF($Z116="RA",(($X116)*QCI!$AA$3),0)),SomaAgrup) -> 0 | AB116: 0 | AD116: =IF(C116<=CRONO.NivelExibicao,MAX($AD$15:OFFSET(AD116,-1,0))+IF($C116<>1,1,MAX(1,COUNTIF(QCI!$A$13:$A$24,OFFSET($E116,-1,0)))),"") ->  | AE116: DEINFRA 43296 | AF116: (abra o arquivo 'Referência 12-2022.xls) | AG116: 0 | AH116: 0.2035 | AM116: 0 | AN116: 0
A117: S | B117: 2 | C117: S | D117: 0 | E117: =IF($C117=1,OFFSET(E117,-1,0)+MAX(1,COUNTIF(QCI!$A$13:$A$24,OFFSET(ORÇAMENTO!E117,-1,0))),OFFSET(E117,-1,0)) -> 1 | F117: 9 | G117: 0 | H117: 0 | I117: 0 | J117: 0 | K117: =IF(OR($C117="S",$C117=0),0,MATCH(OFFSET($D117,0,$C117)+IF($C117<>1,1,COUNTIF(QCI!$A$13:$A$24,ORÇAMENTO!E117)),OFFSET($D117,1,$C117,ROW($C$181)-ROW($C117)),0)) -> 0 | M117: Serviço | N117: Serviço | O117: - | P117: SINAPI | Q117: 91953 | R117: =IF($C117="S",REFERENCIA.Descricao,"(digite a descrição aqui)") -> (abra o arquivo 'Referência 12-2022.xls) | S117: - | T117: =OFFSET(CÁLCULO!H$15,ROW($T117)-ROW(T$15),0) -> 2 | U117: 0 | V117: BDI 1 | W117: 0 | X117: 0 | Y117: RA | AA117: =IF($C117="S",IF($Z117="CP",$X117,IF($Z117="RA",(($X117)*QCI!$AA$3),0)),SomaAgrup) -> 0 | AB117: 0 | AD117: =IF(C117<=CRONO.NivelExibicao,MAX($AD$15:OFFSET(AD117,-1,0))+IF($C117<>1,1,MAX(1,COUNTIF(QCI!$A$13:$A$24,OFFSET($E117,-1,0)))),"") ->  | AE117: SINAPI 91953 | AF117: (abra o arquivo 'Referência 12-2022.xls) | AG117: 0 | AH117: 0.2035 | AM117: 0 | AN117: 0
A118: S | B118: 2 | C118: S | D118: 0 | E118: =IF($C118=1,OFFSET(E118,-1,0)+MAX(1,COUNTIF(QCI!$A$13:$A$24,OFFSET(ORÇAMENTO!E118,-1,0))),OFFSET(E118,-1,0)) -> 1 | F118: 9 | G118: 0 | H118: 0 | I118: 0 | J118: 0 | K118: =IF(OR($C118="S",$C118=0),0,MATCH(OFFSET($D118,0,$C118)+IF($C118<>1,1,COUNTIF(QCI!$A$13:$A$24,ORÇAMENTO!E118)),OFFSET($D118,1,$C118,ROW($C$181)-ROW($C118)),0)) -> 0 | M118: Serviço | N118: Serviço | O118: - | P118: Composição | Q118: 12 | R118: =IF($C118="S",REFERENCIA.Descricao,"(digite a descrição aqui)") -> (abra o arquivo 'Referência 12-2022.xls) | S118: - | T118: =OFFSET(CÁLCULO!H$15,ROW($T118)-ROW(T$15),0) -> 36.85 | U118: 0 | V118: BDI 1 | W118: 0 | X118: 0 | Y118: RA | AA118: =IF($C118="S",IF($Z118="CP",$X118,IF($Z118="RA",(($X118)*QCI!$AA$3),0)),SomaAgrup) -> 0 | AB118: 0 | AD118: =IF(C118<=CRONO.NivelExibicao,MAX($AD$15:OFFSET(AD118,-1,0))+IF($C118<>1,1,MAX(1,COUNTIF(QCI!$A$13:$A$24,OFFSET($E118,-1,0)))),"") ->  | AE118: Composição 12 | AF118: (abra o arquivo 'Referência 12-2022.xls) | AG118: 0 | AH118: 0.2035 | AM118: 0 | AN118: 0
A119: S | B119: 2 | C119: S | D119: 0 | E119: =IF($C119=1,OFFSET(E119,-1,0)+MAX(1,COUNTIF(QCI!$A$13:$A$24,OFFSET(ORÇAMENTO!E119,-1,0))),OFFSET(E119,-1,0)) -> 1 | F119: 9 | G119: 0 | H119: 0 | I119: 0 | J119: 0 | K119: =IF(OR($C119="S",$C119=0),0,MATCH(OFFSET($D119,0,$C119)+IF($C119<>1,1,COUNTIF(QCI!$A$13:$A$24,ORÇAMENTO!E119)),OFFSET($D119,1,$C119,ROW($C$181)-ROW($C119)),0)) -> 0 | M119: Serviço | N119: Serviço | O119: - | P119: Composição | Q119: 13 | R119: =IF($C119="S",REFERENCIA.Descricao,"(digite a descrição aqui)") -> (abra o arquivo 'Referência 12-2022.xls) | S119: - | T119: =OFFSET(CÁLCULO!H$15,ROW($T119)-ROW(T$15),0) -> 9.87 | U119: 0 | V119: BDI 1 | W119: 0 | X119: 0 | Y119: RA | AA119: =IF($C119="S",IF($Z119="CP",$X119,IF($Z119="RA",(($X119)*QCI!$AA$3),0)),SomaAgrup) -> 0 | AB119: 0 | AD119: =IF(C119<=CRONO.NivelExibicao,MAX($AD$15:OFFSET(AD119,-1,0))+IF($C119<>1,1,MAX(1,COUNTIF(QCI!$A$13:$A$24,OFFSET($E119,-1,0)))),"") ->  | AE119: Composição 13 | AF119: (abra o arquivo 'Referência 12-2022.xls) | AG119: 0 | AH119: 0.2035 | AM119: 0 | AN119: 0
A120: S | B120: 2 | C120: S | D120: 0 | E120: =IF($C120=1,OFFSET(E120,-1,0)+MAX(1,COUNTIF(QCI!$A$13:$A$24,OFFSET(ORÇAMENTO!E120,-1,0))),OFFSET(E120,-1,0)) -> 1 | F120: 9 | G120: 0 | H120: 0 | I120: 0 | J120: 0 | K120: =IF(OR($C120="S",$C120=0),0,MATCH(OFFSET($D120,0,$C120)+IF($C120<>1,1,COUNTIF(QCI!$A$13:$A$24,ORÇAMENTO!E120)),OFFSET($D120,1,$C120,ROW($C$181)-ROW($C120)),0)) -> 0 | M120: Serviço | N120: Serviço | O120: - | P120: Composição | Q120: 14 | R120: =IF($C120="S",REFERENCIA.Descricao,"(digite a descrição aqui)") -> (abra o arquivo 'Referência 12-2022.xls) | S120: - | T120: =OFFSET(CÁLCULO!H$15,ROW($T120)-ROW(T$15),0) -> 27 | U120: 0 | V120: BDI 1 | W120: 0 | X120: 0 | Y120: RA | AA120: =IF($C120="S",IF($Z120="CP",$X120,IF($Z120="RA",(($X120)*QCI!$AA$3),0)),SomaAgrup) -> 0 | AB120: 0 | AD120: =IF(C120<=CRONO.NivelExibicao,MAX($AD$15:OFFSET(AD120,-1,0))+IF($C120<>1,1,MAX(1,COUNTIF(QCI!$A$13:$A$24,OFFSET($E120,-1,0)))),"") ->  | AE120: Composição 14 | AF120: (abra o arquivo 'Referência 12-2022.xls) | AG120: 0 | AH120: 0.2035 | AM120: 0 | AN120: 0
A121: S | B121: 2 | C121: S | D121: 0 | E121: =IF($C121=1,OFFSET(E121,-1,0)+MAX(1,COUNTIF(QCI!$A$13:$A$24,OFFSET(ORÇAMENTO!E121,-1,0))),OFFSET(E121,-1,0)) -> 1 | F121: 9 | G121: 0 | H121: 0 | I121: 0 | J121: 0 | K121: =IF(OR($C121="S",$C121=0),0,MATCH(OFFSET($D121,0,$C121)+IF($C121<>1,1,COUNTIF(QCI!$A$13:$A$24,ORÇAMENTO!E121)),OFFSET($D121,1,$C121,ROW($C$181)-ROW($C121)),0)) -> 0 | M121: Serviço | N121: Serviço | O121: - | P121: Composição | Q121: 15 | R121: =IF($C121="S",REFERENCIA.Descricao,"(digite a descrição aqui)") -> (abra o arquivo 'Referência 12-2022.xls) | S121: - | T121: =OFFSET(CÁLCULO!H$15,ROW($T121)-ROW(T$15),0) -> 19.73 | U121: 0 | V121: BDI 1 | W121: 0 | X121: 0 | Y121: RA | AA121: =IF($C121="S",IF($Z121="CP",$X121,IF($Z121="RA",(($X121)*QCI!$AA$3),0)),SomaAgrup) -> 0 | AB121: 0 | AD121: =IF(C121<=CRONO.NivelExibicao,MAX($AD$15:OFFSET(AD121,-1,0))+IF($C121<>1,1,MAX(1,COUNTIF(QCI!$A$13:$A$24,OFFSET($E121,-1,0)))),"") ->  | AE121: Composição 15 | AF121: (abra o arquivo 'Referência 12-2022.xls) | AG121: 0 | AH121: 0.2035 | AM121: 0 | AN121: 0
A122: S | B122: 2 | C122: S | D122: 0 | E122: =IF($C122=1,OFFSET(E122,-1,0)+MAX(1,COUNTIF(QCI!$A$13:$A$24,OFFSET(ORÇAMENTO!E122,-1,0))),OFFSET(E122,-1,0)) -> 1 | F122: 9 | G122: 0 | H122: 0 | I122: 0 | J122: 0 | K122: =IF(OR($C122="S",$C122=0),0,MATCH(OFFSET($D122,0,$C122)+IF($C122<>1,1,COUNTIF(QCI!$A$13:$A$24,ORÇAMENTO!E122)),OFFSET($D122,1,$C122,ROW($C$181)-ROW($C122)),0)) -> 0 | M122: Serviço | N122: Serviço | O122: - | P122: SINAPI | Q122: 91860 | R122: ELETRODUTO FLEXÍVEL CORRUGADO, PEAD, DN 40 MM (1 1/4"), PARA CIRCUITOS TERMINAIS - FORNECIMENTO E INSTALAÇÃO. AF_12/2015 | S122: - | T122: =OFFSET(CÁLCULO!H$15,ROW($T122)-ROW(T$15),0) -> 36.41 | U122: 0 | V122: BDI 1 | W122: 0 | X122: 0 | Y122: RA | AA122: =IF($C122="S",IF($Z122="CP",$X122,IF($Z122="RA",(($X122)*QCI!$AA$3),0)),SomaAgrup) -> 0 | AB122: 0 | AD122: =IF(C122<=CRONO.NivelExibicao,MAX($AD$15:OFFSET(AD122,-1,0))+IF($C122<>1,1,MAX(1,COUNTIF(QCI!$A$13:$A$24,OFFSET($E122,-1,0)))),"") ->  | AE122: SINAPI 91860 | AF122: (abra o arquivo 'Referência 12-2022.xls) | AG122: 0 | AH122: 0.2035 | AM122: 0 | AN122: 0
A123: S | B123: 2 | C123: S | D123: 0 | E123: =IF($C123=1,OFFSET(E123,-1,0)+MAX(1,COUNTIF(QCI!$A$13:$A$24,OFFSET(ORÇAMENTO!E123,-1,0))),OFFSET(E123,-1,0)) -> 1 | F123: 9 | G123: 0 | H123: 0 | I123: 0 | J123: 0 | K123: =IF(OR($C123="S",$C123=0),0,MATCH(OFFSET($D123,0,$C123)+IF($C123<>1,1,COUNTIF(QCI!$A$13:$A$24,ORÇAMENTO!E123)),OFFSET($D123,1,$C123,ROW($C$181)-ROW($C123)),0)) -> 0 | M123: Serviço | N123: Serviço | O123: - | P123: SINAPI | Q123: 92833 | R123: =IF($C123="S",REFERENCIA.Descricao,"(digite a descrição aqui)") -> (abra o arquivo 'Referência 12-2022.xls) | S123: - | T123: =OFFSET(CÁLCULO!H$15,ROW($T123)-ROW(T$15),0) -> 36.41 | U123: 0 | V123: BDI 1 | W123: 0 | X123: 0 | Y123: RA | AA123: =IF($C123="S",IF($Z123="CP",$X123,IF($Z123="RA",(($X123)*QCI!$AA$3),0)),SomaAgrup) -> 0 | AB123: 0 | AD123: =IF(C123<=CRONO.NivelExibicao,MAX($AD$15:OFFSET(AD123,-1,0))+IF($C123<>1,1,MAX(1,COUNTIF(QCI!$A$13:$A$24,OFFSET($E123,-1,0)))),"") ->  | AE123: SINAPI 92833 | AF123: (abra o arquivo 'Referência 12-2022.xls) | AG123: 0 | AH123: 0.2035 | AM123: 0 | AN123: 0
A124: S | B124: 2 | C124: S | D124: 0 | E124: =IF($C124=1,OFFSET(E124,-1,0)+MAX(1,COUNTIF(QCI!$A$13:$A$24,OFFSET(ORÇAMENTO!E124,-1,0))),OFFSET(E124,-1,0)) -> 1 | F124: 9 | G124: 0 | H124: 0 | I124: 0 | J124: 0 | K124: =IF(OR($C124="S",$C124=0),0,MATCH(OFFSET($D124,0,$C124)+IF($C124<>1,1,COUNTIF(QCI!$A$13:$A$24,ORÇAMENTO!E124)),OFFSET($D124,1,$C124,ROW($C$181)-ROW($C124)),0)) -> 0 | M124: Serviço | N124: Serviço | O124: - | P124: SINAPI | Q124: 91933 | R124: =IF($C124="S",REFERENCIA.Descricao,"(digite a descrição aqui)") -> (abra o arquivo 'Referência 12-2022.xls) | S124: - | T124: =OFFSET(CÁLCULO!H$15,ROW($T124)-ROW(T$15),0) -> 280.41 | U124: 0 | V124: BDI 1 | W124: 0 | X124: 0 | Y124: RA | AA124: =IF($C124="S",IF($Z124="CP",$X124,IF($Z124="RA",(($X124)*QCI!$AA$3),0)),SomaAgrup) -> 0 | AB124: 0 | AD124: =IF(C124<=CRONO.NivelExibicao,MAX($AD$15:OFFSET(AD124,-1,0))+IF($C124<>1,1,MAX(1,COUNTIF(QCI!$A$13:$A$24,OFFSET($E124,-1,0)))),"") ->  | AE124: SINAPI 91933 | AF124: (abra o arquivo 'Referência 12-2022.xls) | AG124: 0 | AH124: 0.2035 | AM124: 0 | AN124: 0
A125: S | B125: 2 | C125: S | D125: 0 | E125: =IF($C125=1,OFFSET(E125,-1,0)+MAX(1,COUNTIF(QCI!$A$13:$A$24,OFFSET(ORÇAMENTO!E125,-1,0))),OFFSET(E125,-1,0)) -> 1 | F125: 9 | G125: 0 | H125: 0 | I125: 0 | J125: 0 | K125: =IF(OR($C125="S",$C125=0),0,MATCH(OFFSET($D125,0,$C125)+IF($C125<>1,1,COUNTIF(QCI!$A$13:$A$24,ORÇAMENTO!E125)),OFFSET($D125,1,$C125,ROW($C$181)-ROW($C125)),0)) -> 0 | M125: Serviço | N125: Serviço | O125: - | P125: SINAPI | Q125: 91926 | R125: =IF($C125="S",REFERENCIA.Descricao,"(digite a descrição aqui)") -> (abra o arquivo 'Referência 12-2022.xls) | S125: - | T125: =OFFSET(CÁLCULO!H$15,ROW($T125)-ROW(T$15),0) -> 112.12 | U125: 0 | V125: BDI 1 | W125: 0 | X125: 0 | Y125: RA | AA125: =IF($C125="S",IF($Z125="CP",$X125,IF($Z125="RA",(($X125)*QCI!$AA$3),0)),SomaAgrup) -> 0 | AB125: 0 | AD125: =IF(C125<=CRONO.NivelExibicao,MAX($AD$15:OFFSET(AD125,-1,0))+IF($C125<>1,1,MAX(1,COUNTIF(QCI!$A$13:$A$24,OFFSET($E125,-1,0)))),"") ->  | AE125: SINAPI 91926 | AF125: (abra o arquivo 'Referência 12-2022.xls) | AG125: 0 | AH125: 0.2035 | AM125: 0 | AN125: 0
A126: S | B126: 2 | C126: S | D126: 0 | E126: =IF($C126=1,OFFSET(E126,-1,0)+MAX(1,COUNTIF(QCI!$A$13:$A$24,OFFSET(ORÇAMENTO!E126,-1,0))),OFFSET(E126,-1,0)) -> 1 | F126: 9 | G126: 0 | H126: 0 | I126: 0 | J126: 0 | K126: =IF(OR($C126="S",$C126=0),0,MATCH(OFFSET($D126,0,$C126)+IF($C126<>1,1,COUNTIF(QCI!$A$13:$A$24,ORÇAMENTO!E126)),OFFSET($D126,1,$C126,ROW($C$181)-ROW($C126)),0)) -> 0 | M126: Serviço | N126: Serviço | O126: - | P126: SINAPI | Q126: 97586 | R126: =IF($C126="S",REFERENCIA.Descricao,"(digite a descrição aqui)") -> (abra o arquivo 'Referência 12-2022.xls) | S126: - | T126: =OFFSET(CÁLCULO!H$15,ROW($T126)-ROW(T$15),0) -> 4 | U126: 0 | V126: BDI 1 | W126: 0 | X126: 0 | Y126: RA | AA126: =IF($C126="S",IF($Z126="CP",$X126,IF($Z126="RA",(($X126)*QCI!$AA$3),0)),SomaAgrup) -> 0 | AB126: 0 | AD126: =IF(C126<=CRONO.NivelExibicao,MAX($AD$15:OFFSET(AD126,-1,0))+IF($C126<>1,1,MAX(1,COUNTIF(QCI!$A$13:$A$24,OFFSET($E126,-1,0)))),"") ->  | AE126: SINAPI 97586 | AF126: (abra o arquivo 'Referência 12-2022.xls) | AG126: 0 | AH126: 0.2035 | AM126: 0 | AN126: 0
A127: =CHOOSE(1+LOG(1+2*(ORÇAMENTO.Nivel="Meta")+4*(ORÇAMENTO.Nivel="Nível 2")+8*(ORÇAMENTO.Nivel="Nível 3")+16*(ORÇAMENTO.Nivel="Nível 4")+32*(ORÇAMENTO.Nivel="Serviço"),2),0,1,2,3,4,"S") -> S | B127: =IF(OR(C127="s",C127=0),OFFSET(B127,-1,0),C127) -> 2 | C127: =IF(OFFSET(C127,-1,0)="L",1,IF(OFFSET(C127,-1,0)=1,2,IF(OR(A127="s",A127=0),"S",IF(AND(OFFSET(C127,-1,0)=2,A127=4),3,IF(AND(OR(OFFSET(C127,-1,0)="s",OFFSET(C127,-1,0)=0),A127<>"s",A127>OFFSET(B127,-1,0)),OFFSET(B127,-1,0),A127))))) -> S | D127: =IF(OR(C127="S",C127=0),0,IF(ISERROR(K127),J127,SMALL(J127:K127,1))) -> 0 | E127: =IF($C127=1,OFFSET(E127,-1,0)+MAX(1,COUNTIF(QCI!$A$13:$A$24,OFFSET(ORÇAMENTO!E127,-1,0))),OFFSET(E127,-1,0)) -> 1 | F127: =IF($C127=1,0,IF($C127=2,OFFSET(F127,-1,0)+1,OFFSET(F127,-1,0))) -> 9 | G127: =IF(AND($C127<=2,$C127<>0),0,IF($C127=3,OFFSET(G127,-1,0)+1,OFFSET(G127,-1,0))) -> 0 | H127: =IF(AND($C127<=3,$C127<>0),0,IF($C127=4,OFFSET(H127,-1,0)+1,OFFSET(H127,-1,0))) -> 0 | I127: =IF(AND($C127<=4,$C127<>0),0,IF(AND($C127="S",$X127>0),OFFSET(I127,-1,0)+1,OFFSET(I127,-1,0))) -> 0 | J127: 0 | K127: =IF(OR($C127="S",$C127=0),0,MATCH(OFFSET($D127,0,$C127)+IF($C127<>1,1,COUNTIF(QCI!$A$13:$A$24,ORÇAMENTO!E127)),OFFSET($D127,1,$C127,ROW($C$181)-ROW($C127)),0)) -> 0 | L127: =IF(OR($X127>0,$C127=1,$C127=2,$C127=3,$C127=4),"F","") ->  | M127: Serviço | N127: =CHOOSE(1+LOG(1+2*(C127=1)+4*(C127=2)+8*(C127=3)+16*(C127=4)+32*(C127="S"),2),"","Meta","Nível 2","Nível 3","Nível 4","Serviço") -> Serviço | O127: =IF(OR($C127=0,$L127=""),"-",CONCATENATE(E127&".",IF(AND($A$5>=2,$C127>=2),F127&".",""),IF(AND($A$5>=3,$C127>=3),G127&".",""),IF(AND($A$5>=4,$C127>=4),H127&".",""),IF($C127="S",I127&".",""))) -> - | P127: SINAPI | Q127: 101878 | R127: =IF($C127="S",REFERENCIA.Descricao,"(digite a descrição aqui)") -> (abra o arquivo 'Referência 12-2022.xls) | S127: =REFERENCIA.Unidade -> - | T127: =OFFSET(CÁLCULO!H$15,ROW($T127)-ROW(T$15),0) -> 1 | U127: 0 | V127: BDI 1 | W127: =IF($C127="S",ROUND(IF(TIPOORCAMENTO="Proposto",ORÇAMENTO.CustoUnitario*(1+$AH127),ORÇAMENTO.PrecoUnitarioLicitado),15-13*$AF$10),0) -> 0 | X127: =IF($C127="S",VTOTAL1,IF($C127=0,0,ROUND(SomaAgrup,15-13*$AF$11))) -> 0 | Y127: RA | Z127: =IF(AND($C127="S",$X127>0),IF(ISBLANK($Y127),"RA",LEFT($Y127,2)),"") ->  | AA127: =IF($C127="S",IF($Z127="CP",$X127,IF($Z127="RA",(($X127)*QCI!$AA$3),0)),SomaAgrup) -> 0 | AB127: =IF($C127="S",IF($Z127="OU",ROUND($X127,2),0),SomaAgrup) -> 0 | AC127: =IF($N127="","",IF(ORÇAMENTO.Descricao="","DESCRIÇÃO",IF(AND($C127="S",ORÇAMENTO.Unidade=""),"UNIDADE",IF($X127<0,"VALOR NEGATIVO",IF(OR(AND(TIPOORCAMENTO="Proposto",$AG127<>"",$AG127>0,ORÇAMENTO.CustoUnitario>$AG127),AND(TIPOORCAMENTO="LICITADO",ORÇAMENTO.PrecoUnitarioLicitado>$AN127)),"ACIMA REF.",""))))) ->  | AD127: =IF(C127<=CRONO.NivelExibicao,MAX($AD$15:OFFSET(AD127,-1,0))+IF($C127<>1,1,MAX(1,COUNTIF(QCI!$A$13:$A$24,OFFSET($E127,-1,0)))),"") ->  | AE127: =IF(AND($C127="S",ORÇAMENTO.CodBarra<>""),IF(ORÇAMENTO.Fonte="",ORÇAMENTO.CodBarra,CONCATENATE(ORÇAMENTO.Fonte," ",ORÇAMENTO.CodBarra))) -> SINAPI 101878 | AF127: =IF(ISERROR(INDIRECT(ORÇAMENTO.BancoRef)),"(abra o arquivo 'Referência "&Excel_BuiltIn_Database&".xls)",IF(OR($C127<>"S",ORÇAMENTO.CodBarra=""),"(Sem Código)",IF(ISERROR(MATCH($AE127,INDIRECT(ORÇAMENTO.BancoRef),0)),"(Código não identificado nas referências)",MATCH($AE127,INDIRECT(ORÇAMENTO.BancoRef),0)))) -> (abra o arquivo 'Referência 12-2022.xls) | AG127: =ROUND(IF(DESONERACAO="sim",REFERENCIA.Desonerado,REFERENCIA.NaoDesonerado),2) -> 0 | AH127: =ROUND(IF(ISNUMBER(ORÇAMENTO.OpcaoBDI),ORÇAMENTO.OpcaoBDI,IF(LEFT(ORÇAMENTO.OpcaoBDI,3)="BDI",HLOOKUP(ORÇAMENTO.OpcaoBDI,$F$4:$H$5,2,FALSE),0)),15-11*$AF$9) -> 0.2035 | AM127: 0 | AN127: =ROUND(ORÇAMENTO.CustoUnitario*(1+$AH127),2) -> 0
A128: S | B128: 2 | C128: S | D128: 0 | E128: =IF($C128=1,OFFSET(E128,-1,0)+MAX(1,COUNTIF(QCI!$A$13:$A$24,OFFSET(ORÇAMENTO!E128,-1,0))),OFFSET(E128,-1,0)) -> 1 | F128: 9 | G128: 0 | H128: 0 | I128: 0 | J128: 0 | K128: =IF(OR($C128="S",$C128=0),0,MATCH(OFFSET($D128,0,$C128)+IF($C128<>1,1,COUNTIF(QCI!$A$13:$A$24,ORÇAMENTO!E128)),OFFSET($D128,1,$C128,ROW($C$181)-ROW($C128)),0)) -> 0 | M128: Serviço | N128: Serviço | O128: - | P128: SINAPI | Q128: 93668 | R128: =IF($C128="S",REFERENCIA.Descricao,"(digite a descrição aqui)") -> (abra o arquivo 'Referência 12-2022.xls) | S128: - | T128: =OFFSET(CÁLCULO!H$15,ROW($T128)-ROW(T$15),0) -> 1 | U128: 0 | V128: BDI 1 | W128: 0 | X128: 0 | Y128: RA | AA128: =IF($C128="S",IF($Z128="CP",$X128,IF($Z128="RA",(($X128)*QCI!$AA$3),0)),SomaAgrup) -> 0 | AB128: 0 | AD128: =IF(C128<=CRONO.NivelExibicao,MAX($AD$15:OFFSET(AD128,-1,0))+IF($C128<>1,1,MAX(1,COUNTIF(QCI!$A$13:$A$24,OFFSET($E128,-1,0)))),"") ->  | AE128: SINAPI 93668 | AF128: (abra o arquivo 'Referência 12-2022.xls) | AG128: 0 | AH128: 0.2035 | AM128: 0 | AN128: 0
A129: S | B129: 2 | C129: S | D129: 0 | E129: =IF($C129=1,OFFSET(E129,-1,0)+MAX(1,COUNTIF(QCI!$A$13:$A$24,OFFSET(ORÇAMENTO!E129,-1,0))),OFFSET(E129,-1,0)) -> 1 | F129: 9 | G129: 0 | H129: 0 | I129: 0 | J129: 0 | K129: =IF(OR($C129="S",$C129=0),0,MATCH(OFFSET($D129,0,$C129)+IF($C129<>1,1,COUNTIF(QCI!$A$13:$A$24,ORÇAMENTO!E129)),OFFSET($D129,1,$C129,ROW($C$181)-ROW($C129)),0)) -> 0 | M129: Serviço | N129: Serviço | O129: - | P129: SINAPI | Q129: 93670 | R129: =IF($C129="S",REFERENCIA.Descricao,"(digite a descrição aqui)") -> (abra o arquivo 'Referência 12-2022.xls) | S129: - | T129: =OFFSET(CÁLCULO!H$15,ROW($T129)-ROW(T$15),0) -> 1 | U129: 0 | V129: BDI 1 | W129: 0 | X129: 0 | Y129: RA | AA129: =IF($C129="S",IF($Z129="CP",$X129,IF($Z129="RA",(($X129)*QCI!$AA$3),0)),SomaAgrup) -> 0 | AB129: 0 | AD129: =IF(C129<=CRONO.NivelExibicao,MAX($AD$15:OFFSET(AD129,-1,0))+IF($C129<>1,1,MAX(1,COUNTIF(QCI!$A$13:$A$24,OFFSET($E129,-1,0)))),"") ->  | AE129: SINAPI 93670 | AF129: (abra o arquivo 'Referência 12-2022.xls) | AG129: 0 | AH129: 0.2035 | AM129: 0 | AN129: 0
A130: =CHOOSE(1+LOG(1+2*(ORÇAMENTO.Nivel="Meta")+4*(ORÇAMENTO.Nivel="Nível 2")+8*(ORÇAMENTO.Nivel="Nível 3")+16*(ORÇAMENTO.Nivel="Nível 4")+32*(ORÇAMENTO.Nivel="Serviço"),2),0,1,2,3,4,"S") -> S | B130: =IF(OR(C130="s",C130=0),OFFSET(B130,-1,0),C130) -> 2 | C130: =IF(OFFSET(C130,-1,0)="L",1,IF(OFFSET(C130,-1,0)=1,2,IF(OR(A130="s",A130=0),"S",IF(AND(OFFSET(C130,-1,0)=2,A130=4),3,IF(AND(OR(OFFSET(C130,-1,0)="s",OFFSET(C130,-1,0)=0),A130<>"s",A130>OFFSET(B130,-1,0)),OFFSET(B130,-1,0),A130))))) -> S | D130: =IF(OR(C130="S",C130=0),0,IF(ISERROR(K130),J130,SMALL(J130:K130,1))) -> 0 | E130: =IF($C130=1,OFFSET(E130,-1,0)+MAX(1,COUNTIF(QCI!$A$13:$A$24,OFFSET(ORÇAMENTO!E130,-1,0))),OFFSET(E130,-1,0)) -> 1 | F130: =IF($C130=1,0,IF($C130=2,OFFSET(F130,-1,0)+1,OFFSET(F130,-1,0))) -> 9 | G130: =IF(AND($C130<=2,$C130<>0),0,IF($C130=3,OFFSET(G130,-1,0)+1,OFFSET(G130,-1,0))) -> 0 | H130: =IF(AND($C130<=3,$C130<>0),0,IF($C130=4,OFFSET(H130,-1,0)+1,OFFSET(H130,-1,0))) -> 0 | I130: =IF(AND($C130<=4,$C130<>0),0,IF(AND($C130="S",$X130>0),OFFSET(I130,-1,0)+1,OFFSET(I130,-1,0))) -> 0 | J130: 0 | K130: =IF(OR($C130="S",$C130=0),0,MATCH(OFFSET($D130,0,$C130)+IF($C130<>1,1,COUNTIF(QCI!$A$13:$A$24,ORÇAMENTO!E130)),OFFSET($D130,1,$C130,ROW($C$181)-ROW($C130)),0)) -> 0 | L130: =IF(OR($X130>0,$C130=1,$C130=2,$C130=3,$C130=4),"F","") ->  | M130: Serviço | N130: =CHOOSE(1+LOG(1+2*(C130=1)+4*(C130=2)+8*(C130=3)+16*(C130=4)+32*(C130="S"),2),"","Meta","Nível 2","Nível 3","Nível 4","Serviço") -> Serviço | O130: =IF(OR($C130=0,$L130=""),"-",CONCATENATE(E130&".",IF(AND($A$5>=2,$C130>=2),F130&".",""),IF(AND($A$5>=3,$C130>=3),G130&".",""),IF(AND($A$5>=4,$C130>=4),H130&".",""),IF($C130="S",I130&".",""))) -> - | P130: Composição | Q130: 20 | R130: =IF($C130="S",REFERENCIA.Descricao,"(digite a descrição aqui)") -> (abra o arquivo 'Referência 12-2022.xls) | S130: =REFERENCIA.Unidade -> - | T130: =OFFSET(CÁLCULO!H$15,ROW($T130)-ROW(T$15),0) -> 2 | U130: 0 | V130: BDI 1 | W130: =IF($C130="S",ROUND(IF(TIPOORCAMENTO="Proposto",ORÇAMENTO.CustoUnitario*(1+$AH130),ORÇAMENTO.PrecoUnitarioLicitado),15-13*$AF$10),0) -> 0 | X130: =IF($C130="S",VTOTAL1,IF($C130=0,0,ROUND(SomaAgrup,15-13*$AF$11))) -> 0 | Y130: RA | Z130: =IF(AND($C130="S",$X130>0),IF(ISBLANK($Y130),"RA",LEFT($Y130,2)),"") ->  | AA130: =IF($C130="S",IF($Z130="CP",$X130,IF($Z130="RA",(($X130)*QCI!$AA$3),0)),SomaAgrup) -> 0 | AB130: =IF($C130="S",IF($Z130="OU",ROUND($X130,2),0),SomaAgrup) -> 0 | AC130: =IF($N130="","",IF(ORÇAMENTO.Descricao="","DESCRIÇÃO",IF(AND($C130="S",ORÇAMENTO.Unidade=""),"UNIDADE",IF($X130<0,"VALOR NEGATIVO",IF(OR(AND(TIPOORCAMENTO="Proposto",$AG130<>"",$AG130>0,ORÇAMENTO.CustoUnitario>$AG130),AND(TIPOORCAMENTO="LICITADO",ORÇAMENTO.PrecoUnitarioLicitado>$AN130)),"ACIMA REF.",""))))) ->  | AD130: =IF(C130<=CRONO.NivelExibicao,MAX($AD$15:OFFSET(AD130,-1,0))+IF($C130<>1,1,MAX(1,COUNTIF(QCI!$A$13:$A$24,OFFSET($E130,-1,0)))),"") ->  | AE130: =IF(AND($C130="S",ORÇAMENTO.CodBarra<>""),IF(ORÇAMENTO.Fonte="",ORÇAMENTO.CodBarra,CONCATENATE(ORÇAMENTO.Fonte," ",ORÇAMENTO.CodBarra))) -> Composição 20 | AF130: =IF(ISERROR(INDIRECT(ORÇAMENTO.BancoRef)),"(abra o arquivo 'Referência "&Excel_BuiltIn_Database&".xls)",IF(OR($C130<>"S",ORÇAMENTO.CodBarra=""),"(Sem Código)",IF(ISERROR(MATCH($AE130,INDIRECT(ORÇAMENTO.BancoRef),0)),"(Código não identificado nas referências)",MATCH($AE130,INDIRECT(ORÇAMENTO.BancoRef),0)))) -> (abra o arquivo 'Referência 12-2022.xls) | AG130: =ROUND(IF(DESONERACAO="sim",REFERENCIA.Desonerado,REFERENCIA.NaoDesonerado),2) -> 0 | AH130: =ROUND(IF(ISNUMBER(ORÇAMENTO.OpcaoBDI),ORÇAMENTO.OpcaoBDI,IF(LEFT(ORÇAMENTO.OpcaoBDI,3)="BDI",HLOOKUP(ORÇAMENTO.OpcaoBDI,$F$4:$H$5,2,FALSE),0)),15-11*$AF$9) -> 0.2035 | AM130: 0 | AN130: =ROUND(ORÇAMENTO.CustoUnitario*(1+$AH130),2) -> 0
A131: =CHOOSE(1+LOG(1+2*(ORÇAMENTO.Nivel="Meta")+4*(ORÇAMENTO.Nivel="Nível 2")+8*(ORÇAMENTO.Nivel="Nível 3")+16*(ORÇAMENTO.Nivel="Nível 4")+32*(ORÇAMENTO.Nivel="Serviço"),2),0,1,2,3,4,"S") -> S | B131: =IF(OR(C131="s",C131=0),OFFSET(B131,-1,0),C131) -> 2 | C131: =IF(OFFSET(C131,-1,0)="L",1,IF(OFFSET(C131,-1,0)=1,2,IF(OR(A131="s",A131=0),"S",IF(AND(OFFSET(C131,-1,0)=2,A131=4),3,IF(AND(OR(OFFSET(C131,-1,0)="s",OFFSET(C131,-1,0)=0),A131<>"s",A131>OFFSET(B131,-1,0)),OFFSET(B131,-1,0),A131))))) -> S | D131: =IF(OR(C131="S",C131=0),0,IF(ISERROR(K131),J131,SMALL(J131:K131,1))) -> 0 | E131: =IF($C131=1,OFFSET(E131,-1,0)+MAX(1,COUNTIF(QCI!$A$13:$A$24,OFFSET(ORÇAMENTO!E131,-1,0))),OFFSET(E131,-1,0)) -> 1 | F131: =IF($C131=1,0,IF($C131=2,OFFSET(F131,-1,0)+1,OFFSET(F131,-1,0))) -> 9 | G131: =IF(AND($C131<=2,$C131<>0),0,IF($C131=3,OFFSET(G131,-1,0)+1,OFFSET(G131,-1,0))) -> 0 | H131: =IF(AND($C131<=3,$C131<>0),0,IF($C131=4,OFFSET(H131,-1,0)+1,OFFSET(H131,-1,0))) -> 0 | I131: =IF(AND($C131<=4,$C131<>0),0,IF(AND($C131="S",$X131>0),OFFSET(I131,-1,0)+1,OFFSET(I131,-1,0))) -> 0 | J131: 0 | K131: =IF(OR($C131="S",$C131=0),0,MATCH(OFFSET($D131,0,$C131)+IF($C131<>1,1,COUNTIF(QCI!$A$13:$A$24,ORÇAMENTO!E131)),OFFSET($D131,1,$C131,ROW($C$181)-ROW($C131)),0)) -> 0 | L131: =IF(OR($X131>0,$C131=1,$C131=2,$C131=3,$C131=4),"F","") ->  | M131: Serviço | N131: =CHOOSE(1+LOG(1+2*(C131=1)+4*(C131=2)+8*(C131=3)+16*(C131=4)+32*(C131="S"),2),"","Meta","Nível 2","Nível 3","Nível 4","Serviço") -> Serviço | O131: =IF(OR($C131=0,$L131=""),"-",CONCATENATE(E131&".",IF(AND($A$5>=2,$C131>=2),F131&".",""),IF(AND($A$5>=3,$C131>=3),G131&".",""),IF(AND($A$5>=4,$C131>=4),H131&".",""),IF($C131="S",I131&".",""))) -> - | P131: Composição | Q131: 21 | R131: =IF($C131="S",REFERENCIA.Descricao,"(digite a descrição aqui)") -> (abra o arquivo 'Referência 12-2022.xls) | S131: =REFERENCIA.Unidade -> - | T131: =OFFSET(CÁLCULO!H$15,ROW($T131)-ROW(T$15),0) -> 1 | U131: 0 | V131: BDI 1 | W131: =IF($C131="S",ROUND(IF(TIPOORCAMENTO="Proposto",ORÇAMENTO.CustoUnitario*(1+$AH131),ORÇAMENTO.PrecoUnitarioLicitado),15-13*$AF$10),0) -> 0 | X131: =IF($C131="S",VTOTAL1,IF($C131=0,0,ROUND(SomaAgrup,15-13*$AF$11))) -> 0 | Y131: RA | Z131: =IF(AND($C131="S",$X131>0),IF(ISBLANK($Y131),"RA",LEFT($Y131,2)),"") ->  | AA131: =IF($C131="S",IF($Z131="CP",$X131,IF($Z131="RA",(($X131)*QCI!$AA$3),0)),SomaAgrup) -> 0 | AB131: =IF($C131="S",IF($Z131="OU",ROUND($X131,2),0),SomaAgrup) -> 0 | AC131: =IF($N131="","",IF(ORÇAMENTO.Descricao="","DESCRIÇÃO",IF(AND($C131="S",ORÇAMENTO.Unidade=""),"UNIDADE",IF($X131<0,"VALOR NEGATIVO",IF(OR(AND(TIPOORCAMENTO="Proposto",$AG131<>"",$AG131>0,ORÇAMENTO.CustoUnitario>$AG131),AND(TIPOORCAMENTO="LICITADO",ORÇAMENTO.PrecoUnitarioLicitado>$AN131)),"ACIMA REF.",""))))) ->  | AD131: =IF(C131<=CRONO.NivelExibicao,MAX($AD$15:OFFSET(AD131,-1,0))+IF($C131<>1,1,MAX(1,COUNTIF(QCI!$A$13:$A$24,OFFSET($E131,-1,0)))),"") ->  | AE131: =IF(AND($C131="S",ORÇAMENTO.CodBarra<>""),IF(ORÇAMENTO.Fonte="",ORÇAMENTO.CodBarra,CONCATENATE(ORÇAMENTO.Fonte," ",ORÇAMENTO.CodBarra))) -> Composição 21 | AF131: =IF(ISERROR(INDIRECT(ORÇAMENTO.BancoRef)),"(abra o arquivo 'Referência "&Excel_BuiltIn_Database&".xls)",IF(OR($C131<>"S",ORÇAMENTO.CodBarra=""),"(Sem Código)",IF(ISERROR(MATCH($AE131,INDIRECT(ORÇAMENTO.BancoRef),0)),"(Código não identificado nas referências)",MATCH($AE131,INDIRECT(ORÇAMENTO.BancoRef),0)))) -> (abra o arquivo 'Referência 12-2022.xls) | AG131: =ROUND(IF(DESONERACAO="sim",REFERENCIA.Desonerado,REFERENCIA.NaoDesonerado),2) -> 0 | AH131: =ROUND(IF(ISNUMBER(ORÇAMENTO.OpcaoBDI),ORÇAMENTO.OpcaoBDI,IF(LEFT(ORÇAMENTO.OpcaoBDI,3)="BDI",HLOOKUP(ORÇAMENTO.OpcaoBDI,$F$4:$H$5,2,FALSE),0)),15-11*$AF$9) -> 0.2035 | AM131: 0 | AN131: =ROUND(ORÇAMENTO.CustoUnitario*(1+$AH131),2) -> 0
A132: 2 | B132: 2 | C132: 2 | D132: 41 | E132: =IF($C132=1,OFFSET(E132,-1,0)+MAX(1,COUNTIF(QCI!$A$13:$A$24,OFFSET(ORÇAMENTO!E132,-1,0))),OFFSET(E132,-1,0)) -> 1 | F132: 10 | G132: 0 | H132: 0 | I132: 0 | J132: 49 | K132: =IF(OR($C132="S",$C132=0),0,MATCH(OFFSET($D132,0,$C132)+IF($C132<>1,1,COUNTIF(QCI!$A$13:$A$24,ORÇAMENTO!E132)),OFFSET($D132,1,$C132,ROW($C$181)-ROW($C132)),0)) -> 41 | L132: F | M132: Nível 2 | N132: Nível 2 | O132: 1.10. | P132: SINAPI | R132: INSTALAÇÕES HIDROSSANITÁRIAS | S132: - | T132: =OFFSET(CÁLCULO!H$15,ROW($T132)-ROW(T$15),0) -> 0 | U132: 0 | V132: BDI 1 | W132: 0 | X132: 0 | Y132: RA | AA132: =IF($C132="S",IF($Z132="CP",$X132,IF($Z132="RA",(($X132)*QCI!$AA$3),0)),SomaAgrup) -> 0 | AB132: 0 | AD132: =IF(C132<=CRONO.NivelExibicao,MAX($AD$15:OFFSET(AD132,-1,0))+IF($C132<>1,1,MAX(1,COUNTIF(QCI!$A$13:$A$24,OFFSET($E132,-1,0)))),"") -> 11 | AE132: FALSE | AF132: (abra o arquivo 'Referência 12-2022.xls) | AG132: 0 | AH132: 0.2035 | AM132: 0 | AN132: 0
A133: =CHOOSE(1+LOG(1+2*(ORÇAMENTO.Nivel="Meta")+4*(ORÇAMENTO.Nivel="Nível 2")+8*(ORÇAMENTO.Nivel="Nível 3")+16*(ORÇAMENTO.Nivel="Nível 4")+32*(ORÇAMENTO.Nivel="Serviço"),2),0,1,2,3,4,"S") -> 3 | B133: =IF(OR(C133="s",C133=0),OFFSET(B133,-1,0),C133) -> 3 | C133: =IF(OFFSET(C133,-1,0)="L",1,IF(OFFSET(C133,-1,0)=1,2,IF(OR(A133="s",A133=0),"S",IF(AND(OFFSET(C133,-1,0)=2,A133=4),3,IF(AND(OR(OFFSET(C133,-1,0)="s",OFFSET(C133,-1,0)=0),A133<>"s",A133>OFFSET(B133,-1,0)),OFFSET(B133,-1,0),A133))))) -> 3 | D133: =IF(OR(C133="S",C133=0),0,IF(ISERROR(K133),J133,SMALL(J133:K133,1))) -> 35 | E133: =IF($C133=1,OFFSET(E133,-1,0)+MAX(1,COUNTIF(QCI!$A$13:$A$24,OFFSET(ORÇAMENTO!E133,-1,0))),OFFSET(E133,-1,0)) -> 1 | F133: =IF($C133=1,0,IF($C133=2,OFFSET(F133,-1,0)+1,OFFSET(F133,-1,0))) -> 10 | G133: =IF(AND($C133<=2,$C133<>0),0,IF($C133=3,OFFSET(G133,-1,0)+1,OFFSET(G133,-1,0))) -> 1 | H133: =IF(AND($C133<=3,$C133<>0),0,IF($C133=4,OFFSET(H133,-1,0)+1,OFFSET(H133,-1,0))) -> 0 | I133: =IF(AND($C133<=4,$C133<>0),0,IF(AND($C133="S",$X133>0),OFFSET(I133,-1,0)+1,OFFSET(I133,-1,0))) -> 0 | J133: 40 | K133: =IF(OR($C133="S",$C133=0),0,MATCH(OFFSET($D133,0,$C133)+IF($C133<>1,1,COUNTIF(QCI!$A$13:$A$24,ORÇAMENTO!E133)),OFFSET($D133,1,$C133,ROW($C$181)-ROW($C133)),0)) -> 35 | L133: =IF(OR($X133>0,$C133=1,$C133=2,$C133=3,$C133=4),"F","") -> F | M133: Nível 3 | N133: =CHOOSE(1+LOG(1+2*(C133=1)+4*(C133=2)+8*(C133=3)+16*(C133=4)+32*(C133="S"),2),"","Meta","Nível 2","Nível 3","Nível 4","Serviço") -> Nível 3 | O133: =IF(OR($C133=0,$L133=""),"-",CONCATENATE(E133&".",IF(AND($A$5>=2,$C133>=2),F133&".",""),IF(AND($A$5>=3,$C133>=3),G133&".",""),IF(AND($A$5>=4,$C133>=4),H133&".",""),IF($C133="S",I133&".",""))) -> 1.10.1. | P133: SINAPI | R133: ÁGUA FRIA | S133: =REFERENCIA.Unidade -> - | T133: =OFFSET(CÁLCULO!H$15,ROW($T133)-ROW(T$15),0) -> 0 | U133: 0 | V133: BDI 1 | W133: =IF($C133="S",ROUND(IF(TIPOORCAMENTO="Proposto",ORÇAMENTO.CustoUnitario*(1+$AH133),ORÇAMENTO.PrecoUnitarioLicitado),15-13*$AF$10),0) -> 0 | X133: =IF($C133="S",VTOTAL1,IF($C133=0,0,ROUND(SomaAgrup,15-13*$AF$11))) -> 0 | Y133: RA | Z133: =IF(AND($C133="S",$X133>0),IF(ISBLANK($Y133),"RA",LEFT($Y133,2)),"") ->  | AA133: =IF($C133="S",IF($Z133="CP",$X133,IF($Z133="RA",(($X133)*QCI!$AA$3),0)),SomaAgrup) -> 0 | AB133: =IF($C133="S",IF($Z133="OU",ROUND($X133,2),0),SomaAgrup) -> 0 | AC133: =IF($N133="","",IF(ORÇAMENTO.Descricao="","DESCRIÇÃO",IF(AND($C133="S",ORÇAMENTO.Unidade=""),"UNIDADE",IF($X133<0,"VALOR NEGATIVO",IF(OR(AND(TIPOORCAMENTO="Proposto",$AG133<>"",$AG133>0,ORÇAMENTO.CustoUnitario>$AG133),AND(TIPOORCAMENTO="LICITADO",ORÇAMENTO.PrecoUnitarioLicitado>$AN133)),"ACIMA REF.",""))))) ->  | AD133: =IF(C133<=CRONO.NivelExibicao,MAX($AD$15:OFFSET(AD133,-1,0))+IF($C133<>1,1,MAX(1,COUNTIF(QCI!$A$13:$A$24,OFFSET($E133,-1,0)))),"") ->  | AE133: =IF(AND($C133="S",ORÇAMENTO.CodBarra<>""),IF(ORÇAMENTO.Fonte="",ORÇAMENTO.CodBarra,CONCATENATE(ORÇAMENTO.Fonte," ",ORÇAMENTO.CodBarra))) -> FALSE | AF133: =IF(ISERROR(INDIRECT(ORÇAMENTO.BancoRef)),"(abra o arquivo 'Referência "&Excel_BuiltIn_Database&".xls)",IF(OR($C133<>"S",ORÇAMENTO.CodBarra=""),"(Sem Código)",IF(ISERROR(MATCH($AE133,INDIRECT(ORÇAMENTO.BancoRef),0)),"(Código não identificado nas referências)",MATCH($AE133,INDIRECT(ORÇAMENTO.BancoRef),0)))) -> (abra o arquivo 'Referência 12-2022.xls) | AG133: =ROUND(IF(DESONERACAO="sim",REFERENCIA.Desonerado,REFERENCIA.NaoDesonerado),2) -> 0 | AH133: =ROUND(IF(ISNUMBER(ORÇAMENTO.OpcaoBDI),ORÇAMENTO.OpcaoBDI,IF(LEFT(ORÇAMENTO.OpcaoBDI,3)="BDI",HLOOKUP(ORÇAMENTO.OpcaoBDI,$F$4:$H$5,2,FALSE),0)),15-11*$AF$9) -> 0.2035 | AM133: 0 | AN133: =ROUND(ORÇAMENTO.CustoUnitario*(1+$AH133),2) -> 0
A134: S | B134: 3 | C134: S | D134: 0 | E134: =IF($C134=1,OFFSET(E134,-1,0)+MAX(1,COUNTIF(QCI!$A$13:$A$24,OFFSET(ORÇAMENTO!E134,-1,0))),OFFSET(E134,-1,0)) -> 1 | F134: 10 | G134: 1 | H134: 0 | I134: 0 | J134: 0 | K134: =IF(OR($C134="S",$C134=0),0,MATCH(OFFSET($D134,0,$C134)+IF($C134<>1,1,COUNTIF(QCI!$A$13:$A$24,ORÇAMENTO!E134)),OFFSET($D134,1,$C134,ROW($C$181)-ROW($C134)),0)) -> 0 | M134: Serviço | N134: Serviço | O134: - | P134: Composição | Q134: 16 | R134: =IF($C134="S",REFERENCIA.Descricao,"(digite a descrição aqui)") -> (abra o arquivo 'Referência 12-2022.xls) | S134: - | T134: =OFFSET(CÁLCULO!H$15,ROW($T134)-ROW(T$15),0) -> 1 | U134: 0 | V134: BDI 1 | W134: 0 | X134: 0 | Y134: RA | AA134: =IF($C134="S",IF($Z134="CP",$X134,IF($Z134="RA",(($X134)*QCI!$AA$3),0)),SomaAgrup) -> 0 | AB134: 0 | AD134: =IF(C134<=CRONO.NivelExibicao,MAX($AD$15:OFFSET(AD134,-1,0))+IF($C134<>1,1,MAX(1,COUNTIF(QCI!$A$13:$A$24,OFFSET($E134,-1,0)))),"") ->  | AE134: Composição 16 | AF134: (abra o arquivo 'Referência 12-2022.xls) | AG134: 0 | AH134: 0.2035 | AM134: 0 | AN134: 0
A135: =CHOOSE(1+LOG(1+2*(ORÇAMENTO.Nivel="Meta")+4*(ORÇAMENTO.Nivel="Nível 2")+8*(ORÇAMENTO.Nivel="Nível 3")+16*(ORÇAMENTO.Nivel="Nível 4")+32*(ORÇAMENTO.Nivel="Serviço"),2),0,1,2,3,4,"S") -> S | B135: =IF(OR(C135="s",C135=0),OFFSET(B135,-1,0),C135) -> 3 | C135: =IF(OFFSET(C135,-1,0)="L",1,IF(OFFSET(C135,-1,0)=1,2,IF(OR(A135="s",A135=0),"S",IF(AND(OFFSET(C135,-1,0)=2,A135=4),3,IF(AND(OR(OFFSET(C135,-1,0)="s",OFFSET(C135,-1,0)=0),A135<>"s",A135>OFFSET(B135,-1,0)),OFFSET(B135,-1,0),A135))))) -> S | D135: =IF(OR(C135="S",C135=0),0,IF(ISERROR(K135),J135,SMALL(J135:K135,1))) -> 0 | E135: =IF($C135=1,OFFSET(E135,-1,0)+MAX(1,COUNTIF(QCI!$A$13:$A$24,OFFSET(ORÇAMENTO!E135,-1,0))),OFFSET(E135,-1,0)) -> 1 | F135: =IF($C135=1,0,IF($C135=2,OFFSET(F135,-1,0)+1,OFFSET(F135,-1,0))) -> 10 | G135: =IF(AND($C135<=2,$C135<>0),0,IF($C135=3,OFFSET(G135,-1,0)+1,OFFSET(G135,-1,0))) -> 1 | H135: =IF(AND($C135<=3,$C135<>0),0,IF($C135=4,OFFSET(H135,-1,0)+1,OFFSET(H135,-1,0))) -> 0 | I135: =IF(AND($C135<=4,$C135<>0),0,IF(AND($C135="S",$X135>0),OFFSET(I135,-1,0)+1,OFFSET(I135,-1,0))) -> 0 | J135: 0 | K135: =IF(OR($C135="S",$C135=0),0,MATCH(OFFSET($D135,0,$C135)+IF($C135<>1,1,COUNTIF(QCI!$A$13:$A$24,ORÇAMENTO!E135)),OFFSET($D135,1,$C135,ROW($C$181)-ROW($C135)),0)) -> 0 | L135: =IF(OR($X135>0,$C135=1,$C135=2,$C135=3,$C135=4),"F","") ->  | M135: Serviço | N135: =CHOOSE(1+LOG(1+2*(C135=1)+4*(C135=2)+8*(C135=3)+16*(C135=4)+32*(C135="S"),2),"","Meta","Nível 2","Nível 3","Nível 4","Serviço") -> Serviço | O135: =IF(OR($C135=0,$L135=""),"-",CONCATENATE(E135&".",IF(AND($A$5>=2,$C135>=2),F135&".",""),IF(AND($A$5>=3,$C135>=3),G135&".",""),IF(AND($A$5>=4,$C135>=4),H135&".",""),IF($C135="S",I135&".",""))) -> - | P135: Composição | Q135: 22 | R135: =IF($C135="S",REFERENCIA.Descricao,"(digite a descrição aqui)") -> (abra o arquivo 'Referência 12-2022.xls) | S135: =REFERENCIA.Unidade -> - | T135: =OFFSET(CÁLCULO!H$15,ROW($T135)-ROW(T$15),0) -> 1 | U135: 0 | V135: BDI 1 | W135: =IF($C135="S",ROUND(IF(TIPOORCAMENTO="Proposto",ORÇAMENTO.CustoUnitario*(1+$AH135),ORÇAMENTO.PrecoUnitarioLicitado),15-13*$AF$10),0) -> 0 | X135: =IF($C135="S",VTOTAL1,IF($C135=0,0,ROUND(SomaAgrup,15-13*$AF$11))) -> 0 | Y135: RA | Z135: =IF(AND($C135="S",$X135>0),IF(ISBLANK($Y135),"RA",LEFT($Y135,2)),"") ->  | AA135: =IF($C135="S",IF($Z135="CP",$X135,IF($Z135="RA",(($X135)*QCI!$AA$3),0)),SomaAgrup) -> 0 | AB135: =IF($C135="S",IF($Z135="OU",ROUND($X135,2),0),SomaAgrup) -> 0 | AC135: =IF($N135="","",IF(ORÇAMENTO.Descricao="","DESCRIÇÃO",IF(AND($C135="S",ORÇAMENTO.Unidade=""),"UNIDADE",IF($X135<0,"VALOR NEGATIVO",IF(OR(AND(TIPOORCAMENTO="Proposto",$AG135<>"",$AG135>0,ORÇAMENTO.CustoUnitario>$AG135),AND(TIPOORCAMENTO="LICITADO",ORÇAMENTO.PrecoUnitarioLicitado>$AN135)),"ACIMA REF.",""))))) ->  | AD135: =IF(C135<=CRONO.NivelExibicao,MAX($AD$15:OFFSET(AD135,-1,0))+IF($C135<>1,1,MAX(1,COUNTIF(QCI!$A$13:$A$24,OFFSET($E135,-1,0)))),"") ->  | AE135: =IF(AND($C135="S",ORÇAMENTO.CodBarra<>""),IF(ORÇAMENTO.Fonte="",ORÇAMENTO.CodBarra,CONCATENATE(ORÇAMENTO.Fonte," ",ORÇAMENTO.CodBarra))) -> Composição 22 | AF135: =IF(ISERROR(INDIRECT(ORÇAMENTO.BancoRef)),"(abra o arquivo 'Referência "&Excel_BuiltIn_Database&".xls)",IF(OR($C135<>"S",ORÇAMENTO.CodBarra=""),"(Sem Código)",IF(ISERROR(MATCH($AE135,INDIRECT(ORÇAMENTO.BancoRef),0)),"(Código não identificado nas referências)",MATCH($AE135,INDIRECT(ORÇAMENTO.BancoRef),0)))) -> (abra o arquivo 'Referência 12-2022.xls) | AG135: =ROUND(IF(DESONERACAO="sim",REFERENCIA.Desonerado,REFERENCIA.NaoDesonerado),2) -> 0 | AH135: =ROUND(IF(ISNUMBER(ORÇAMENTO.OpcaoBDI),ORÇAMENTO.OpcaoBDI,IF(LEFT(ORÇAMENTO.OpcaoBDI,3)="BDI",HLOOKUP(ORÇAMENTO.OpcaoBDI,$F$4:$H$5,2,FALSE),0)),15-11*$AF$9) -> 0.2035 | AM135: 0 | AN135: =ROUND(ORÇAMENTO.CustoUnitario*(1+$AH135),2) -> 0
A136: =CHOOSE(1+LOG(1+2*(ORÇAMENTO.Nivel="Meta")+4*(ORÇAMENTO.Nivel="Nível 2")+8*(ORÇAMENTO.Nivel="Nível 3")+16*(ORÇAMENTO.Nivel="Nível 4")+32*(ORÇAMENTO.Nivel="Serviço"),2),0,1,2,3,4,"S") -> S | B136: =IF(OR(C136="s",C136=0),OFFSET(B136,-1,0),C136) -> 3 | C136: =IF(OFFSET(C136,-1,0)="L",1,IF(OFFSET(C136,-1,0)=1,2,IF(OR(A136="s",A136=0),"S",IF(AND(OFFSET(C136,-1,0)=2,A136=4),3,IF(AND(OR(OFFSET(C136,-1,0)="s",OFFSET(C136,-1,0)=0),A136<>"s",A136>OFFSET(B136,-1,0)),OFFSET(B136,-1,0),A136))))) -> S | D136: =IF(OR(C136="S",C136=0),0,IF(ISERROR(K136),J136,SMALL(J136:K136,1))) -> 0 | E136: =IF($C136=1,OFFSET(E136,-1,0)+MAX(1,COUNTIF(QCI!$A$13:$A$24,OFFSET(ORÇAMENTO!E136,-1,0))),OFFSET(E136,-1,0)) -> 1 | F136: =IF($C136=1,0,IF($C136=2,OFFSET(F136,-1,0)+1,OFFSET(F136,-1,0))) -> 10 | G136: =IF(AND($C136<=2,$C136<>0),0,IF($C136=3,OFFSET(G136,-1,0)+1,OFFSET(G136,-1,0))) -> 1 | H136: =IF(AND($C136<=3,$C136<>0),0,IF($C136=4,OFFSET(H136,-1,0)+1,OFFSET(H136,-1,0))) -> 0 | I136: =IF(AND($C136<=4,$C136<>0),0,IF(AND($C136="S",$X136>0),OFFSET(I136,-1,0)+1,OFFSET(I136,-1,0))) -> 0 | J136: 0 | K136: =IF(OR($C136="S",$C136=0),0,MATCH(OFFSET($D136,0,$C136)+IF($C136<>1,1,COUNTIF(QCI!$A$13:$A$24,ORÇAMENTO!E136)),OFFSET($D136,1,$C136,ROW($C$181)-ROW($C136)),0)) -> 0 | L136: =IF(OR($X136>0,$C136=1,$C136=2,$C136=3,$C136=4),"F","") ->  | M136: Serviço | N136: =CHOOSE(1+LOG(1+2*(C136=1)+4*(C136=2)+8*(C136=3)+16*(C136=4)+32*(C136="S"),2),"","Meta","Nível 2","Nível 3","Nível 4","Serviço") -> Serviço | O136: =IF(OR($C136=0,$L136=""),"-",CONCATENATE(E136&".",IF(AND($A$5>=2,$C136>=2),F136&".",""),IF(AND($A$5>=3,$C136>=3),G136&".",""),IF(AND($A$5>=4,$C136>=4),H136&".",""),IF($C136="S",I136&".",""))) -> - | P136: SINAPI | Q136: 89561 | R136: =IF($C136="S",REFERENCIA.Descricao,"(digite a descrição aqui)") -> (abra o arquivo 'Referência 12-2022.xls) | S136: =REFERENCIA.Unidade -> - | T136: =OFFSET(CÁLCULO!H$15,ROW($T136)-ROW(T$15),0) -> 1 | U136: 0 | V136: BDI 1 | W136: =IF($C136="S",ROUND(IF(TIPOORCAMENTO="Proposto",ORÇAMENTO.CustoUnitario*(1+$AH136),ORÇAMENTO.PrecoUnitarioLicitado),15-13*$AF$10),0) -> 0 | X136: =IF($C136="S",VTOTAL1,IF($C136=0,0,ROUND(SomaAgrup,15-13*$AF$11))) -> 0 | Y136: RA | Z136: =IF(AND($C136="S",$X136>0),IF(ISBLANK($Y136),"RA",LEFT($Y136,2)),"") ->  | AA136: =IF($C136="S",IF($Z136="CP",$X136,IF($Z136="RA",(($X136)*QCI!$AA$3),0)),SomaAgrup) -> 0 | AB136: =IF($C136="S",IF($Z136="OU",ROUND($X136,2),0),SomaAgrup) -> 0 | AC136: =IF($N136="","",IF(ORÇAMENTO.Descricao="","DESCRIÇÃO",IF(AND($C136="S",ORÇAMENTO.Unidade=""),"UNIDADE",IF($X136<0,"VALOR NEGATIVO",IF(OR(AND(TIPOORCAMENTO="Proposto",$AG136<>"",$AG136>0,ORÇAMENTO.CustoUnitario>$AG136),AND(TIPOORCAMENTO="LICITADO",ORÇAMENTO.PrecoUnitarioLicitado>$AN136)),"ACIMA REF.",""))))) ->  | AD136: =IF(C136<=CRONO.NivelExibicao,MAX($AD$15:OFFSET(AD136,-1,0))+IF($C136<>1,1,MAX(1,COUNTIF(QCI!$A$13:$A$24,OFFSET($E136,-1,0)))),"") ->  | AE136: =IF(AND($C136="S",ORÇAMENTO.CodBarra<>""),IF(ORÇAMENTO.Fonte="",ORÇAMENTO.CodBarra,CONCATENATE(ORÇAMENTO.Fonte," ",ORÇAMENTO.CodBarra))) -> SINAPI 89561 | AF136: =IF(ISERROR(INDIRECT(ORÇAMENTO.BancoRef)),"(abra o arquivo 'Referência "&Excel_BuiltIn_Database&".xls)",IF(OR($C136<>"S",ORÇAMENTO.CodBarra=""),"(Sem Código)",IF(ISERROR(MATCH($AE136,INDIRECT(ORÇAMENTO.BancoRef),0)),"(Código não identificado nas referências)",MATCH($AE136,INDIRECT(ORÇAMENTO.BancoRef),0)))) -> (abra o arquivo 'Referência 12-2022.xls) | AG136: =ROUND(IF(DESONERACAO="sim",REFERENCIA.Desonerado,REFERENCIA.NaoDesonerado),2) -> 0 | AH136: =ROUND(IF(ISNUMBER(ORÇAMENTO.OpcaoBDI),ORÇAMENTO.OpcaoBDI,IF(LEFT(ORÇAMENTO.OpcaoBDI,3)="BDI",HLOOKUP(ORÇAMENTO.OpcaoBDI,$F$4:$H$5,2,FALSE),0)),15-11*$AF$9) -> 0.2035 | AM136: 0 | AN136: =ROUND(ORÇAMENTO.CustoUnitario*(1+$AH136),2) -> 0
A137: S | B137: 3 | C137: S | D137: 0 | E137: =IF($C137=1,OFFSET(E137,-1,0)+MAX(1,COUNTIF(QCI!$A$13:$A$24,OFFSET(ORÇAMENTO!E137,-1,0))),OFFSET(E137,-1,0)) -> 1 | F137: 10 | G137: 1 | H137: 0 | I137: 0 | J137: 0 | K137: =IF(OR($C137="S",$C137=0),0,MATCH(OFFSET($D137,0,$C137)+IF($C137<>1,1,COUNTIF(QCI!$A$13:$A$24,ORÇAMENTO!E137)),OFFSET($D137,1,$C137,ROW($C$181)-ROW($C137)),0)) -> 0 | M137: Serviço | N137: Serviço | O137: - | P137: SINAPI | Q137: 94692 | R137: =IF($C137="S",REFERENCIA.Descricao,"(digite a descrição aqui)") -> (abra o arquivo 'Referência 12-2022.xls) | S137: - | T137: =OFFSET(CÁLCULO!H$15,ROW($T137)-ROW(T$15),0) -> 7 | U137: 0 | V137: BDI 1 | W137: 0 | X137: 0 | Y137: RA | AA137: =IF($C137="S",IF($Z137="CP",$X137,IF($Z137="RA",(($X137)*QCI!$AA$3),0)),SomaAgrup) -> 0 | AB137: 0 | AD137: =IF(C137<=CRONO.NivelExibicao,MAX($AD$15:OFFSET(AD137,-1,0))+IF($C137<>1,1,MAX(1,COUNTIF(QCI!$A$13:$A$24,OFFSET($E137,-1,0)))),"") ->  | AE137: SINAPI 94692 | AF137: (abra o arquivo 'Referência 12-2022.xls) | AG137: 0 | AH137: 0.2035 | AM137: 0 | AN137: 0
A138: S | B138: 3 | C138: S | D138: 0 | E138: =IF($C138=1,OFFSET(E138,-1,0)+MAX(1,COUNTIF(QCI!$A$13:$A$24,OFFSET(ORÇAMENTO!E138,-1,0))),OFFSET(E138,-1,0)) -> 1 | F138: 10 | G138: 1 | H138: 0 | I138: 0 | J138: 0 | K138: =IF(OR($C138="S",$C138=0),0,MATCH(OFFSET($D138,0,$C138)+IF($C138<>1,1,COUNTIF(QCI!$A$13:$A$24,ORÇAMENTO!E138)),OFFSET($D138,1,$C138,ROW($C$181)-ROW($C138)),0)) -> 0 | M138: Serviço | N138: Serviço | O138: - | P138: SINAPI | Q138: 94694 | R138: =IF($C138="S",REFERENCIA.Descricao,"(digite a descrição aqui)") -> (abra o arquivo 'Referência 12-2022.xls) | S138: - | T138: =OFFSET(CÁLCULO!H$15,ROW($T138)-ROW(T$15),0) -> 1 | U138: 0 | V138: BDI 1 | W138: 0 | X138: 0 | Y138: RA | AA138: =IF($C138="S",IF($Z138="CP",$X138,IF($Z138="RA",(($X138)*QCI!$AA$3),0)),SomaAgrup) -> 0 | AB138: 0 | AD138: =IF(C138<=CRONO.NivelExibicao,MAX($AD$15:OFFSET(AD138,-1,0))+IF($C138<>1,1,MAX(1,COUNTIF(QCI!$A$13:$A$24,OFFSET($E138,-1,0)))),"") ->  | AE138: SINAPI 94694 | AF138: (abra o arquivo 'Referência 12-2022.xls) | AG138: 0 | AH138: 0.2035 | AM138: 0 | AN138: 0
A139: S | B139: 3 | C139: S | D139: 0 | E139: =IF($C139=1,OFFSET(E139,-1,0)+MAX(1,COUNTIF(QCI!$A$13:$A$24,OFFSET(ORÇAMENTO!E139,-1,0))),OFFSET(E139,-1,0)) -> 1 | F139: 10 | G139: 1 | H139: 0 | I139: 0 | J139: 0 | K139: =IF(OR($C139="S",$C139=0),0,MATCH(OFFSET($D139,0,$C139)+IF($C139<>1,1,COUNTIF(QCI!$A$13:$A$24,ORÇAMENTO!E139)),OFFSET($D139,1,$C139,ROW($C$181)-ROW($C139)),0)) -> 0 | M139: Serviço | N139: Serviço | O139: - | P139: SINAPI | Q139: 94696 | R139: =IF($C139="S",REFERENCIA.Descricao,"(digite a descrição aqui)") -> (abra o arquivo 'Referência 12-2022.xls) | S139: - | T139: =OFFSET(CÁLCULO!H$15,ROW($T139)-ROW(T$15),0) -> 1 | U139: 0 | V139: BDI 1 | W139: 0 | X139: 0 | Y139: RA | AA139: =IF($C139="S",IF($Z139="CP",$X139,IF($Z139="RA",(($X139)*QCI!$AA$3),0)),SomaAgrup) -> 0 | AB139: 0 | AD139: =IF(C139<=CRONO.NivelExibicao,MAX($AD$15:OFFSET(AD139,-1,0))+IF($C139<>1,1,MAX(1,COUNTIF(QCI!$A$13:$A$24,OFFSET($E139,-1,0)))),"") ->  | AE139: SINAPI 94696 | AF139: (abra o arquivo 'Referência 12-2022.xls) | AG139: 0 | AH139: 0.2035 | AM139: 0 | AN139: 0
A140: S | B140: 3 | C140: S | D140: 0 | E140: =IF($C140=1,OFFSET(E140,-1,0)+MAX(1,COUNTIF(QCI!$A$13:$A$24,OFFSET(ORÇAMENTO!E140,-1,0))),OFFSET(E140,-1,0)) -> 1 | F140: 10 | G140: 1 | H140: 0 | I140: 0 | J140: 0 | K140: =IF(OR($C140="S",$C140=0),0,MATCH(OFFSET($D140,0,$C140)+IF($C140<>1,1,COUNTIF(QCI!$A$13:$A$24,ORÇAMENTO!E140)),OFFSET($D140,1,$C140,ROW($C$181)-ROW($C140)),0)) -> 0 | M140: Serviço | N140: Serviço | O140: - | P140: SINAPI | Q140: 94697 | R140: =IF($C140="S",REFERENCIA.Descricao,"(digite a descrição aqui)") -> (abra o arquivo 'Referência 12-2022.xls) | S140: - | T140: =OFFSET(CÁLCULO!H$15,ROW($T140)-ROW(T$15),0) -> 3 | U140: 0 | V140: BDI 1 | W140: 0 | X140: 0 | Y140: RA | AA140: =IF($C140="S",IF($Z140="CP",$X140,IF($Z140="RA",(($X140)*QCI!$AA$3),0)),SomaAgrup) -> 0 | AB140: 0 | AD140: =IF(C140<=CRONO.NivelExibicao,MAX($AD$15:OFFSET(AD140,-1,0))+IF($C140<>1,1,MAX(1,COUNTIF(QCI!$A$13:$A$24,OFFSET($E140,-1,0)))),"") ->  | AE140: SINAPI 94697 | AF140: (abra o arquivo 'Referência 12-2022.xls) | AG140: 0 | AH140: 0.2035 | AM140: 0 | AN140: 0
A141: S | B141: 3 | C141: S | D141: 0 | E141: =IF($C141=1,OFFSET(E141,-1,0)+MAX(1,COUNTIF(QCI!$A$13:$A$24,OFFSET(ORÇAMENTO!E141,-1,0))),OFFSET(E141,-1,0)) -> 1 | F141: 10 | G141: 1 | H141: 0 | I141: 0 | J141: 0 | K141: =IF(OR($C141="S",$C141=0),0,MATCH(OFFSET($D141,0,$C141)+IF($C141<>1,1,COUNTIF(QCI!$A$13:$A$24,ORÇAMENTO!E141)),OFFSET($D141,1,$C141,ROW($C$181)-ROW($C141)),0)) -> 0 | M141: Serviço | N141: Serviço | O141: - | P141: SINAPI | Q141: 94676 | R141: =IF($C141="S",REFERENCIA.Descricao,"(digite a descrição aqui)") -> (abra o arquivo 'Referência 12-2022.xls) | S141: - | T141: =OFFSET(CÁLCULO!H$15,ROW($T141)-ROW(T$15),0) -> 14 | U141: 0 | V141: BDI 1 | W141: 0 | X141: 0 | Y141: RA | AA141: =IF($C141="S",IF($Z141="CP",$X141,IF($Z141="RA",(($X141)*QCI!$AA$3),0)),SomaAgrup) -> 0 | AB141: 0 | AD141: =IF(C141<=CRONO.NivelExibicao,MAX($AD$15:OFFSET(AD141,-1,0))+IF($C141<>1,1,MAX(1,COUNTIF(QCI!$A$13:$A$24,OFFSET($E141,-1,0)))),"") ->  | AE141: SINAPI 94676 | AF141: (abra o arquivo 'Referência 12-2022.xls) | AG141: 0 | AH141: 0.2035 | AM141: 0 | AN141: 0
A142: S | B142: 3 | C142: S | D142: 0 | E142: =IF($C142=1,OFFSET(E142,-1,0)+MAX(1,COUNTIF(QCI!$A$13:$A$24,OFFSET(ORÇAMENTO!E142,-1,0))),OFFSET(E142,-1,0)) -> 1 | F142: 10 | G142: 1 | H142: 0 | I142: 0 | J142: 0 | K142: =IF(OR($C142="S",$C142=0),0,MATCH(OFFSET($D142,0,$C142)+IF($C142<>1,1,COUNTIF(QCI!$A$13:$A$24,ORÇAMENTO!E142)),OFFSET($D142,1,$C142,ROW($C$181)-ROW($C142)),0)) -> 0 | M142: Serviço | N142: Serviço | O142: - | P142: SINAPI | Q142: 94678 | R142: =IF($C142="S",REFERENCIA.Descricao,"(digite a descrição aqui)") -> (abra o arquivo 'Referência 12-2022.xls) | S142: - | T142: =OFFSET(CÁLCULO!H$15,ROW($T142)-ROW(T$15),0) -> 1 | U142: 0 | V142: BDI 1 | W142: 0 | X142: 0 | Y142: RA | AA142: =IF($C142="S",IF($Z142="CP",$X142,IF($Z142="RA",(($X142)*QCI!$AA$3),0)),SomaAgrup) -> 0 | AB142: 0 | AD142: =IF(C142<=CRONO.NivelExibicao,MAX($AD$15:OFFSET(AD142,-1,0))+IF($C142<>1,1,MAX(1,COUNTIF(QCI!$A$13:$A$24,OFFSET($E142,-1,0)))),"") ->  | AE142: SINAPI 94678 | AF142: (abra o arquivo 'Referência 12-2022.xls) | AG142: 0 | AH142: 0.2035 | AM142: 0 | AN142: 0
A143: S | B143: 3 | C143: S | D143: 0 | E143: =IF($C143=1,OFFSET(E143,-1,0)+MAX(1,COUNTIF(QCI!$A$13:$A$24,OFFSET(ORÇAMENTO!E143,-1,0))),OFFSET(E143,-1,0)) -> 1 | F143: 10 | G143: 1 | H143: 0 | I143: 0 | J143: 0 | K143: =IF(OR($C143="S",$C143=0),0,MATCH(OFFSET($D143,0,$C143)+IF($C143<>1,1,COUNTIF(QCI!$A$13:$A$24,ORÇAMENTO!E143)),OFFSET($D143,1,$C143,ROW($C$181)-ROW($C143)),0)) -> 0 | M143: Serviço | N143: Serviço | O143: - | P143: SINAPI | Q143: 94680 | R143: =IF($C143="S",REFERENCIA.Descricao,"(digite a descrição aqui)") -> (abra o arquivo 'Referência 12-2022.xls) | S143: - | T143: =OFFSET(CÁLCULO!H$15,ROW($T143)-ROW(T$15),0) -> 4 | U143: 0 | V143: BDI 1 | W143: 0 | X143: 0 | Y143: RA | AA143: =IF($C143="S",IF($Z143="CP",$X143,IF($Z143="RA",(($X143)*QCI!$AA$3),0)),SomaAgrup) -> 0 | AB143: 0 | AD143: =IF(C143<=CRONO.NivelExibicao,MAX($AD$15:OFFSET(AD143,-1,0))+IF($C143<>1,1,MAX(1,COUNTIF(QCI!$A$13:$A$24,OFFSET($E143,-1,0)))),"") ->  | AE143: SINAPI 94680 | AF143: (abra o arquivo 'Referência 12-2022.xls) | AG143: 0 | AH143: 0.2035 | AM143: 0 | AN143: 0
A144: S | B144: 3 | C144: S | D144: 0 | E144: =IF($C144=1,OFFSET(E144,-1,0)+MAX(1,COUNTIF(QCI!$A$13:$A$24,OFFSET(ORÇAMENTO!E144,-1,0))),OFFSET(E144,-1,0)) -> 1 | F144: 10 | G144: 1 | H144: 0 | I144: 0 | J144: =IF(OR($C144="S",$C144=0),0,MATCH(0,OFFSET($D144,1,$C144,ROW($C$181)-ROW($C144)),0)) -> 0 | K144: =IF(OR($C144="S",$C144=0),0,MATCH(OFFSET($D144,0,$C144)+IF($C144<>1,1,COUNTIF(QCI!$A$13:$A$24,ORÇAMENTO!E144)),OFFSET($D144,1,$C144,ROW($C$181)-ROW($C144)),0)) -> 0 | M144: Serviço | N144: Serviço | O144: - | P144: SINAPI | Q144: 94682 | R144: =IF($C144="S",REFERENCIA.Descricao,"(digite a descrição aqui)") -> (abra o arquivo 'Referência 12-2022.xls) | S144: - | T144: =OFFSET(CÁLCULO!H$15,ROW($T144)-ROW(T$15),0) -> 4 | U144: 0 | V144: BDI 1 | W144: 0 | X144: 0 | Y144: RA | AA144: =IF($C144="S",IF($Z144="CP",$X144,IF($Z144="RA",(($X144)*QCI!$AA$3),0)),SomaAgrup) -> 0 | AB144: 0 | AD144: =IF(C144<=CRONO.NivelExibicao,MAX($AD$15:OFFSET(AD144,-1,0))+IF($C144<>1,1,MAX(1,COUNTIF(QCI!$A$13:$A$24,OFFSET($E144,-1,0)))),"") ->  | AE144: SINAPI 94682 | AF144: (abra o arquivo 'Referência 12-2022.xls) | AG144: 0 | AH144: 0.2035 | AM144: 0 | AN144: 0
A145: S | B145: 3 | C145: S | D145: 0 | E145: =IF($C145=1,OFFSET(E145,-1,0)+MAX(1,COUNTIF(QCI!$A$13:$A$24,OFFSET(ORÇAMENTO!E145,-1,0))),OFFSET(E145,-1,0)) -> 1 | F145: 10 | G145: 1 | H145: 0 | I145: 0 | J145: 0 | K145: =IF(OR($C145="S",$C145=0),0,MATCH(OFFSET($D145,0,$C145)+IF($C145<>1,1,COUNTIF(QCI!$A$13:$A$24,ORÇAMENTO!E145)),OFFSET($D145,1,$C145,ROW($C$181)-ROW($C145)),0)) -> 0 | M145: Serviço | N145: Serviço | O145: - | P145: SINAPI | Q145: 94684 | R145: =IF($C145="S",REFERENCIA.Descricao,"(digite a descrição aqui)") -> (abra o arquivo 'Referência 12-2022.xls) | S145: - | T145: =OFFSET(CÁLCULO!H$15,ROW($T145)-ROW(T$15),0) -> 4 | U145: 0 | V145: BDI 1 | W145: 0 | X145: 0 | Y145: RA | AA145: =IF($C145="S",IF($Z145="CP",$X145,IF($Z145="RA",(($X145)*QCI!$AA$3),0)),SomaAgrup) -> 0 | AB145: 0 | AD145: =IF(C145<=CRONO.NivelExibicao,MAX($AD$15:OFFSET(AD145,-1,0))+IF($C145<>1,1,MAX(1,COUNTIF(QCI!$A$13:$A$24,OFFSET($E145,-1,0)))),"") ->  | AE145: SINAPI 94684 | AF145: (abra o arquivo 'Referência 12-2022.xls) | AG145: 0 | AH145: 0.2035 | AM145: 0 | AN145: 0
A146: S | B146: 3 | C146: S | D146: 0 | E146: =IF($C146=1,OFFSET(E146,-1,0)+MAX(1,COUNTIF(QCI!$A$13:$A$24,OFFSET(ORÇAMENTO!E146,-1,0))),OFFSET(E146,-1,0)) -> 1 | F146: 10 | G146: 1 | H146: 0 | I146: 0 | J146: 0 | K146: =IF(OR($C146="S",$C146=0),0,MATCH(OFFSET($D146,0,$C146)+IF($C146<>1,1,COUNTIF(QCI!$A$13:$A$24,ORÇAMENTO!E146)),OFFSET($D146,1,$C146,ROW($C$181)-ROW($C146)),0)) -> 0 | M146: Serviço | N146: Serviço | O146: - | P146: SINAPI | Q146: 94686 | R146: =IF($C146="S",REFERENCIA.Descricao,"(digite a descrição aqui)") -> (abra o arquivo 'Referência 12-2022.xls) | S146: - | T146: =OFFSET(CÁLCULO!H$15,ROW($T146)-ROW(T$15),0) -> 8 | U146: 0 | V146: BDI 1 | W146: 0 | X146: 0 | Y146: RA | AA146: =IF($C146="S",IF($Z146="CP",$X146,IF($Z146="RA",(($X146)*QCI!$AA$3),0)),SomaAgrup) -> 0 | AB146: 0 | AD146: =IF(C146<=CRONO.NivelExibicao,MAX($AD$15:OFFSET(AD146,-1,0))+IF($C146<>1,1,MAX(1,COUNTIF(QCI!$A$13:$A$24,OFFSET($E146,-1,0)))),"") ->  | AE146: SINAPI 94686 | AF146: (abra o arquivo 'Referência 12-2022.xls) | AG146: 0 | AH146: 0.2035 | AM146: 0 | AN146: 0
A147: S | B147: 3 | C147: S | D147: 0 | E147: =IF($C147=1,OFFSET(E147,-1,0)+MAX(1,COUNTIF(QCI!$A$13:$A$24,OFFSET(ORÇAMENTO!E147,-1,0))),OFFSET(E147,-1,0)) -> 1 | F147: 10 | G147: 1 | H147: 0 | I147: 0 | J147: 0 | K147: =IF(OR($C147="S",$C147=0),0,MATCH(OFFSET($D147,0,$C147)+IF($C147<>1,1,COUNTIF(QCI!$A$13:$A$24,ORÇAMENTO!E147)),OFFSET($D147,1,$C147,ROW($C$181)-ROW($C147)),0)) -> 0 | M147: Serviço | N147: Serviço | O147: - | P147: SINAPI | Q147: 96695 | R147: =IF($C147="S",REFERENCIA.Descricao,"(digite a descrição aqui)") -> (abra o arquivo 'Referência 12-2022.xls) | S147: - | T147: =OFFSET(CÁLCULO!H$15,ROW($T147)-ROW(T$15),0) -> 8 | U147: 0 | V147: BDI 1 | W147: 0 | X147: 0 | Y147: RA | AA147: =IF($C147="S",IF($Z147="CP",$X147,IF($Z147="RA",(($X147)*QCI!$AA$3),0)),SomaAgrup) -> 0 | AB147: 0 | AD147: =IF(C147<=CRONO.NivelExibicao,MAX($AD$15:OFFSET(AD147,-1,0))+IF($C147<>1,1,MAX(1,COUNTIF(QCI!$A$13:$A$24,OFFSET($E147,-1,0)))),"") ->  | AE147: SINAPI 96695 | AF147: (abra o arquivo 'Referência 12-2022.xls) | AG147: 0 | AH147: 0.2035 | AM147: 0 | AN147: 0
A148: S | B148: 3 | C148: S | D148: 0 | E148: =IF($C148=1,OFFSET(E148,-1,0)+MAX(1,COUNTIF(QCI!$A$13:$A$24,OFFSET(ORÇAMENTO!E148,-1,0))),OFFSET(E148,-1,0)) -> 1 | F148: 10 | G148: 1 | H148: 0 | I148: 0 | J148: 0 | K148: =IF(OR($C148="S",$C148=0),0,MATCH(OFFSET($D148,0,$C148)+IF($C148<>1,1,COUNTIF(QCI!$A$13:$A$24,ORÇAMENTO!E148)),OFFSET($D148,1,$C148,ROW($C$181)-ROW($C148)),0)) -> 0 | M148: Serviço | N148: Serviço | O148: - | P148: Composição | Q148: 17 | R148: =IF($C148="S",REFERENCIA.Descricao,"(digite a descrição aqui)") -> (abra o arquivo 'Referência 12-2022.xls) | S148: - | T148: =OFFSET(CÁLCULO!H$15,ROW($T148)-ROW(T$15),0) -> 1 | U148: =AG148 -> 0 | V148: BDI 1 | W148: 0 | X148: 0 | Y148: RA | AA148: =IF($C148="S",IF($Z148="CP",$X148,IF($Z148="RA",(($X148)*QCI!$AA$3),0)),SomaAgrup) -> 0 | AB148: 0 | AD148: =IF(C148<=CRONO.NivelExibicao,MAX($AD$15:OFFSET(AD148,-1,0))+IF($C148<>1,1,MAX(1,COUNTIF(QCI!$A$13:$A$24,OFFSET($E148,-1,0)))),"") ->  | AE148: Composição 17 | AF148: (abra o arquivo 'Referência 12-2022.xls) | AG148: 0 | AH148: 0.2035 | AM148: 0 | AN148: 0
A149: S | B149: 3 | C149: S | D149: 0 | E149: =IF($C149=1,OFFSET(E149,-1,0)+MAX(1,COUNTIF(QCI!$A$13:$A$24,OFFSET(ORÇAMENTO!E149,-1,0))),OFFSET(E149,-1,0)) -> 1 | F149: 10 | G149: 1 | H149: 0 | I149: 0 | J149: 0 | K149: =IF(OR($C149="S",$C149=0),0,MATCH(OFFSET($D149,0,$C149)+IF($C149<>1,1,COUNTIF(QCI!$A$13:$A$24,ORÇAMENTO!E149)),OFFSET($D149,1,$C149,ROW($C$181)-ROW($C149)),0)) -> 0 | M149: Serviço | N149: Serviço | O149: - | P149: Composição | Q149: 18 | R149: =IF($C149="S",REFERENCIA.Descricao,"(digite a descrição aqui)") -> (abra o arquivo 'Referência 12-2022.xls) | S149: - | T149: =OFFSET(CÁLCULO!H$15,ROW($T149)-ROW(T$15),0) -> 2 | U149: 0 | V149: BDI 1 | W149: 0 | X149: 0 | Y149: RA | AA149: =IF($C149="S",IF($Z149="CP",$X149,IF($Z149="RA",(($X149)*QCI!$AA$3),0)),SomaAgrup) -> 0 | AB149: 0 | AD149: =IF(C149<=CRONO.NivelExibicao,MAX($AD$15:OFFSET(AD149,-1,0))+IF($C149<>1,1,MAX(1,COUNTIF(QCI!$A$13:$A$24,OFFSET($E149,-1,0)))),"") ->  | AE149: Composição 18 | AF149: (abra o arquivo 'Referência 12-2022.xls) | AG149: 0 | AH149: 0.2035 | AM149: 0 | AN149: 0
A150: S | B150: 3 | C150: S | D150: 0 | E150: =IF($C150=1,OFFSET(E150,-1,0)+MAX(1,COUNTIF(QCI!$A$13:$A$24,OFFSET(ORÇAMENTO!E150,-1,0))),OFFSET(E150,-1,0)) -> 1 | F150: 10 | G150: 1 | H150: 0 | I150: 0 | J150: 0 | K150: =IF(OR($C150="S",$C150=0),0,MATCH(OFFSET($D150,0,$C150)+IF($C150<>1,1,COUNTIF(QCI!$A$13:$A$24,ORÇAMENTO!E150)),OFFSET($D150,1,$C150,ROW($C$181)-ROW($C150)),0)) -> 0 | M150: Serviço | N150: Serviço | O150: - | P150: SINAPI | Q150: 89498 | R150: =IF($C150="S",REFERENCIA.Descricao,"(digite a descrição aqui)") -> (abra o arquivo 'Referência 12-2022.xls) | S150: - | T150: =OFFSET(CÁLCULO!H$15,ROW($T150)-ROW(T$15),0) -> 1 | U150: =AG150 -> 0 | V150: BDI 1 | W150: 0 | X150: 0 | Y150: RA | AA150: =IF($C150="S",IF($Z150="CP",$X150,IF($Z150="RA",(($X150)*QCI!$AA$3),0)),SomaAgrup) -> 0 | AB150: 0 | AD150: =IF(C150<=CRONO.NivelExibicao,MAX($AD$15:OFFSET(AD150,-1,0))+IF($C150<>1,1,MAX(1,COUNTIF(QCI!$A$13:$A$24,OFFSET($E150,-1,0)))),"") ->  | AE150: SINAPI 89498 | AF150: (abra o arquivo 'Referência 12-2022.xls) | AG150: 0 | AH150: 0.2035 | AM150: 0 | AN150: 0
A151: S | B151: 3 | C151: S | D151: 0 | E151: =IF($C151=1,OFFSET(E151,-1,0)+MAX(1,COUNTIF(QCI!$A$13:$A$24,OFFSET(ORÇAMENTO!E151,-1,0))),OFFSET(E151,-1,0)) -> 1 | F151: 10 | G151: 1 | H151: 0 | I151: 0 | J151: 0 | K151: =IF(OR($C151="S",$C151=0),0,MATCH(OFFSET($D151,0,$C151)+IF($C151<>1,1,COUNTIF(QCI!$A$13:$A$24,ORÇAMENTO!E151)),OFFSET($D151,1,$C151,ROW($C$181)-ROW($C151)),0)) -> 0 | M151: Serviço | N151: Serviço | O151: - | P151: SINAPI | Q151: 89515 | R151: =IF($C151="S",REFERENCIA.Descricao,"(digite a descrição aqui)") -> (abra o arquivo 'Referência 12-2022.xls) | S151: - | T151: =OFFSET(CÁLCULO!H$15,ROW($T151)-ROW(T$15),0) -> 4 | U151: 0 | V151: BDI 1 | W151: 0 | X151: 0 | Y151: RA | AA151: =IF($C151="S",IF($Z151="CP",$X151,IF($Z151="RA",(($X151)*QCI!$AA$3),0)),SomaAgrup) -> 0 | AB151: 0 | AD151: =IF(C151<=CRONO.NivelExibicao,MAX($AD$15:OFFSET(AD151,-1,0))+IF($C151<>1,1,MAX(1,COUNTIF(QCI!$A$13:$A$24,OFFSET($E151,-1,0)))),"") ->  | AE151: SINAPI 89515 | AF151: (abra o arquivo 'Referência 12-2022.xls) | AG151: 0 | AH151: 0.2035 | AM151: 0 | AN151: 0
A152: S | B152: 3 | C152: S | D152: 0 | E152: =IF($C152=1,OFFSET(E152,-1,0)+MAX(1,COUNTIF(QCI!$A$13:$A$24,OFFSET(ORÇAMENTO!E152,-1,0))),OFFSET(E152,-1,0)) -> 1 | F152: 10 | G152: 1 | H152: 0 | I152: 0 | J152: 0 | K152: =IF(OR($C152="S",$C152=0),0,MATCH(OFFSET($D152,0,$C152)+IF($C152<>1,1,COUNTIF(QCI!$A$13:$A$24,ORÇAMENTO!E152)),OFFSET($D152,1,$C152,ROW($C$181)-ROW($C152)),0)) -> 0 | M152: Serviço | N152: Serviço | O152: - | P152: SINAPI | Q152: 89570 | R152: =IF($C152="S",REFERENCIA.Descricao,"(digite a descrição aqui)") -> (abra o arquivo 'Referência 12-2022.xls) | S152: - | T152: =OFFSET(CÁLCULO!H$15,ROW($T152)-ROW(T$15),0) -> 4 | U152: 0 | V152: BDI 1 | W152: 0 | X152: 0 | Y152: RA | AA152: =IF($C152="S",IF($Z152="CP",$X152,IF($Z152="RA",(($X152)*QCI!$AA$3),0)),SomaAgrup) -> 0 | AB152: 0 | AD152: =IF(C152<=CRONO.NivelExibicao,MAX($AD$15:OFFSET(AD152,-1,0))+IF($C152<>1,1,MAX(1,COUNTIF(QCI!$A$13:$A$24,OFFSET($E152,-1,0)))),"") ->  | AE152: SINAPI 89570 | AF152: (abra o arquivo 'Referência 12-2022.xls) | AG152: 0 | AH152: 0.2035 | AM152: 0 | AN152: 0
A153: S | B153: 3 | C153: S | D153: 0 | E153: =IF($C153=1,OFFSET(E153,-1,0)+MAX(1,COUNTIF(QCI!$A$13:$A$24,OFFSET(ORÇAMENTO!E153,-1,0))),OFFSET(E153,-1,0)) -> 1 | F153: 10 | G153: 1 | H153: 0 | I153: 0 | J153: 0 | K153: =IF(OR($C153="S",$C153=0),0,MATCH(OFFSET($D153,0,$C153)+IF($C153<>1,1,COUNTIF(QCI!$A$13:$A$24,ORÇAMENTO!E153)),OFFSET($D153,1,$C153,ROW($C$181)-ROW($C153)),0)) -> 0 | M153: Serviço | N153: Serviço | O153: - | P153: SINAPI | Q153: 89595 | R153: =IF($C153="S",REFERENCIA.Descricao,"(digite a descrição aqui)") -> (abra o arquivo 'Referência 12-2022.xls) | S153: - | T153: =OFFSET(CÁLCULO!H$15,ROW($T153)-ROW(T$15),0) -> 2 | U153: 0 | V153: BDI 1 | W153: 0 | X153: 0 | Y153: RA | AA153: =IF($C153="S",IF($Z153="CP",$X153,IF($Z153="RA",(($X153)*QCI!$AA$3),0)),SomaAgrup) -> 0 | AB153: 0 | AD153: =IF(C153<=CRONO.NivelExibicao,MAX($AD$15:OFFSET(AD153,-1,0))+IF($C153<>1,1,MAX(1,COUNTIF(QCI!$A$13:$A$24,OFFSET($E153,-1,0)))),"") ->  | AE153: SINAPI 89595 | AF153: (abra o arquivo 'Referência 12-2022.xls) | AG153: 0 | AH153: 0.2035 | AM153: 0 | AN153: 0
A154: S | B154: 3 | C154: S | D154: 0 | E154: =IF($C154=1,OFFSET(E154,-1,0)+MAX(1,COUNTIF(QCI!$A$13:$A$24,OFFSET(ORÇAMENTO!E154,-1,0))),OFFSET(E154,-1,0)) -> 1 | F154: 10 | G154: 1 | H154: 0 | I154: 0 | J154: 0 | K154: =IF(OR($C154="S",$C154=0),0,MATCH(OFFSET($D154,0,$C154)+IF($C154<>1,1,COUNTIF(QCI!$A$13:$A$24,ORÇAMENTO!E154)),OFFSET($D154,1,$C154,ROW($C$181)-ROW($C154)),0)) -> 0 | M154: Serviço | N154: Serviço | O154: - | P154: SINAPI | Q154: 89610 | R154: =IF($C154="S",REFERENCIA.Descricao,"(digite a descrição aqui)") -> (abra o arquivo 'Referência 12-2022.xls) | S154: - | T154: =OFFSET(CÁLCULO!H$15,ROW($T154)-ROW(T$15),0) -> 2 | U154: 0 | V154: BDI 1 | W154: 0 | X154: 0 | Y154: RA | AA154: =IF($C154="S",IF($Z154="CP",$X154,IF($Z154="RA",(($X154)*QCI!$AA$3),0)),SomaAgrup) -> 0 | AB154: 0 | AD154: =IF(C154<=CRONO.NivelExibicao,MAX($AD$15:OFFSET(AD154,-1,0))+IF($C154<>1,1,MAX(1,COUNTIF(QCI!$A$13:$A$24,OFFSET($E154,-1,0)))),"") ->  | AE154: SINAPI 89610 | AF154: (abra o arquivo 'Referência 12-2022.xls) | AG154: 0 | AH154: 0.2035 | AM154: 0 | AN154: 0
A155: S | B155: 3 | C155: S | D155: 0 | E155: =IF($C155=1,OFFSET(E155,-1,0)+MAX(1,COUNTIF(QCI!$A$13:$A$24,OFFSET(ORÇAMENTO!E155,-1,0))),OFFSET(E155,-1,0)) -> 1 | F155: 10 | G155: 1 | H155: 0 | I155: 0 | J155: 0 | K155: =IF(OR($C155="S",$C155=0),0,MATCH(OFFSET($D155,0,$C155)+IF($C155<>1,1,COUNTIF(QCI!$A$13:$A$24,ORÇAMENTO!E155)),OFFSET($D155,1,$C155,ROW($C$181)-ROW($C155)),0)) -> 0 | M155: Serviço | N155: Serviço | O155: - | P155: SINAPI | Q155: 89613 | R155: =IF($C155="S",REFERENCIA.Descricao,"(digite a descrição aqui)") -> (abra o arquivo 'Referência 12-2022.xls) | S155: - | T155: =OFFSET(CÁLCULO!H$15,ROW($T155)-ROW(T$15),0) -> 4 | U155: 0 | V155: BDI 1 | W155: 0 | X155: 0 | Y155: RA | AA155: =IF($C155="S",IF($Z155="CP",$X155,IF($Z155="RA",(($X155)*QCI!$AA$3),0)),SomaAgrup) -> 0 | AB155: 0 | AD155: =IF(C155<=CRONO.NivelExibicao,MAX($AD$15:OFFSET(AD155,-1,0))+IF($C155<>1,1,MAX(1,COUNTIF(QCI!$A$13:$A$24,OFFSET($E155,-1,0)))),"") ->  | AE155: SINAPI 89613 | AF155: (abra o arquivo 'Referência 12-2022.xls) | AG155: 0 | AH155: 0.2035 | AM155: 0 | AN155: 0
A156: S | B156: 3 | C156: S | D156: 0 | E156: =IF($C156=1,OFFSET(E156,-1,0)+MAX(1,COUNTIF(QCI!$A$13:$A$24,OFFSET(ORÇAMENTO!E156,-1,0))),OFFSET(E156,-1,0)) -> 1 | F156: 10 | G156: 1 | H156: 0 | I156: 0 | J156: 0 | K156: =IF(OR($C156="S",$C156=0),0,MATCH(OFFSET($D156,0,$C156)+IF($C156<>1,1,COUNTIF(QCI!$A$13:$A$24,ORÇAMENTO!E156)),OFFSET($D156,1,$C156,ROW($C$181)-ROW($C156)),0)) -> 0 | M156: Serviço | N156: Serviço | O156: - | P156: SINAPI | Q156: 94497 | R156: =IF($C156="S",REFERENCIA.Descricao,"(digite a descrição aqui)") -> (abra o arquivo 'Referência 12-2022.xls) | S156: - | T156: =OFFSET(CÁLCULO!H$15,ROW($T156)-ROW(T$15),0) -> 2 | U156: 0 | V156: BDI 1 | W156: 0 | X156: 0 | Y156: RA | AA156: =IF($C156="S",IF($Z156="CP",$X156,IF($Z156="RA",(($X156)*QCI!$AA$3),0)),SomaAgrup) -> 0 | AB156: 0 | AD156: =IF(C156<=CRONO.NivelExibicao,MAX($AD$15:OFFSET(AD156,-1,0))+IF($C156<>1,1,MAX(1,COUNTIF(QCI!$A$13:$A$24,OFFSET($E156,-1,0)))),"") ->  | AE156: SINAPI 94497 | AF156: (abra o arquivo 'Referência 12-2022.xls) | AG156: 0 | AH156: 0.2035 | AM156: 0 | AN156: 0
A157: S | B157: 3 | C157: S | D157: 0 | E157: =IF($C157=1,OFFSET(E157,-1,0)+MAX(1,COUNTIF(QCI!$A$13:$A$24,OFFSET(ORÇAMENTO!E157,-1,0))),OFFSET(E157,-1,0)) -> 1 | F157: 10 | G157: 1 | H157: 0 | I157: 0 | J157: 0 | K157: =IF(OR($C157="S",$C157=0),0,MATCH(OFFSET($D157,0,$C157)+IF($C157<>1,1,COUNTIF(QCI!$A$13:$A$24,ORÇAMENTO!E157)),OFFSET($D157,1,$C157,ROW($C$181)-ROW($C157)),0)) -> 0 | M157: Serviço | N157: Serviço | O157: - | P157: SINAPI | Q157: 94501 | R157: =IF($C157="S",REFERENCIA.Descricao,"(digite a descrição aqui)") -> (abra o arquivo 'Referência 12-2022.xls) | S157: - | T157: =OFFSET(CÁLCULO!H$15,ROW($T157)-ROW(T$15),0) -> 4 | U157: 0 | V157: BDI 1 | W157: 0 | X157: 0 | Y157: RA | AA157: =IF($C157="S",IF($Z157="CP",$X157,IF($Z157="RA",(($X157)*QCI!$AA$3),0)),SomaAgrup) -> 0 | AB157: 0 | AD157: =IF(C157<=CRONO.NivelExibicao,MAX($AD$15:OFFSET(AD157,-1,0))+IF($C157<>1,1,MAX(1,COUNTIF(QCI!$A$13:$A$24,OFFSET($E157,-1,0)))),"") ->  | AE157: SINAPI 94501 | AF157: (abra o arquivo 'Referência 12-2022.xls) | AG157: 0 | AH157: 0.2035 | AM157: 0 | AN157: 0
A158: S | B158: 3 | C158: S | D158: 0 | E158: =IF($C158=1,OFFSET(E158,-1,0)+MAX(1,COUNTIF(QCI!$A$13:$A$24,OFFSET(ORÇAMENTO!E158,-1,0))),OFFSET(E158,-1,0)) -> 1 | F158: 10 | G158: 1 | H158: 0 | I158: 0 | J158: 0 | K158: =IF(OR($C158="S",$C158=0),0,MATCH(OFFSET($D158,0,$C158)+IF($C158<>1,1,COUNTIF(QCI!$A$13:$A$24,ORÇAMENTO!E158)),OFFSET($D158,1,$C158,ROW($C$181)-ROW($C158)),0)) -> 0 | M158: Serviço | N158: Serviço | O158: - | P158: SINAPI | Q158: 99631 | R158: =IF($C158="S",REFERENCIA.Descricao,"(digite a descrição aqui)") -> (abra o arquivo 'Referência 12-2022.xls) | S158: - | T158: =OFFSET(CÁLCULO!H$15,ROW($T158)-ROW(T$15),0) -> 2 | U158: 0 | V158: BDI 1 | W158: 0 | X158: 0 | Y158: RA | AA158: =IF($C158="S",IF($Z158="CP",$X158,IF($Z158="RA",(($X158)*QCI!$AA$3),0)),SomaAgrup) -> 0 | AB158: 0 | AD158: =IF(C158<=CRONO.NivelExibicao,MAX($AD$15:OFFSET(AD158,-1,0))+IF($C158<>1,1,MAX(1,COUNTIF(QCI!$A$13:$A$24,OFFSET($E158,-1,0)))),"") ->  | AE158: SINAPI 99631 | AF158: (abra o arquivo 'Referência 12-2022.xls) | AG158: 0 | AH158: 0.2035 | AM158: 0 | AN158: 0
A159: S | B159: 3 | C159: S | D159: 0 | E159: =IF($C159=1,OFFSET(E159,-1,0)+MAX(1,COUNTIF(QCI!$A$13:$A$24,OFFSET(ORÇAMENTO!E159,-1,0))),OFFSET(E159,-1,0)) -> 1 | F159: 10 | G159: 1 | H159: 0 | I159: 0 | J159: 0 | K159: =IF(OR($C159="S",$C159=0),0,MATCH(OFFSET($D159,0,$C159)+IF($C159<>1,1,COUNTIF(QCI!$A$13:$A$24,ORÇAMENTO!E159)),OFFSET($D159,1,$C159,ROW($C$181)-ROW($C159)),0)) -> 0 | M159: Serviço | N159: Serviço | O159: - | P159: SINAPI | Q159: 94650 | R159: =IF($C159="S",REFERENCIA.Descricao,"(digite a descrição aqui)") -> (abra o arquivo 'Referência 12-2022.xls) | S159: - | T159: =OFFSET(CÁLCULO!H$15,ROW($T159)-ROW(T$15),0) -> 31 | U159: 0 | V159: BDI 1 | W159: 0 | X159: 0 | Y159: RA | AA159: =IF($C159="S",IF($Z159="CP",$X159,IF($Z159="RA",(($X159)*QCI!$AA$3),0)),SomaAgrup) -> 0 | AB159: 0 | AD159: =IF(C159<=CRONO.NivelExibicao,MAX($AD$15:OFFSET(AD159,-1,0))+IF($C159<>1,1,MAX(1,COUNTIF(QCI!$A$13:$A$24,OFFSET($E159,-1,0)))),"") ->  | AE159: SINAPI 94650 | AF159: (abra o arquivo 'Referência 12-2022.xls) | AG159: 0 | AH159: 0.2035 | AM159: 0 | AN159: 0
A160: S | B160: 3 | C160: S | D160: 0 | E160: =IF($C160=1,OFFSET(E160,-1,0)+MAX(1,COUNTIF(QCI!$A$13:$A$24,OFFSET(ORÇAMENTO!E160,-1,0))),OFFSET(E160,-1,0)) -> 1 | F160: 10 | G160: 1 | H160: 0 | I160: 0 | J160: 0 | K160: =IF(OR($C160="S",$C160=0),0,MATCH(OFFSET($D160,0,$C160)+IF($C160<>1,1,COUNTIF(QCI!$A$13:$A$24,ORÇAMENTO!E160)),OFFSET($D160,1,$C160,ROW($C$181)-ROW($C160)),0)) -> 0 | M160: Serviço | N160: Serviço | O160: - | P160: SINAPI | Q160: 94651 | R160: =IF($C160="S",REFERENCIA.Descricao,"(digite a descrição aqui)") -> (abra o arquivo 'Referência 12-2022.xls) | S160: - | T160: =OFFSET(CÁLCULO!H$15,ROW($T160)-ROW(T$15),0) -> 6 | U160: 0 | V160: BDI 1 | W160: 0 | X160: 0 | Y160: RA | AA160: =IF($C160="S",IF($Z160="CP",$X160,IF($Z160="RA",(($X160)*QCI!$AA$3),0)),SomaAgrup) -> 0 | AB160: 0 | AD160: =IF(C160<=CRONO.NivelExibicao,MAX($AD$15:OFFSET(AD160,-1,0))+IF($C160<>1,1,MAX(1,COUNTIF(QCI!$A$13:$A$24,OFFSET($E160,-1,0)))),"") ->  | AE160: SINAPI 94651 | AF160: (abra o arquivo 'Referência 12-2022.xls) | AG160: 0 | AH160: 0.2035 | AM160: 0 | AN160: 0
A161: S | B161: 3 | C161: S | D161: 0 | E161: =IF($C161=1,OFFSET(E161,-1,0)+MAX(1,COUNTIF(QCI!$A$13:$A$24,OFFSET(ORÇAMENTO!E161,-1,0))),OFFSET(E161,-1,0)) -> 1 | F161: 10 | G161: 1 | H161: 0 | I161: 0 | J161: 0 | K161: =IF(OR($C161="S",$C161=0),0,MATCH(OFFSET($D161,0,$C161)+IF($C161<>1,1,COUNTIF(QCI!$A$13:$A$24,ORÇAMENTO!E161)),OFFSET($D161,1,$C161,ROW($C$181)-ROW($C161)),0)) -> 0 | M161: Serviço | N161: Serviço | O161: - | P161: SINAPI | Q161: 94652 | R161: =IF($C161="S",REFERENCIA.Descricao,"(digite a descrição aqui)") -> (abra o arquivo 'Referência 12-2022.xls) | S161: - | T161: =OFFSET(CÁLCULO!H$15,ROW($T161)-ROW(T$15),0) -> 15 | U161: 0 | V161: BDI 1 | W161: 0 | X161: 0 | Y161: RA | AA161: =IF($C161="S",IF($Z161="CP",$X161,IF($Z161="RA",(($X161)*QCI!$AA$3),0)),SomaAgrup) -> 0 | AB161: 0 | AD161: =IF(C161<=CRONO.NivelExibicao,MAX($AD$15:OFFSET(AD161,-1,0))+IF($C161<>1,1,MAX(1,COUNTIF(QCI!$A$13:$A$24,OFFSET($E161,-1,0)))),"") ->  | AE161: SINAPI 94652 | AF161: (abra o arquivo 'Referência 12-2022.xls) | AG161: 0 | AH161: 0.2035 | AM161: 0 | AN161: 0
A162: S | B162: 3 | C162: S | D162: 0 | E162: =IF($C162=1,OFFSET(E162,-1,0)+MAX(1,COUNTIF(QCI!$A$13:$A$24,OFFSET(ORÇAMENTO!E162,-1,0))),OFFSET(E162,-1,0)) -> 1 | F162: 10 | G162: 1 | H162: 0 | I162: 0 | J162: 0 | K162: =IF(OR($C162="S",$C162=0),0,MATCH(OFFSET($D162,0,$C162)+IF($C162<>1,1,COUNTIF(QCI!$A$13:$A$24,ORÇAMENTO!E162)),OFFSET($D162,1,$C162,ROW($C$181)-ROW($C162)),0)) -> 0 | M162: Serviço | N162: Serviço | O162: - | P162: SINAPI | Q162: 94653 | R162: =IF($C162="S",REFERENCIA.Descricao,"(digite a descrição aqui)") -> (abra o arquivo 'Referência 12-2022.xls) | S162: - | T162: =OFFSET(CÁLCULO!H$15,ROW($T162)-ROW(T$15),0) -> 56 | U162: 0 | V162: BDI 1 | W162: 0 | X162: 0 | Y162: RA | AA162: =IF($C162="S",IF($Z162="CP",$X162,IF($Z162="RA",(($X162)*QCI!$AA$3),0)),SomaAgrup) -> 0 | AB162: 0 | AD162: =IF(C162<=CRONO.NivelExibicao,MAX($AD$15:OFFSET(AD162,-1,0))+IF($C162<>1,1,MAX(1,COUNTIF(QCI!$A$13:$A$24,OFFSET($E162,-1,0)))),"") ->  | AE162: SINAPI 94653 | AF162: (abra o arquivo 'Referência 12-2022.xls) | AG162: 0 | AH162: 0.2035 | AM162: 0 | AN162: 0
A163: S | B163: 3 | C163: S | D163: 0 | E163: =IF($C163=1,OFFSET(E163,-1,0)+MAX(1,COUNTIF(QCI!$A$13:$A$24,OFFSET(ORÇAMENTO!E163,-1,0))),OFFSET(E163,-1,0)) -> 1 | F163: 10 | G163: 1 | H163: 0 | I163: 0 | J163: 0 | K163: =IF(OR($C163="S",$C163=0),0,MATCH(OFFSET($D163,0,$C163)+IF($C163<>1,1,COUNTIF(QCI!$A$13:$A$24,ORÇAMENTO!E163)),OFFSET($D163,1,$C163,ROW($C$181)-ROW($C163)),0)) -> 0 | M163: Serviço | N163: Serviço | O163: - | P163: SINAPI | Q163: 94654 | R163: =IF($C163="S",REFERENCIA.Descricao,"(digite a descrição aqui)") -> (abra o arquivo 'Referência 12-2022.xls) | S163: - | T163: =OFFSET(CÁLCULO!H$15,ROW($T163)-ROW(T$15),0) -> 22 | U163: 0 | V163: BDI 1 | W163: 0 | X163: 0 | Y163: RA | AA163: =IF($C163="S",IF($Z163="CP",$X163,IF($Z163="RA",(($X163)*QCI!$AA$3),0)),SomaAgrup) -> 0 | AB163: 0 | AD163: =IF(C163<=CRONO.NivelExibicao,MAX($AD$15:OFFSET(AD163,-1,0))+IF($C163<>1,1,MAX(1,COUNTIF(QCI!$A$13:$A$24,OFFSET($E163,-1,0)))),"") ->  | AE163: SINAPI 94654 | AF163: (abra o arquivo 'Referência 12-2022.xls) | AG163: 0 | AH163: 0.2035 | AM163: 0 | AN163: 0
A164: S | B164: 3 | C164: S | D164: 0 | E164: =IF($C164=1,OFFSET(E164,-1,0)+MAX(1,COUNTIF(QCI!$A$13:$A$24,OFFSET(ORÇAMENTO!E164,-1,0))),OFFSET(E164,-1,0)) -> 1 | F164: 10 | G164: 1 | H164: 0 | I164: 0 | J164: 0 | K164: =IF(OR($C164="S",$C164=0),0,MATCH(OFFSET($D164,0,$C164)+IF($C164<>1,1,COUNTIF(QCI!$A$13:$A$24,ORÇAMENTO!E164)),OFFSET($D164,1,$C164,ROW($C$181)-ROW($C164)),0)) -> 0 | M164: Serviço | N164: Serviço | O164: - | P164: SINAPI | Q164: 94655 | R164: =IF($C164="S",REFERENCIA.Descricao,"(digite a descrição aqui)") -> (abra o arquivo 'Referência 12-2022.xls) | S164: - | T164: =OFFSET(CÁLCULO!H$15,ROW($T164)-ROW(T$15),0) -> 46 | U164: 0 | V164: BDI 1 | W164: 0 | X164: 0 | Y164: RA | AA164: =IF($C164="S",IF($Z164="CP",$X164,IF($Z164="RA",(($X164)*QCI!$AA$3),0)),SomaAgrup) -> 0 | AB164: 0 | AD164: =IF(C164<=CRONO.NivelExibicao,MAX($AD$15:OFFSET(AD164,-1,0))+IF($C164<>1,1,MAX(1,COUNTIF(QCI!$A$13:$A$24,OFFSET($E164,-1,0)))),"") ->  | AE164: SINAPI 94655 | AF164: (abra o arquivo 'Referência 12-2022.xls) | AG164: 0 | AH164: 0.2035 | AM164: 0 | AN164: 0
A165: S | B165: 3 | C165: S | D165: 0 | E165: =IF($C165=1,OFFSET(E165,-1,0)+MAX(1,COUNTIF(QCI!$A$13:$A$24,OFFSET(ORÇAMENTO!E165,-1,0))),OFFSET(E165,-1,0)) -> 1 | F165: 10 | G165: 1 | H165: 0 | I165: 0 | J165: 0 | K165: =IF(OR($C165="S",$C165=0),0,MATCH(OFFSET($D165,0,$C165)+IF($C165<>1,1,COUNTIF(QCI!$A$13:$A$24,ORÇAMENTO!E165)),OFFSET($D165,1,$C165,ROW($C$181)-ROW($C165)),0)) -> 0 | M165: Serviço | N165: Serviço | O165: - | P165: SINAPI | Q165: 96673 | R165: =IF($C165="S",REFERENCIA.Descricao,"(digite a descrição aqui)") -> (abra o arquivo 'Referência 12-2022.xls) | S165: - | T165: =OFFSET(CÁLCULO!H$15,ROW($T165)-ROW(T$15),0) -> 44 | U165: 0 | V165: BDI 1 | W165: 0 | X165: 0 | Y165: RA | AA165: =IF($C165="S",IF($Z165="CP",$X165,IF($Z165="RA",(($X165)*QCI!$AA$3),0)),SomaAgrup) -> 0 | AB165: 0 | AD165: =IF(C165<=CRONO.NivelExibicao,MAX($AD$15:OFFSET(AD165,-1,0))+IF($C165<>1,1,MAX(1,COUNTIF(QCI!$A$13:$A$24,OFFSET($E165,-1,0)))),"") ->  | AE165: SINAPI 96673 | AF165: (abra o arquivo 'Referência 12-2022.xls) | AG165: 0 | AH165: 0.2035 | AM165: 0 | AN165: 0
A166: S | B166: 3 | C166: S | D166: 0 | E166: =IF($C166=1,OFFSET(E166,-1,0)+MAX(1,COUNTIF(QCI!$A$13:$A$24,OFFSET(ORÇAMENTO!E166,-1,0))),OFFSET(E166,-1,0)) -> 1 | F166: 10 | G166: 1 | H166: 0 | I166: 0 | J166: 0 | K166: =IF(OR($C166="S",$C166=0),0,MATCH(OFFSET($D166,0,$C166)+IF($C166<>1,1,COUNTIF(QCI!$A$13:$A$24,ORÇAMENTO!E166)),OFFSET($D166,1,$C166,ROW($C$181)-ROW($C166)),0)) -> 0 | M166: Serviço | N166: Serviço | O166: - | P166: SINAPI | Q166: 94800 | R166: =IF($C166="S",REFERENCIA.Descricao,"(digite a descrição aqui)") -> (abra o arquivo 'Referência 12-2022.xls) | S166: - | T166: =OFFSET(CÁLCULO!H$15,ROW($T166)-ROW(T$15),0) -> 2 | U166: 0 | V166: BDI 1 | W166: 0 | X166: 0 | Y166: RA | AA166: =IF($C166="S",IF($Z166="CP",$X166,IF($Z166="RA",(($X166)*QCI!$AA$3),0)),SomaAgrup) -> 0 | AB166: 0 | AD166: =IF(C166<=CRONO.NivelExibicao,MAX($AD$15:OFFSET(AD166,-1,0))+IF($C166<>1,1,MAX(1,COUNTIF(QCI!$A$13:$A$24,OFFSET($E166,-1,0)))),"") ->  | AE166: SINAPI 94800 | AF166: (abra o arquivo 'Referência 12-2022.xls) | AG166: 0 | AH166: 0.2035 | AM166: 0 | AN166: 0
A167: S | B167: 3 | C167: S | D167: 0 | E167: =IF($C167=1,OFFSET(E167,-1,0)+MAX(1,COUNTIF(QCI!$A$13:$A$24,OFFSET(ORÇAMENTO!E167,-1,0))),OFFSET(E167,-1,0)) -> 1 | F167: 10 | G167: 1 | H167: 0 | I167: 0 | J167: 0 | K167: =IF(OR($C167="S",$C167=0),0,MATCH(OFFSET($D167,0,$C167)+IF($C167<>1,1,COUNTIF(QCI!$A$13:$A$24,ORÇAMENTO!E167)),OFFSET($D167,1,$C167,ROW($C$181)-ROW($C167)),0)) -> 0 | M167: Serviço | N167: Serviço | O167: - | P167: SINAPI | Q167: 102137 | R167: =IF($C167="S",REFERENCIA.Descricao,"(digite a descrição aqui)") -> (abra o arquivo 'Referência 12-2022.xls) | S167: - | T167: =OFFSET(CÁLCULO!H$15,ROW($T167)-ROW(T$15),0) -> 2 | U167: 0 | V167: BDI 1 | W167: 0 | X167: 0 | Y167: RA | AA167: =IF($C167="S",IF($Z167="CP",$X167,IF($Z167="RA",(($X167)*QCI!$AA$3),0)),SomaAgrup) -> 0 | AB167: 0 | AD167: =IF(C167<=CRONO.NivelExibicao,MAX($AD$15:OFFSET(AD167,-1,0))+IF($C167<>1,1,MAX(1,COUNTIF(QCI!$A$13:$A$24,OFFSET($E167,-1,0)))),"") ->  | AE167: SINAPI 102137 | AF167: (abra o arquivo 'Referência 12-2022.xls) | AG167: 0 | AH167: 0.2035 | AM167: 0 | AN167: 0
A168: 3 | B168: 3 | C168: 3 | D168: 5 | E168: =IF($C168=1,OFFSET(E168,-1,0)+MAX(1,COUNTIF(QCI!$A$13:$A$24,OFFSET(ORÇAMENTO!E168,-1,0))),OFFSET(E168,-1,0)) -> 1 | F168: 10 | G168: 2 | H168: 0 | I168: 0 | J168: 5 | K168: =IF(OR($C168="S",$C168=0),0,MATCH(OFFSET($D168,0,$C168)+IF($C168<>1,1,COUNTIF(QCI!$A$13:$A$24,ORÇAMENTO!E168)),OFFSET($D168,1,$C168,ROW($C$181)-ROW($C168)),0)) ->  | L168: F | M168: Nível 3 | N168: Nível 3 | O168: 1.10.2. | P168: SINAPI | R168: INSTALAÇAO HIDRÁULICA DE INCÊNDIO | S168: - | T168: =OFFSET(CÁLCULO!H$15,ROW($T168)-ROW(T$15),0) -> 0 | U168: 0 | V168: BDI 1 | W168: 0 | X168: 0 | Y168: RA | AA168: =IF($C168="S",IF($Z168="CP",$X168,IF($Z168="RA",(($X168)*QCI!$AA$3),0)),SomaAgrup) -> 0 | AB168: 0 | AD168: =IF(C168<=CRONO.NivelExibicao,MAX($AD$15:OFFSET(AD168,-1,0))+IF($C168<>1,1,MAX(1,COUNTIF(QCI!$A$13:$A$24,OFFSET($E168,-1,0)))),"") ->  | AE168: FALSE | AF168: (abra o arquivo 'Referência 12-2022.xls) | AG168: 0 | AH168: 0.2035 | AM168: 0 | AN168: 0
A169: S | B169: 3 | C169: S | D169: 0 | E169: =IF($C169=1,OFFSET(E169,-1,0)+MAX(1,COUNTIF(QCI!$A$13:$A$24,OFFSET(ORÇAMENTO!E169,-1,0))),OFFSET(E169,-1,0)) -> 1 | F169: 10 | G169: 2 | H169: 0 | I169: 0 | J169: 0 | K169: =IF(OR($C169="S",$C169=0),0,MATCH(OFFSET($D169,0,$C169)+IF($C169<>1,1,COUNTIF(QCI!$A$13:$A$24,ORÇAMENTO!E169)),OFFSET($D169,1,$C169,ROW($C$181)-ROW($C169)),0)) -> 0 | M169: Serviço | N169: Serviço | O169: - | P169: SINAPI | Q169: 92639 | R169: =IF($C169="S",REFERENCIA.Descricao,"(digite a descrição aqui)") -> (abra o arquivo 'Referência 12-2022.xls) | S169: - | T169: =OFFSET(CÁLCULO!H$15,ROW($T169)-ROW(T$15),0) -> 2 | U169: 0 | V169: BDI 1 | W169: 0 | X169: 0 | Y169: RA | AA169: =IF($C169="S",IF($Z169="CP",$X169,IF($Z169="RA",(($X169)*QCI!$AA$3),0)),SomaAgrup) -> 0 | AB169: 0 | AD169: =IF(C169<=CRONO.NivelExibicao,MAX($AD$15:OFFSET(AD169,-1,0))+IF($C169<>1,1,MAX(1,COUNTIF(QCI!$A$13:$A$24,OFFSET($E169,-1,0)))),"") ->  | AE169: SINAPI 92639 | AF169: (abra o arquivo 'Referência 12-2022.xls) | AG169: 0 | AH169: 0.2035 | AM169: 0 | AN169: 0
A170: S | B170: 3 | C170: S | D170: 0 | E170: =IF($C170=1,OFFSET(E170,-1,0)+MAX(1,COUNTIF(QCI!$A$13:$A$24,OFFSET(ORÇAMENTO!E170,-1,0))),OFFSET(E170,-1,0)) -> 1 | F170: 10 | G170: 2 | H170: 0 | I170: 0 | J170: 0 | K170: =IF(OR($C170="S",$C170=0),0,MATCH(OFFSET($D170,0,$C170)+IF($C170<>1,1,COUNTIF(QCI!$A$13:$A$24,ORÇAMENTO!E170)),OFFSET($D170,1,$C170,ROW($C$181)-ROW($C170)),0)) -> 0 | M170: Serviço | N170: Serviço | O170: - | P170: SINAPI | Q170: 92386 | R170: =IF($C170="S",REFERENCIA.Descricao,"(digite a descrição aqui)") -> (abra o arquivo 'Referência 12-2022.xls) | S170: - | T170: =OFFSET(CÁLCULO!H$15,ROW($T170)-ROW(T$15),0) -> 3 | U170: 0 | V170: BDI 1 | W170: 0 | X170: 0 | Y170: RA | AA170: =IF($C170="S",IF($Z170="CP",$X170,IF($Z170="RA",(($X170)*QCI!$AA$3),0)),SomaAgrup) -> 0 | AB170: 0 | AD170: =IF(C170<=CRONO.NivelExibicao,MAX($AD$15:OFFSET(AD170,-1,0))+IF($C170<>1,1,MAX(1,COUNTIF(QCI!$A$13:$A$24,OFFSET($E170,-1,0)))),"") ->  | AE170: SINAPI 92386 | AF170: (abra o arquivo 'Referência 12-2022.xls) | AG170: 0 | AH170: 0.2035 | AM170: 0 | AN170: 0
A171: =CHOOSE(1+LOG(1+2*(ORÇAMENTO.Nivel="Meta")+4*(ORÇAMENTO.Nivel="Nível 2")+8*(ORÇAMENTO.Nivel="Nível 3")+16*(ORÇAMENTO.Nivel="Nível 4")+32*(ORÇAMENTO.Nivel="Serviço"),2),0,1,2,3,4,"S") -> S | B171: =IF(OR(C171="s",C171=0),OFFSET(B171,-1,0),C171) -> 3 | C171: =IF(OFFSET(C171,-1,0)="L",1,IF(OFFSET(C171,-1,0)=1,2,IF(OR(A171="s",A171=0),"S",IF(AND(OFFSET(C171,-1,0)=2,A171=4),3,IF(AND(OR(OFFSET(C171,-1,0)="s",OFFSET(C171,-1,0)=0),A171<>"s",A171>OFFSET(B171,-1,0)),OFFSET(B171,-1,0),A171))))) -> S | D171: =IF(OR(C171="S",C171=0),0,IF(ISERROR(K171),J171,SMALL(J171:K171,1))) -> 0 | E171: =IF($C171=1,OFFSET(E171,-1,0)+MAX(1,COUNTIF(QCI!$A$13:$A$24,OFFSET(ORÇAMENTO!E171,-1,0))),OFFSET(E171,-1,0)) -> 1 | F171: =IF($C171=1,0,IF($C171=2,OFFSET(F171,-1,0)+1,OFFSET(F171,-1,0))) -> 10 | G171: =IF(AND($C171<=2,$C171<>0),0,IF($C171=3,OFFSET(G171,-1,0)+1,OFFSET(G171,-1,0))) -> 2 | H171: =IF(AND($C171<=3,$C171<>0),0,IF($C171=4,OFFSET(H171,-1,0)+1,OFFSET(H171,-1,0))) -> 0 | I171: =IF(AND($C171<=4,$C171<>0),0,IF(AND($C171="S",$X171>0),OFFSET(I171,-1,0)+1,OFFSET(I171,-1,0))) -> 0 | J171: 0 | K171: =IF(OR($C171="S",$C171=0),0,MATCH(OFFSET($D171,0,$C171)+IF($C171<>1,1,COUNTIF(QCI!$A$13:$A$24,ORÇAMENTO!E171)),OFFSET($D171,1,$C171,ROW($C$181)-ROW($C171)),0)) -> 0 | L171: =IF(OR($X171>0,$C171=1,$C171=2,$C171=3,$C171=4),"F","") ->  | M171: Serviço | N171: =CHOOSE(1+LOG(1+2*(C171=1)+4*(C171=2)+8*(C171=3)+16*(C171=4)+32*(C171="S"),2),"","Meta","Nível 2","Nível 3","Nível 4","Serviço") -> Serviço | O171: =IF(OR($C171=0,$L171=""),"-",CONCATENATE(E171&".",IF(AND($A$5>=2,$C171>=2),F171&".",""),IF(AND($A$5>=3,$C171>=3),G171&".",""),IF(AND($A$5>=4,$C171>=4),H171&".",""),IF($C171="S",I171&".",""))) -> - | P171: SINAPI | Q171: 94705 | R171: =IF($C171="S",REFERENCIA.Descricao,"(digite a descrição aqui)") -> (abra o arquivo 'Referência 12-2022.xls) | S171: =REFERENCIA.Unidade -> - | T171: =OFFSET(CÁLCULO!H$15,ROW($T171)-ROW(T$15),0) -> 4 | U171: 0 | V171: BDI 1 | W171: =IF($C171="S",ROUND(IF(TIPOORCAMENTO="Proposto",ORÇAMENTO.CustoUnitario*(1+$AH171),ORÇAMENTO.PrecoUnitarioLicitado),15-13*$AF$10),0) -> 0 | X171: =IF($C171="S",VTOTAL1,IF($C171=0,0,ROUND(SomaAgrup,15-13*$AF$11))) -> 0 | Y171: RA | Z171: =IF(AND($C171="S",$X171>0),IF(ISBLANK($Y171),"RA",LEFT($Y171,2)),"") ->  | AA171: =IF($C171="S",IF($Z171="CP",$X171,IF($Z171="RA",(($X171)*QCI!$AA$3),0)),SomaAgrup) -> 0 | AB171: =IF($C171="S",IF($Z171="OU",ROUND($X171,2),0),SomaAgrup) -> 0 | AC171: =IF($N171="","",IF(ORÇAMENTO.Descricao="","DESCRIÇÃO",IF(AND($C171="S",ORÇAMENTO.Unidade=""),"UNIDADE",IF($X171<0,"VALOR NEGATIVO",IF(OR(AND(TIPOORCAMENTO="Proposto",$AG171<>"",$AG171>0,ORÇAMENTO.CustoUnitario>$AG171),AND(TIPOORCAMENTO="LICITADO",ORÇAMENTO.PrecoUnitarioLicitado>$AN171)),"ACIMA REF.",""))))) ->  | AD171: =IF(C171<=CRONO.NivelExibicao,MAX($AD$15:OFFSET(AD171,-1,0))+IF($C171<>1,1,MAX(1,COUNTIF(QCI!$A$13:$A$24,OFFSET($E171,-1,0)))),"") ->  | AE171: =IF(AND($C171="S",ORÇAMENTO.CodBarra<>""),IF(ORÇAMENTO.Fonte="",ORÇAMENTO.CodBarra,CONCATENATE(ORÇAMENTO.Fonte," ",ORÇAMENTO.CodBarra))) -> SINAPI 94705 | AF171: =IF(ISERROR(INDIRECT(ORÇAMENTO.BancoRef)),"(abra o arquivo 'Referência "&Excel_BuiltIn_Database&".xls)",IF(OR($C171<>"S",ORÇAMENTO.CodBarra=""),"(Sem Código)",IF(ISERROR(MATCH($AE171,INDIRECT(ORÇAMENTO.BancoRef),0)),"(Código não identificado nas referências)",MATCH($AE171,INDIRECT(ORÇAMENTO.BancoRef),0)))) -> (abra o arquivo 'Referência 12-2022.xls) | AG171: =ROUND(IF(DESONERACAO="sim",REFERENCIA.Desonerado,REFERENCIA.NaoDesonerado),2) -> 0 | AH171: =ROUND(IF(ISNUMBER(ORÇAMENTO.OpcaoBDI),ORÇAMENTO.OpcaoBDI,IF(LEFT(ORÇAMENTO.OpcaoBDI,3)="BDI",HLOOKUP(ORÇAMENTO.OpcaoBDI,$F$4:$H$5,2,FALSE),0)),15-11*$AF$9) -> 0.2035 | AM171: 0 | AN171: =ROUND(ORÇAMENTO.CustoUnitario*(1+$AH171),2) -> 0
A172: S | B172: 3 | C172: S | D172: 0 | E172: =IF($C172=1,OFFSET(E172,-1,0)+MAX(1,COUNTIF(QCI!$A$13:$A$24,OFFSET(ORÇAMENTO!E172,-1,0))),OFFSET(E172,-1,0)) -> 1 | F172: 10 | G172: 2 | H172: 0 | I172: 0 | J172: 0 | K172: =IF(OR($C172="S",$C172=0),0,MATCH(OFFSET($D172,0,$C172)+IF($C172<>1,1,COUNTIF(QCI!$A$13:$A$24,ORÇAMENTO!E172)),OFFSET($D172,1,$C172,ROW($C$181)-ROW($C172)),0)) -> 0 | M172: Serviço | N172: Serviço | O172: - | P172: SINAPI | Q172: 92365 | R172: =IF($C172="S",REFERENCIA.Descricao,"(digite a descrição aqui)") -> (abra o arquivo 'Referência 12-2022.xls) | S172: - | T172: =OFFSET(CÁLCULO!H$15,ROW($T172)-ROW(T$15),0) -> 32 | U172: 0 | V172: BDI 1 | W172: 0 | X172: 0 | Y172: RA | AA172: =IF($C172="S",IF($Z172="CP",$X172,IF($Z172="RA",(($X172)*QCI!$AA$3),0)),SomaAgrup) -> 0 | AB172: 0 | AD172: =IF(C172<=CRONO.NivelExibicao,MAX($AD$15:OFFSET(AD172,-1,0))+IF($C172<>1,1,MAX(1,COUNTIF(QCI!$A$13:$A$24,OFFSET($E172,-1,0)))),"") ->  | AE172: SINAPI 92365 | AF172: (abra o arquivo 'Referência 12-2022.xls) | AG172: 0 | AH172: 0.2035 | AM172: 0 | AN172: 0
A173: 2 | B173: 2 | C173: 2 | D173: 3 | E173: =IF($C173=1,OFFSET(E173,-1,0)+MAX(1,COUNTIF(QCI!$A$13:$A$24,OFFSET(ORÇAMENTO!E173,-1,0))),OFFSET(E173,-1,0)) -> 1 | F173: 11 | G173: 0 | H173: 0 | I173: 0 | J173: 8 | K173: =IF(OR($C173="S",$C173=0),0,MATCH(OFFSET($D173,0,$C173)+IF($C173<>1,1,COUNTIF(QCI!$A$13:$A$24,ORÇAMENTO!E173)),OFFSET($D173,1,$C173,ROW($C$181)-ROW($C173)),0)) -> 3 | L173: F | M173: Nível 2 | N173: Nível 2 | O173: 1.11. | P173: SINAPI | R173: PINTURA | S173: - | T173: =OFFSET(CÁLCULO!H$15,ROW($T173)-ROW(T$15),0) -> 0 | U173: 0 | V173: BDI 1 | W173: 0 | X173: 0 | Y173: RA | AA173: =IF($C173="S",IF($Z173="CP",$X173,IF($Z173="RA",(($X173)*QCI!$AA$3),0)),SomaAgrup) -> 0 | AB173: 0 | AD173: =IF(C173<=CRONO.NivelExibicao,MAX($AD$15:OFFSET(AD173,-1,0))+IF($C173<>1,1,MAX(1,COUNTIF(QCI!$A$13:$A$24,OFFSET($E173,-1,0)))),"") -> 12 | AE173: FALSE | AF173: (abra o arquivo 'Referência 12-2022.xls) | AG173: 0 | AH173: 0.2035 | AM173: 0 | AN173: 0
A174: S | B174: 2 | C174: S | D174: 0 | E174: =IF($C174=1,OFFSET(E174,-1,0)+MAX(1,COUNTIF(QCI!$A$13:$A$24,OFFSET(ORÇAMENTO!E174,-1,0))),OFFSET(E174,-1,0)) -> 1 | F174: 11 | G174: 0 | H174: 0 | I174: 0 | J174: 0 | K174: =IF(OR($C174="S",$C174=0),0,MATCH(OFFSET($D174,0,$C174)+IF($C174<>1,1,COUNTIF(QCI!$A$13:$A$24,ORÇAMENTO!E174)),OFFSET($D174,1,$C174,ROW($C$181)-ROW($C174)),0)) -> 0 | M174: Serviço | N174: Serviço | O174: - | P174: SINAPI | Q174: 88485 | R174: =IF($C174="S",REFERENCIA.Descricao,"(digite a descrição aqui)") -> (abra o arquivo 'Referência 12-2022.xls) | S174: - | T174: =OFFSET(CÁLCULO!H$15,ROW($T174)-ROW(T$15),0) -> 822.21 | U174: 0 | V174: BDI 1 | W174: 0 | X174: 0 | Y174: RA | AA174: =IF($C174="S",IF($Z174="CP",$X174,IF($Z174="RA",(($X174)*QCI!$AA$3),0)),SomaAgrup) -> 0 | AB174: 0 | AD174: =IF(C174<=CRONO.NivelExibicao,MAX($AD$15:OFFSET(AD174,-1,0))+IF($C174<>1,1,MAX(1,COUNTIF(QCI!$A$13:$A$24,OFFSET($E174,-1,0)))),"") ->  | AE174: SINAPI 88485 | AF174: (abra o arquivo 'Referência 12-2022.xls) | AG174: 0 | AH174: 0.2035 | AM174: 0 | AN174: 0
A175: S | B175: 2 | C175: S | D175: 0 | E175: =IF($C175=1,OFFSET(E175,-1,0)+MAX(1,COUNTIF(QCI!$A$13:$A$24,OFFSET(ORÇAMENTO!E175,-1,0))),OFFSET(E175,-1,0)) -> 1 | F175: 11 | G175: 0 | H175: 0 | I175: 0 | J175: 0 | K175: =IF(OR($C175="S",$C175=0),0,MATCH(OFFSET($D175,0,$C175)+IF($C175<>1,1,COUNTIF(QCI!$A$13:$A$24,ORÇAMENTO!E175)),OFFSET($D175,1,$C175,ROW($C$181)-ROW($C175)),0)) -> 0 | M175: Serviço | N175: Serviço | O175: - | P175: SINAPI | Q175: 88489 | R175: =IF($C175="S",REFERENCIA.Descricao,"(digite a descrição aqui)") -> (abra o arquivo 'Referência 12-2022.xls) | S175: - | T175: =OFFSET(CÁLCULO!H$15,ROW($T175)-ROW(T$15),0) -> 822.21 | U175: 0 | V175: BDI 1 | W175: 0 | X175: 0 | Y175: RA | AA175: =IF($C175="S",IF($Z175="CP",$X175,IF($Z175="RA",(($X175)*QCI!$AA$3),0)),SomaAgrup) -> 0 | AB175: 0 | AD175: =IF(C175<=CRONO.NivelExibicao,MAX($AD$15:OFFSET(AD175,-1,0))+IF($C175<>1,1,MAX(1,COUNTIF(QCI!$A$13:$A$24,OFFSET($E175,-1,0)))),"") ->  | AE175: SINAPI 88489 | AF175: (abra o arquivo 'Referência 12-2022.xls) | AG175: 0 | AH175: 0.2035 | AM175: 0 | AN175: 0
A176: =CHOOSE(1+LOG(1+2*(ORÇAMENTO.Nivel="Meta")+4*(ORÇAMENTO.Nivel="Nível 2")+8*(ORÇAMENTO.Nivel="Nível 3")+16*(ORÇAMENTO.Nivel="Nível 4")+32*(ORÇAMENTO.Nivel="Serviço"),2),0,1,2,3,4,"S") -> 2 | B176: =IF(OR(C176="s",C176=0),OFFSET(B176,-1,0),C176) -> 2 | C176: =IF(OFFSET(C176,-1,0)="L",1,IF(OFFSET(C176,-1,0)=1,2,IF(OR(A176="s",A176=0),"S",IF(AND(OFFSET(C176,-1,0)=2,A176=4),3,IF(AND(OR(OFFSET(C176,-1,0)="s",OFFSET(C176,-1,0)=0),A176<>"s",A176>OFFSET(B176,-1,0)),OFFSET(B176,-1,0),A176))))) -> 2 | D176: =IF(OR(C176="S",C176=0),0,IF(ISERROR(K176),J176,SMALL(J176:K176,1))) -> 3 | E176: =IF($C176=1,OFFSET(E176,-1,0)+MAX(1,COUNTIF(QCI!$A$13:$A$24,OFFSET(ORÇAMENTO!E176,-1,0))),OFFSET(E176,-1,0)) -> 1 | F176: =IF($C176=1,0,IF($C176=2,OFFSET(F176,-1,0)+1,OFFSET(F176,-1,0))) -> 12 | G176: =IF(AND($C176<=2,$C176<>0),0,IF($C176=3,OFFSET(G176,-1,0)+1,OFFSET(G176,-1,0))) -> 0 | H176: =IF(AND($C176<=3,$C176<>0),0,IF($C176=4,OFFSET(H176,-1,0)+1,OFFSET(H176,-1,0))) -> 0 | I176: =IF(AND($C176<=4,$C176<>0),0,IF(AND($C176="S",$X176>0),OFFSET(I176,-1,0)+1,OFFSET(I176,-1,0))) -> 0 | J176: 5 | K176: =IF(OR($C176="S",$C176=0),0,MATCH(OFFSET($D176,0,$C176)+IF($C176<>1,1,COUNTIF(QCI!$A$13:$A$24,ORÇAMENTO!E176)),OFFSET($D176,1,$C176,ROW($C$181)-ROW($C176)),0)) -> 3 | L176: =IF(OR($X176>0,$C176=1,$C176=2,$C176=3,$C176=4),"F","") -> F | M176: Nível 2 | N176: =CHOOSE(1+LOG(1+2*(C176=1)+4*(C176=2)+8*(C176=3)+16*(C176=4)+32*(C176="S"),2),"","Meta","Nível 2","Nível 3","Nível 4","Serviço") -> Nível 2 | O176: =IF(OR($C176=0,$L176=""),"-",CONCATENATE(E176&".",IF(AND($A$5>=2,$C176>=2),F176&".",""),IF(AND($A$5>=3,$C176>=3),G176&".",""),IF(AND($A$5>=4,$C176>=4),H176&".",""),IF($C176="S",I176&".",""))) -> 1.12. | P176: SINAPI | R176: PAVIMENTAÇÃO EXTERNA | S176: =REFERENCIA.Unidade -> - | T176: =OFFSET(CÁLCULO!H$15,ROW($T176)-ROW(T$15),0) -> 0 | U176: 0 | V176: BDI 1 | W176: =IF($C176="S",ROUND(IF(TIPOORCAMENTO="Proposto",ORÇAMENTO.CustoUnitario*(1+$AH176),ORÇAMENTO.PrecoUnitarioLicitado),15-13*$AF$10),0) -> 0 | X176: =IF($C176="S",VTOTAL1,IF($C176=0,0,ROUND(SomaAgrup,15-13*$AF$11))) -> 0 | Y176: RA | Z176: =IF(AND($C176="S",$X176>0),IF(ISBLANK($Y176),"RA",LEFT($Y176,2)),"") ->  | AA176: =IF($C176="S",IF($Z176="CP",$X176,IF($Z176="RA",(($X176)*QCI!$AA$3),0)),SomaAgrup) -> 0 | AB176: =IF($C176="S",IF($Z176="OU",ROUND($X176,2),0),SomaAgrup) -> 0 | AC176: =IF($N176="","",IF(ORÇAMENTO.Descricao="","DESCRIÇÃO",IF(AND($C176="S",ORÇAMENTO.Unidade=""),"UNIDADE",IF($X176<0,"VALOR NEGATIVO",IF(OR(AND(TIPOORCAMENTO="Proposto",$AG176<>"",$AG176>0,ORÇAMENTO.CustoUnitario>$AG176),AND(TIPOORCAMENTO="LICITADO",ORÇAMENTO.PrecoUnitarioLicitado>$AN176)),"ACIMA REF.",""))))) ->  | AD176: =IF(C176<=CRONO.NivelExibicao,MAX($AD$15:OFFSET(AD176,-1,0))+IF($C176<>1,1,MAX(1,COUNTIF(QCI!$A$13:$A$24,OFFSET($E176,-1,0)))),"") -> 13 | AE176: =IF(AND($C176="S",ORÇAMENTO.CodBarra<>""),IF(ORÇAMENTO.Fonte="",ORÇAMENTO.CodBarra,CONCATENATE(ORÇAMENTO.Fonte," ",ORÇAMENTO.CodBarra))) -> FALSE | AF176: =IF(ISERROR(INDIRECT(ORÇAMENTO.BancoRef)),"(abra o arquivo 'Referência "&Excel_BuiltIn_Database&".xls)",IF(OR($C176<>"S",ORÇAMENTO.CodBarra=""),"(Sem Código)",IF(ISERROR(MATCH($AE176,INDIRECT(ORÇAMENTO.BancoRef),0)),"(Código não identificado nas referências)",MATCH($AE176,INDIRECT(ORÇAMENTO.BancoRef),0)))) -> (abra o arquivo 'Referência 12-2022.xls) | AG176: =ROUND(IF(DESONERACAO="sim",REFERENCIA.Desonerado,REFERENCIA.NaoDesonerado),2) -> 0 | AH176: =ROUND(IF(ISNUMBER(ORÇAMENTO.OpcaoBDI),ORÇAMENTO.OpcaoBDI,IF(LEFT(ORÇAMENTO.OpcaoBDI,3)="BDI",HLOOKUP(ORÇAMENTO.OpcaoBDI,$F$4:$H$5,2,FALSE),0)),15-11*$AF$9) -> 0.2035 | AM176: 0 | AN176: =ROUND(ORÇAMENTO.CustoUnitario*(1+$AH176),2) -> 0
A177: =CHOOSE(1+LOG(1+2*(ORÇAMENTO.Nivel="Meta")+4*(ORÇAMENTO.Nivel="Nível 2")+8*(ORÇAMENTO.Nivel="Nível 3")+16*(ORÇAMENTO.Nivel="Nível 4")+32*(ORÇAMENTO.Nivel="Serviço"),2),0,1,2,3,4,"S") -> S | B177: =IF(OR(C177="s",C177=0),OFFSET(B177,-1,0),C177) -> 2 | C177: =IF(OFFSET(C177,-1,0)="L",1,IF(OFFSET(C177,-1,0)=1,2,IF(OR(A177="s",A177=0),"S",IF(AND(OFFSET(C177,-1,0)=2,A177=4),3,IF(AND(OR(OFFSET(C177,-1,0)="s",OFFSET(C177,-1,0)=0),A177<>"s",A177>OFFSET(B177,-1,0)),OFFSET(B177,-1,0),A177))))) -> S | D177: =IF(OR(C177="S",C177=0),0,IF(ISERROR(K177),J177,SMALL(J177:K177,1))) -> 0 | E177: =IF($C177=1,OFFSET(E177,-1,0)+MAX(1,COUNTIF(QCI!$A$13:$A$24,OFFSET(ORÇAMENTO!E177,-1,0))),OFFSET(E177,-1,0)) -> 1 | F177: =IF($C177=1,0,IF($C177=2,OFFSET(F177,-1,0)+1,OFFSET(F177,-1,0))) -> 12 | G177: =IF(AND($C177<=2,$C177<>0),0,IF($C177=3,OFFSET(G177,-1,0)+1,OFFSET(G177,-1,0))) -> 0 | H177: =IF(AND($C177<=3,$C177<>0),0,IF($C177=4,OFFSET(H177,-1,0)+1,OFFSET(H177,-1,0))) -> 0 | I177: =IF(AND($C177<=4,$C177<>0),0,IF(AND($C177="S",$X177>0),OFFSET(I177,-1,0)+1,OFFSET(I177,-1,0))) -> 0 | J177: 0 | K177: =IF(OR($C177="S",$C177=0),0,MATCH(OFFSET($D177,0,$C177)+IF($C177<>1,1,COUNTIF(QCI!$A$13:$A$24,ORÇAMENTO!E177)),OFFSET($D177,1,$C177,ROW($C$181)-ROW($C177)),0)) -> 0 | L177: =IF(OR($X177>0,$C177=1,$C177=2,$C177=3,$C177=4),"F","") ->  | M177: Serviço | N177: =CHOOSE(1+LOG(1+2*(C177=1)+4*(C177=2)+8*(C177=3)+16*(C177=4)+32*(C177="S"),2),"","Meta","Nível 2","Nível 3","Nível 4","Serviço") -> Serviço | O177: =IF(OR($C177=0,$L177=""),"-",CONCATENATE(E177&".",IF(AND($A$5>=2,$C177>=2),F177&".",""),IF(AND($A$5>=3,$C177>=3),G177&".",""),IF(AND($A$5>=4,$C177>=4),H177&".",""),IF($C177="S",I177&".",""))) -> - | P177: SINAPI | Q177: 96624 | R177: =IF($C177="S",REFERENCIA.Descricao,"(digite a descrição aqui)") -> (abra o arquivo 'Referência 12-2022.xls) | S177: =REFERENCIA.Unidade -> - | T177: =OFFSET(CÁLCULO!H$15,ROW($T177)-ROW(T$15),0) -> 7.9 | U177: 0 | V177: BDI 1 | W177: =IF($C177="S",ROUND(IF(TIPOORCAMENTO="Proposto",ORÇAMENTO.CustoUnitario*(1+$AH177),ORÇAMENTO.PrecoUnitarioLicitado),15-13*$AF$10),0) -> 0 | X177: =IF($C177="S",VTOTAL1,IF($C177=0,0,ROUND(SomaAgrup,15-13*$AF$11))) -> 0 | Y177: RA | Z177: =IF(AND($C177="S",$X177>0),IF(ISBLANK($Y177),"RA",LEFT($Y177,2)),"") ->  | AA177: =IF($C177="S",IF($Z177="CP",$X177,IF($Z177="RA",(($X177)*QCI!$AA$3),0)),SomaAgrup) -> 0 | AB177: =IF($C177="S",IF($Z177="OU",ROUND($X177,2),0),SomaAgrup) -> 0 | AC177: =IF($N177="","",IF(ORÇAMENTO.Descricao="","DESCRIÇÃO",IF(AND($C177="S",ORÇAMENTO.Unidade=""),"UNIDADE",IF($X177<0,"VALOR NEGATIVO",IF(OR(AND(TIPOORCAMENTO="Proposto",$AG177<>"",$AG177>0,ORÇAMENTO.CustoUnitario>$AG177),AND(TIPOORCAMENTO="LICITADO",ORÇAMENTO.PrecoUnitarioLicitado>$AN177)),"ACIMA REF.",""))))) ->  | AD177: =IF(C177<=CRONO.NivelExibicao,MAX($AD$15:OFFSET(AD177,-1,0))+IF($C177<>1,1,MAX(1,COUNTIF(QCI!$A$13:$A$24,OFFSET($E177,-1,0)))),"") ->  | AE177: =IF(AND($C177="S",ORÇAMENTO.CodBarra<>""),IF(ORÇAMENTO.Fonte="",ORÇAMENTO.CodBarra,CONCATENATE(ORÇAMENTO.Fonte," ",ORÇAMENTO.CodBarra))) -> SINAPI 96624 | AF177: =IF(ISERROR(INDIRECT(ORÇAMENTO.BancoRef)),"(abra o arquivo 'Referência "&Excel_BuiltIn_Database&".xls)",IF(OR($C177<>"S",ORÇAMENTO.CodBarra=""),"(Sem Código)",IF(ISERROR(MATCH($AE177,INDIRECT(ORÇAMENTO.BancoRef),0)),"(Código não identificado nas referências)",MATCH($AE177,INDIRECT(ORÇAMENTO.BancoRef),0)))) -> (abra o arquivo 'Referência 12-2022.xls) | AG177: =ROUND(IF(DESONERACAO="sim",REFERENCIA.Desonerado,REFERENCIA.NaoDesonerado),2) -> 0 | AH177: =ROUND(IF(ISNUMBER(ORÇAMENTO.OpcaoBDI),ORÇAMENTO.OpcaoBDI,IF(LEFT(ORÇAMENTO.OpcaoBDI,3)="BDI",HLOOKUP(ORÇAMENTO.OpcaoBDI,$F$4:$H$5,2,FALSE),0)),15-11*$AF$9) -> 0.2035 | AM177: 0 | AN177: =ROUND(ORÇAMENTO.CustoUnitario*(1+$AH177),2) -> 0
A178: S | B178: 2 | C178: S | D178: 0 | E178: =IF($C178=1,OFFSET(E178,-1,0)+MAX(1,COUNTIF(QCI!$A$13:$A$24,OFFSET(ORÇAMENTO!E178,-1,0))),OFFSET(E178,-1,0)) -> 1 | F178: 12 | G178: 0 | H178: 0 | I178: 0 | J178: 0 | K178: =IF(OR($C178="S",$C178=0),0,MATCH(OFFSET($D178,0,$C178)+IF($C178<>1,1,COUNTIF(QCI!$A$13:$A$24,ORÇAMENTO!E178)),OFFSET($D178,1,$C178,ROW($C$181)-ROW($C178)),0)) -> 0 | M178: Serviço | N178: Serviço | O178: - | P178: SINAPI | Q178: 94994 | R178: =IF($C178="S",REFERENCIA.Descricao,"(digite a descrição aqui)") -> (abra o arquivo 'Referência 12-2022.xls) | S178: =REFERENCIA.Unidade -> - | T178: =OFFSET(CÁLCULO!H$15,ROW($T178)-ROW(T$15),0) -> 79.05 | U178: 0 | V178: BDI 1 | W178: =IF($C178="S",ROUND(IF(TIPOORCAMENTO="Proposto",ORÇAMENTO.CustoUnitario*(1+$AH178),ORÇAMENTO.PrecoUnitarioLicitado),15-13*$AF$10),0) -> 0 | X178: 0 | Y178: RA | AA178: =IF($C178="S",IF($Z178="CP",$X178,IF($Z178="RA",(($X178)*QCI!$AA$3),0)),SomaAgrup) -> 0 | AB178: 0 | AC178: =IF($N178="","",IF(ORÇAMENTO.Descricao="","DESCRIÇÃO",IF(AND($C178="S",ORÇAMENTO.Unidade=""),"UNIDADE",IF($X178<0,"VALOR NEGATIVO",IF(OR(AND(TIPOORCAMENTO="Proposto",$AG178<>"",$AG178>0,ORÇAMENTO.CustoUnitario>$AG178),AND(TIPOORCAMENTO="LICITADO",ORÇAMENTO.PrecoUnitarioLicitado>$AN178)),"ACIMA REF.",""))))) ->  | AD178: =IF(C178<=CRONO.NivelExibicao,MAX($AD$15:OFFSET(AD178,-1,0))+IF($C178<>1,1,MAX(1,COUNTIF(QCI!$A$13:$A$24,OFFSET($E178,-1,0)))),"") ->  | AE178: =IF(AND($C178="S",ORÇAMENTO.CodBarra<>""),IF(ORÇAMENTO.Fonte="",ORÇAMENTO.CodBarra,CONCATENATE(ORÇAMENTO.Fonte," ",ORÇAMENTO.CodBarra))) -> SINAPI 94994 | AF178: =IF(ISERROR(INDIRECT(ORÇAMENTO.BancoRef)),"(abra o arquivo 'Referência "&Excel_BuiltIn_Database&".xls)",IF(OR($C178<>"S",ORÇAMENTO.CodBarra=""),"(Sem Código)",IF(ISERROR(MATCH($AE178,INDIRECT(ORÇAMENTO.BancoRef),0)),"(Código não identificado nas referências)",MATCH($AE178,INDIRECT(ORÇAMENTO.BancoRef),0)))) -> (abra o arquivo 'Referência 12-2022.xls) | AG178: =ROUND(IF(DESONERACAO="sim",REFERENCIA.Desonerado,REFERENCIA.NaoDesonerado),2) -> 0 | AH178: 0.2035 | AM178: 0 | AN178: 0
A179: 2 | B179: =IF(OR(C179="s",C179=0),OFFSET(B179,-1,0),C179) -> 2 | C179: =IF(OFFSET(C179,-1,0)="L",1,IF(OFFSET(C179,-1,0)=1,2,IF(OR(A179="s",A179=0),"S",IF(AND(OFFSET(C179,-1,0)=2,A179=4),3,IF(AND(OR(OFFSET(C179,-1,0)="s",OFFSET(C179,-1,0)=0),A179<>"s",A179>OFFSET(B179,-1,0)),OFFSET(B179,-1,0),A179))))) -> 2 | D179: =IF(OR(C179="S",C179=0),0,IF(ISERROR(K179),J179,SMALL(J179:K179,1))) -> 2 | E179: =IF($C179=1,OFFSET(E179,-1,0)+MAX(1,COUNTIF(QCI!$A$13:$A$24,OFFSET(ORÇAMENTO!E179,-1,0))),OFFSET(E179,-1,0)) -> 1 | F179: =IF($C179=1,0,IF($C179=2,OFFSET(F179,-1,0)+1,OFFSET(F179,-1,0))) -> 13 | G179: =IF(AND($C179<=2,$C179<>0),0,IF($C179=3,OFFSET(G179,-1,0)+1,OFFSET(G179,-1,0))) -> 0 | H179: =IF(AND($C179<=3,$C179<>0),0,IF($C179=4,OFFSET(H179,-1,0)+1,OFFSET(H179,-1,0))) -> 0 | I179: =IF(AND($C179<=4,$C179<>0),0,IF(AND($C179="S",$X179>0),OFFSET(I179,-1,0)+1,OFFSET(I179,-1,0))) -> 0 | J179: 2 | K179: =IF(OR($C179="S",$C179=0),0,MATCH(OFFSET($D179,0,$C179)+IF($C179<>1,1,COUNTIF(QCI!$A$13:$A$24,ORÇAMENTO!E179)),OFFSET($D179,1,$C179,ROW($C$181)-ROW($C179)),0)) ->  | L179: =IF(OR($X179>0,$C179=1,$C179=2,$C179=3,$C179=4),"F","") -> F | M179: Nível 2 | N179: =CHOOSE(1+LOG(1+2*(C179=1)+4*(C179=2)+8*(C179=3)+16*(C179=4)+32*(C179="S"),2),"","Meta","Nível 2","Nível 3","Nível 4","Serviço") -> Nível 2 | O179: =IF(OR($C179=0,$L179=""),"-",CONCATENATE(E179&".",IF(AND($A$5>=2,$C179>=2),F179&".",""),IF(AND($A$5>=3,$C179>=3),G179&".",""),IF(AND($A$5>=4,$C179>=4),H179&".",""),IF($C179="S",I179&".",""))) -> 1.13. | P179: SINAPI | R179: SERVIÇOS FINAIS | S179: =REFERENCIA.Unidade -> - | T179: =OFFSET(CÁLCULO!H$15,ROW($T179)-ROW(T$15),0) -> 0 | U179: 0 | V179: BDI 1 | W179: =IF($C179="S",ROUND(IF(TIPOORCAMENTO="Proposto",ORÇAMENTO.CustoUnitario*(1+$AH179),ORÇAMENTO.PrecoUnitarioLicitado),15-13*$AF$10),0) -> 0 | X179: 0 | Y179: RA | Z179: =IF(AND($C179="S",$X179>0),IF(ISBLANK($Y179),"RA",LEFT($Y179,2)),"") ->  | AA179: =IF($C179="S",IF($Z179="CP",$X179,IF($Z179="RA",(($X179)*QCI!$AA$3),0)),SomaAgrup) -> 0 | AB179: 0 | AC179: =IF($N179="","",IF(ORÇAMENTO.Descricao="","DESCRIÇÃO",IF(AND($C179="S",ORÇAMENTO.Unidade=""),"UNIDADE",IF($X179<0,"VALOR NEGATIVO",IF(OR(AND(TIPOORCAMENTO="Proposto",$AG179<>"",$AG179>0,ORÇAMENTO.CustoUnitario>$AG179),AND(TIPOORCAMENTO="LICITADO",ORÇAMENTO.PrecoUnitarioLicitado>$AN179)),"ACIMA REF.",""))))) ->  | AD179: =IF(C179<=CRONO.NivelExibicao,MAX($AD$15:OFFSET(AD179,-1,0))+IF($C179<>1,1,MAX(1,COUNTIF(QCI!$A$13:$A$24,OFFSET($E179,-1,0)))),"") -> 14 | AE179: =IF(AND($C179="S",ORÇAMENTO.CodBarra<>""),IF(ORÇAMENTO.Fonte="",ORÇAMENTO.CodBarra,CONCATENATE(ORÇAMENTO.Fonte," ",ORÇAMENTO.CodBarra))) -> FALSE | AF179: =IF(ISERROR(INDIRECT(ORÇAMENTO.BancoRef)),"(abra o arquivo 'Referência "&Excel_BuiltIn_Database&".xls)",IF(OR($C179<>"S",ORÇAMENTO.CodBarra=""),"(Sem Código)",IF(ISERROR(MATCH($AE179,INDIRECT(ORÇAMENTO.BancoRef),0)),"(Código não identificado nas referências)",MATCH($AE179,INDIRECT(ORÇAMENTO.BancoRef),0)))) -> (abra o arquivo 'Referência 12-2022.xls) | AG179: =ROUND(IF(DESONERACAO="sim",REFERENCIA.Desonerado,REFERENCIA.NaoDesonerado),2) -> 0 | AH179: 0.2035 | AM179: 0 | AN179: 0
A180: S | B180: 2 | C180: S | D180: 0 | E180: =IF($C180=1,OFFSET(E180,-1,0)+MAX(1,COUNTIF(QCI!$A$13:$A$24,OFFSET(ORÇAMENTO!E180,-1,0))),OFFSET(E180,-1,0)) -> 1 | F180: 13 | G180: 0 | H180: 0 | I180: 0 | J180: 0 | K180: =IF(OR($C180="S",$C180=0),0,MATCH(OFFSET($D180,0,$C180)+IF($C180<>1,1,COUNTIF(QCI!$A$13:$A$24,ORÇAMENTO!E180)),OFFSET($D180,1,$C180,ROW($C$181)-ROW($C180)),0)) -> 0 | M180: Serviço | N180: Serviço | O180: - | P180: SINAPI | Q180: 99811 | R180: =IF($C180="S",REFERENCIA.Descricao,"(digite a descrição aqui)") -> (abra o arquivo 'Referência 12-2022.xls) | S180: =REFERENCIA.Unidade -> - | T180: =OFFSET(CÁLCULO!H$15,ROW($T180)-ROW(T$15),0) -> 236.93 | U180: 0 | V180: BDI 1 | W180: =IF($C180="S",ROUND(IF(TIPOORCAMENTO="Proposto",ORÇAMENTO.CustoUnitario*(1+$AH180),ORÇAMENTO.PrecoUnitarioLicitado),15-13*$AF$10),0) -> 0 | X180: 0 | Y180: RA | AA180: =IF($C180="S",IF($Z180="CP",$X180,IF($Z180="RA",(($X180)*QCI!$AA$3),0)),SomaAgrup) -> 0 | AB180: 0 | AC180: =IF($N180="","",IF(ORÇAMENTO.Descricao="","DESCRIÇÃO",IF(AND($C180="S",ORÇAMENTO.Unidade=""),"UNIDADE",IF($X180<0,"VALOR NEGATIVO",IF(OR(AND(TIPOORCAMENTO="Proposto",$AG180<>"",$AG180>0,ORÇAMENTO.CustoUnitario>$AG180),AND(TIPOORCAMENTO="LICITADO",ORÇAMENTO.PrecoUnitarioLicitado>$AN180)),"ACIMA REF.",""))))) ->  | AD180: =IF(C180<=CRONO.NivelExibicao,MAX($AD$15:OFFSET(AD180,-1,0))+IF($C180<>1,1,MAX(1,COUNTIF(QCI!$A$13:$A$24,OFFSET($E180,-1,0)))),"") ->  | AE180: =IF(AND($C180="S",ORÇAMENTO.CodBarra<>""),IF(ORÇAMENTO.Fonte="",ORÇAMENTO.CodBarra,CONCATENATE(ORÇAMENTO.Fonte," ",ORÇAMENTO.CodBarra))) -> SINAPI 99811 | AF180: =IF(ISERROR(INDIRECT(ORÇAMENTO.BancoRef)),"(abra o arquivo 'Referência "&Excel_BuiltIn_Database&".xls)",IF(OR($C180<>"S",ORÇAMENTO.CodBarra=""),"(Sem Código)",IF(ISERROR(MATCH($AE180,INDIRECT(ORÇAMENTO.BancoRef),0)),"(Código não identificado nas referências)",MATCH($AE180,INDIRECT(ORÇAMENTO.BancoRef),0)))) -> (abra o arquivo 'Referência 12-2022.xls) | AG180: =ROUND(IF(DESONERACAO="sim",REFERENCIA.Desonerado,REFERENCIA.NaoDesonerado),2) -> 0 | AH180: 0.2035 | AM180: =$X180 -> 0 | AN180: 0
A181: -1 | C181: -1 | E181: 0 | F181: 0 | G181: 0 | H181: 0 | I181: 0 | L181: F
O184: Encargos sociais: | Q184: Para elaboração deste orçamento, foram utilizados os encargos sociais do SINAPI para a Unidade da Federação indicada.
O186: Observações:
O187: *O regime de Contribuição Previdenciária adotado é SEM DESONERAÇÂO, pois este é o mais adequado para a Administração Pública. *Os encargos sociais para mão-de-obra horista e mesalista atendem ao estabelecido no SINAPI para SC. DEINFRA atualizado pelo índice INCC de 08/2022
O191: =IF(AND($AF$7=FALSE,$AF$8=FALSE,$AF$9=FALSE,$AF$10=FALSE,$AF$11=FALSE),"Não foi considerado arredondamento nos valores da planilha.",CONCATENATE("Foi considerado arredondamento de duas casas decimais para ",IF($AF$7=TRUE,"Quantidade; ",""),IF($AF$8=TRUE,"Custo Unitário; ",""),IF($AF$9=TRUE,"BDI; ",""),IF($AF$10=TRUE,"Preço Unitário; ",""),IF($AF$11=TRUE,"Preço Total.",""))) -> Foi considerado arredondamento de duas casas decimais para Quantidade; Custo Unitário; BDI; Preço Unitário; Preço Total.
O192: Siglas da Composição do Investimento: RA - Rateio proporcional entre Repasse e Contrapartida; RP - 100% Repasse; CP - 100% Contrapartida; OU - 100% Outros.
O194: =Import.Município -> Balneário Camboriú/SC
O195: Local | S195: Responsável Técnico
S196: Nome: | T196: =Import.RespOrçamento -> Rafael Calistro de Borba
O197: =DADOS!$F$25 -> 2023-03-09 | S197: CREA/CAU: | T197: 093.243-9
O198: Data | S198: ART/RRT: | T198: 0

Sheet CÁLCULO
F1: =IF(ACOMPANHAMENTO="BM","MEMÓRIA DE CÁLCULO","PLQ - PLANILHA DE LEVANTAMENTO DE QUANTIDADES") -> PLQ - PLANILHA DE LEVANTAMENTO DE QUANTIDADES | Q1: Grau de Sigilo | Y1: Grau de Sigilo
F2: =IF(ACOMPANHAMENTO="BM","","Memória de Cálculo")&" - "&import.recurso -> Memória de Cálculo - | Q2: #PUBLICO | Y2: #PUBLICO
E4: APELIDO DO EMPREENDIMENTO | G4: Nº SICONV | I4: Nº OPERAÇÃO | K4: PROPONENTE / TOMADOR | S4: Nº OPERAÇÃO | U4: PROPONENTE / TOMADOR
E5: =Import.Apelido -> REFORMA RESERVATÓRIO HMRC | G5: =Import.SICONV -> 0 | I5: =Import.CR -> 0 | K5: =Import.Proponente -> Prefeitura Municipal de Balneário Camboriú | S5: =Import.CR -> 0 | U5: =Import.Proponente -> Prefeitura Municipal de Balneário Camboriú
AB6: Preços dos serviços por frente | AM6: Mês do cronograma | AX6: Número da Medição
A12: =IF(OFFSET(EVENTOS!$C$5,1,0)="Automática, conforme os agrupadores Nível 4 do Orçamento",4,IF(OFFSET(EVENTOS!$C$5,1,0)="Automática, conforme os agrupadores Nível 3 do Orçamento",3,IF(OFFSET(EVENTOS!$C$5,1,0)="Definir Manualmente","Manual",2))) -> Manual | B12: Empty | J12: . | K12: Nº AGRUPADOR DE EVENTOS | L12: . | M12: =IF(ACOMPANHAMENTO="BM",0,COUNTIF(M15:M181,0)) -> 1 | N12: FRENTES DE OBRA: | P12: . | Q12: CONSTRUÇÃO + ADM LOCAL 1 | R12: ADM LOCAL 2 | S12: ADM LOCAL 3 | T12: ADM LOCAL 4 | U12: ADM LOCAL 5 | AA12: . | AB12: =OFFSET($P$12,0,AB$13) -> CONSTRUÇÃO + ADM LOCAL 1 | AC12: =OFFSET($P$12,0,AC$13) -> ADM LOCAL 2 | AD12: ADM LOCAL 3 | AE12: ADM LOCAL 4 | AF12: ADM LOCAL 5 | AG12: 0 | AH12: 0 | AI12: 0 | AJ12: 0 | AK12: 0 | AM12: =OFFSET($P$12,0,AM$13) -> CONSTRUÇÃO + ADM LOCAL 1 | AN12: =OFFSET($P$12,0,AN$13) -> ADM LOCAL 2 | AO12: ADM LOCAL 3 | AP12: ADM LOCAL 4 | AQ12: ADM LOCAL 5 | AR12: 0 | AS12: 0 | AT12: 0 | AU12: 0 | AV12: 0 | AX12: =OFFSET($P$12,0,AX$13) -> CONSTRUÇÃO + ADM LOCAL 1 | AY12: =OFFSET($P$12,0,AY$13) -> ADM LOCAL 2 | AZ12: ADM LOCAL 3 | BA12: ADM LOCAL 4 | BB12: ADM LOCAL 5 | BC12: 0 | BD12: 0 | BE12: 0 | BF12: 0 | BG12: 0
A13: AUTOEVENTO | B13: Empty | D13: Nível | E13: Item | F13: Descrição | G13: Unidade | H13: Quantidade | I13: Memória de Cálculo | K13: Nº | M13: # Evento | N13: Agrupador de Eventos | O13: =OFFSET(O13,0,-1)+1 ->  | Q13: =OFFSET(Q13,0,-1)+1 -> 1 | R13: 2 | S13: 3 | T13: 4 | U13: 5 | V13: 6 | W13: 7 | X13: 8 | Y13: 9 | Z13: 10 | AB13: =OFFSET(AB13,0,-1)+1 -> 1 | AC13: 2 | AD13: 3 | AE13: 4 | AF13: 5 | AG13: 6 | AH13: 7 | AI13: 8 | AJ13: 9 | AK13: 10 | AM13: 1 | AN13: 2 | AO13: 3 | AP13: 4 | AQ13: 5 | AR13: 6 | AS13: 7 | AT13: 8 | AU13: 9 | AV13: 10 | AX13: 1 | AY13: 2 | AZ13: 3 | BA13: 4 | BB13: 5 | BC13: 6 | BD13: 7 | BE13: 8 | BF13: 9 | BG13: 10
A14: =IF(AUTOEVENTO="Manual",IF(K14<>"",MIN(VALUE(LEFT(K14,FIND(".",K14)-1)),COUNTA(EVENTOS.Lista)),0),IF(OR($B14>AUTOEVENTO,$B14="S",$B14=0),SUBSTITUTE(OFFSET($A14,-1,0),IF($D14="Serviço",".",""),""),ROW(A14)-ROW($A$15)&".")) -> 0 | B14: =OFFSET(ORÇAMENTO!C$15,ROW(B14)-ROW(B$15),0) -> S | C14: =OFFSET(ORÇAMENTO!L$15,ROW(C14)-ROW(C$15),0) ->  | D14: =OFFSET(ORÇAMENTO!N$15,ROW(D14)-ROW(D$15),0) -> Serviço | E14: =OFFSET(ORÇAMENTO!O$15,ROW(E14)-ROW(E$15),0) -> - | F14: =OFFSET(ORÇAMENTO!R$15,ROW(F14)-ROW(F$15),0) -> (abra o arquivo 'Referência 12-2022.xls) | G14: =IF($D14<>"Serviço","",OFFSET(ORÇAMENTO!S$15,ROW(G14)-ROW(G$15),0)) -> - | H14: =IF($D14<>"Serviço",0,IF(ACOMPANHAMENTO="BM",ROUND(OFFSET(ORÇAMENTO!AJ$15,ROW(H14)-ROW(H$15),0),15-13*ORÇAMENTO!$AF$7),SUMPRODUCT(($Q$12:$AA$12<>"")*ROUND($Q14:$AA14,15-13*ORÇAMENTO!$AF$7)))) -> 0 | L14: . | M14: =IF($D14<>"Serviço","",IF(AUTOEVENTO="manual",$A14,IF(ISERROR(MATCH($A14,$A$15:OFFSET($A14,-1,0),0)),MAX($M$15:OFFSET(M14,-1,0))+1,INDEX($M$15:OFFSET(M14,-1,0),MATCH($A14,$A$15:OFFSET($A14,-1,0),0))))) -> 0 | N14: =IF($D14<>"Serviço","",IF(AUTOEVENTO="Manual",IF($A14=0,"<-- defina o número do agrupador",OFFSET(EVENTOS!$D$14,$A14,0)),OFFSET($F$15,$A14,0))) -> <-- defina o número do agrupador | AB14: =IF(AND($D14="Serviço",AB$12<>0,$H14>0,OR(AUTOEVENTO<>"manual",$M14<>1)),ROUND(OFFSET($P14,0,AB$13),15-13*ORÇAMENTO!$AF$7)/$H14*OFFSET(ORÇAMENTO!$X$15,ROW(AB14)-ROW(AB$15),0),0) -> 0 | AC14: =IF(AND($D14="Serviço",AC$12<>0,$H14>0,OR(AUTOEVENTO<>"manual",$M14<>1)),ROUND(OFFSET($P14,0,AC$13),15-13*ORÇAMENTO!$AF$7)/$H14*OFFSET(ORÇAMENTO!$X$15,ROW(AC14)-ROW(AC$15),0),0) -> 0 | AD14: =IF(AND($D14="Serviço",AD$12<>0,$H14>0,OR(AUTOEVENTO<>"manual",$M14<>1)),ROUND(OFFSET($P14,0,AD$13),15-13*ORÇAMENTO!$AF$7)/$H14*OFFSET(ORÇAMENTO!$X$15,ROW(AD14)-ROW(AD$15),0),0) -> 0 | AE14: =IF(AND($D14="Serviço",AE$12<>0,$H14>0,OR(AUTOEVENTO<>"manual",$M14<>1)),ROUND(OFFSET($P14,0,AE$13),15-13*ORÇAMENTO!$AF$7)/$H14*OFFSET(ORÇAMENTO!$X$15,ROW(AE14)-ROW(AE$15),0),0) -> 0 | AF14: =IF(AND($D14="Serviço",AF$12<>0,$H14>0,OR(AUTOEVENTO<>"manual",$M14<>1)),ROUND(OFFSET($P14,0,AF$13),15-13*ORÇAMENTO!$AF$7)/$H14*OFFSET(ORÇAMENTO!$X$15,ROW(AF14)-ROW(AF$15),0),0) -> 0 | AG14: =IF(AND($D14="Serviço",AG$12<>0,$H14>0,OR(AUTOEVENTO<>"manual",$M14<>1)),ROUND(OFFSET($P14,0,AG$13),15-13*ORÇAMENTO!$AF$7)/$H14*OFFSET(ORÇAMENTO!$X$15,ROW(AG14)-ROW(AG$15),0),0) -> 0 | AH14: =IF(AND($D14="Serviço",AH$12<>0,$H14>0,OR(AUTOEVENTO<>"manual",$M14<>1)),ROUND(OFFSET($P14,0,AH$13),15-13*ORÇAMENTO!$AF$7)/$H14*OFFSET(ORÇAMENTO!$X$15,ROW(AH14)-ROW(AH$15),0),0) -> 0 | AI14: =IF(AND($D14="Serviço",AI$12<>0,$H14>0,OR(AUTOEVENTO<>"manual",$M14<>1)),ROUND(OFFSET($P14,0,AI$13),15-13*ORÇAMENTO!$AF$7)/$H14*OFFSET(ORÇAMENTO!$X$15,ROW(AI14)-ROW(AI$15),0),0) -> 0 | AJ14: =IF(AND($D14="Serviço",AJ$12<>0,$H14>0,OR(AUTOEVENTO<>"manual",$M14<>1)),ROUND(OFFSET($P14,0,AJ$13),15-13*ORÇAMENTO!$AF$7)/$H14*OFFSET(ORÇAMENTO!$X$15,ROW(AJ14)-ROW(AJ$15),0),0) -> 0 | AK14: =IF(AND($D14="Serviço",AK$12<>0,$H14>0,OR(AUTOEVENTO<>"manual",$M14<>1)),ROUND(OFFSET($P14,0,AK$13),15-13*ORÇAMENTO!$AF$7)/$H14*OFFSET(ORÇAMENTO!$X$15,ROW(AK14)-ROW(AK$15),0),0) -> 0 | AM14: =IF($D14<>"Serviço",0,IF(AND(AUTOEVENTO="Manual",$M14=1),0,IF(OFFSET(CRONOPLE!$F$14,$M14,AM$13)="",10^12,OFFSET(CRONOPLE!$F$14,$M14,AM$13)))) -> 1000000000000 | AN14: =IF($D14<>"Serviço",0,IF(AND(AUTOEVENTO="Manual",$M14=1),0,IF(OFFSET(CRONOPLE!$F$14,$M14,AN$13)="",10^12,OFFSET(CRONOPLE!$F$14,$M14,AN$13)))) -> 1000000000000 | AO14: =IF($D14<>"Serviço",0,IF(AND(AUTOEVENTO="Manual",$M14=1),0,IF(OFFSET(CRONOPLE!$F$14,$M14,AO$13)="",10^12,OFFSET(CRONOPLE!$F$14,$M14,AO$13)))) -> 1000000000000 | AP14: =IF($D14<>"Serviço",0,IF(AND(AUTOEVENTO="Manual",$M14=1),0,IF(OFFSET(CRONOPLE!$F$14,$M14,AP$13)="",10^12,OFFSET(CRONOPLE!$F$14,$M14,AP$13)))) -> 1000000000000 | AQ14: =IF($D14<>"Serviço",0,IF(AND(AUTOEVENTO="Manual",$M14=1),0,IF(OFFSET(CRONOPLE!$F$14,$M14,AQ$13)="",10^12,OFFSET(CRONOPLE!$F$14,$M14,AQ$13)))) -> 1000000000000 | AR14: =IF($D14<>"Serviço",0,IF(AND(AUTOEVENTO="Manual",$M14=1),0,IF(OFFSET(CRONOPLE!$F$14,$M14,AR$13)="",10^12,OFFSET(CRONOPLE!$F$14,$M14,AR$13)))) -> 1000000000000 | AS14: =IF($D14<>"Serviço",0,IF(AND(AUTOEVENTO="Manual",$M14=1),0,IF(OFFSET(CRONOPLE!$F$14,$M14,AS$13)="",10^12,OFFSET(CRONOPLE!$F$14,$M14,AS$13)))) -> 1000000000000 | AT14: =IF($D14<>"Serviço",0,IF(AND(AUTOEVENTO="Manual",$M14=1),0,IF(OFFSET(CRONOPLE!$F$14,$M14,AT$13)="",10^12,OFFSET(CRONOPLE!$F$14,$M14,AT$13)))) -> 1000000000000 | AU14: =IF($D14<>"Serviço",0,IF(AND(AUTOEVENTO="Manual",$M14=1),0,IF(OFFSET(CRONOPLE!$F$14,$M14,AU$13)="",10^12,OFFSET(CRONOPLE!$F$14,$M14,AU$13)))) -> 1000000000000 | AV14: =IF($D14<>"Serviço",0,IF(AND(AUTOEVENTO="Manual",$M14=1),0,IF(OFFSET(CRONOPLE!$F$14,$M14,AV$13)="",10^12,OFFSET(CRONOPLE!$F$14,$M14,AV$13)))) -> 1000000000000 | AX14: =IF($D14<>"Serviço",0,IF(OR(AND(AUTOEVENTO="Manual",$M14=1),$M14>(ROW(PLE.lastrow)-ROW(PLE.firstrow))),0,IF(OFFSET(PLE!$G$14,$M14,AX$13)="",10^12,OFFSET(PLE!$G$14,$M14,AX$13)))) -> 1000000000000 | AY14: =IF($D14<>"Serviço",0,IF(OR(AND(AUTOEVENTO="Manual",$M14=1),$M14>(ROW(PLE.lastrow)-ROW(PLE.firstrow))),0,IF(OFFSET(PLE!$G$14,$M14,AY$13)="",10^12,OFFSET(PLE!$G$14,$M14,AY$13)))) -> 1000000000000 | AZ14: =IF($D14<>"Serviço",0,IF(OR(AND(AUTOEVENTO="Manual",$M14=1),$M14>(ROW(PLE.lastrow)-ROW(PLE.firstrow))),0,IF(OFFSET(PLE!$G$14,$M14,AZ$13)="",10^12,OFFSET(PLE!$G$14,$M14,AZ$13)))) -> 1000000000000 | BA14: =IF($D14<>"Serviço",0,IF(OR(AND(AUTOEVENTO="Manual",$M14=1),$M14>(ROW(PLE.lastrow)-ROW(PLE.firstrow))),0,IF(OFFSET(PLE!$G$14,$M14,BA$13)="",10^12,OFFSET(PLE!$G$14,$M14,BA$13)))) -> 1000000000000 | BB14: =IF($D14<>"Serviço",0,IF(OR(AND(AUTOEVENTO="Manual",$M14=1),$M14>(ROW(PLE.lastrow)-ROW(PLE.firstrow))),0,IF(OFFSET(PLE!$G$14,$M14,BB$13)="",10^12,OFFSET(PLE!$G$14,$M14,BB$13)))) -> 1000000000000 | BC14: =IF($D14<>"Serviço",0,IF(OR(AND(AUTOEVENTO="Manual",$M14=1),$M14>(ROW(PLE.lastrow)-ROW(PLE.firstrow))),0,IF(OFFSET(PLE!$G$14,$M14,BC$13)="",10^12,OFFSET(PLE!$G$14,$M14,BC$13)))) -> 1000000000000 | BD14: =IF($D14<>"Serviço",0,IF(OR(AND(AUTOEVENTO="Manual",$M14=1),$M14>(ROW(PLE.lastrow)-ROW(PLE.firstrow))),0,IF(OFFSET(PLE!$G$14,$M14,BD$13)="",10^12,OFFSET(PLE!$G$14,$M14,BD$13)))) -> 1000000000000 | BE14: =IF($D14<>"Serviço",0,IF(OR(AND(AUTOEVENTO="Manual",$M14=1),$M14>(ROW(PLE.lastrow)-ROW(PLE.firstrow))),0,IF(OFFSET(PLE!$G$14,$M14,BE$13)="",10^12,OFFSET(PLE!$G$14,$M14,BE$13)))) -> 1000000000000 | BF14: =IF($D14<>"Serviço",0,IF(OR(AND(AUTOEVENTO="Manual",$M14=1),$M14>(ROW(PLE.lastrow)-ROW(PLE.firstrow))),0,IF(OFFSET(PLE!$G$14,$M14,BF$13)="",10^12,OFFSET(PLE!$G$14,$M14,BF$13)))) -> 1000000000000 | BG14: =IF($D14<>"Serviço",0,IF(OR(AND(AUTOEVENTO="Manual",$M14=1),$M14>(ROW(PLE.lastrow)-ROW(PLE.firstrow))),0,IF(OFFSET(PLE!$G$14,$M14,BG$13)="",10^12,OFFSET(PLE!$G$14,$M14,BG$13)))) -> 1000000000000
B15: =OFFSET(ORÇAMENTO!C$15,ROW(B15)-ROW(B$15),0) -> L | C15: =OFFSET(ORÇAMENTO!L$15,ROW(C15)-ROW(C$15),0) -> F | D15: =IF(TIPOORCAMENTO="LICITADO","CTEF","LOTE") -> LOTE | E15: =Import.DescLote -> R. Angelina, s/n - Municípios, Balneário Camboriú | L15: . | M15: =IF(AUTOEVENTO="MANUAL",0,1) -> 0 | N15: TOTAL FINANC. POR FRENTE (R$): | O15: =OFFSET($AA$15,0,O$13) ->  | Q15: =OFFSET($AA$15,0,Q$13) -> 0 | R15: 0 | S15: 0 | T15: 0 | U15: 0 | V15: 0 | W15: 0 | X15: 0 | Y15: 0 | Z15: 0 | AB15: =ROUND(SUM(OFFSET(AB$15,1,0):AB$181),2) -> 0 | AC15: =SUM(OFFSET(AC$15,1,0):AC$181) -> 0 | AD15: =SUM(OFFSET(AD$15,1,0):AD$181) -> 0 | AE15: =SUM(OFFSET(AE$15,1,0):AE$181) -> 0 | AF15: =SUM(OFFSET(AF$15,1,0):AF$181) -> 0 | AG15: =SUM(OFFSET(AG$15,1,0):AG$181) -> 0 | AH15: =SUM(OFFSET(AH$15,1,0):AH$181) -> 0 | AI15: =SUM(OFFSET(AI$15,1,0):AI$181) -> 0 | AJ15: =SUM(OFFSET(AJ$15,1,0):AJ$181) -> 0 | AK15: =SUM(OFFSET(AK$15,1,0):AK$181) -> 0 | AM15: =10^12 -> 1000000000000 | AN15: =10^12 -> 1000000000000 | AO15: 1000000000000 | AP15: 1000000000000 | AQ15: 1000000000000 | AR15: 1000000000000 | AS15: 1000000000000 | AT15: 1000000000000 | AU15: 1000000000000 | AV15: 1000000000000 | AX15: =10^12 -> 1000000000000 | AY15: 1000000000000 | AZ15: 1000000000000 | BA15: 1000000000000 | BB15: 1000000000000 | BC15: 1000000000000 | BD15: 1000000000000 | BE15: 1000000000000 | BF15: 1000000000000 | BG15: 1000000000000
